Workbook

Sheet Totale Resultater
A1: Resultater
A3: Resultater | B3: Jan | C3: Feb | D3: Mars | E3: April | F3: Mai | G3: Juni | H3: Juli | I3: Aug | J3: Sept | K3: Okt | L3: Nov | M3: Des
A4: Energiforbruk en tur [kWh] | B4: =SUM(Tabell11[Energibehov '[kWh']]) -> 23407.61865 | C4: =SUM(Tabell1118[Energibehov '[kWh']]) -> 23379.4509 | D4: =SUM(Tabell111822[Energibehov '[kWh']]) -> 21756.49792 | E4: =SUM(Tabell11182223[Energibehov '[kWh']]) -> 17905.20188 | F4: =SUM(Tabell11182224[Energibehov '[kWh']]) -> 13314.33269 | G4: =SUM(Tabell1118222425[Energibehov '[kWh']]) -> 6874.668108 | H4: =SUM(Tabell111822242526[Energibehov '[kWh']]) -> 4550.927743 | I4: =SUM(Tabell11182224252627[Energibehov '[kWh']]) -> 4846.054713 | J4: =SUM(Tabell1118222425262728[Energibehov '[kWh']]) -> 9189.383647 | K4: =SUM(Tabell111822242526272829[Energibehov '[kWh']]) -> 13950.10906 | L4: =SUM(Tabell1118222430[Energibehov '[kWh']]) -> 20149.55031 | M4: =SUM(Tabell111822243031[Energibehov '[kWh']]) -> 23009.68716
A5: Energiforbruk 2 rundturer [kWh] | B5: =B4*4 -> 93630.47461 | C5: =C4*4 -> 93517.80362 | D5: 87025.99167 | E5: 71620.80752 | F5: 53257.33075 | G5: 27498.67243 | H5: 18203.71097 | I5: 19384.21885 | J5: 36757.53459 | K5: 55800.43625 | L5: 80598.20125 | M5: 92038.74865
A6: Energi spart en tur [kWh] | B6: =SUM(Tabell11[Energi spart '[kWh']]) -> 2523.550429 | C6: =SUM(Tabell1118[Energi spart '[kWh']]) -> 2521.346033 | D6: =SUM(Tabell111822[Energi spart '[kWh']]) -> 2270.601444 | E6: =SUM(Tabell11182223[Energi spart '[kWh']]) -> 2239.608688 | F6: =SUM(Tabell11182224[Energi spart '[kWh']]) -> 2059.765398 | G6: =SUM(Tabell1118222425[Energi spart '[kWh']]) -> 1407.070001 | H6: =SUM(Tabell111822242526[Energi spart '[kWh']]) -> 993.8327472 | I6: =SUM(Tabell11182224252627[Energi spart '[kWh']]) -> 1063.658842 | J6: =SUM(Tabell1118222425262728[Energi spart '[kWh']]) -> 1770.910762 | K6: =SUM(Tabell111822242526272829[Energi spart '[kWh']]) -> 2136.021543 | L6: =SUM(Tabell1118222430[Energi spart '[kWh']]) -> 2436.906881 | M6: =SUM(Tabell111822243031[Energi spart '[kWh']]) -> 2496.677333
A7: Energi spart 2 rundturer [kWh] | B7: =B6*4 -> 10094.20172 | C7: 10085.38413 | D7: 9082.405776 | E7: 8958.434751 | F7: 8239.061594 | G7: 5628.280002 | H7: 3975.330989 | I7: 4254.635367 | J7: 7083.643047 | K7: 8544.086172 | L7: 9747.627524 | M7: 9986.709332
A8: Totalt Energibesparelser et år [kWh] | M8: =SUM(B7:M7) -> 95679.8004
A11: Største oppvarmingsbehov [kW]: | B11: =MAXA('Månedlige Resultater'!E3:E455) -> 888.6240602
A13: Gjennomsnittlig oppvarmingsbehov [kW] | B13: =Effektbehov(B15) -> 420.3036359
A15: Gjennomsnittlig temperatur i løpet av et år: | B15: =AVERAGE('Månedlige Resultater'!B3:B455) -> 4.708718196
A17: Største verdi for COP: | B17: =MAXA('Månedlige Resultater'!I3:I455) -> 19.94119056

Sheet Månedlige Resultater
A1: Januar | P1: DATA
A2: Sted | B2: Snitttemp [℃] | C2: Minutter til kai [min] | D2: Timer til kai [h] | E2: Oppvarmingsbehov [kW] | F2: Energibehov [kWh] | G2: Energi direkte fra tank [kWh] | H2: Strømforbruk med tank [kWh] | I2: COP med tank | J2: SW [℃ ] | K2: Strømforbruk uten tank [kWh] | L2: COP uten tank | M2: Energi spart [kWh] | P2: Volum [m^3] | Q2: 14
A3: Bergen | B3: =AVERAGE('Værdata Januar'!A3:A219) -> 2.939631336 | C3: 345 | D3: =C3/60 -> 5.75 | E3: =Effektbehov(B3) -> 476.1695367 | F3: =E3*D3 -> 2737.974836 | G3: =$Q$2*$Q$3*$Q$4*40*(1/3600) -> 653.3333333 | H3: =MAXA((F3-G3)/I3,0) -> 442.0480841 | I3: =beregneCOP(E3,J3) -> 4.715870463 | J3: 6.3 | K3: =F3/L3 -> 608.4388525 | L3: 4.5 | M3: =K3-H3 -> 166.3907684 | P3: Massetetthet vann [kg/m^3] | Q3: 1000
A4: Florø | B4: =AVERAGE('Værdata Januar'!B3:B33) -> 2.412903226 | C4: 15 | D4: =C4/60 -> 0.25 | E4: =Effektbehov(B4) -> 492.803056 | F4: =E4*D4 -> 123.200764 | G4: =$Q$2*$Q$3*$Q$4*40*(1/3600) -> 653.3333333 | H4: 0 | I4: =beregneCOP(E4,J4) -> 4.300657835 | J4: 6.5 | K4: 27.37794756 | L4: 4.5 | M4: =K4-H4 -> 27.37794756 | P4: Spesifikk varmekap [kJ/kg*K] | Q4: 4.2
A5: Måløy | B5: =AVERAGE('Værdata Januar'!C3:C33) -> 3.632258065 | C5: 15 | D5: 0.25 | E5: =Effektbehov(B5) -> 454.2971138 | F5: 113.5742784 | G5: 653.3333333 | H5: 0 | I5: =beregneCOP(E5,J5) -> 4.715870463 | J5: 6.5 | K5: 25.23872854 | L5: 4.5 | M5: 25.23872854
A6: Torvik | B6: =AVERAGE('Værdata Januar'!D3:D33) -> 3.338709677 | C6: 10 | D6: 0.1666666667 | E6: =Effektbehov(B6) -> 463.5670628 | F6: 77.26117714 | G6: 653.3333333 | H6: 0 | I6: =beregneCOP(E6,J6) -> 4.715870463 | J6: 6.8 | K6: 17.16915047 | L6: 4.5 | M6: 17.16915047
A7: Ålesund | B7: =AVERAGE('Værdata Januar'!E3:E362) -> 4.005277778 | C7: 615 | D7: 10.25 | E7: =Effektbehov(B7) -> 442.5175439 | F7: 4535.804825 | G7: 653.3333333 | H7: 823.2778067 | I7: =beregneCOP(E7,J7) -> 4.715870463 | J7: 6.8 | K7: 1007.956628 | L7: 4.5 | M7: 184.678821
A8: Molde | B8: =AVERAGE('Værdata Januar'!F3:F33) -> 3.874193548 | C8: 30 | D8: 0.5 | E8: =Effektbehov(B8) -> 446.6570458 | F8: 223.3285229 | G8: 653.3333333 | H8: 0 | I8: =beregneCOP(E8,J8) -> 4.715870463 | J8: 6.9 | K8: 49.62856065 | L8: 4.5 | M8: =K8-H8 -> 49.62856065
A9: Kristiansund | B9: =AVERAGE('Værdata Januar'!G3:G33) -> 3.806451613 | C9: 15 | D9: 0.25 | E9: =Effektbehov(B9) -> 448.7962649 | F9: 112.1990662 | G9: 653.3333333 | H9: 0 | I9: =beregneCOP(E9,J9) -> 4.715870463 | J9: 7 | K9: 24.93312583 | L9: 4.5 | M9: 24.93312583
A10: Trondheim | B10: =AVERAGE('Værdata Januar'!H3:H126) -> -1.487096774 | C10: 180 | D10: 3 | E10: =Effektbehov(B10) -> 615.9609508 | F10: 1847.882852 | G10: 653.3333333 | H10: 178.367475 | I10: =beregneCOP(E10,J10) -> 6.697126363 | J10: 6 | K10: 410.6406338 | L10: 4.5 | M10: 232.2731589
A11: Rørvik | B11: =AVERAGE('Værdata Januar'!I3:I33) -> 1.135483871 | C11: 20 | D11: 0.3333333333 | E11: =Effektbehov(B11) -> 533.1426146 | F11: 177.7142049 | G11: 653.3333333 | H11: 0 | I11: =beregneCOP(E11,J11) -> 4.300657835 | J11: 5.8 | K11: 39.49204553 | L11: 4.5 | M11: 39.49204553
A12: Brønnøysund | B12: =AVERAGE('Værdata Januar'!J3:J33) -> -0.1161290323 | C12: 10 | D12: 0.1666666667 | E12: =Effektbehov(B12) -> 572.6672326 | F12: 95.44453877 | G12: 653.3333333 | H12: 0 | I12: =beregneCOP(E12,J12) -> 6.697126363 | J12: 5.2 | K12: 21.2098975 | L12: 4.5 | M12: 21.2098975
A13: Sandnessjøen | B13: =AVERAGE('Værdata Januar'!K3:K33) -> 0.01290322581 | C13: 15 | D13: 0.25 | E13: =Effektbehov(B13) -> 568.5925297 | F13: 142.1481324 | G13: 653.3333333 | H13: 0 | I13: =beregneCOP(E13,J13) -> 6.697126363 | J13: 5.2 | K13: 31.58847387 | L13: 4.5 | M13: 31.58847387
A14: Nesna | B14: =AVERAGE('Værdata Januar'!L3:L33) -> 0.06774193548 | C14: 10 | D14: 0.1666666667 | E14: =Effektbehov(B14) -> 566.860781 | F14: 94.47679683 | G14: 653.3333333 | H14: 0 | I14: =beregneCOP(E14,J14) -> 6.697126363 | J14: 5.2 | K14: 20.99484374 | L14: 4.5 | M14: 20.99484374
A15: Ørnes | B15: =AVERAGE('Værdata Januar'!M3:M33) -> 0.1709677419 | C15: 10 | D15: 0.1666666667 | E15: =Effektbehov(B15) -> 563.6010187 | F15: 93.93350311 | G15: 653.3333333 | H15: 0 | I15: =beregneCOP(E15,J15) -> 6.177267677 | J15: 4.8 | K15: 20.8741118 | L15: 4.5 | M15: 20.8741118
A16: Bodø | B16: =AVERAGE('Værdata Januar'!N3:N126) -> 0.2524193548 | C16: 135 | D16: 2.25 | E16: =Effektbehov(B16) -> 561.0288625 | F16: 1262.314941 | G16: 653.3333333 | H16: 106.7646009 | I16: =beregneCOP(E16,J16) -> 5.703965566 | J16: 4.4 | K16: 280.5144312 | L16: 4.5 | M16: 173.7498303
A17: Stamsund | B17: =AVERAGE('Værdata Januar'!O3:O33) -> 0.7064516129 | C17: 25 | D17: 0.4166666667 | E17: =Effektbehov(B17) -> 546.6910017 | F17: 227.7879174 | G17: 653.3333333 | H17: 0 | I17: =beregneCOP(E17,J17) -> 6.697126363 | J17: 5.6 | K17: 50.61953719 | L17: 4.5 | M17: 50.61953719
A18: Svolvær | B18: =AVERAGE('Værdata Januar'!P3:P33) -> 0.5032258065 | C18: 55 | D18: 0.9166666667 | E18: =Effektbehov(B18) -> 553.1086587 | F18: 507.0162705 | G18: 653.3333333 | H18: 0 | I18: =beregneCOP(E18,J18) -> 6.697126363 | J18: 5.6 | K18: 112.6702823 | L18: 4.5 | M18: 112.6702823
A19: Stokmarknes | B19: =AVERAGE('Værdata Januar'!Q3:Q33) -> 0.1129032258 | C19: 10 | D19: 0.1666666667 | E19: =Effektbehov(B19) -> 565.434635 | F19: 94.23910583 | G19: 653.3333333 | H19: 0 | I19: =beregneCOP(E19,J19) -> 6.697126363 | J19: 5.6 | K19: 20.94202352 | L19: 4.5 | M19: 20.94202352
A20: Sortland | B20: =AVERAGE('Værdata Januar'!R3:R33) -> 0.05483870968 | C20: 15 | D20: 0.25 | E20: =Effektbehov(B20) -> 567.2682513 | F20: 141.8170628 | G20: 653.3333333 | H20: 0 | I20: =beregneCOP(E20,J20) -> 6.697126363 | J20: 5.2 | K20: 31.51490285 | L20: 4.5 | M20: 31.51490285
A21: Risøyhamn | B21: =AVERAGE('Værdata Januar'!S3:S33) -> -1.312903226 | C21: 15 | D21: 0.25 | E21: =Effektbehov(B21) -> 610.4601019 | F21: 152.6150255 | G21: 653.3333333 | H21: 0 | I21: =beregneCOP(E21,J21) -> 6.177267677 | J21: 4.8 | K21: 33.9144501 | L21: 4.5 | M21: 33.9144501
A22: Harstad | B22: =AVERAGE('Værdata Januar'!T3:T33) -> -1.351612903 | C22: 35 | D22: 0.5833333333 | E22: =Effektbehov(B22) -> 611.6825127 | F22: =E22*D22 -> 356.8147991 | G22: 653.3333333 | H22: 0 | I22: =beregneCOP(E22,J22) -> 6.177267677 | J22: 4.8 | K22: 79.29217758 | L22: 4.5 | M22: 79.29217758
A23: Finnsnes | B23: =AVERAGE('Værdata Januar'!U3:U33) -> -2.125806452 | C23: 30 | D23: 0.5 | E23: =Effektbehov(B23) -> 636.1307301 | F23: 318.065365 | G23: 653.3333333 | H23: 0 | I23: =beregneCOP(E23,J23) -> 6.697126363 | J23: 5.2 | K23: 70.68119223 | L23: 4.5 | M23: 70.68119223
A24: Tromsø | B24: =AVERAGE('Værdata Januar'!V3:V157) -> -1.46 | C24: 240 | D24: 4 | E24: =Effektbehov(B24) -> 615.1052632 | F24: 2460.421053 | G24: 653.3333333 | H24: 269.8303155 | I24: =beregneCOP(E24,J24) -> 6.697126363 | J24: 5.2 | K24: 546.7602339 | L24: 4.5 | M24: 276.9299184
A25: Skjervøy | B25: =AVERAGE('Værdata Januar'!W3:W33) -> -1.548387097 | C25: 15 | D25: 0.25 | E25: =Effektbehov(B25) -> 617.8964346 | F25: 154.4741087 | G25: 653.3333333 | H25: 0 | I25: =beregneCOP(E25,J25) -> 6.042983981 | J25: 4.7 | K25: 34.3275797 | L25: 4.5 | M25: 34.3275797
A26: Øksfjord | B26: =AVERAGE('Værdata Januar'!X3:X33) -> 0.04516129032 | C26: 10 | D26: 0.1666666667 | E26: =Effektbehov(B26) -> 567.573854 | F26: 94.59564233 | G26: 653.3333333 | H26: 0 | I26: =beregneCOP(E26,J26) -> 6.482113353 | J26: 5 | K26: 21.02125385 | L26: 4.5 | M26: 21.02125385
A27: Hammerfest | B27: =AVERAGE('Værdata Januar'!Y3:Y33) -> -2.277419355 | C27: 40 | D27: 0.6666666667 | E27: =Effektbehov(B27) -> 640.9185059 | F27: 427.279004 | G27: 653.3333333 | H27: 0 | I27: =beregneCOP(E27,J27) -> 6.323401804 | J27: 4.9 | K27: 94.95088977 | L27: 4.5 | M27: 94.95088977
A28: Havøysund | B28: =AVERAGE('Værdata Januar'!Z3:Z33) -> -2.429032258 | C28: 15 | D28: 0.25 | E28: =Effektbehov(B28) -> 645.7062818 | F28: 161.4265705 | G28: 653.3333333 | H28: 0 | I28: =beregneCOP(E28,J28) -> 6.177267677 | J28: 4.8 | K28: 35.87257121 | L28: 4.5 | M28: 35.87257121
A29: Honningsvåg | B29: =AVERAGE('Værdata Januar'!AA3:AA126) -> -2.640322581 | C29: 215 | D29: 3.583333333 | E29: =Effektbehov(B29) -> 652.3786078 | F29: 2337.690011 | G29: 653.3333333 | H29: 284.5281813 | I29: =beregneCOP(E29,J29) -> 5.919823724 | J29: 4.6 | K29: 519.4866692 | L29: 4.5 | M29: 234.9584879
A30: Kjøllefjord | B30: =AVERAGE('Værdata Januar'!AB3:AB33) -> -2.787096774 | C30: 20 | D30: 0.3333333333 | E30: =Effektbehov(B30) -> 657.0135823 | F30: 219.0045274 | G30: 653.3333333 | H30: 0 | I30: =beregneCOP(E30,J30) -> 5.13986933 | J30: 4.3 | K30: 48.66767277 | L30: 4.5 | M30: 48.66767277
A31: Mehamn | B31: =AVERAGE('Værdata Januar'!AC3:AC33) -> -2.703225806 | C31: 20 | D31: 0.3333333333 | E31: =Effektbehov(B31) -> 654.3650255 | F31: 218.1216752 | G31: 653.3333333 | H31: 0 | I31: =beregneCOP(E31,J31) -> 5.13986933 | J31: 4.3 | K31: 48.47148337 | L31: 4.5 | M31: 48.47148337
A32: Berlevåg | B32: =AVERAGE('Værdata Januar'!AD3:AD33) -> -2.919354839 | C32: 10 | D32: 0.1666666667 | E32: =Effektbehov(B32) -> 661.1901528 | F32: 110.1983588 | G32: 653.3333333 | H32: 0 | I32: =beregneCOP(E32,J32) -> 5.084006623 | J32: 4.2 | K32: 24.48852418 | L32: 4.5 | M32: 24.48852418
A33: Båtsfjord | B33: =AVERAGE('Værdata Januar'!AE3:AE33) -> -3.306451613 | C33: 30 | D33: 0.5 | E33: =Effektbehov(B33) -> 673.4142615 | F33: 336.7071307 | G33: 653.3333333 | H33: 0 | I33: =beregneCOP(E33,J33) -> 5.084006623 | J33: 4.2 | K33: 74.82380683 | L33: 4.5 | M33: 74.82380683
A34: Vardø | B34: =AVERAGE('Værdata Januar'!AF3:AF33) -> -3.519354839 | C34: 15 | D34: 0.25 | E34: =Effektbehov(B34) -> 680.1375212 | F34: 170.0343803 | G34: 653.3333333 | H34: 0 | I34: =beregneCOP(E34,J34) -> 5.084006623 | J34: 4.2 | K34: 37.78541785 | L34: 4.5 | M34: 37.78541785
A35: Vadsø | B35: =AVERAGE('Værdata Januar'!AG3:AG33) -> -9.764516129 | C35: 15 | D35: 0.25 | E35: =Effektbehov(B35) -> 877.3531409 | F35: 219.3382852 | G35: 653.3333333 | H35: 0 | I35: =beregneCOP(E35,J35) -> 4.202460718 | J35: 4.2 | K35: 48.74184116 | L35: 4.5 | M35: 48.74184116
A36: Kirkenes | B36: =AVERAGE('Værdata Januar'!AH3:AH126) -> -9.691935484 | C36: 210 | D36: 3.5 | E36: =Effektbehov(B36) -> 875.0611205 | F36: 3062.713922 | G36: 653.3333333 | H36: 573.3261416 | I36: =beregneCOP(E36,J36) -> 4.202460718 | J36: 4.2 | K36: 680.6030938 | L36: 4.5 | M36: 107.2769521
A39: Februar
A40: Sted | B40: Snitttemp [C] | C40: Minutter til kai | D40: Timer til kai [h] | E40: Effekt [kW] | F40: Energibehov [kWh] | G40: Energi direkte fra tank | H40: Strøm med tank [kWh] | I40: COP med tank | J40: SW [C] | K40: Strøm uten tank [kWh] | L40: COP uten tank | M40: Energi spart [kWh]
A41: Bergen | B41: =AVERAGE('Værdata Februar'!A3:A198) -> 2.946938776 | C41: 345 | D41: =C41/60 -> 5.75 | E41: =Effektbehov(B41) -> 475.9387755 | F41: =E41*D41 -> 2736.647959 | G41: =$Q$2*$Q$3*$Q$4*40*(1/3600) -> 653.3333333 | H41: =MAXA((F41-G41)/I41,0) -> 441.7667199 | I41: =beregneCOP(E41,J41) -> 4.715870463 | J41: =SW!C11 -> 5.6 | K41: =F41/L41 -> 608.1439909 | L41: 4.5 | M41: =K41-H41 -> 166.377271
A42: Florø | B42: =AVERAGE('Værdata Februar'!B3:B30) -> 1.732142857 | C42: 15 | D42: =C42/60 -> 0.25 | E42: =Effektbehov(B42) -> 514.3007519 | F42: =E42*D42 -> 128.575188 | G42: 653.3333333 | H42: 0 | I42: =beregneCOP(E42,J42) -> 4.300657835 | J42: =SW!C12 -> 5.9 | K42: 28.57226399 | L42: 4.5 | M42: =K42-H42 -> 28.57226399
A43: Måløy | B43: =AVERAGE('Værdata Februar'!C3:C30) -> 3.582142857 | C43: 15 | D43: 0.25 | E43: =Effektbehov(B43) -> 455.8796992 | F43: 113.9699248 | G43: 653.3333333 | H43: 0 | I43: =beregneCOP(E43,J43) -> 4.715870463 | J43: =SW!C13 -> 5.9 | K43: 25.32664996 | L43: 4.5 | M43: 25.32664996
A44: Torvik | B44: =AVERAGE('Værdata Februar'!D3:D30) -> 2.339285714 | C44: 10 | D44: 0.1666666667 | E44: =Effektbehov(B44) -> 495.1278195 | F44: 82.52130326 | G44: 653.3333333 | H44: 0 | I44: =beregneCOP(E44,J44) -> 4.300657835 | J44: =SW!C14 -> 6.1 | K44: 18.33806739 | L44: 4.5 | M44: 18.33806739
A45: Ålesund | B45: =AVERAGE('Værdata Februar'!E3:E338) -> 3.817559524 | C45: 615 | D45: 10.25 | E45: =Effektbehov(B45) -> 448.4454887 | F45: 4596.566259 | G45: 653.3333333 | H45: 836.1622647 | I45: =beregneCOP(E45,J45) -> 4.715870463 | J45: =SW!C15 -> 6.1 | K45: 1021.459169 | L45: 4.5 | M45: 185.2969041
A46: Molde | B46: =AVERAGE('Værdata Februar'!F3:F30) -> 3.6 | C46: 30 | D46: 0.5 | E46: =Effektbehov(B46) -> 455.3157895 | F46: 227.6578947 | G46: 653.3333333 | H46: 0 | I46: =beregneCOP(E46,J46) -> 4.715870463 | J46: =SW!C16 -> 6.3 | K46: 50.59064327 | L46: 4.5 | M46: =K46-H46 -> 50.59064327
A47: Kristiansund | B47: =AVERAGE('Værdata Februar'!G3:G30) -> 3.628571429 | C47: 15 | D47: 0.25 | E47: =Effektbehov(B47) -> 454.4135338 | F47: 113.6033835 | G47: 653.3333333 | H47: 0 | I47: =beregneCOP(E47,J47) -> 4.715870463 | J47: =SW!C17 -> 6.5 | K47: 25.24519632 | L47: 4.5 | M47: =K47-H47 -> 25.24519632
A48: Trondheim | B48: =AVERAGE('Værdata Februar'!H3:H114) -> -0.04375 | C48: 180 | D48: 3 | E48: =Effektbehov(B48) -> 570.3815789 | F48: 1711.144737 | G48: 653.3333333 | H48: 157.950044 | I48: =beregneCOP(E48,J48) -> 6.697126363 | J48: =SW!C18 -> 5.4 | K48: 380.254386 | L48: 4.5 | M48: 222.304342
A49: Rørvik | B49: =AVERAGE('Værdata Februar'!I3:I30) -> 0.6571428571 | C49: 20 | D49: 0.3333333333 | E49: =Effektbehov(B49) -> 548.2481203 | F49: 182.7493734 | G49: 653.3333333 | H49: 0 | I49: =beregneCOP(E49,J49) -> 6.654129317 | J49: =SW!C19 -> 5.1 | K49: 40.61097187 | L49: 4.5 | M49: 40.61097187
A50: Brønnøysund | B50: =AVERAGE('Værdata Februar'!J3:J30) -> -1.425 | C50: 10 | D50: 0.1666666667 | E50: =Effektbehov(B50) -> 614 | F50: 102.3333333 | G50: 653.3333333 | H50: 0 | I50: =beregneCOP(E50,J50) -> 6.042983981 | J50: =SW!C20 -> 4.7 | K50: 22.74074074 | L50: 4.5 | M50: 22.74074074
A51: Sandnessjøen | B51: =AVERAGE('Værdata Februar'!K3:K30) -> -1.360714286 | C51: 15 | D51: 0.25 | E51: =Effektbehov(B51) -> 611.9699248 | F51: 152.9924812 | G51: 653.3333333 | H51: 0 | I51: =beregneCOP(E51,J51) -> 6.042983981 | J51: =SW!C21 -> 4.7 | K51: 33.99832916 | L51: 4.5 | M51: 33.99832916
A52: Nesna | B52: =AVERAGE('Værdata Februar'!L3:L30) -> -1.442857143 | C52: 10 | D52: 0.1666666667 | E52: =Effektbehov(B52) -> 614.5639098 | F52: 102.4273183 | G52: 653.3333333 | H52: 0 | I52: =beregneCOP(E52,J52) -> 6.042983981 | J52: =SW!C22 -> 4.7 | K52: 22.76162629 | L52: 4.5 | M52: 22.76162629
A53: Ørnes | B53: =AVERAGE('Værdata Februar'!M3:M30) -> -0.8964285714 | C53: 10 | D53: 0.1666666667 | E53: =Effektbehov(B53) -> 597.3082707 | F53: 99.55137845 | G53: 653.3333333 | H53: 0 | I53: =beregneCOP(E53,J53) -> 5.445429343 | J53: =SW!C23 -> 4.1 | K53: 22.12252854 | L53: 4.5 | M53: 22.12252854
A54: Bodø | B54: =AVERAGE('Værdata Februar'!N3:N114) -> -0.4973214286 | C54: 135 | D54: 2.25 | E54: =Effektbehov(B54) -> 584.7048872 | F54: 1315.585996 | G54: 653.3333333 | H54: 127.5529425 | I54: =beregneCOP(E54,J54) -> 5.191982636 | J54: =SW!C24 -> 3.7 | K54: 292.3524436 | L54: 4.5 | M54: 164.7995011
A55: Stamsund | B55: =AVERAGE('Værdata Februar'!O3:O30) -> -0.1535714286 | C55: 25 | D55: 0.4166666667 | E55: =Effektbehov(B55) -> 573.8496241 | F55: 239.10401 | G55: 653.3333333 | H55: 0 | I55: =beregneCOP(E55,J55) -> 6.697126363 | J55: =SW!C25 -> 5.2 | K55: 53.13422445 | L55: 4.5 | M55: 53.13422445
A56: Svolvær | B56: =AVERAGE('Værdata Februar'!P3:P30) -> -0.3857142857 | C56: 55 | D56: 0.9166666667 | E56: =Effektbehov(B56) -> 581.1804511 | F56: 532.7487469 | G56: 653.3333333 | H56: 0 | I56: =beregneCOP(E56,J56) -> 6.697126363 | J56: =SW!C26 -> 5.2 | K56: 118.3886104 | L56: 4.5 | M56: 118.3886104
A57: Stokmarknes | B57: =AVERAGE('Værdata Februar'!Q3:Q30) -> -2.328571429 | C57: 10 | D57: 0.1666666667 | E57: =Effektbehov(B57) -> 642.5338346 | F57: 107.0889724 | G57: 653.3333333 | H57: 0 | I57: =beregneCOP(E57,J57) -> 6.697126363 | J57: =SW!C27 -> 5.2 | K57: 23.79754943 | L57: 4.5 | M57: 23.79754943
A58: Sortland | B58: =AVERAGE('Værdata Februar'!R3:R30) -> -2.332142857 | C58: 15 | D58: 0.25 | E58: =Effektbehov(B58) -> 642.6466165 | F58: 160.6616541 | G58: 653.3333333 | H58: 0 | I58: =beregneCOP(E58,J58) -> 6.177267677 | J58: =SW!C28 -> 4.8 | K58: 35.70258981 | L58: 4.5 | M58: 35.70258981
A59: Risøyhamn | B59: =AVERAGE('Værdata Februar'!S3:S30) -> -1.892857143 | C59: 15 | D59: 0.25 | E59: =Effektbehov(B59) -> 628.7744361 | F59: 157.193609 | G59: 653.3333333 | H59: 0 | I59: =beregneCOP(E59,J59) -> 5.609813681 | J59: =SW!C29 -> 4.3 | K59: 34.93191312 | L59: 4.5 | M59: 34.93191312
A60: Harstad | B60: =AVERAGE('Værdata Februar'!T3:T30) -> -1.989285714 | C60: 35 | D60: 0.5833333333 | E60: =Effektbehov(B60) -> 631.8195489 | F60: 368.5614035 | G60: 653.3333333 | H60: 0 | I60: =beregneCOP(E60,J60) -> 5.609813681 | J60: =SW!C30 -> 4.3 | K60: 81.90253411 | L60: 4.5 | M60: 81.90253411
A61: Finnsnes | B61: =AVERAGE('Værdata Februar'!U3:U30) -> -1.95 | C61: 30 | D61: 0.5 | E61: =Effektbehov(B61) -> 630.5789474 | F61: 315.2894737 | G61: 653.3333333 | H61: 0 | I61: =beregneCOP(E61,J61) -> 5.919823724 | J61: =SW!C31 -> 4.6 | K61: 70.06432749 | L61: 4.5 | M61: 70.06432749
A62: Tromsø | B62: =AVERAGE('Værdata Februar'!V3:V142) -> -1.712142857 | C62: 240 | D62: 4 | E62: =Effektbehov(B62) -> 623.0676692 | F62: 2492.270677 | G62: 653.3333333 | H62: 310.6405577 | I62: =beregneCOP(E62,J62) -> 5.919823724 | J62: =SW!C32 -> 4.6 | K62: 553.8379282 | L62: 4.5 | M62: 243.1973704
A63: Skjervøy | B63: =AVERAGE('Værdata Februar'!W3:W30) -> -2.364285714 | C63: 15 | D63: 0.25 | E63: =Effektbehov(B63) -> 643.6616541 | F63: 160.9154135 | G63: 653.3333333 | H63: 0 | I63: =beregneCOP(E63,J63) -> 5.523877271 | J63: =SW!C33 -> 4.2 | K63: 35.75898079 | L63: 4.5 | M63: 35.75898079
A64: Øksfjord | B64: =AVERAGE('Værdata Februar'!X3:X30) -> -0.9857142857 | C64: 10 | D64: 0.1666666667 | E64: =Effektbehov(B64) -> 600.1278195 | F64: 100.0213033 | G64: 653.3333333 | H64: 0 | I64: =beregneCOP(E64,J64) -> 6.042983981 | J64: =SW!C34 -> 4.7 | K64: 22.22695628 | L64: 4.5 | M64: 22.22695628
A65: Hammerfest | B65: =AVERAGE('Værdata Februar'!Y3:Y30) -> -1.360714286 | C65: 40 | D65: 0.6666666667 | E65: =Effektbehov(B65) -> 611.9699248 | F65: 407.9799499 | G65: 653.3333333 | H65: 0 | I65: =beregneCOP(E65,J65) -> 6.042983981 | J65: =SW!C35 -> 4.7 | K65: 90.66221108 | L65: 4.5 | M65: 90.66221108
A66: Havøysund | B66: =AVERAGE('Værdata Februar'!Z3:Z30) -> -0.975 | C66: 15 | D66: 0.25 | E66: =Effektbehov(B66) -> 599.7894737 | F66: 149.9473684 | G66: 653.3333333 | H66: 0 | I66: =beregneCOP(E66,J66) -> 5.919823724 | J66: =SW!C36 -> 4.6 | K66: 33.32163743 | L66: 4.5 | M66: 33.32163743
A67: Honningsvåg | B67: =AVERAGE('Værdata Februar'!AA3:AA114) -> -1.167857143 | C67: 215 | D67: 3.583333333 | E67: =Effektbehov(B67) -> 605.8796992 | F67: 2171.068922 | G67: 653.3333333 | H67: 261.3604149 | I67: =beregneCOP(E67,J67) -> 5.807059917 | J67: =SW!C37 -> 4.5 | K67: 482.4597605 | L67: 4.5 | M67: 221.0993456
A68: Kjøllefjord | B68: =AVERAGE('Værdata Februar'!AB3:AB30) -> -3.142857143 | C68: 20 | D68: 0.3333333333 | E68: =Effektbehov(B68) -> 668.2481203 | F68: 222.7493734 | G68: 653.3333333 | H68: 0 | I68: =beregneCOP(E68,J68) -> 5.084006623 | J68: =SW!C38 -> 4.2 | K68: 49.49986076 | L68: 4.5 | M68: 49.49986076
A69: Mehamn | B69: =AVERAGE('Værdata Februar'!AC3:AC30) -> -3.25 | C69: 20 | D69: 0.3333333333 | E69: =Effektbehov(B69) -> 671.6315789 | F69: 223.877193 | G69: 653.3333333 | H69: 0 | I69: =beregneCOP(E69,J69) -> 5.084006623 | J69: =SW!C39 -> 4.2 | K69: 49.75048733 | L69: 4.5 | M69: 49.75048733
A70: Berlevåg | B70: =AVERAGE('Værdata Februar'!AD3:AD30) -> -3.460714286 | C70: 10 | D70: 0.1666666667 | E70: =Effektbehov(B70) -> 678.2857143 | F70: 113.047619 | G70: 653.3333333 | H70: 0 | I70: =beregneCOP(E70,J70) -> 4.929829839 | J70: =SW!C40 -> 3.9 | K70: 25.12169312 | L70: 4.5 | M70: 25.12169312
A71: Båtsfjord | B71: =AVERAGE('Værdata Februar'!AE3:AE30) -> -3.785714286 | C71: 30 | D71: 0.5 | E71: =Effektbehov(B71) -> 688.5488722 | F71: 344.2744361 | G71: 653.3333333 | H71: 0 | I71: =beregneCOP(E71,J71) -> 4.929829839 | J71: =SW!C41 -> 3.9 | K71: 76.50543024 | L71: 4.5 | M71: 76.50543024
A72: Vardø | B72: =AVERAGE('Værdata Februar'!AF3:AF30) -> -4.057142857 | C72: 15 | D72: 0.25 | E72: =Effektbehov(B72) -> 697.1203008 | F72: 174.2800752 | G72: 653.3333333 | H72: 0 | I72: =beregneCOP(E72,J72) -> 4.880787632 | J72: =SW!C42 -> 3.8 | K72: 38.7289056 | L72: 4.5 | M72: 38.7289056
A73: Vadsø | B73: =AVERAGE('Værdata Februar'!AG3:AG30) -> -10.12142857 | C73: 15 | D73: 0.25 | E73: =Effektbehov(B73) -> 888.6240602 | F73: 222.156015 | G73: 653.3333333 | H73: 0 | I73: =beregneCOP(E73,J73) -> 3.885046396 | J73: =SW!C43 -> 3.8 | K73: 49.36800334 | L73: 4.5 | M73: 49.36800334
A74: Kirkenes | B74: =AVERAGE('Værdata Februar'!AH3:AH114) -> -9.575892857 | C74: 210 | D74: 3.5 | E74: =Effektbehov(B74) -> 871.3966165 | F74: 3049.888158 | G74: 653.3333333 | H74: 538.6545572 | I74: =beregneCOP(E74,J74) -> 4.449149817 | J74: =SW!C44 -> 3.8 | K74: 677.752924 | L74: 4.5 | M74: 139.0983668
A77: Mars
A78: Sted | B78: Snitttemp [C] | C78: Minutter til kai | D78: Timer til kai [h] | E78: Effekt [kW] | F78: Energibehov [kWh] | G78: Energi direkte fra tank | H78: Strøm med tank [kWh] | I78: COP med tank | J78: SW [C] | K78: Strøm uten tank [kWh] | L78: COP uten tank | M78: Energi spart [kWh]
A79: Bergen | B79: =AVERAGE('Værdata Mars'!A3:A219) -> 4.276036866 | C79: 345 | D79: =C79/60 -> 5.75 | E79: =Effektbehov(B79) -> 433.9672569 | F79: =E79*D79 -> 2495.311727 | G79: =$Q$2*$Q$3*$Q$4*40*(1/3600) -> 653.3333333 | H79: =MAXA((F79-G79)/I79,0) -> 365.8729426 | I79: =beregneCOP(E79,J79) -> 5.034475576 | J79: =SW!D11 -> 4.9 | K79: =F79/L79 -> 554.5137171 | L79: 4.5 | M79: =K79-H79 -> 188.6407745
A80: Florø | B80: =AVERAGE('Værdata Mars'!B3:B33) -> 2.138709677 | C80: 15 | D80: =C80/60 -> 0.25 | E80: =Effektbehov(B80) -> 501.4617997 | F80: =E80*D80 -> 125.3654499 | G80: 653.3333333 | H80: 0 | I80: =beregneCOP(E80,J80) -> 4.286228572 | J80: =SW!D12 -> 5.1 | K80: 27.85898887 | L80: 4.5 | M80: =K80-H80 -> 27.85898887
A81: Måløy | B81: =AVERAGE('Værdata Mars'!C3:C33) -> 3.496774194 | C81: 15 | D81: 0.25 | E81: =Effektbehov(B81) -> 458.5755518 | F81: 114.6438879 | G81: 653.3333333 | H81: 0 | I81: =beregneCOP(E81,J81) -> 4.704377696 | J81: =SW!D13 -> 5.1 | K81: 25.47641954 | L81: 4.5 | M81: 25.47641954
A82: Torvik | B82: =AVERAGE('Værdata Mars'!D3:D33) -> 2.790322581 | C82: 10 | D82: 0.1666666667 | E82: =Effektbehov(B82) -> 480.8845501 | F82: 80.14742501 | G82: 653.3333333 | H82: 0 | I82: =beregneCOP(E82,J82) -> 4.715870463 | J82: =SW!D14 -> 5.3 | K82: 17.81053889 | L82: 4.5 | M82: 17.81053889
A83: Ålesund | B83: =AVERAGE('Værdata Mars'!E3:E374) -> 4.055107527 | C83: 615 | D83: 10.25 | E83: =Effektbehov(B83) -> 440.9439728 | F83: 4519.675722 | G83: 653.3333333 | H83: 819.8576316 | I83: =beregneCOP(E83,J83) -> 4.715870463 | J83: =SW!D15 -> 5.3 | K83: 1004.372383 | L83: 4.5 | M83: 184.514751
A84: Molde | B84: =AVERAGE('Værdata Mars'!F3:F33) -> 3.541935484 | C84: 30 | D84: 0.5 | E84: =Effektbehov(B84) -> 457.1494058 | F84: 228.5747029 | G84: 653.3333333 | H84: 0 | I84: =beregneCOP(E84,J84) -> 4.715870463 | J84: =SW!D16 -> 5.6 | K84: 50.79437842 | L84: 4.5 | M84: =K84-H84 -> 50.79437842
A85: Kristiansund | B85: =AVERAGE('Værdata Mars'!G3:G33) -> 3.477419355 | C85: 15 | D85: 0.25 | E85: =Effektbehov(B85) -> 459.1867572 | F85: 114.7966893 | G85: 653.3333333 | H85: 0 | I85: =beregneCOP(E85,J85) -> 4.715870463 | J85: =SW!D17 -> 5.8 | K85: 25.5103754 | L85: 4.5 | M85: =K85-H85 -> 25.5103754
A86: Trondheim | B86: =AVERAGE('Værdata Mars'!H3:H126) -> 1.720967742 | C86: 180 | D86: 3 | E86: =Effektbehov(B86) -> 514.6536503 | F86: 1543.960951 | G86: 653.3333333 | H86: 214.1650432 | I86: =beregneCOP(E86,J86) -> 4.158604056 | J86: =SW!D18 -> 4.9 | K86: 343.1024335 | L86: 4.5 | M86: 128.9373903
A87: Rørvik | B87: =AVERAGE('Værdata Mars'!I3:I33) -> 1.367741935 | C87: 20 | D87: 0.3333333333 | E87: =Effektbehov(B87) -> 525.8081494 | F87: 175.2693831 | G87: 653.3333333 | H87: 0 | I87: =beregneCOP(E87,J87) -> 3.940303123 | J87: =SW!D19 -> 4.6 | K87: 38.94875181 | L87: 4.5 | M87: 38.94875181
A88: Brønnøysund | B88: =AVERAGE('Værdata Mars'!J3:J33) -> 0.1935483871 | C88: 10 | D88: 0.1666666667 | E88: =Effektbehov(B88) -> 562.8879457 | F88: 93.81465761 | G88: 653.3333333 | H88: 0 | I88: =beregneCOP(E88,J88) -> 5.609813681 | J88: =SW!D20 -> 4.3 | K88: 20.84770169 | L88: 4.5 | M88: 20.84770169
A89: Sandnessjøen | B89: =AVERAGE('Værdata Mars'!K3:K33) -> 0.2290322581 | C89: 15 | D89: 0.25 | E89: =Effektbehov(B89) -> 561.7674024 | F89: 140.4418506 | G89: 653.3333333 | H89: 0 | I89: =beregneCOP(E89,J89) -> 5.609813681 | J89: =SW!D21 -> 4.3 | K89: 31.20930013 | L89: 4.5 | M89: 31.20930013
A90: Nesna | B90: =AVERAGE('Værdata Mars'!L3:L33) -> 0.1741935484 | C90: 10 | D90: 0.1666666667 | E90: =Effektbehov(B90) -> 563.4991511 | F90: 93.91652518 | G90: 653.3333333 | H90: 0 | I90: =beregneCOP(E90,J90) -> 5.609813681 | J90: =SW!D22 -> 4.3 | K90: 20.87033893 | L90: 4.5 | M90: 20.87033893
A91: Ørnes | B91: =AVERAGE('Værdata Mars'!M3:M33) -> 0.8838709677 | C91: 10 | D91: 0.1666666667 | E91: =Effektbehov(B91) -> 541.0882852 | F91: 90.18138087 | G91: 653.3333333 | H91: 0 | I91: =beregneCOP(E91,J91) -> 2.988927352 | J91: =SW!D23 -> 3.7 | K91: 20.04030686 | L91: 4.5 | M91: 20.04030686
A92: Bodø | B92: =AVERAGE('Værdata Mars'!N3:N126) -> 2.089516129 | C92: 135 | D92: 2.25 | E92: =Effektbehov(B92) -> 503.0152801 | F92: 1131.78438 | G92: 653.3333333 | H92: 202.1645124 | I92: =beregneCOP(E92,J92) -> 2.366642104 | J92: =SW!D24 -> 3.3 | K92: 251.5076401 | L92: 4.5 | M92: 49.34312767
A93: Stamsund | B93: =AVERAGE('Værdata Mars'!O3:O33) -> 0.4096774194 | C93: 25 | D93: 0.4166666667 | E93: =Effektbehov(B93) -> 556.0628183 | F93: 231.692841 | G93: 653.3333333 | H93: 0 | I93: =beregneCOP(E93,J93) -> 6.323401804 | J93: =SW!D25 -> 4.9 | K93: 51.48729799 | L93: 4.5 | M93: 51.48729799
A94: Svolvær | B94: =AVERAGE('Værdata Mars'!P3:P33) -> 0.2935483871 | C94: 55 | D94: 0.9166666667 | E94: =Effektbehov(B94) -> 559.7300509 | F94: 513.08588 | G94: 653.3333333 | H94: 0 | I94: =beregneCOP(E94,J94) -> 6.482113353 | J94: =SW!D26 -> 5 | K94: 114.0190844 | L94: 4.5 | M94: 114.0190844
A95: Stokmarknes | B95: =AVERAGE('Værdata Mars'!Q3:Q33) -> 0.02903225806 | C95: 10 | D95: 0.1666666667 | E95: =Effektbehov(B95) -> 568.0831919 | F95: 94.68053198 | G95: 653.3333333 | H95: 0 | I95: =beregneCOP(E95,J95) -> 6.482113353 | J95: =SW!D27 -> 5 | K95: 21.04011822 | L95: 4.5 | M95: 21.04011822
A96: Sortland | B96: =AVERAGE('Værdata Mars'!R3:R33) -> 0.02580645161 | C96: 15 | D96: 0.25 | E96: =Effektbehov(B96) -> 568.1850594 | F96: 142.0462649 | G96: 653.3333333 | H96: 0 | I96: =beregneCOP(E96,J96) -> 5.703965566 | J96: =SW!D28 -> 4.4 | K96: 31.56583663 | L96: 4.5 | M96: 31.56583663
A97: Risøyhamn | B97: =AVERAGE('Værdata Mars'!S3:S33) -> -1.483870968 | C97: 15 | D97: 0.25 | E97: =Effektbehov(B97) -> 615.8590832 | F97: 153.9647708 | G97: 653.3333333 | H97: 0 | I97: =beregneCOP(E97,J97) -> 5.247746545 | J97: =SW!D29 -> 3.8 | K97: 34.21439351 | L97: 4.5 | M97: 34.21439351
A98: Harstad | B98: =AVERAGE('Værdata Mars'!T3:T33) -> -1.151612903 | C98: 35 | D98: 0.5833333333 | E98: =Effektbehov(B98) -> 605.3667233 | F98: 353.1305886 | G98: 653.3333333 | H98: 0 | I98: =beregneCOP(E98,J98) -> 5.247746545 | J98: =SW!D30 -> 3.8 | K98: 78.47346413 | L98: 4.5 | M98: 78.47346413
A99: Finnsnes | B99: =AVERAGE('Værdata Mars'!U3:U33) -> -0.1580645161 | C99: 30 | D99: 0.5 | E99: =Effektbehov(B99) -> 573.991511 | F99: 286.9957555 | G99: 653.3333333 | H99: 0 | I99: =beregneCOP(E99,J99) -> 5.445429343 | J99: =SW!D31 -> 4.1 | K99: 63.77683456 | L99: 4.5 | M99: 63.77683456
A100: Tromsø | B100: =AVERAGE('Værdata Mars'!V3:V157) -> 0.1419354839 | C100: 240 | D100: 4 | E100: =Effektbehov(B100) -> 564.5178268 | F100: 2258.071307 | G100: 653.3333333 | H100: 294.694481 | I100: =beregneCOP(E100,J100) -> 5.445429343 | J100: =SW!D32 -> 4.1 | K100: 501.7936238 | L100: 4.5 | M100: 207.0991429
A101: Skjervøy | B101: =AVERAGE('Værdata Mars'!W3:W33) -> -1.538709677 | C101: 15 | D101: 0.25 | E101: =Effektbehov(B101) -> 617.5908319 | F101: 154.397708 | G101: 653.3333333 | H101: 0 | I101: =beregneCOP(E101,J101) -> 5.445429343 | J101: =SW!D33 -> 4.1 | K101: 34.31060177 | L101: 4.5 | M101: 34.31060177
A102: Øksfjord | B102: =AVERAGE('Værdata Mars'!X3:X33) -> 0.3838709677 | C102: 10 | D102: 0.1666666667 | E102: =Effektbehov(B102) -> 556.8777589 | F102: 92.81295982 | G102: 653.3333333 | H102: 0 | I102: =beregneCOP(E102,J102) -> 6.323401804 | J102: =SW!D34 -> 4.9 | K102: 20.62510218 | L102: 4.5 | M102: 20.62510218
A103: Hammerfest | B103: =AVERAGE('Værdata Mars'!Y3:Y33) -> -1.54516129 | C103: 40 | D103: 0.6666666667 | E103: =Effektbehov(B103) -> 617.7945671 | F103: 411.8630447 | G103: 653.3333333 | H103: 0 | I103: =beregneCOP(E103,J103) -> 6.042983981 | J103: =SW!D35 -> 4.7 | K103: 91.52512105 | L103: 4.5 | M103: 91.52512105
A104: Havøysund | B104: =AVERAGE('Værdata Mars'!Z3:Z33) -> -1.083870968 | C104: 15 | D104: 0.25 | E104: =Effektbehov(B104) -> 603.2275042 | F104: 150.8068761 | G104: 653.3333333 | H104: 0 | I104: =beregneCOP(E104,J104) -> 5.919823724 | J104: =SW!D36 -> 4.6 | K104: 33.51263912 | L104: 4.5 | M104: 33.51263912
A105: Honningsvåg | B105: =AVERAGE('Værdata Mars'!AA3:AA126) -> -0.8741935484 | C105: 215 | D105: 3.583333333 | E105: =Effektbehov(B105) -> 596.6061121 | F105: 2137.838568 | G105: 653.3333333 | H105: 260.2584496 | I105: =beregneCOP(E105,J105) -> 5.703965566 | J105: =SW!D37 -> 4.4 | K105: 475.0752374 | L105: 4.5 | M105: 214.8167878
A106: Kjøllefjord | B106: =AVERAGE('Værdata Mars'!AB3:AB33) -> -2.603225806 | C106: 20 | D106: 0.3333333333 | E106: =Effektbehov(B106) -> 651.2071307 | F106: 217.0690436 | G106: 653.3333333 | H106: 0 | I106: =beregneCOP(E106,J106) -> 5.445429343 | J106: =SW!D38 -> 4.1 | K106: 48.23756524 | L106: 4.5 | M106: 48.23756524
A107: Mehamn | B107: =AVERAGE('Værdata Mars'!AC3:AC33) -> -3.058064516 | C107: 20 | D107: 0.3333333333 | E107: =Effektbehov(B107) -> 665.5704584 | F107: 221.8568195 | G107: 653.3333333 | H107: 0 | I107: =beregneCOP(E107,J107) -> 5.030803216 | J107: =SW!D39 -> 4.1 | K107: 49.30151544 | L107: 4.5 | M107: 49.30151544
A108: Berlevåg | B108: =AVERAGE('Værdata Mars'!AD3:AD33) -> -3.235483871 | C108: 10 | D108: 0.1666666667 | E108: =Effektbehov(B108) -> 671.1731749 | F108: 111.8621958 | G108: 653.3333333 | H108: 0 | I108: =beregneCOP(E108,J108) -> 4.831860257 | J108: =SW!D40 -> 3.7 | K108: 24.85826574 | L108: 4.5 | M108: 24.85826574
A109: Båtsfjord | B109: =AVERAGE('Værdata Mars'!AE3:AE33) -> -2.106451613 | C109: 30 | D109: 0.5 | E109: =Effektbehov(B109) -> 635.5195246 | F109: 317.7597623 | G109: 653.3333333 | H109: 0 | I109: =beregneCOP(E109,J109) -> 5.191982636 | J109: =SW!D41 -> 3.7 | K109: 70.61328051 | L109: 4.5 | M109: 70.61328051
A110: Vardø | B110: =AVERAGE('Værdata Mars'!AF3:AF33) -> -2.451612903 | C110: 15 | D110: 0.25 | E110: =Effektbehov(B110) -> 646.4193548 | F110: 161.6048387 | G110: 653.3333333 | H110: 0 | I110: =beregneCOP(E110,J110) -> 5.140072254 | J110: =SW!D42 -> 3.6 | K110: 35.91218638 | L110: 4.5 | M110: 35.91218638
A111: Vadsø | B111: =AVERAGE('Værdata Mars'!AG3:AG33) -> -6.874193548 | C111: 15 | D111: 0.25 | E111: =Effektbehov(B111) -> 786.0797963 | F111: 196.5199491 | G111: 653.3333333 | H111: 0 | I111: =beregneCOP(E111,J111) -> 4.319064957 | J111: =SW!D43 -> 3.6 | K111: 43.67109979 | L111: 4.5 | M111: 43.67109979
A112: Kirkenes | B112: =AVERAGE('Værdata Mars'!AH3:AH126) -> -5.510483871 | C112: 210 | D112: 3.5 | E112: =Effektbehov(B112) -> 743.0152801 | F112: 2600.55348 | G112: 653.3333333 | H112: 407.1628107 | I112: =beregneCOP(E112,J112) -> 4.782411596 | J112: =SW!D44 -> 3.6 | K112: 577.9007734 | L112: 4.5 | M112: 170.7379628
F113: =SUM(Tabell111822[Energibehov '[kWh']]) -> 21756.49792
A114: April
A115: Sted | B115: Snitttemp [C] | C115: Minutter til kai | D115: Timer til kai [h] | E115: Effekt [kW] | F115: Energibehov [kWh] | G115: Energi direkte fra tank | H115: Strøm med tank [kWh] | I115: COP med tank | J115: SW [C] | K115: Strøm uten tank [kWh] | L115: COP uten tank | M115: Energi spart [kWh]
A116: Bergen | B116: =AVERAGE('Værdata April'!A3:A212) -> 8.489047619 | C116: 345 | D116: =C116/60 -> 5.75 | E116: =MAXA(Effektbehov(B116),0) -> 300.924812 | F116: =E116*D116 -> 1730.317669 | G116: =$Q$2*$Q$3*$Q$4*40*(1/3600) -> 653.3333333 | H116: =MAXA((F116-G116)/I116,0) -> 160.8129035 | I116: =beregneCOP(E116,J116) -> 6.697126363 | J116: =SW!E11 -> 6.2 | K116: =F116/L116 -> 384.5150376 | L116: 4.5 | M116: =K116-H116 -> 223.702134
A117: Florø | B117: =AVERAGE('Værdata April'!B3:B32) -> 4.373333333 | C117: 15 | D117: =C117/60 -> 0.25 | E117: 430.8947368 | F117: =E117*D117 -> 107.7236842 | G117: 653.3333333 | H117: 0 | I117: =beregneCOP(E117,J117) -> 5.167631356 | J117: =SW!E12 -> 6 | K117: 23.93859649 | L117: 4.5 | M117: =K117-H117 -> 23.93859649
A118: Måløy | B118: =AVERAGE('Værdata April'!C3:C32) -> 4.456666667 | C118: 15 | D118: 0.25 | E118: 428.2631579 | F118: 107.0657895 | G118: 653.3333333 | H118: 0 | I118: =beregneCOP(E118,J118) -> 5.167631356 | J118: =SW!E13 -> 6 | K118: 23.79239766 | L118: 4.5 | M118: 23.79239766
A119: Torvik | B119: =AVERAGE('Værdata April'!D3:D32) -> 6.043333333 | C119: 10 | D119: 0.1666666667 | E119: 378.1578947 | F119: 63.02631579 | G119: 653.3333333 | H119: 0 | I119: =beregneCOP(E119,J119) -> 5.783870299 | J119: =SW!E14 -> 6.1 | K119: 14.00584795 | L119: 4.5 | M119: 14.00584795
A120: Ålesund | B120: =AVERAGE('Værdata April'!E3:E362) -> 7.293055556 | C120: 615 | D120: 10.25 | E120: 338.6929825 | F120: 3471.60307 | G120: 653.3333333 | H120: 487.2636472 | I120: =beregneCOP(E120,J120) -> 5.783870299 | J120: =SW!E15 -> 6.1 | K120: 771.4673489 | L120: 4.5 | M120: 284.2037017
A121: Molde | B121: =AVERAGE('Værdata April'!F3:F32) -> 4.29 | C121: 30 | D121: 0.5 | E121: 433.5263158 | F121: 216.7631579 | G121: 653.3333333 | H121: 0 | I121: =beregneCOP(E121,J121) -> 5.167631356 | J121: =SW!E16 -> 6.3 | K121: 48.16959064 | L121: 4.5 | M121: =K121-H121 -> 48.16959064
A122: Kristiansund | B122: =AVERAGE('Værdata April'!G3:G32) -> 3.586666667 | C122: 15 | D122: 0.25 | E122: 455.7368421 | F122: 113.9342105 | G122: 653.3333333 | H122: 0 | I122: =beregneCOP(E122,J122) -> 4.715870463 | J122: =SW!E17 -> 6.5 | K122: 25.31871345 | L122: 4.5 | M122: =K122-H122 -> 25.31871345
A123: Trondheim | B123: =AVERAGE('Værdata April'!H3:H122) -> 6.669166667 | C123: 180 | D123: 3 | E123: 358.3947368 | F123: 1075.184211 | G123: 653.3333333 | H123: 72.93574292 | I123: =beregneCOP(E123,J123) -> 5.783870299 | J123: =SW!E18 -> 6 | K123: 238.9298246 | L123: 4.5 | M123: 165.9940816
A124: Rørvik | B124: =AVERAGE('Værdata April'!I3:I32) -> 4.2 | C124: 20 | D124: 0.3333333333 | E124: 436.3684211 | F124: 145.4561404 | G124: 653.3333333 | H124: 0 | I124: =beregneCOP(E124,J124) -> 4.715870463 | J124: =SW!E19 -> 5.4 | K124: 32.32358674 | L124: 4.5 | M124: 32.32358674
A125: Brønnøysund | B125: =AVERAGE('Værdata April'!J3:J32) -> 2.88 | C125: 10 | D125: 0.1666666667 | E125: 478.0526316 | F125: 79.6754386 | G125: 653.3333333 | H125: 0 | I125: =beregneCOP(E125,J125) -> 4.715870463 | J125: =SW!E20 -> 5.2 | K125: 17.70565302 | L125: 4.5 | M125: 17.70565302
A126: Sandnessjøen | B126: =AVERAGE('Værdata April'!K3:K32) -> 2.673333333 | C126: 15 | D126: 0.25 | E126: 484.5789474 | F126: 121.1447368 | G126: 653.3333333 | H126: 0 | I126: =beregneCOP(E126,J126) -> 4.715870463 | J126: =SW!E21 -> 5.2 | K126: 26.92105263 | L126: 4.5 | M126: 26.92105263
A127: Nesna | B127: =AVERAGE('Værdata April'!L3:L32) -> 2.863333333 | C127: 10 | D127: 0.1666666667 | E127: 478.5789474 | F127: 79.76315789 | G127: 653.3333333 | H127: 0 | I127: =beregneCOP(E127,J127) -> 4.715870463 | J127: =SW!E22 -> 5.2 | K127: 17.7251462 | L127: 4.5 | M127: 17.7251462
A128: Ørnes | B128: =AVERAGE('Værdata April'!M3:M32) -> 4.056666667 | C128: 10 | D128: 0.1666666667 | E128: 440.8947368 | F128: 73.48245614 | G128: 653.3333333 | H128: 0 | I128: =beregneCOP(E128,J128) -> 4.449703065 | J128: =SW!E23 -> 4.6 | K128: 16.3294347 | L128: 4.5 | M128: 16.3294347
A129: Bodø | B129: =AVERAGE('Værdata April'!N3:N122) -> 5.0025 | C129: 135 | D129: 2.25 | E129: 411.0263158 | F129: 924.8092105 | G129: 653.3333333 | H129: 58.76456006 | I129: =beregneCOP(E129,J129) -> 4.619721086 | J129: =SW!E24 -> 4.1 | K129: 205.5131579 | L129: 4.5 | M129: 146.7485978
A130: Stamsund | B130: =AVERAGE('Værdata April'!O3:O32) -> 2.69 | C130: 25 | D130: 0.4166666667 | E130: 484.0526316 | F130: 201.6885965 | G130: 653.3333333 | H130: 0 | I130: =beregneCOP(E130,J130) -> 4.715870463 | J130: =SW!E25 -> 5.4 | K130: 44.81968811 | L130: 4.5 | M130: 44.81968811
A131: Svolvær | B131: =AVERAGE('Værdata April'!P3:P32) -> 2.193333333 | C131: 55 | D131: 0.9166666667 | E131: 499.7368421 | F131: 458.0921053 | G131: 653.3333333 | H131: 0 | I131: =beregneCOP(E131,J131) -> 4.300657835 | J131: =SW!E26 -> 5.5 | K131: 101.7982456 | L131: 4.5 | M131: 101.7982456
A132: Stokmarknes | B132: =AVERAGE('Værdata April'!Q3:Q32) -> 0.7233333333 | C132: 10 | D132: 0.1666666667 | E132: 546.1578947 | F132: 91.02631579 | G132: 653.3333333 | H132: 0 | I132: =beregneCOP(E132,J132) -> 6.697126363 | J132: =SW!E27 -> 5.5 | K132: 20.22807018 | L132: 4.5 | M132: 20.22807018
A133: Sortland | B133: =AVERAGE('Værdata April'!R3:R32) -> 0.6633333333 | C133: 15 | D133: 0.25 | E133: 548.0526316 | F133: 137.0131579 | G133: 653.3333333 | H133: 0 | I133: =beregneCOP(E133,J133) -> 6.482113353 | J133: =SW!E28 -> 5 | K133: 30.44736842 | L133: 4.5 | M133: 30.44736842
A134: Risøyhamn | B134: =AVERAGE('Værdata April'!S3:S32) -> 0.4933333333 | C134: 15 | D134: 0.25 | E134: 553.4210526 | F134: 138.3552632 | G134: 653.3333333 | H134: 0 | I134: =beregneCOP(E134,J134) -> 5.703965566 | J134: =SW!E29 -> 4.4 | K134: 30.74561404 | L134: 4.5 | M134: 30.74561404
A135: Harstad | B135: =AVERAGE('Værdata April'!T3:T32) -> 1.016666667 | C135: 35 | D135: 0.5833333333 | E135: 536.8947368 | F135: 313.1885965 | G135: 653.3333333 | H135: 0 | I135: =beregneCOP(E135,J135) -> 3.772088848 | J135: =SW!E30 -> 4.4 | K135: 69.59746589 | L135: 4.5 | M135: 69.59746589
A136: Finnsnes | B136: =AVERAGE('Værdata April'!U3:U32) -> 1.93 | C136: 30 | D136: 0.5 | E136: 508.0526316 | F136: 254.0263158 | G136: 653.3333333 | H136: 0 | I136: =beregneCOP(E136,J136) -> 3.940303123 | J136: =SW!E31 -> 4.6 | K136: 56.4502924 | L136: 4.5 | M136: 56.4502924
A137: Tromsø | B137: =AVERAGE('Værdata April'!V3:V152) -> 2.348 | C137: 240 | D137: 4 | E137: 494.8526316 | F137: 1979.410526 | G137: 653.3333333 | H137: 336.5419237 | I137: =beregneCOP(E137,J137) -> 3.940303123 | J137: =SW!E32 -> 4.6 | K137: 439.8690058 | L137: 4.5 | M137: 103.3270822
A138: Skjervøy | B138: =AVERAGE('Værdata April'!W3:W32) -> -0.1466666667 | C138: 15 | D138: 0.25 | E138: 573.6315789 | F138: 143.4078947 | G138: 653.3333333 | H138: 0 | I138: =beregneCOP(E138,J138) -> 5.919823724 | J138: =SW!E33 -> 4.6 | K138: 31.86842105 | L138: 4.5 | M138: 31.86842105
A139: Øksfjord | B139: =AVERAGE('Værdata April'!X3:X32) -> 2.123333333 | C139: 10 | D139: 0.1666666667 | E139: 501.9473684 | F139: 83.65789474 | G139: 653.3333333 | H139: 0 | I139: =beregneCOP(E139,J139) -> 4.286228572 | J139: =SW!E34 -> 5.1 | K139: 18.59064327 | L139: 4.5 | M139: 18.59064327
A140: Hammerfest | B140: =AVERAGE('Værdata April'!Y3:Y32) -> -0.3533333333 | C140: 40 | D140: 0.6666666667 | E140: 580.1578947 | F140: 386.7719298 | G140: 653.3333333 | H140: 0 | I140: =beregneCOP(E140,J140) -> 6.323401804 | J140: =SW!E35 -> 4.9 | K140: 85.94931774 | L140: 4.5 | M140: 85.94931774
A141: Havøysund | B141: =AVERAGE('Værdata April'!Z3:Z32) -> 0.31 | C141: 15 | D141: 0.25 | E141: 559.2105263 | F141: 139.8026316 | G141: 653.3333333 | H141: 0 | I141: =beregneCOP(E141,J141) -> 6.177267677 | J141: =SW!E36 -> 4.8 | K141: 31.06725146 | L141: 4.5 | M141: 31.06725146
A142: Honningsvåg | B142: =AVERAGE('Værdata April'!AA3:AA122) -> 0.8283333333 | C142: 215 | D142: 3.583333333 | E142: 542.8421053 | F142: 1945.184211 | G142: 653.3333333 | H142: 327.8557098 | I142: =beregneCOP(E142,J142) -> 3.940303123 | J142: =SW!E37 -> 4.6 | K142: 432.2631579 | L142: 4.5 | M142: 104.4074481
A143: Kjøllefjord | B143: =AVERAGE('Værdata April'!AB3:AB32) -> -0.9566666667 | C143: 20 | D143: 0.3333333333 | E143: 599.2105263 | F143: 199.7368421 | G143: 653.3333333 | H143: 0 | I143: =beregneCOP(E143,J143) -> 5.609813681 | J143: =SW!E38 -> 4.3 | K143: 44.38596491 | L143: 4.5 | M143: 44.38596491
A144: Mehamn | B144: =AVERAGE('Værdata April'!AC3:AC32) -> -1.323333333 | C144: 20 | D144: 0.3333333333 | E144: 610.7894737 | F144: 203.5964912 | G144: 653.3333333 | H144: 0 | I144: =beregneCOP(E144,J144) -> 5.609813681 | J144: =SW!E39 -> 4.3 | K144: 45.24366472 | L144: 4.5 | M144: 45.24366472
A145: Berlevåg | B145: =AVERAGE('Værdata April'!AD3:AD32) -> -1.79 | C145: 10 | D145: 0.1666666667 | E145: 625.5263158 | F145: 104.254386 | G145: 653.3333333 | H145: 0 | I145: =beregneCOP(E145,J145) -> 5.373742907 | J145: =SW!E40 -> 4 | K145: 23.16764133 | L145: 4.5 | M145: 23.16764133
A146: Båtsfjord | B146: =AVERAGE('Værdata April'!AE3:AE32) -> -1.326666667 | C146: 30 | D146: 0.5 | E146: 610.8947368 | F146: 305.4473684 | G146: 653.3333333 | H146: 0 | I146: =beregneCOP(E146,J146) -> 5.373742907 | J146: =SW!E41 -> 4 | K146: 67.87719298 | L146: 4.5 | M146: 67.87719298
A147: Vardø | B147: =AVERAGE('Værdata April'!AF3:AF32) -> -1.43 | C147: 15 | D147: 0.25 | E147: 614.1578947 | F147: 153.5394737 | G147: 653.3333333 | H147: 0 | I147: =beregneCOP(E147,J147) -> 5.191982636 | J147: =SW!E42 -> 3.7 | K147: 34.11988304 | L147: 4.5 | M147: 34.11988304
A148: Vadsø | B148: =AVERAGE('Værdata April'!AG3:AG32) -> -3.68 | C148: 15 | D148: 0.25 | E148: 685.2105263 | F148: 171.3026316 | G148: 653.3333333 | H148: 0 | I148: =beregneCOP(E148,J148) -> 4.831860257 | J148: =SW!E43 -> 3.7 | K148: 38.06725146 | L148: 4.5 | M148: 38.06725146
A149: Kirkenes | B149: =AVERAGE('Værdata April'!AH3:AH122) -> -1.7575 | C149: 210 | D149: 3.5 | E149: 624.5 | F149: 2185.75 | G149: 653.3333333 | H149: 295.1505762 | I149: =beregneCOP(E149,J149) -> 5.191982636 | J149: =SW!E44 -> 3.7 | K149: 485.7222222 | L149: 4.5 | M149: 190.571646
F150: =SUM(Tabell11182223[Energibehov '[kWh']]) -> 17905.20188
A151: Mai
A152: Sted | B152: Snitttemp [C] | C152: Minutter til kai | D152: Timer til kai [h] | E152: Effekt [kW] | F152: Energibehov [kWh] | G152: Energi direkte fra tank | H152: Strøm med tank [kWh] | I152: COP med tank | J152: SW [C] | K152: Strøm uten tank [kWh] | L152: COP uten tank | M152: Energi spart [kWh]
A153: Bergen | B153: =AVERAGE('Værdata Mai'!A3:A219) -> 12.64792627 | C153: 345 | D153: =C153/60 -> 5.75 | E153: =MAXA(Effektbehov(B153),0) -> 169.5918021 | F153: =E153*D153 -> 975.152862 | G153: =$Q$2*$Q$3*$Q$4*40*(1/3600) -> 653.3333333 | H153: =MAXA((F153-G153)/I153,0) -> 26.00497589 | I153: =beregneCOP(E153,J153) -> 12.37530579 | J153: =SW!F11 -> 8.8 | K153: =F153/L153 -> 216.700636 | L153: 4.5 | M153: =K153-H153 -> 190.6956601
A154: Florø | B154: =AVERAGE('Værdata Mai'!B3:B33) -> 7.706451613 | C154: 15 | D154: =C154/60 -> 0.25 | E154: 325.6383701 | F154: =E154*D154 -> 81.40959253 | G154: 653.3333333 | H154: 0 | I154: =beregneCOP(E154,J154) -> 6.697126363 | J154: =SW!F12 -> 8.2 | K154: 18.09102056 | L154: 4.5 | M154: =K154-H154 -> 18.09102056
A155: Måløy | B155: =AVERAGE('Værdata Mai'!C3:C33) -> 6.980645161 | C155: 15 | D155: 0.25 | E155: 348.5585739 | F155: 87.13964346 | G155: 653.3333333 | H155: 0 | I155: =beregneCOP(E155,J155) -> 5.783870299 | J155: =SW!F13 -> 8.2 | K155: 19.36436521 | L155: 4.5 | M155: 19.36436521
A156: Torvik | B156: =AVERAGE('Værdata Mai'!D3:D33) -> 8.3 | C156: 10 | D156: 0.1666666667 | E156: 306.8947368 | F156: 51.14912281 | G156: 653.3333333 | H156: 0 | I156: =beregneCOP(E156,J156) -> 6.697126363 | J156: =SW!F14 -> 8.1 | K156: 11.36647173 | L156: 4.5 | M156: 11.36647173
A157: Ålesund | B157: =AVERAGE('Værdata Mai'!E3:E374) -> 9.23172043 | C157: 615 | D157: 10.25 | E157: 277.4719864 | F157: 2844.087861 | G157: 653.3333333 | H157: 327.1185892 | I157: =beregneCOP(E157,J157) -> 6.697126363 | J157: =SW!F15 -> 8.1 | K157: 632.0195246 | L157: 4.5 | M157: 304.9009354
A158: Molde | B158: =AVERAGE('Værdata Mai'!F3:F33) -> 7.777419355 | C158: 30 | D158: 0.5 | E158: 323.3972835 | F158: 161.6986418 | G158: 653.3333333 | H158: 0 | I158: =beregneCOP(E158,J158) -> 6.697126363 | J158: =SW!F16 -> 8.4 | K158: 35.9330315 | L158: 4.5 | M158: =K158-H158 -> 35.9330315
A159: Kristiansund | B159: =AVERAGE('Værdata Mai'!G3:G33) -> 7.777419355 | C159: 15 | D159: 0.25 | E159: 323.3972835 | F159: 80.84932088 | G159: 653.3333333 | H159: 0 | I159: =beregneCOP(E159,J159) -> 6.697126363 | J159: =SW!F17 -> 8.4 | K159: 17.96651575 | L159: 4.5 | M159: =K159-H159 -> 17.96651575
A160: Trondheim | B160: =AVERAGE('Værdata Mai'!H3:H126) -> 10.86532258 | C160: 180 | D160: 3 | E160: 225.8845501 | F160: 677.6536503 | G160: 653.3333333 | H160: 2.702203641 | I160: =beregneCOP(E160,J160) -> 9.000179169 | J160: =SW!F18 -> 8.6 | K160: 150.5897001 | L160: 4.5 | M160: 147.8874964
A161: Rørvik | B161: =AVERAGE('Værdata Mai'!I3:I33) -> 8.051612903 | C161: 20 | D161: 0.3333333333 | E161: 314.7385399 | F161: 104.9128466 | G161: 653.3333333 | H161: 0 | I161: =beregneCOP(E161,J161) -> 6.697126363 | J161: =SW!F19 -> 7.9 | K161: 23.31396592 | L161: 4.5 | M161: 23.31396592
A162: Brønnøysund | B162: =AVERAGE('Værdata Mai'!J3:J33) -> 5.990322581 | C162: 10 | D162: 0.1666666667 | E162: 379.8319185 | F162: 63.30531975 | G162: 653.3333333 | H162: 0 | I162: =beregneCOP(E162,J162) -> 5.783870299 | J162: =SW!F20 -> 7.7 | K162: 14.06784883 | L162: 4.5 | M162: 14.06784883
A163: Sandnessjøen | B163: =AVERAGE('Værdata Mai'!K3:K33) -> 6.132258065 | C163: 15 | D163: 0.25 | E163: 375.3497453 | F163: 93.83743633 | G163: 653.3333333 | H163: 0 | I163: =beregneCOP(E163,J163) -> 5.783870299 | J163: =SW!F21 -> 7.7 | K163: 20.85276363 | L163: 4.5 | M163: 20.85276363
A164: Nesna | B164: =AVERAGE('Værdata Mai'!L3:L33) -> 6.658064516 | C164: 10 | D164: 0.1666666667 | E164: 358.7453311 | F164: 59.79088851 | G164: 653.3333333 | H164: 0 | I164: =beregneCOP(E164,J164) -> 5.783870299 | J164: =SW!F22 -> 7.5 | K164: 13.28686411 | L164: 4.5 | M164: 13.28686411
A165: Ørnes | B165: =AVERAGE('Værdata Mai'!M3:M33) -> 8.125806452 | C165: 10 | D165: 0.1666666667 | E165: 312.3955857 | F165: 52.06593096 | G165: 653.3333333 | H165: 0 | I165: =beregneCOP(E165,J165) -> 6.697126363 | J165: =SW!F23 -> 7.1 | K165: 11.57020688 | L165: 4.5 | M165: 11.57020688
A166: Bodø | B166: =AVERAGE('Værdata Mai'!N3:N126) -> 9.094354839 | C166: 135 | D166: 2.25 | E166: 281.8098472 | F166: 634.0721562 | G166: 653.3333333 | H166: 0 | I166: =beregneCOP(E166,J166) -> 6.697126363 | J166: =SW!F24 -> 6.6 | K166: 140.9049236 | L166: 4.5 | M166: 140.9049236
A167: Stamsund | B167: =AVERAGE('Værdata Mai'!O3:O33) -> 7.232258065 | C167: 25 | D167: 0.4166666667 | E167: 340.6129032 | F167: 141.922043 | G167: 653.3333333 | H167: 0 | I167: =beregneCOP(E167,J167) -> 5.783870299 | J167: =SW!F25 -> 6.9 | K167: 31.53823178 | L167: 4.5 | M167: 31.53823178
A168: Svolvær | B168: =AVERAGE('Værdata Mai'!P3:P33) -> 6.403225806 | C168: 55 | D168: 0.9166666667 | E168: 366.7928693 | F168: 336.2267968 | G168: 653.3333333 | H168: 0 | I168: =beregneCOP(E168,J168) -> 5.783870299 | J168: =SW!F26 -> 6.9 | K168: 74.71706596 | L168: 4.5 | M168: 74.71706596
A169: Stokmarknes | B169: =AVERAGE('Værdata Mai'!Q3:Q33) -> 4.612903226 | C169: 10 | D169: 0.1666666667 | E169: 423.3293718 | F169: 70.5548953 | G169: 653.3333333 | H169: 0 | I169: =beregneCOP(E169,J169) -> 5.167631356 | J169: =SW!F27 -> 6.9 | K169: 15.67886562 | L169: 4.5 | M169: 15.67886562
A170: Sortland | B170: =AVERAGE('Værdata Mai'!R3:R33) -> 4.603225806 | C170: 15 | D170: 0.25 | E170: 423.6349745 | F170: 105.9087436 | G170: 653.3333333 | H170: 0 | I170: =beregneCOP(E170,J170) -> 5.167631356 | J170: =SW!F28 -> 6.7 | K170: 23.53527636 | L170: 4.5 | M170: 23.53527636
A171: Risøyhamn | B171: =AVERAGE('Værdata Mai'!S3:S33) -> 4.535483871 | C171: 15 | D171: 0.25 | E171: 425.7741935 | F171: 106.4435484 | G171: 653.3333333 | H171: 0 | I171: =beregneCOP(E171,J171) -> 5.167631356 | J171: =SW!F29 -> 6.3 | K171: 23.65412186 | L171: 4.5 | M171: 23.65412186
A172: Harstad | B172: =AVERAGE('Værdata Mai'!T3:T33) -> 5.170967742 | C172: 35 | D172: 0.5833333333 | E172: 405.7062818 | F172: 236.6619977 | G172: 653.3333333 | H172: 0 | I172: =beregneCOP(E172,J172) -> 5.167631356 | J172: =SW!F30 -> 6.3 | K172: 52.59155505 | L172: 4.5 | M172: 52.59155505
A173: Finnsnes | B173: =AVERAGE('Værdata Mai'!U3:U33) -> 5.138709677 | C173: 30 | D173: 0.5 | E173: 406.7249576 | F173: 203.3624788 | G173: 653.3333333 | H173: 0 | I173: =beregneCOP(E173,J173) -> 5.167631356 | J173: =SW!F31 -> 6.1 | K173: 45.19166195 | L173: 4.5 | M173: 45.19166195
A174: Tromsø | B174: =AVERAGE('Værdata Mai'!V3:V157) -> 5.82 | C174: 240 | D174: 4 | E174: 385.2105263 | F174: 1540.842105 | G174: 653.3333333 | H174: 171.7438244 | I174: =beregneCOP(E174,J174) -> 5.167631356 | J174: =SW!F32 -> 6.1 | K174: 342.4093567 | L174: 4.5 | M174: 170.6655324
A175: Skjervøy | B175: =AVERAGE('Værdata Mai'!W3:W33) -> 3.709677419 | C175: 15 | D175: 0.25 | E175: 451.852292 | F175: 112.963073 | G175: 653.3333333 | H175: 0 | I175: =beregneCOP(E175,J175) -> 4.715870463 | J175: =SW!F33 -> 6.1 | K175: 25.10290511 | L175: 4.5 | M175: 25.10290511
A176: Øksfjord | B176: =AVERAGE('Værdata Mai'!X3:X33) -> 4.05483871 | C176: 10 | D176: 0.1666666667 | E176: 440.9524618 | F176: 73.49207697 | G176: 653.3333333 | H176: 0 | I176: =beregneCOP(E176,J176) -> 4.715870463 | J176: =SW!F34 -> 5.8 | K176: 16.33157266 | L176: 4.5 | M176: 16.33157266
A177: Hammerfest | B177: =AVERAGE('Værdata Mai'!Y3:Y33) -> 2.94516129 | C177: 40 | D177: 0.6666666667 | E177: 475.9949066 | F177: 317.3299377 | G177: 653.3333333 | H177: 0 | I177: =beregneCOP(E177,J177) -> 4.715870463 | J177: =SW!F35 -> 5.7 | K177: 70.51776394 | L177: 4.5 | M177: 70.51776394
A178: Havøysund | B178: =AVERAGE('Værdata Mai'!Z3:Z33) -> 3.761290323 | C178: 15 | D178: 0.25 | E178: 450.2224109 | F178: 112.5556027 | G178: 653.3333333 | H178: 0 | I178: =beregneCOP(E178,J178) -> 4.715870463 | J178: =SW!F36 -> 5.6 | K178: 25.01235616 | L178: 4.5 | M178: 25.01235616
A179: Honningsvåg | B179: =AVERAGE('Værdata Mai'!AA3:AA126) -> 4.062903226 | C179: 215 | D179: 3.583333333 | E179: 440.6977929 | F179: 1579.167091 | G179: 653.3333333 | H179: 196.3229832 | I179: =beregneCOP(E179,J179) -> 4.715870463 | J179: =SW!F37 -> 5.4 | K179: 350.9260202 | L179: 4.5 | M179: 154.603037
A180: Kjøllefjord | B180: =AVERAGE('Værdata Mai'!AB3:AB33) -> 3.04516129 | C180: 20 | D180: 0.3333333333 | E180: 472.8370119 | F180: 157.6123373 | G180: 653.3333333 | H180: 0 | I180: =beregneCOP(E180,J180) -> 4.715870463 | J180: =SW!F38 -> 5.3 | K180: 35.02496384 | L180: 4.5 | M180: 35.02496384
A181: Mehamn | B181: =AVERAGE('Værdata Mai'!AC3:AC33) -> 2.625806452 | C181: 20 | D181: 0.3333333333 | E181: 486.0797963 | F181: 162.0265988 | G181: 653.3333333 | H181: 0 | I181: =beregneCOP(E181,J181) -> 4.715870463 | J181: =SW!F39 -> 5.3 | K181: 36.00591083 | L181: 4.5 | M181: 36.00591083
A182: Berlevåg | B182: =AVERAGE('Værdata Mai'!AD3:AD33) -> 1.980645161 | C182: 10 | D182: 0.1666666667 | E182: 506.4533107 | F182: 84.40888512 | G182: 653.3333333 | H182: 0 | I182: =beregneCOP(E182,J182) -> 4.223934636 | J182: =SW!F40 -> 5 | K182: 18.75753003 | L182: 4.5 | M182: 18.75753003
A183: Båtsfjord | B183: =AVERAGE('Værdata Mai'!AE3:AE33) -> 2.806451613 | C183: 30 | D183: 0.5 | E183: 480.3752122 | F183: 240.1876061 | G183: 653.3333333 | H183: 0 | I183: =beregneCOP(E183,J183) -> 4.655853092 | J183: =SW!F41 -> 5 | K183: 53.37502358 | L183: 4.5 | M183: 53.37502358
A184: Vardø | B184: =AVERAGE('Værdata Mai'!AF3:AF33) -> 3.15483871 | C184: 15 | D184: 0.25 | E184: 469.3735144 | F184: 117.3433786 | G184: 653.3333333 | H184: 0 | I184: =beregneCOP(E184,J184) -> 4.55609714 | J184: =SW!F42 -> 4.8 | K184: 26.07630636 | L184: 4.5 | M184: 26.07630636
A185: Vadsø | B185: =AVERAGE('Værdata Mai'!AG3:AG33) -> 2.432258065 | C185: 15 | D185: 0.25 | E185: 492.1918506 | F185: 123.0479626 | G185: 653.3333333 | H185: 0 | I185: =beregneCOP(E185,J185) -> 4.089827899 | J185: =SW!F43 -> 4.8 | K185: 27.3439917 | L185: 4.5 | M185: 27.3439917
A186: Kirkenes | B186: =AVERAGE('Værdata Mai'!AH3:AH126) -> 4.219354839 | C186: 210 | D186: 3.5 | E186: 435.7572156 | F186: 1525.150255 | G186: 653.3333333 | H186: 175.0826223 | I186: =beregneCOP(E186,J186) -> 4.97946004 | J186: =SW!F44 -> 4.8 | K186: 338.9222788 | L186: 4.5 | M186: 163.8396565
F187: =SUM(Tabell11182224[Energibehov '[kWh']]) -> 13314.33269
A188: Juni
A189: Sted | B189: Snitttemp [C] | C189: Minutter til kai | D189: Timer til kai [h] | E189: Effekt [kW] | F189: Energibehov [kWh] | G189: Energi direkte fra tank | H189: Strøm med tank [kWh] | I189: COP med tank | J189: SW [C] | K189: Strøm uten tank [kWh] | L189: COP uten tank | M189: Energi spart [kWh]
A190: Bergen | B190: =AVERAGE('Værdata Juni'!A3:A212) -> 15.42238095 | C190: 345 | D190: =C190/60 -> 5.75 | E190: =MAXA(Effektbehov(B190),0) -> 81.97744361 | F190: =E190*D190 -> 471.3703008 | G190: =$Q$2*$Q$3*$Q$4*40*(1/3600) -> 653.3333333 | H190: =MAXA((F190-G190)/I190,0) -> 0 | I190: =beregneCOP(E190,J190) -> 19.94119056 | J190: =SW!G11 -> 12.1 | K190: =F190/L190 -> 104.7489557 | L190: 4.5 | M190: =K190-H190 -> 104.7489557
A191: Florø | B191: =AVERAGE('Værdata Juni'!B3:B32) -> 10.33333333 | C191: 15 | D191: =C191/60 -> 0.25 | E191: 242.6842105 | F191: =E191*D191 -> 60.67105263 | G191: 653.3333333 | H191: 0 | I191: =beregneCOP(E191,J191) -> 9.000179169 | J191: =SW!G12 -> 11.6 | K191: 13.48245614 | L191: 4.5 | M191: =K191-H191 -> 13.48245614
A192: Måløy | B192: =AVERAGE('Værdata Juni'!C3:C32) -> 10.17 | C192: 15 | D192: 0.25 | E192: 247.8421053 | F192: 61.96052632 | G192: 653.3333333 | H192: 0 | I192: =beregneCOP(E192,J192) -> 9.000179169 | J192: =SW!G13 -> 11.6 | K192: 13.76900585 | L192: 4.5 | M192: 13.76900585
A193: Torvik | B193: =AVERAGE('Værdata Juni'!D3:D32) -> 11.07333333 | C193: 10 | D193: 0.1666666667 | E193: 219.3157895 | F193: 36.55263158 | G193: 653.3333333 | H193: 0 | I193: =beregneCOP(E193,J193) -> 9.000179169 | J193: =SW!G14 -> 11.5 | K193: 8.122807018 | L193: 4.5 | M193: 8.122807018
A194: Ålesund | B194: =AVERAGE('Værdata Juni'!E3:E32) -> 11.58666667 | C194: 15 | D194: 0.25 | E194: 203.1052632 | F194: 50.77631579 | G194: 653.3333333 | H194: 0 | I194: =beregneCOP(E194,J194) -> 12.37530579 | J194: =SW!G15 -> 11.5 | K194: 11.28362573 | L194: 4.5 | M194: 11.28362573
A195: Geiranger | B195: =AVERAGE('Værdata Juni'!F3:F32) -> 12.52666667 | C195: 20 | D195: =C195/60 -> 0.3333333333 | E195: 173.4210526 | F195: =E195*D195 -> 57.80701754 | G195: =$Q$2*$Q$3*$Q$4*40*(1/3600) -> 653.3333333 | H195: =MAXA((F195-G195)/I195,0) -> 0 | I195: =beregneCOP(E195,J195) -> 12.37530579 | J195: 11.6 | K195: =F195/L195 -> 12.8460039 | L195: 4.5 | M195: =K195-H195 -> 12.8460039
A196: Ålesund | B196: =AVERAGE('Værdata Juni'!G3:G62) -> 11.41333333 | C196: 60 | D196: =C196/60 -> 1 | E196: 208.5789474 | F196: =E196*D196 -> 208.5789474 | G196: =$Q$2*$Q$3*$Q$4*40*(1/3600) -> 653.3333333 | H196: =MAXA((F196-G196)/I196,0) -> 0 | I196: =beregneCOP(E196,J196) -> 12.37530579 | J196: 11.5 | K196: =F196/L196 -> 46.35087719 | L196: 4.5 | M196: =K196-H196 -> 46.35087719
A197: Molde | B197: =AVERAGE('Værdata Juni'!H3:H32) -> 11.40333333 | C197: 30 | D197: 0.5 | E197: 208.8947368 | F197: 104.4473684 | G197: 653.3333333 | H197: 0 | I197: =beregneCOP(E197,J197) -> 12.37530579 | J197: =SW!G16 -> 11.6 | K197: 23.21052632 | L197: 4.5 | M197: =K197-H197 -> 23.21052632
A198: Kristiansund | B198: =AVERAGE('Værdata Juni'!I3:I32) -> 10.67333333 | C198: 15 | D198: 0.25 | E198: 231.9473684 | F198: 57.98684211 | G198: 653.3333333 | H198: 0 | I198: =beregneCOP(E198,J198) -> 9.000179169 | J198: =SW!G17 -> 11.5 | K198: 12.88596491 | L198: 4.5 | M198: =K198-H198 -> 12.88596491
A199: Trondheim | B199: =AVERAGE('Værdata Juni'!J3:J122) -> 14.2325 | C199: 180 | D199: 3 | E199: 119.5526316 | F199: 358.6578947 | G199: 653.3333333 | H199: 0 | I199: =beregneCOP(E199,J199) -> 19.94119056 | J199: =SW!G18 -> 12.1 | K199: 79.70175439 | L199: 4.5 | M199: 79.70175439
A200: Rørvik | B200: =AVERAGE('Værdata Juni'!K3:K32) -> 10.49666667 | C200: 20 | D200: 0.3333333333 | E200: 237.5263158 | F200: 79.1754386 | G200: 653.3333333 | H200: 0 | I200: =beregneCOP(E200,J200) -> 9.000179169 | J200: =SW!G19 -> 11.6 | K200: 17.59454191 | L200: 4.5 | M200: 17.59454191
A201: Brønnøysund | B201: =AVERAGE('Værdata Juni'!L3:L32) -> 9.156666667 | C201: 10 | D201: 0.1666666667 | E201: 279.8421053 | F201: 46.64035088 | G201: 653.3333333 | H201: 0 | I201: =beregneCOP(E201,J201) -> 6.697126363 | J201: =SW!G20 -> 11.6 | K201: 10.36452242 | L201: 4.5 | M201: 10.36452242
A202: Sandnessjøen | B202: =AVERAGE('Værdata Juni'!M3:M32) -> 9.616666667 | C202: 15 | D202: 0.25 | E202: 265.3157895 | F202: 66.32894737 | G202: 653.3333333 | H202: 0 | I202: =beregneCOP(E202,J202) -> 9.000179169 | J202: =SW!G21 -> 11.6 | K202: 14.73976608 | L202: 4.5 | M202: 14.73976608
A203: Nesna | B203: =AVERAGE('Værdata Juni'!N3:N32) -> 9.91 | C203: 10 | D203: 0.1666666667 | E203: 256.0526316 | F203: 42.6754386 | G203: 653.3333333 | H203: 0 | I203: =beregneCOP(E203,J203) -> 9.000179169 | J203: =SW!G22 -> 11.7 | K203: 9.483430799 | L203: 4.5 | M203: 9.483430799
A204: Ørnes | B204: =AVERAGE('Værdata Juni'!O3:O32) -> 11.42666667 | C204: 10 | D204: 0.1666666667 | E204: 208.1578947 | F204: 34.69298246 | G204: 653.3333333 | H204: 0 | I204: =beregneCOP(E204,J204) -> 12.37530579 | J204: =SW!G23 -> 11.4 | K204: 7.709551657 | L204: 4.5 | M204: 7.709551657
... 246 more rows

Sheet Effektbehov
A2: Utetemperatur | B2: Effektbehov
A3: -20 | B3: =MAXA(Effektbehov(A3),0) -> 1200.578947
A4: -19 | B4: 1169
A5: -18 | B5: 1137.421053
A6: -17 | B6: 1105.842105
A7: -16 | B7: 1074.263158
A8: -15 | B8: 1042.684211
A9: -14 | B9: 1011.105263
A10: -13 | B10: 979.5263158
A11: -12 | B11: 947.9473684
A12: -11 | B12: 916.3684211
A13: -10 | B13: 884.7894737
A14: -9 | B14: 853.2105263
A15: -8 | B15: 821.6315789
A16: -7 | B16: 790.0526316
A17: -6 | B17: 758.4736842
A18: -5 | B18: 726.8947368
A19: -4 | B19: 695.3157895
A20: -3 | B20: 663.7368421
A21: -2 | B21: 632.1578947
A22: -1 | B22: 600.5789474
A23: 0 | B23: 569
A24: 1 | B24: 537.4210526
A25: 2 | B25: 505.8421053
A26: 3 | B26: 474.2631579
A27: 4 | B27: 442.6842105
A28: 5 | B28: 411.1052632
A29: 6 | B29: 379.5263158
A30: 7 | B30: 347.9473684
A31: 8 | B31: 316.3684211
A32: 9 | B32: 284.7894737
A33: 10 | B33: 253.2105263
A34: 11 | B34: 221.6315789
A35: 12 | B35: 190.0526316
A36: 13 | B36: 158.4736842
A37: 14 | B37: 126.8947368
A38: 15 | B38: 95.31578947
A39: 16 | B39: 63.73684211
A40: 17 | B40: 32.15789474
A41: 18 | B41: 0.5789473684
A42: 19 | B42: 0
A43: 20 | B43: 0

Sheet HX 2000kW og Tank
A1: Initial | B1: Verdier | D1: Tid [h] | E1: T_tank [℃] | F1: T_return [℃] | G1: dTA | H1: dTB | I1: LMTD | J1: P_transfer | K1: Energy | L1: P_req | N1: Energy available in tank | O1: Energy taken from tank
A2: P_design [kW] | B2: 2000 | D2: 0.08333333333 | E2: =B4 -> 90 | F2: =E2-L2/($B$14*$B$12) -> 78.57142857 | G2: =E2-$B$7 -> 50 | H2: =F2-$B$6 -> 50.57142857 | I2: =(G2-H2)/LN(G2/H2) -> 50.28517316 | J2: =MIN(I2*$B$13,L2) -> 1200 | K2: =J2*1/12 -> 100 | L2: =$B$3 -> 1200 | N2: =B14*B15*(B4-50)*1000/3600 -> 653.3333333 | O2: =SUM(K2:K19) -> 808.6232852
A3: P_req [kW] | B3: 1200 | D3: 0.1666666667 | E3: =E2-K2/($B$15*$B$14*1000*1/3600) -> 83.87755102 | F3: 72.44897959 | G3: 43.87755102 | H3: 44.44897959 | I3: 44.16264916 | J3: 1200 | K3: =J3*1/12 -> 100 | L3: 1200
A4: T,h,i [C] | B4: 90 | D4: 0.25 | E4: 77.75510204 | F4: 66.32653061 | G4: 37.75510204 | H4: 38.32653061 | I4: 38.04010101 | J4: 1200 | K4: 100 | L4: 1200
A5: T,h,o [C] | B5: 70 | D5: 0.3333333333 | E5: 71.63265306 | F5: 60.20408163 | G5: 31.63265306 | H5: 32.20408163 | I5: 31.91751481 | J5: 1200 | K5: 100 | L5: 1200 | N5: Tid tanken lader ut [h] | O5: =N2/B3 -> 0.5444444444
A6: T,c,i [C] | B6: 28 | D6: 0.4166666667 | E6: 65.51020408 | F6: 54.08163265 | G6: 25.51020408 | H6: 26.08163265 | I6: 25.79486348 | J6: 1124.355455 | K6: 93.69628789 | L6: 1200
A7: T,c,o [C] | B7: 40 | D7: 0.5 | E7: 59.77369666 | F7: 48.34512523 | G7: 19.77369666 | H7: 20.34512523 | I7: 20.05805436 | J7: 874.2974292 | K7: 72.8581191 | L7: 1200
A8: dTA_initial | B8: =B4-B7 -> 50 | D8: 0.5833333333 | E8: 55.31299549 | F8: 43.88442406 | G8: 15.31299549 | H8: 15.88442406 | I8: 15.59696519 | J8: 679.8459274 | K8: 56.65382729 | L8: 1200
A9: dTB_initial | B9: =B5-B6 -> 42 | D9: 0.6666666667 | E9: 51.84439382 | F9: 40.41582239 | G9: 11.84439382 | H9: 12.41582239 | I9: 12.12786452 | J9: 528.6335646 | K9: 44.05279705 | L9: 1200
A10: LMTD_design | B10: =(B8-B9)/(LN(B8/B9)) -> 45.88382326 | D10: 0.75 | E10: 49.1472838 | F10: 37.71871237 | G10: 9.147283797 | H10: 9.718712368 | I10: 9.430112728 | J10: 411.0430238 | K10: 34.25358532 | L10: 1200
A11: Volumstrøm fra tank [m3/h] | B11: 90 | D11: 0.8333333333 | E11: 47.05012551 | F11: 35.62155408 | G11: 7.050125512 | H11: 7.621554083 | I11: 7.332128989 | J11: 319.595381 | K11: 26.63294842 | L11: 1200
A12: Massestrøm fra tank [kg/s] | B12: =B11/3.6 -> 25 | D12: 0.9166666667 | E12: 45.41953683 | F12: 33.9909654 | G12: 5.419536833 | H12: 5.990965405 | I12: 5.700478479 | J12: 248.4744328 | K12: 20.70620273 | L12: 1200
A13: U*A | B13: =B2/B10 -> 43.58834679 | D13: 1 | E13: 44.15181014 | F13: 32.72323871 | G13: 4.151810135 | H13: 4.723238707 | I13: 4.431385631 | J13: 193.1567736 | K13: 16.0963978 | L13: 1200
A14: Varmekap [kJ/kg*K] | B14: 4.2 | D14: 1.083333333 | E14: 43.16631639 | F14: 31.73774496 | G14: 3.166316392 | H14: 3.737744964 | I14: 3.444133653 | J14: 150.1240921 | K14: 12.510341 | L14: 1200
A15: Volum tank [m^3] | B15: 14 | D15: 1.166666667 | E15: 42.40037715 | F15: 30.97180572 | G15: 2.400377147 | H15: 2.971805718 | I15: 2.675930396 | J15: 116.6393821 | K15: 9.719948508 | L15: 1200
D16: 1.25 | E16: 41.80527826 | F16: 30.37670683 | G16: 1.805278259 | H16: 2.37670683 | I16: 2.07791373 | J16: 90.57282424 | K16: 7.547735354 | L16: 1200
D17: 1.333333333 | E17: 41.34317201 | F17: 29.91460058 | G17: 1.343172013 | H17: 1.914600584 | I17: 1.612041779 | J17: 70.26623609 | K17: 5.855519674 | L17: 1200
D18: 1.416666667 | E18: 40.98467081 | F18: 29.55609938 | G18: 0.9846708081 | H18: 1.556099379 | I18: 1.248668866 | J18: 54.42741154 | K18: 4.535617628 | L18: 1200
D19: 1.5 | E19: 40.70697993 | F19: 29.2784085 | G19: 0.7069799329 | H19: 1.278408504 | I19: 0.9646497778 | J19: 42.04748904 | K19: 3.50395742 | L19: 1200
D20: 1.583333333 | E20: 40.49245193 | F20: 29.0638805 | G20: 0.4924519276 | H20: 1.063880499 | I20: 0.7418438177 | J20: 32.33574559 | K20: 2.694645465 | L20: 1200
D21: 1.666666667 | E21: 40.32747363 | F21: 28.89890221 | G21: 0.3274736338 | H21: 0.8989022052 | I21: 0.565901579 | J21: 24.66671427 | K21: 2.055559523 | L21: 1200
D22: 1.75 | E22: 40.20162305 | F22: 28.77305162 | G22: 0.2016230507 | H22: 0.7730516222 | I22: 0.4251871643 | J22: 18.53320557 | K22: 1.544433797 | L22: 1200
D23: 1.833333333 | E23: 40.10706588 | F23: 28.67849445 | G23: 0.1070658795 | H23: 0.6784944509 | I23: 0.3094771884 | J23: 13.48959901 | K23: 1.124133251 | L23: 1200
D24: 1.916666667 | E24: 40.03824139 | F24: 28.60966997 | G24: 0.03824139473 | H24: 0.6096699662 | I24: 0.2063664623 | J24: 8.995172926 | K24: 0.7495977438 | L24: 1200
D25: 2 | E25: 39.99234766 | F25: 28.56377623 | G25: -0.007652344686 | H25: 0.5637762267 | I25: =(G25-H25)/LN(G25/H25) ->  | L25: 1200
D26: 2.083333333 | L26: 1200
D27: 2.166666667 | L27: 1200
D28: 2.25 | L28: 1200
D29: 2.333333333 | L29: 1200
D30: 2.416666667 | L30: 1200
D31: 2.5 | L31: 1200
D32: 2.583333333 | L32: 1200
D33: 2.666666667 | L33: 1200
D34: 2.75 | K34: =J34*1/12 ->  | L34: 1200
D35: 2.833333333 | L35: 1200
D36: 2.916666667 | L36: 1200
D37: 3 | L37: 1200
D38: 3.083333333 | L38: 1200
D39: 3.166666667 | L39: 1200
D40: 3.25 | L40: 1200
D41: 3.333333333 | L41: 1200
D42: 3.416666667 | L42: 1200
D43: 3.5 | L43: 1200
D44: 3.583333333 | L44: 1200
D45: 3.666666667 | L45: 1200
D46: 3.75 | L46: 1200
D47: 3.833333333 | L47: 1200
K48: 0
K49: 0
K50: 0
N61: l

Sheet HX 230,1kW
A1: Initial | B1: Verdier | D1: Tid [h] | E1: T_tank | F1: T_return | G1: dTA | H1: dTB | I1: LMTD | J1: P_transfer | K1: Energy | L1: P_req
A2: P_design [kW] | B2: 230.1 | D2: 0.08333333333 | E2: =B4 -> 50 | F2: =E2-L2/($B$14*$B$12) -> 46.71285714 | G2: =E2-$B$7 -> 45.06520148 | H2: =F2-$B$6 -> 43.46377291 | I2: =(G2-H2)/LN(G2/H2) -> 44.25965865 | J2: =MIN($B$12*$B$14*(E2-F2),L2) -> 230.1 | K2: =J2*1/12 -> 19.175 | L2: =$B$3 -> 230.1
A3: P_req [kW] | B3: 230.1 | D3: 0.1666666667 | E3: =E2-K2/($B$15*$B$14*1000*1/3600) -> 48.82602041 | F3: 45.53887755 | G3: 43.89122189 | H3: 42.28979332 | I3: 43.08554748 | J3: 230.1 | K3: 19.175 | L3: =$B$3 -> 230.1
A4: T,h,i [C] | B4: 50 | D4: 0.25 | E4: 47.65204082 | F4: 44.36489796 | G4: 42.7172423 | H4: 41.11581373 | I4: 41.91142895 | J4: 230.1 | K4: 19.175 | L4: =$B$3 -> 230.1
A5: T,h,o [C] | B5: 45 | D5: 0.3333333333 | E5: 46.47806122 | F5: 43.19091837 | G5: 41.54326271 | H5: 39.94183414 | I5: 40.7373024 | J5: 230.1 | K5: 19.175 | L5: =$B$3 -> 230.1
A6: T,c,i [C] | B6: ='HX 443,5kW'!M2 -> 3.249084231 | D6: 0.4166666667 | E6: 45.30408163 | F6: 42.01693878 | G6: 40.36928312 | H6: 38.76785454 | I6: 39.56316712 | J6: 230.1 | K6: 19.175 | L6: =$B$3 -> 230.1
A7: T,c,o [C] | B7: =B6+B18 -> 4.934798516 | D7: 0.5 | E7: 44.13010204 | F7: 40.84295918 | G7: 39.19530352 | H7: 37.59387495 | I7: 38.38902233 | J7: 230.1 | K7: 19.175 | L7: =$B$3 -> 230.1
A8: dTA_initial | B8: =B4-B7 -> 45.06520148 | D8: 0.5833333333 | E8: 42.95612245 | F8: 39.66897959 | G8: 38.02132393 | H8: 36.41989536 | I8: 37.21486711 | J8: 230.1 | K8: 19.175 | L8: =$B$3 -> 230.1
A9: dTB_initial | B9: =B5-B6 -> 41.75091577 | D9: 0.6666666667 | E9: 41.78214286 | F9: 38.495 | G9: 36.84734434 | H9: 35.24591577 | I9: 36.04070044 | J9: 230.1 | K9: 19.175 | L9: =$B$3 -> 230.1
A10: LMTD_design | B10: =(B8-B9)/(LN(B8/B9)) -> 43.38696277 | D10: 0.75 | E10: 40.60816327 | F10: 37.32102041 | G10: 35.67336475 | H10: 34.07193618 | I10: 34.86652118 | J10: 230.1 | K10: 19.175 | L10: =$B$3 -> 230.1
A11: Volumstrøm fra tank [m3/h] | B11: 60 | D11: 0.8333333333 | E11: 39.43418367 | F11: 36.14704082 | G11: 34.49938516 | H11: 32.89795659 | I11: 33.69232799 | J11: 230.1 | K11: 19.175 | L11: =$B$3 -> 230.1
A12: Massestrøm fra tank [kg/s] | B12: =B11/3.6 -> 16.66666667 | D12: 0.9166666667 | E12: 38.26020408 | F12: 34.97306122 | G12: 33.32540557 | H12: 31.72397699 | I12: 32.51811938 | J12: 230.1 | K12: 19.175 | L12: =$B$3 -> 230.1
A13: U*A | B13: =B2/B10 -> 5.303436454 | D13: 1 | E13: 37.08622449 | F13: 33.79908163 | G13: 32.15142597 | H13: 30.5499974 | I13: 31.34389361 | J13: 230.1 | K13: 19.175 | L13: =$B$3 -> 230.1
A14: Varmekapasitet [kJ/kg*K] | B14: 4.2 | D14: 1.083333333 | E14: 35.9122449 | F14: 32.62510204 | G14: 30.97744638 | H14: 29.37601781 | I14: 30.16964867 | J14: 230.1 | K14: 19.175 | L14: =$B$3 -> 230.1
A15: Volum [m^3] | B15: 14 | D15: 1.166666667 | E15: 34.73826531 | F15: 31.45112245 | G15: 29.80346679 | H15: 28.20203822 | I15: 28.99538224 | J15: 230.1 | K15: 19.175 | L15: =$B$3 -> 230.1
A16: Volumstrøm kald side [m3/h] | B16: 117 | D16: 1.25 | E16: 33.56428571 | F16: 30.27714286 | G16: 28.6294872 | H16: 27.02805863 | I16: 27.82109159 | J16: 230.1 | K16: 19.175 | L16: =$B$3 -> 230.1
A17: Massestrøm kald side [kg/s] | B17: =(B16*1000)/3600 -> 32.5 | D17: 1.333333333 | E17: 32.39030612 | F17: 29.10316327 | G17: 27.45550761 | H17: 25.85407903 | I17: 26.64677353 | J17: 230.1 | K17: 19.175 | L17: =$B$3 -> 230.1
A18: deltaT kald side | B18: =B2/(B17*B14) -> 1.685714286 | D18: 1.416666667 | E18: 31.21632653 | F18: 27.92918367 | G18: 26.28152801 | H18: 24.68009944 | I18: 25.47242425 | J18: 230.1 | K18: 19.175 | L18: =$B$3 -> 230.1
D19: 1.5 | E19: 30.04234694 | F19: 26.75520408 | G19: 25.10754842 | H19: 23.50611985 | I19: 24.29803923 | J19: 230.1 | K19: 19.175 | L19: =$B$3 -> 230.1
D20: 1.583333333 | E20: 28.86836735 | F20: 25.58122449 | G20: 23.93356883 | H20: 22.33214026 | I20: 23.12361302 | J20: 230.1 | K20: 19.175 | L20: =$B$3 -> 230.1
D21: 1.666666667 | E21: 27.69438776 | F21: 24.4072449 | G21: 22.75958924 | H21: 21.15816067 | I21: 21.94913901 | J21: 230.1 | K21: 19.175 | L21: =$B$3 -> 230.1
D22: 1.75 | E22: 26.52040816 | F22: 23.23326531 | G22: 21.58560965 | H22: 19.98418108 | I22: 20.77460909 | J22: 230.1 | K22: 19.175 | L22: =$B$3 -> 230.1
D23: 1.833333333 | E23: 25.34642857 | F23: 22.05928571 | G23: 20.41163005 | H23: 18.81020148 | I23: 19.60001319 | J23: 230.1 | K23: 19.175 | L23: =$B$3 -> 230.1
D24: 1.916666667 | E24: 24.17244898 | F24: 20.88530612 | G24: 19.23765046 | H24: 17.63622189 | I24: 18.42533869 | J24: 230.1 | K24: 19.175 | L24: =$B$3 -> 230.1
D25: 2 | E25: 22.99846939 | F25: 19.71132653 | G25: 18.06367087 | H25: 16.4622423 | I25: 17.25056953 | J25: 230.1 | K25: 19.175 | L25: =$B$3 -> 230.1
D26: 2.083333333 | E26: 21.8244898 | F26: 18.53734694 | G26: 16.88969128 | H26: 15.28826271 | I26: 16.07568492 | J26: 230.1 | K26: 19.175 | L26: =$B$3 -> 230.1
D27: 2.166666667 | E27: 20.6505102 | F27: 17.36336735 | G27: 15.71571169 | H27: 14.11428312 | I27: 14.90065754 | J27: 230.1 | K27: 19.175 | L27: =$B$3 -> 230.1
D28: 2.25 | E28: 19.47653061 | F28: 16.18938776 | G28: 14.5417321 | H28: 12.94030352 | I28: 13.72545067 | J28: 230.1 | K28: 19.175 | L28: =$B$3 -> 230.1
D29: 2.333333333 | E29: 18.30255102 | F29: 15.01540816 | G29: 13.3677525 | H29: 11.76632393 | I29: 12.55001382 | J29: 230.1 | K29: 19.175 | L29: =$B$3 -> 230.1
D30: 2.416666667 | E30: 17.12857143 | F30: 13.84142857 | G30: 12.19377291 | H30: 10.59234434 | I30: 11.37427555 | J30: 230.1 | K30: 19.175 | L30: =$B$3 -> 230.1
D31: 2.5 | E31: 15.95459184 | F31: 12.66744898 | G31: 11.01979332 | H31: 9.418364749 | I31: 10.19813141 | J31: 230.1 | K31: 19.175 | L31: =$B$3 -> 230.1
D32: 2.583333333 | E32: 14.78061224 | F32: 11.49346939 | G32: 9.845813728 | H32: 8.244385157 | I32: 9.021422211 | J32: 230.1 | K32: 19.175 | L32: =$B$3 -> 230.1
D33: 2.666666667 | E33: 13.60663265 | F33: 10.3194898 | G33: 8.671834137 | H33: 7.070405565 | I33: 7.843892792 | J33: 230.1 | K33: 19.175 | L33: =$B$3 -> 230.1
D34: 2.75 | E34: 12.43265306 | F34: 9.145510204 | G34: 7.497854545 | H34: 5.896425973 | I34: 6.665106395 | J34: 230.1 | K34: =J34*1/12 -> 19.175 | L34: =$B$3 -> 230.1
D35: 2.833333333 | E35: 11.25867347 | F35: 7.971530612 | G35: 6.323874953 | H35: 4.722446381 | I35: 5.484247148 | J35: 230.1 | K35: 19.175 | L35: =$B$3 -> 230.1
D36: 2.916666667 | E36: 10.08469388 | F36: 6.79755102 | G36: 5.149895361 | H36: 3.54846679 | I36: 4.299589845 | J36: 230.1 | K36: 19.175 | L36: =$B$3 -> 230.1
D37: 3 | E37: 8.910714286 | F37: 5.623571429 | G37: 3.975915769 | H37: 2.374487198 | I37: 3.106713034 | J37: 230.1 | K37: 19.175 | L37: =$B$3 -> 230.1
D38: 3.083333333 | E38: 7.736734694 | F38: 4.449591837 | G38: 2.801936177 | H38: 1.200507606 | I38: 1.889443651 | J38: 230.1 | K38: 19.175 | L38: =$B$3 -> 230.1
D39: 3.166666667 | E39: 6.562755102 | F39: 3.275612245 | G39: 1.627956586 | H39: 0.02652801413 | I39: 0.3889908717 | J39: 230.1 | K39: 19.175 | L39: =$B$3 -> 230.1
D40: 3.25 | E40: 5.38877551 | F40: 2.101632653 | G40: 0.4539769937 | H40: -1.147451578 | I40: =(G40-H40)/LN(G40/H40) ->  | J40: 230.1 | K40: 19.175 | L40: =$B$3 -> 230.1
D41: 3.333333333 | E41: 4.214795918 | F41: 0.9276530612 | G41: -0.7200025981 | H41: -2.32143117 | I41: -1.367942254 | J41: 230.1 | K41: 19.175 | L41: =$B$3 -> 230.1
D42: 3.416666667 | E42: 3.040816327 | F42: -0.2463265306 | G42: -1.89398219 | H42: -3.495410761 | I42: -2.61342818 | J42: 230.1 | K42: 19.175 | L42: =$B$3 -> 230.1
D43: 3.5 | E43: 1.866836735 | F43: -1.420306122 | G43: -3.067961782 | H43: -4.669390353 | I43: -3.812788169 | J43: 230.1 | K43: 19.175 | L43: =$B$3 -> 230.1
D44: 3.583333333 | E44: 0.6928571429 | F44: -2.594285714 | G44: -4.241941374 | H44: -5.843369945 | I44: -4.999985545 | J44: 230.1 | K44: 19.175 | L44: =$B$3 -> 230.1
D45: 3.666666667 | E45: -0.481122449 | F45: -3.768265306 | G45: -5.415920965 | H45: -7.017349537 | I45: -6.182103994 | J45: 230.1 | K45: 19.175 | L45: =$B$3 -> 230.1
D46: 3.75 | E46: -1.655102041 | F46: -4.942244898 | G46: -6.589900557 | H46: -8.191329129 | I46: -7.361606762 | J46: 230.1 | K46: 19.175 | L46: =$B$3 -> 230.1
D47: 3.833333333 | E47: -2.829081633 | F47: -6.11622449 | G47: -7.763880149 | H47: -9.365308721 | I47: -8.539582757 | J47: =MIN(I47*$B$13,L47) -> -45.2891345 | K47: -3.774094541 | L47: =$B$3 -> 230.1
D48: 3.916666667 | E48: -2.59801462 | F48: =E48-L48/($B$14*$B$12) -> -5.885157477 | G48: =E48-$B$7 -> -7.532813136 | H48: =F48-$B$6 -> -9.134241708 | I48: =(G48-H48)/LN(G48/H48) -> -8.307818842 | J48: =MIN($B$12*$B$14*(E48-F48),L48) -> 230.1 | K48: 19.175 | L48: =$B$3 -> 230.1
D49: 4 | E49: -3.771994212 | F49: =E49-L49/($B$14*$B$12) -> -7.059137069 | G49: =E49-$B$7 -> -8.706792728 | H49: =F49-$B$6 -> -10.3082213 | I49: =(G49-H49)/LN(G49/H49) -> -9.484985843 | J49: =MIN($B$12*$B$14*(E49-F49),L49) -> 230.1 | K49: 19.175 | L49: =$B$3 -> 230.1
D50: 4.083333333 | E50: -4.945973804 | F50: =E50-L50/($B$14*$B$12) -> -8.233116661 | G50: =E50-$B$7 -> -9.88077232 | H50: =F50-$B$6 -> -11.48220089 | I50: =(G50-H50)/LN(G50/H50) -> -10.6614486 | J50: =MIN($B$12*$B$14*(E50-F50),L50) -> 230.1 | K50: 19.175 | L50: =$B$3 -> 230.1
N61: l

Sheet HX 443,5kW
A1: Initial | B1: Verdier | D1: Tid [h] | E1: T_SW | F1: T_return | G1: dTA | H1: dTB | I1: LMTD | J1: P_transfer | K1: Energy | L1: P_req | M1: T_inn_hx2
A2: P_design [kW] | B2: 443.5 | D2: 0.08333333333 | E2: =$B$4 -> 5.2 | F2: =$B$5 -> 0.9761905 | G2: =E2-$B$7 -> 1.950915769 | H2: =F2-$B$6 -> 0.9761905 | I2: =(G2-H3)/LN(G2/H3) -> 1.407756089 | J2: =MIN($B$12*$B$14*($B$4-$B$5),$B$2) -> 443.4999975 | K2: =J2*1/12 -> 36.95833312 | L2: =$B$3 -> 443.5 | M2: =(J2/($B$16*$B$14))+$B$6 -> 3.249084231
A3: P_trans [kW] | B3: 443.5 | D3: 0.1666666667 | E3: =$B$4 -> 5.2 | F3: =$B$5 -> 0.9761905 | G3: 1.950915769 | H3: =F3-$B$6 -> 0.9761905 | I3: =(G3-H4)/LN(G3/H4) -> 1.407756089 | J3: 443.4999975 | K3: 36.95833312 | L3: 443.5 | M3: 3.249084231
A4: T,h,i [C] | B4: 5.2 | D4: 0.25 | E4: 5.2 | F4: =$B$5 -> 0.9761905 | G4: 1.950915769 | H4: =F4-$B$6 -> 0.9761905 | I4: =(G4-H5)/LN(G4/H5) -> 1.407756089 | J4: 443.4999975 | K4: 36.95833312 | L4: 443.5 | M4: 3.249084231
A5: T,h,o [C] | B5: =MAXA(0.9,B4-4.2238095) -> 0.9761905 | D5: 0.3333333333 | E5: 5.2 | F5: 0.9761905 | G5: 1.950915769 | H5: =F5-$B$6 -> 0.9761905 | I5: =(G5-H6)/LN(G5/H6) -> 1.407756089 | J5: 443.4999975 | K5: 36.95833312 | L5: 443.5 | M5: 3.249084231
A6: T,c,i [C] | B6: 0 | D6: 0.4166666667 | E6: 5.2 | F6: 0.9761905 | G6: 1.950915769 | H6: =F6-$B$6 -> 0.9761905 | I6: =(G6-H7)/LN(G6/H7) -> 1.407756089 | J6: 443.4999975 | K6: 36.95833312 | L6: 443.5 | M6: 3.249084231
A7: T,c,o [C] | B7: =M2 -> 3.249084231 | D7: 0.5 | E7: 5.2 | F7: 0.9761905 | G7: 1.950915769 | H7: =F7-$B$6 -> 0.9761905 | I7: =(G7-H8)/LN(G7/H8) -> 1.407756089 | J7: 443.4999975 | K7: 36.95833312 | L7: 443.5 | M7: 3.249084231
A8: dTA_initial | B8: =B4-B7 -> 1.950915769 | D8: 0.5833333333 | E8: 5.2 | F8: 0.9761905 | G8: 1.950915769 | H8: =F8-$B$6 -> 0.9761905 | I8: =(G8-H9)/LN(G8/H9) -> 1.407756089 | J8: 443.4999975 | K8: 36.95833312 | L8: 443.5 | M8: 3.249084231
A9: dTB_initial | B9: =B5-B6 -> 0.9761905 | D9: 0.6666666667 | E9: 5.2 | F9: 0.9761905 | G9: 1.950915769 | H9: =F9-$B$6 -> 0.9761905 | I9: =(G9-H10)/LN(G9/H10) -> 1.407756089 | J9: 443.4999975 | K9: 36.95833312 | L9: 443.5 | M9: 3.249084231
A10: LMTD_design | B10: =(B8-B9)/(LN(B8/B9)) -> 1.407756089 | D10: 0.75 | E10: 5.2 | F10: 0.9761905 | G10: 1.950915769 | H10: =F10-$B$6 -> 0.9761905 | I10: =(G10-H11)/LN(G10/H11) -> 1.407756089 | J10: 443.4999975 | K10: 36.95833312 | L10: 443.5 | M10: 3.249084231
A11: Volumstrøm SW [m3/h] | B11: 90 | D11: 0.8333333333 | E11: 5.2 | F11: 0.9761905 | G11: 1.950915769 | H11: =F11-$B$6 -> 0.9761905 | I11: =(G11-H12)/LN(G11/H12) -> 1.407756089 | J11: 443.4999975 | K11: 36.95833312 | L11: 443.5 | M11: 3.249084231
A12: Massestrøm SW [kg/s] | B12: =B11/3.6 -> 25 | D12: 0.9166666667 | E12: =$B$4 -> 5.2 | F12: 0.9761905 | G12: 1.950915769 | H12: =F12-$B$6 -> 0.9761905 | I12: =(G12-H13)/LN(G12/H13) -> 1.407756089 | J12: 443.4999975 | K12: 36.95833312 | L12: 443.5 | M12: 3.249084231
A13: U*A | B13: =B2/B10 -> 315.0403705 | D13: 1 | E13: 5.2 | F13: 0.9761905 | G13: 1.950915769 | H13: =F13-$B$6 -> 0.9761905 | I13: =(G13-H14)/LN(G13/H14) -> 1.407756089 | J13: 443.4999975 | K13: 36.95833312 | L13: 443.5 | M13: 3.249084231
A14: Varmekap [kJ/kg*K] | B14: 4.2 | D14: 1.083333333 | E14: 5.2 | F14: 0.9761905 | G14: 1.950915769 | H14: =F14-$B$6 -> 0.9761905 | I14: =(G14-H15)/LN(G14/H15) -> 1.407756089 | J14: 443.4999975 | K14: 36.95833312 | L14: 443.5 | M14: 3.249084231
A15: Volumstrøm FW [m3/h] | B15: 117 | D15: 1.166666667 | E15: 5.2 | F15: 0.9761905 | G15: 1.950915769 | H15: =F15-$B$6 -> 0.9761905 | I15: =(G15-H16)/LN(G15/H16) -> 1.407756089 | J15: 443.4999975 | K15: 36.95833312 | L15: 443.5 | M15: 3.249084231
A16: Massestrøm FW [kg/s] | B16: =(B15*1000)/3600 -> 32.5 | D16: 1.25 | E16: 5.2 | F16: 0.9761905 | G16: 1.950915769 | H16: =F16-$B$6 -> 0.9761905 | I16: =(G16-H17)/LN(G16/H17) -> 1.407756089 | J16: 443.4999975 | K16: 36.95833312 | L16: 443.5 | M16: 3.249084231
D17: 1.333333333 | E17: 5.2 | F17: 0.9761905 | G17: 1.950915769 | H17: =F17-$B$6 -> 0.9761905 | I17: =(G17-H18)/LN(G17/H18) -> 1.407756089 | J17: 443.4999975 | K17: 36.95833312 | L17: 443.5 | M17: 3.249084231
D18: 1.416666667 | E18: 5.2 | F18: 0.9761905 | G18: 1.950915769 | H18: =F18-$B$6 -> 0.9761905 | I18: =(G18-H19)/LN(G18/H19) -> 1.407756089 | J18: 443.4999975 | K18: 36.95833312 | L18: 443.5 | M18: 3.249084231
D19: 1.5 | E19: 5.2 | F19: 0.9761905 | G19: 1.950915769 | H19: =F19-$B$6 -> 0.9761905 | I19: =(G19-H20)/LN(G19/H20) -> 1.407756089 | J19: 443.4999975 | K19: 36.95833312 | L19: 443.5 | M19: 3.249084231
D20: 1.583333333 | E20: 5.2 | F20: 0.9761905 | G20: 1.950915769 | H20: =F20-$B$6 -> 0.9761905 | I20: =(G20-H21)/LN(G20/H21) -> 1.407756089 | J20: 443.4999975 | K20: 36.95833312 | L20: 443.5 | M20: 3.249084231
D21: 1.666666667 | E21: 5.2 | F21: 0.9761905 | G21: 1.950915769 | H21: =F21-$B$6 -> 0.9761905 | I21: =(G21-H22)/LN(G21/H22) -> 1.407756089 | J21: 443.4999975 | K21: 36.95833312 | L21: 443.5 | M21: 3.249084231
D22: 1.75 | E22: 5.2 | F22: 0.9761905 | G22: 1.950915769 | H22: =F22-$B$6 -> 0.9761905 | I22: =(G22-H23)/LN(G22/H23) -> 1.407756089 | J22: 443.4999975 | K22: 36.95833312 | L22: 443.5 | M22: 3.249084231
D23: 1.833333333 | E23: 5.2 | F23: 0.9761905 | G23: 1.950915769 | H23: =F23-$B$6 -> 0.9761905 | I23: =(G23-H24)/LN(G23/H24) -> 1.407756089 | J23: 443.4999975 | K23: 36.95833312 | L23: 443.5 | M23: 3.249084231
D24: 1.916666667 | E24: 5.2 | F24: 0.9761905 | G24: 1.950915769 | H24: =F24-$B$6 -> 0.9761905 | I24: =(G24-H25)/LN(G24/H25) -> 1.407756089 | J24: 443.4999975 | K24: 36.95833312 | L24: 443.5 | M24: 3.249084231
D25: 2 | E25: 5.2 | F25: 0.9761905 | G25: 1.950915769 | H25: =F25-$B$6 -> 0.9761905 | I25: =(G25-H26)/LN(G25/H26) -> 1.407756089 | J25: 443.4999975 | K25: 36.95833312 | L25: 443.5 | M25: 3.249084231
D26: 2.083333333 | E26: 5.2 | F26: 0.9761905 | G26: 1.950915769 | H26: =F26-$B$6 -> 0.9761905 | I26: =(G26-H27)/LN(G26/H27) -> 1.407756089 | J26: 443.4999975 | K26: 36.95833312 | L26: 443.5 | M26: 3.249084231
D27: 2.166666667 | E27: 5.2 | F27: 0.9761905 | G27: 1.950915769 | H27: =F27-$B$6 -> 0.9761905 | I27: =(G27-H28)/LN(G27/H28) -> 1.407756089 | J27: 443.4999975 | K27: 36.95833312 | L27: 443.5 | M27: 3.249084231
D28: 2.25 | E28: 5.2 | F28: 0.9761905 | G28: 1.950915769 | H28: =F28-$B$6 -> 0.9761905 | I28: =(G28-H29)/LN(G28/H29) -> 1.407756089 | J28: 443.4999975 | K28: 36.95833312 | L28: 443.5 | M28: 3.249084231
D29: 2.333333333 | E29: 5.2 | F29: 0.9761905 | G29: 1.950915769 | H29: =F29-$B$6 -> 0.9761905 | I29: =(G29-H30)/LN(G29/H30) -> 1.407756089 | J29: 443.4999975 | K29: 36.95833312 | L29: 443.5 | M29: 3.249084231
D30: 2.416666667 | E30: 5.2 | F30: 0.9761905 | G30: 1.950915769 | H30: =F30-$B$6 -> 0.9761905 | I30: =(G30-H31)/LN(G30/H31) -> 1.407756089 | J30: 443.4999975 | K30: 36.95833312 | L30: 443.5 | M30: 3.249084231
D31: 2.5 | E31: 5.2 | F31: 0.9761905 | G31: 1.950915769 | H31: =F31-$B$6 -> 0.9761905 | I31: =(G31-H32)/LN(G31/H32) -> 1.407756089 | J31: 443.4999975 | K31: 36.95833312 | L31: 443.5 | M31: 3.249084231
D32: 2.583333333 | E32: 5.2 | F32: 0.9761905 | G32: 1.950915769 | H32: =F32-$B$6 -> 0.9761905 | I32: =(G32-H33)/LN(G32/H33) -> 1.407756089 | J32: 443.4999975 | K32: 36.95833312 | L32: 443.5 | M32: 3.249084231
D33: 2.666666667 | E33: 5.2 | F33: 0.9761905 | G33: 1.950915769 | H33: =F33-$B$6 -> 0.9761905 | I33: =(G33-H34)/LN(G33/H34) -> 1.407756089 | J33: 443.4999975 | K33: 36.95833312 | L33: 443.5 | M33: 3.249084231
D34: 2.75 | E34: 5.2 | F34: 0.9761905 | G34: 1.950915769 | H34: =F34-$B$6 -> 0.9761905 | I34: =(G34-H35)/LN(G34/H35) -> 1.407756089 | J34: =MIN($B$12*$B$14*($B$4-$B$5),$B$2) -> 443.4999975 | K34: =J34*1/12 -> 36.95833312 | L34: 443.5 | M34: =(J34/($B$16*$B$14))+$B$6 -> 3.249084231
D35: 2.833333333 | E35: 5.2 | F35: 0.9761905 | G35: 1.950915769 | H35: =F35-$B$6 -> 0.9761905 | I35: =(G35-H36)/LN(G35/H36) -> 1.407756089 | J35: 443.4999975 | K35: 36.95833312 | L35: 443.5 | M35: 3.249084231
D36: 2.916666667 | E36: 5.2 | F36: 0.9761905 | G36: 1.950915769 | H36: =F36-$B$6 -> 0.9761905 | I36: =(G36-H37)/LN(G36/H37) -> 1.407756089 | J36: 443.4999975 | K36: 36.95833312 | L36: 443.5 | M36: 3.249084231
D37: 3 | E37: 5.2 | F37: 0.9761905 | G37: 1.950915769 | H37: =F37-$B$6 -> 0.9761905 | I37: =(G37-H38)/LN(G37/H38) -> 1.407756089 | J37: 443.4999975 | K37: 36.95833312 | L37: 443.5 | M37: 3.249084231
D38: 3.083333333 | E38: 5.2 | F38: 0.9761905 | G38: 1.950915769 | H38: =F38-$B$6 -> 0.9761905 | I38: =(G38-H39)/LN(G38/H39) -> 1.407756089 | J38: 443.4999975 | K38: 36.95833312 | L38: 443.5 | M38: 3.249084231
D39: 3.166666667 | E39: 5.2 | F39: 0.9761905 | G39: 1.950915769 | H39: =F39-$B$6 -> 0.9761905 | I39: =(G39-H40)/LN(G39/H40) -> 1.407756089 | J39: 443.4999975 | K39: 36.95833312 | L39: 443.5 | M39: 3.249084231
D40: 3.25 | E40: 5.2 | F40: 0.9761905 | G40: 1.950915769 | H40: =F40-$B$6 -> 0.9761905 | I40: =(G40-H41)/LN(G40/H41) -> 1.407756089 | J40: 443.4999975 | K40: 36.95833312 | L40: 443.5 | M40: 3.249084231
D41: 3.333333333 | E41: 5.2 | F41: 0.9761905 | G41: 1.950915769 | H41: =F41-$B$6 -> 0.9761905 | I41: =(G41-H42)/LN(G41/H42) -> 1.407756089 | J41: 443.4999975 | K41: 36.95833312 | L41: 443.5 | M41: 3.249084231
D42: 3.416666667 | E42: 5.2 | F42: 0.9761905 | G42: 1.950915769 | H42: =F42-$B$6 -> 0.9761905 | I42: =(G42-H43)/LN(G42/H43) -> 1.407756089 | J42: 443.4999975 | K42: 36.95833312 | L42: 443.5 | M42: 3.249084231
D43: 3.5 | E43: 5.2 | F43: 0.9761905 | G43: 1.950915769 | H43: =F43-$B$6 -> 0.9761905 | I43: =(G43-H44)/LN(G43/H44) -> 1.407756089 | J43: 443.4999975 | K43: 36.95833312 | L43: 443.5 | M43: 3.249084231
D44: 3.583333333 | E44: 5.2 | F44: 0.9761905 | G44: 1.950915769 | H44: =F44-$B$6 -> 0.9761905 | I44: =(G44-H45)/LN(G44/H45) -> 1.407756089 | J44: 443.4999975 | K44: 36.95833312 | L44: 443.5 | M44: 3.249084231
D45: 3.666666667 | E45: 5.2 | F45: 0.9761905 | G45: 1.950915769 | H45: =F45-$B$6 -> 0.9761905 | I45: =(G45-H46)/LN(G45/H46) -> 1.407756089 | J45: 443.4999975 | K45: 36.95833312 | L45: 443.5 | M45: 3.249084231
D46: 3.75 | E46: 5.2 | F46: 0.9761905 | G46: 1.950915769 | H46: =F46-$B$6 -> 0.9761905 | I46: =(G46-H47)/LN(G46/H47) -> 1.407756089 | J46: 443.4999975 | K46: 36.95833312 | L46: 443.5 | M46: 3.249084231
D47: 3.833333333 | E47: 5.2 | F47: 0.9761905 | G47: 1.950915769 | H47: =F47-$B$6 -> 0.9761905 | I47: =(G47-H48)/LN(G47/H48) -> 1.407756089 | J47: 443.4999975 | K47: 36.95833312 | L47: 443.5 | M47: 3.249084231
D48: 3.916666667 | E48: 5.2 | F48: 0.9761905 | G48: =E48-$B$7 -> 1.950915769 | H48: =F48-$B$6 -> 0.9761905 | I48: =(G48-H49)/LN(G48/H49) -> 1.407756089 | J48: 443.4999975 | K48: 36.95833312 | L48: =$B$3 -> 443.5 | M48: 3.249084231
D49: 4 | E49: 5.2 | F49: 0.9761905 | G49: =E49-$B$7 -> 1.950915769 | H49: =F49-$B$6 -> 0.9761905 | I49: =(G49-H50)/LN(G49/H50) -> 1.407756089 | J49: 443.4999975 | K49: 36.95833312 | L49: =$B$3 -> 443.5 | M49: 3.249084231
D50: 4.083333333 | E50: 5.2 | F50: 0.9761905 | G50: =E50-$B$7 -> 1.950915769 | H50: =F50-$B$6 -> 0.9761905 | I50: =(G50-H51)/LN(G50/H51) ->  | J50: 443.4999975 | K50: 36.95833312 | L50: =$B$3 -> 443.5 | M50: 3.249084231
N61: l

Sheet SW
A2: Havn | B2: Bergen 14:45-20:00 | C2: Florø 02:45-03:00 | D2: Måløy 05:15-05:30 | E2: Torvik 08:20-08:30 | F2: Ålesund 09:45-20:00 | G2: Molde 22:35-23:05 | H2: Kristiansund 02:45-03:00 | I2: Trondheim 09:45-12:45 | J2: Rørvik 21:40-22:00 | K2: Brønnøysund 01:35-01:45 | L2: Sandnessjøen 04:35-04:50 | M2: Nesna 06:00-06:10 | N2: Ørnes 10:00-10:10 | O2: Bodø 13:05-15:20 | P2: Stamsund 19:15-19:40 | Q2: Svolvær 21:20-22:15
A3: Værstasjon brukt | E3: Ålesund | G3: Vestnes | O3: Fauske | P3: Leknes
A5: Havn | B5: Stokmarknes 01:30-01:40 | C5: Sortland 02:55-03:10 | D5: Risøyhamn 04:35-04:50 | E5: Harstad 07:10 - 07:45 | F5: Finnsnes 11:00-11:30 | G5: Tromsø 14:15-18:15 | H5: Skjervøy 22:10-22:25 | I5: Øksfjord 01:50-02:00 | J5: Hammerfest 05:05- 05:45 | K5: Havøysund 08:30 - 08:45 | L5: Honningsvåg 10:55- 14:30 | M5: Kjøllefjord 16:40-17:00 | N5: Mehamn 18:55-19:15 | O5: Berlevåg 22:00-22:10 | P5: Båtsfjord 00:00-00:30 | Q5: Vardø 03:30-03:45 | R5: Vadsø 06:55-07:10 | S5: Kirkenes 09:00-12:30 | U5: Geiranger | V5: Hjørundfjorden
A6: Værstasjon brukt | D6: Bjarkøy | F6: tromsø | O6: båtsfjord | R6: vardø | S6: vardø | U6: Stordal | V6: Sykkylven
A10: Havn | B10: Jan | C10: Feb | D10: Mars | E10: April | F10: Mai | G10: Juni | H10: Juli | I10: Aug | J10: Sept | K10: Okt | L10: Nov | M10: Des
A11: Bergen | B11: 6.3 | C11: 5.6 | D11: 4.9 | E11: 6.2 | F11: 8.8 | G11: 12.1 | H11: 14.4 | I11: 15.4 | J11: 14.3 | K11: 11.9 | L11: 10.1 | M11: 8.1
A12: Florø | B12: 6.5 | C12: 5.9 | D12: 5.1 | E12: 6 | F12: 8.2 | G12: 11.6 | H12: 13.7 | I12: 14.4 | J12: 13.8 | K12: 11.7 | L12: 10.1 | M12: 8.1
A13: Måløy | B13: 6.5 | C13: 5.9 | D13: 5.1 | E13: 6 | F13: 8.2 | G13: 11.6 | H13: 13.7 | I13: 14.4 | J13: 13.8 | K13: 11.7 | L13: 10.1 | M13: 8
A14: Torvik | B14: 6.8 | C14: 6.1 | D14: 5.3 | E14: 6.1 | F14: 8.1 | G14: 11.5 | H14: 13.6 | I14: 14.1 | J14: 13.5 | K14: 11.4 | L14: 9.9 | M14: 7.9
A15: Ålesund | B15: 6.8 | C15: 6.1 | D15: 5.3 | E15: 6.1 | F15: 8.1 | G15: 11.5 | H15: 13.6 | I15: 14.1 | J15: 13.5 | K15: 11.4 | L15: 9.9 | M15: 7.9
A16: Molde | B16: 6.9 | C16: 6.3 | D16: 5.6 | E16: 6.3 | F16: 8.4 | G16: 11.6 | H16: 13.7 | I16: 14.2 | J16: 13.3 | K16: 11.2 | L16: 9.7 | M16: 8
A17: Kristiansund | B17: 7 | C17: 6.5 | D17: 5.8 | E17: 6.5 | F17: 8.4 | G17: 11.5 | H17: 13.6 | I17: 14 | J17: 13.1 | K17: 10.9 | L17: 9.6 | M17: 8
A18: Trondheim | B18: 6 | C18: 5.4 | D18: 4.9 | E18: 6 | F18: 8.6 | G18: 12.1 | H18: 14.3 | I18: 14.5 | J18: 13.2 | K18: 10.8 | L18: 8.9 | M18: 7.3
A19: Rørvik | B19: 5.8 | C19: 5.1 | D19: 4.6 | E19: 5.4 | F19: 7.9 | G19: 11.6 | H19: 13.8 | I19: 13.7 | J19: 12.6 | K19: 10.7 | L19: 8.8 | M19: 7.2
A20: Brønnøysund | B20: 5.2 | C20: 4.7 | D20: 4.3 | E20: 5.2 | F20: 7.7 | G20: 11.6 | H20: 13.8 | I20: 13.4 | J20: 12.2 | K20: 10.6 | L20: 8.6 | M20: 6.9
A21: Sandnessjøen | B21: 5.2 | C21: 4.7 | D21: 4.3 | E21: 5.2 | F21: 7.7 | G21: 11.6 | H21: 13.8 | I21: 13.4 | J21: 12.2 | K21: 10.6 | L21: 8.6 | M21: 6.9
A22: Nesna | B22: 5.2 | C22: 4.7 | D22: 4.3 | E22: 5.2 | F22: 7.5 | G22: 11.7 | H22: 13.7 | I22: 13.3 | J22: 11.8 | K22: 10.2 | L22: 8.6 | M22: 6.9
A23: Ørnes | B23: 4.8 | C23: 4.1 | D23: 3.7 | E23: 4.6 | F23: 7.1 | G23: 11.4 | H23: 13.7 | I23: 13.3 | J23: 11.6 | K23: 9.9 | L23: 8.4 | M23: 6.6
A24: Bodø | B24: 4.4 | C24: 3.7 | D24: 3.3 | E24: 4.1 | F24: 6.6 | G24: 10.7 | H24: 13.2 | I24: 13.1 | J24: 11.2 | K24: 9.2 | L24: 7.8 | M24: 6.2
A25: Stamsund | B25: 5.6 | C25: 5.2 | D25: 4.9 | E25: 5.4 | F25: 6.9 | G25: 10.1 | H25: 12.2 | I25: 12.2 | J25: 10.7 | K25: 8.9 | L25: 8.1 | M25: 6.8
A26: Svolvær | B26: 5.6 | C26: 5.2 | D26: 5 | E26: 5.5 | F26: 6.9 | G26: 10.1 | H26: 12.2 | I26: 12.2 | J26: 10.7 | K26: 8.8 | L26: 7.9 | M26: 6.8
A27: Stokmarknes | B27: 5.6 | C27: 5.2 | D27: 5 | E27: 5.5 | F27: 6.9 | G27: 10.1 | H27: 12.2 | I27: 12.2 | J27: 10.7 | K27: 8.8 | L27: 7.9 | M27: 6.8
A28: Sortland | B28: 5.2 | C28: 4.8 | D28: 4.4 | E28: 5 | F28: 6.7 | G28: 9.8 | H28: 12.1 | I28: 12.2 | J28: 10.7 | K28: 8.7 | L28: 7.8 | M28: 6.6
A29: Risøyhamn | B29: 4.8 | C29: 4.3 | D29: 3.8 | E29: 4.4 | F29: 6.3 | G29: 9.6 | H29: 11.9 | I29: 12.2 | J29: 10.6 | K29: 8.6 | L29: 7.7 | M29: 6.4
A30: Harstad | B30: 4.8 | C30: 4.3 | D30: 3.8 | E30: 4.4 | F30: 6.3 | G30: 9.6 | H30: 11.9 | I30: 12.2 | J30: 10.6 | K30: 8.6 | L30: 7.7 | M30: 6.4
A31: Finnsnes | B31: 5.2 | C31: 4.6 | D31: 4.1 | E31: 4.6 | F31: 6.1 | G31: 8.8 | H31: 10.8 | I31: 11.3 | J31: 10.1 | K31: 8.3 | L31: 7.5 | M31: 6.4
A32: Tromsø | B32: 5.2 | C32: 4.6 | D32: 4.1 | E32: 4.6 | F32: 6.1 | G32: 8.8 | H32: 10.8 | I32: 11.3 | J32: 10.1 | K32: 8.3 | L32: 7.5 | M32: 6.4
A33: Skjervøy | B33: 4.7 | C33: 4.2 | D33: 4.1 | E33: 4.6 | F33: 6.1 | G33: 9 | H33: 10.9 | I33: 11.2 | J33: 9.8 | K33: 7.9 | L33: 7 | M33: 6.1
A34: Øksfjord | B34: 5 | C34: 4.7 | D34: 4.9 | E34: 5.1 | F34: 5.8 | G34: 8.3 | H34: 10.3 | I34: 10.6 | J34: 9.3 | K34: 7.6 | L34: 6.6 | M34: 6
A35: Hammerfest | B35: 4.9 | C35: 4.7 | D35: 4.7 | E35: 4.9 | F35: 5.7 | G35: 8.2 | H35: 10.2 | I35: 10.5 | J35: 9.3 | K35: 7.7 | L35: 6.6 | M35: 5.9
A36: Havøysund | B36: 4.8 | C36: 4.6 | D36: 4.6 | E36: 4.8 | F36: 5.6 | G36: 7.8 | H36: 10 | I36: 10.4 | J36: 9.3 | K36: 7.8 | L36: 6.6 | M36: 5.9
A37: Honningsvåg | B37: 4.6 | C37: 4.5 | D37: 4.4 | E37: 4.6 | F37: 5.4 | G37: 7.6 | H37: 9.8 | I37: 10.2 | J37: 9.2 | K37: 7.7 | L37: 6.4 | M37: 5.8
A38: Kjøllefjord | B38: 4.3 | C38: 4.2 | D38: 4.1 | E38: 4.3 | F38: 5.3 | G38: 7.4 | H38: 9.7 | I38: 9.9 | J38: 9 | K38: 7.5 | L38: 6.2 | M38: 5.7
A39: Mehamn | B39: 4.3 | C39: 4.2 | D39: 4.1 | E39: 4.3 | F39: 5.3 | G39: 7.4 | H39: 9.7 | I39: 9.9 | J39: 9 | K39: 7.5 | L39: 6.2 | M39: 5.7
A40: Berlevåg | B40: 4.2 | C40: 3.9 | D40: 3.7 | E40: 4 | F40: 5 | G40: 7.1 | H40: 9.5 | I40: 9.6 | J40: 8.8 | K40: 7.5 | L40: 6.1 | M40: 5.4
A41: Båtsfjord | B41: 4.2 | C41: 3.9 | D41: 3.7 | E41: 4 | F41: 5 | G41: 7.1 | H41: 9.5 | I41: 9.6 | J41: 8.8 | K41: 7.5 | L41: 6.1 | M41: 5.4
A42: Vardø | B42: 4.1 | C42: 3.8 | D42: 3.6 | E42: 3.7 | F42: 4.8 | G42: 7.1 | H42: 9.6 | I42: 9.5 | J42: 8.6 | K42: 7.4 | L42: 5.9 | M42: 5.3
A43: Vadsø | B43: 4.1 | C43: 3.8 | D43: 3.6 | E43: 3.7 | F43: 4.8 | G43: 7.1 | H43: 9.6 | I43: 9.5 | J43: 8.6 | K43: 7.4 | L43: 5.9 | M43: 5.3
A44: Kirkenes | B44: 4.1 | C44: 3.8 | D44: 3.6 | E44: 3.7 | F44: 4.8 | G44: 7.1 | H44: 9.6 | I44: 9.5 | J44: 8.6 | K44: 7.4 | L44: 5.9 | M44: 5.3
A49: Geiranger | G49: 11.6 | H49: 13.6 | I49: 14.1
A50: Hjørundfjorden | J50: 13.4 | K50: 11.3
A52: Størst sjøvannstemperatur Juli: | D52: =MAXA(H11:H44) -> 14.4

Sheet Modell v datablad
A2: Inngående temperatur | B2: COP | E2: Last [%] | F2: COP modell | G2: Q modell [kW] | H2: W modell [kW] | I2: COP data | J2: Qc data [kW] | K2: W data [kW]
A3: 0 | B3: 3.72 | E3: 100 | F3: 4.44 | G3: 545 | H3: 122.66 | I3: 4.5 | J3: 545 | K3: 122.1
A4: 1 | B4: 3.86 | E4: 90 | F4: 4.52 | G4: 490.5 | H4: 108.63 | I4: 4.6 | J4: 487 | K4: 105.3
A5: 2 | B5: 4.01 | E5: 80 | F5: 4.59 | G5: 436 | H5: 95.04 | I5: 4.7 | J5: 430 | K5: 90.86
A6: 3 | B6: 4.16 | E6: 70 | F6: 4.66 | G6: 381.5 | H6: 81.86 | I6: 4.8 | J6: 375 | K6: 77.66
A7: 4 | B7: 4.3 | E7: 60 | F7: 4.73 | G7: 327 | H7: 69.07 | I7: 4.9 | J7: 319 | K7: 65.41
A8: 5 | B8: 4.44 | E8: 50 | F8: 4.81 | G8: 272.5 | H8: 56.67 | I8: 4.9 | J8: 267 | K8: 54.54
A9: 6 | B9: 4.59 | E9: 40 | F9: 4.88 | G9: 218 | H9: 44.64 | I9: 5 | J9: 212 | K9: 42.36
A10: 7 | B10: 4.73 | E10: 30 | F10: 4.96 | G10: 163.5 | H10: 32.96 | I10: 4.8 | J10: 160 | K10: 33.34
A11: 8 | B11: 4.88 | E11: 20 | F11: 5.04 | G11: 109 | H11: 21.63 | I11: 4.3 | J11: 111 | K11: 25.54
A12: 9 | B12: 5.04 | E12: 10 | F12: 5.12 | G12: 54.5 | H12: 10.65 | I12: -
A13: 10 | B13: 5.2 | I13: - | M13: modell | N13: datablad
A14: 11 | B14: 5.38
A15: 12 | B15: 5.57
A16: 13 | B16: 5.78
A17: 14 | B17: 6.02
A18: 15 | B18: 6.3
A19: 16 | B19: 6.62
A20: 17 | B20: 7.01
A21: 18 | B21: 7.48
A22: 19 | B22: 8.06
A23: 20 | B23: 8.8

Sheet COP
C2: Last [%] ->
B3: Inngåande temperatur [℃] | C3: 100 | D3: 90 | E3: 80 | F3: 70 | G3: 60 | H3: 50 | I3: 40 | J3: 30 | K3: 20
B4: 0 | C4: 3.72 | D4: 3.79 | E4: 3.86 | F4: 3.94 | G4: 4.01 | H4: 4.08 | I4: 4.16 | J4: 4.23 | K4: 4.3
B5: 1 | C5: 3.86 | D5: 3.94 | E5: 4.01 | F5: 4.08 | G5: 4.16 | H5: 4.23 | I5: 4.3 | J5: 4.37 | K5: 4.44
B6: 2 | C6: 4.01 | D6: 4.08 | E6: 4.16 | F6: 4.23 | G6: 4.3 | H6: 4.37 | I6: 4.44 | J6: 4.52 | K6: 4.59
B7: 3 | C7: 4.16 | D7: 4.23 | E7: 4.3 | F7: 4.37 | G7: 4.44 | H7: 4.52 | I7: 4.59 | J7: 4.66 | K7: 4.73
B8: 4 | C8: 4.3 | D8: 4.37 | E8: 4.44 | F8: 4.52 | G8: 4.59 | H8: 4.66 | I8: 4.73 | J8: 4.81 | K8: 4.88
B9: 5 | C9: 4.44 | D9: 4.52 | E9: 4.59 | F9: 4.66 | G9: 4.73 | H9: 4.81 | I9: 4.88 | J9: 4.96 | K9: 5.04
B10: 6 | C10: 4.59 | D10: 4.66 | E10: 4.73 | F10: 4.81 | G10: 4.88 | H10: 4.96 | I10: 5.04 | J10: 5.12 | K10: 5.2
B11: 7 | C11: 4.73 | D11: 4.81 | E11: 4.88 | F11: 4.96 | G11: 5.04 | H11: 5.12 | I11: 5.2 | J11: 5.29 | K11: 5.38
B12: 8 | C12: 4.88 | D12: 4.96 | E12: 5.04 | F12: 5.12 | G12: 5.2 | H12: 5.29 | I12: 5.38 | J12: 5.47 | K12: 5.57
B13: 9 | C13: 5.04 | D13: 5.12 | E13: 5.2 | F13: 5.29 | G13: 5.38 | H13: 5.47 | I13: 5.57 | J13: 5.67 | K13: 5.78
B14: 10 | C14: 5.2 | D14: 5.29 | E14: 5.38 | F14: 5.47 | G14: 5.47 | H14: 5.67 | I14: 5.78 | J14: 5.9 | K14: 6.02
B15: 11 | C15: 5.38 | D15: 5.47 | E15: 5.57 | F15: 5.67 | G15: 5.78 | H15: 5.9 | I15: 6.02 | J15: 6.15 | K15: 6.3
B16: 12 | C16: 5.57 | D16: 5.67 | E16: 5.78 | F16: 5.9 | G16: 6.02 | H16: 6.15 | I16: 6.3 | J16: 6.45 | K16: 6.62
B17: 13 | C17: 5.78 | D17: 5.9 | E17: 6.02 | F17: 6.15 | G17: 6.3 | H17: 6.45 | I17: 6.62 | J17: 6.71 | K17: 7.01
B18: 14 | C18: 6.02 | D18: 6.15 | E18: 6.3 | F18: 6.45 | G18: 6.62 | H18: 6.71 | I18: 7.01 | J18: 7.23 | K18: 7.48
B19: 15 | C19: 6.3 | D19: 6.45 | E19: 6.62 | F19: 6.81 | G19: 7.01 | H19: 7.23 | I19: 7.48 | J19: 7.75 | K19: 8.06
B20: 16 | C20: 6.62 | D20: 6.81 | E20: 7.01 | F20: 7.23 | G20: 7.48 | H20: 7.75 | I20: 8.06 | J20: 8.41 | K20: 8.8
B21: 17 | C21: 7.01 | D21: 7.23 | E21: 7.48 | F21: 7.75 | G21: 8.06 | H21: 8.41 | I21: 8.8 | J21: 9.25 | K21: 9.77
B22: 18 | C22: 7.48 | D22: 7.75 | E22: 8.06 | F22: 8.41 | G22: 8.8 | H22: 9.25 | I22: 9.77 | J22: 10.37 | K22: 11.08
B23: 19 | C23: 8.06 | D23: 8.41 | E23: 8.8 | F23: 9.25 | G23: 9.77 | H23: 10.37 | I23: 11.08 | J23: 11.92 | K23: 12.94
B24: 20 | C24: 8.8 | D24: 9.25 | E24: 9.77 | F24: 10.37 | G24: 11.08 | H24: 11.92 | I24: 12.94 | J24: 14.19 | K24: 15.76

Sheet HP
B1: Heat pump
C3: Refrigerant | D3: =[2]Inputandresults!D17 -> R134a | F3: M | G3: =MolWeigth(D3) -> 102.03
F4: R | G4: =8.314/G3 -> 0.0814858375
C5: T,in FW | D5: 32 | E5: C | F5: k | G5: =IsentropicExp(D3) -> 1.151 | H5: Subcooling | I5: 4 | J5: K
C6: T,out FW | D6: 40 | E6: C | H6: Superheat | I6: 3 | J6: K
C7: Delta T, cond | D7: 3 | E7: K | H7: Isentropic efficiency | I7: 0.8
C8: T,in CW | D8: 5 | E8: C | H8: Load | I8: 0.2
C9: T,out CW | D9: =D8-5*I8 -> 4 | E9: C | H9: COP | I9: =D37 -> 5.038870223
C10: Delta T, evap | D10: 3 | E10: K
C11: T,cond | D11: =D6+D7 -> 43 | E11: C
C12: T,evap | D12: =D9-D10 -> 1 | E12: C
C14: Qe | D14: =422.9*I8 -> 84.58 | E14: kW
C16: Qc | D16: =545*I8 -> 109 | E16: kW
C20: 1 | F20: 2s | I20: 2 | L20: 3 | O20: 4
C21: T | D21: =D12 -> 1 | F21: T | I21: T | L21: T | M21: =D11 -> 43 | O21: T | P21: =D12 -> 1
C22: p | D22: =SatPressure(D21,D3) -> 302.7667 | F22: p | G22: =SatPressure(D11,D3) -> 1103.2363 | I22: p | J22: =SatPressure(D11,D3) -> 1103.2363 | L22: p | M22: =J22 -> 1103.2363 | O22: p | P22: =D22 -> 302.7667
C23: h | D23: =SatEnthalpy(D21,D3,D25) -> 250.121 | F23: h | I23: h | L23: h | M23: =SatEnthalpy(M21,D3,M25) -> 112.381 | O23: h | P23: =M23 -> 112.381
C24: s | D24: =Entropy(D21,D3,D25) -> 0.93090693 | F24: s | G24: =D24 -> 0.93090693 | I24: s | L24: s | M24: =Entropy(M21,D3,M25) -> 0.4124 | O24: s | P24: =Entropy(P21,D3,P25) -> 0.4215535056
C25: x | D25: 1 | F25: x | G25: 1 | I25: x | J25: 1 | L25: x | M25: 0 | O25: x | P25: =(P23-SatEnthalpy(P21,D3,0))/(SatEnthalpy(P21,D3,1)-SatEnthalpy(P21,D3,0)) -> 0.296771295
C26: v | D26: =SatSpecVolGas(D21,D3) -> 0.06605401
C27: Z | D27: =D22*D26/(G4*(273.15+D21)) -> 0.8952347082
C29: Compression ratio | D29: =J22/D22 -> 3.643849538
C30: Massflow | D30: =D14/(D23-P23) -> 0.6140554668 | E30: kg/s
C32: W_is | D32: =D27*D30*G4*G5/(G5-1)*(273.15+D21) * (D29^((G5-1)/G5) - 1) -> 17.30546653
C34: W_actual | D34: =D32/I7 -> 21.63183316
C36: COP, chiller | D36: =D14/D34 -> 3.909978381
C37: COP, HP | D37: =D16/D34 -> 5.038870223
AF50: Small | AG50: R134a
AF51: Medium | AG51: R410a
AF52: Large
B54: Chilled water side
C57: Qe | D57: =D14 -> 84.58 | E57: kW
C59: T_in | D59: =D8 -> 5 | E59: C
C60: T_out | D60: =D9 -> 4 | E60: C
C62: Cp_water | D62: 4.2 | E62: kJ/kgK
C63: Density water | D63: 1000 | E63: kg/m3
C68: Massflow | D68: =D57/(D62*(D59-D60)) -> 20.13809524 | E68: kg/s
C69: Volumeflow | D69: =D68/D63 -> 0.02013809524 | E69: m3/s | F69: =D69*3600 -> 72.49714286
C71: Pressure | D71: 350 | E71: kPa
C72: Pump eff | D72: 0.6
C74: W_p | D74: =D71*D69/D72 -> 11.74722222 | E74: kW
B81: Fresh/sea - water side
C84: Qc | D84: =D16 -> 109
C86: T_in | D86: =D5 -> 32
C87: T_out | D87: =D6 -> 40
C89: Cp_water | D89: 4.2 | E89: kJ/kgK
C90: Density water | D90: 1000 | E90: kg/m3
C94: Massflow | D94: =D84/(D89*(D87-D86)) -> 3.244047619 | E94: kg/s
C95: Volumeflow | D95: =D94/D90 -> 0.003244047619 | E95: m3/s | F95: =D95*3600 -> 11.67857143
C97: Pressure | D97: 250 | E97: kPa
C98: Pump eff | D98: 0.6
C100: W_p | D100: =D95*D97/D98 -> 1.351686508 | E100: kW
C109: Total COP
C110: =D14/(D34+D74+D100) -> 2.435306457

Sheet Værdata Januar
A1: Bergen 14:45-20:00 | B1: Florø 02:45-03:00 | C1: Måløy 05:15-05:30 | D1: Torvik 08:20-08:30 | E1: Ålesund 09:45-20:00 | F1: Molde 22:35-23:05 | G1: Kristiansund 02:45-03:00 | H1: Trondheim 09:45-12:45 | I1: Rørvik 21:40-22:00 | J1: Brønnøysund 01:35-01:45 | K1: Sandnessjøen 04:35-04:50 | L1: Nesna 06:00-06:10 | M1: Ørnes 10:00-10:10 | N1: Bodø 13:05-15:20 | O1: Stamsund 19:15-19:40 | P1: Svolvær 21:20-22:15 | Q1: Stokmarknes 01:30-01:40 | R1: Sortland 02:55-03:10 | S1: Risøyhamn 04:35-04:50 | T1: Harstad 07:10 - 07:45 | U1: Finnsnes 11:00-11:30 | V1: Tromsø 14:15-18:15 | W1: Skjervøy 22:10-22:25 | X1: Øksfjord 01:50-02:00 | Y1: Hammerfest 05:05- 05:45 | Z1: Havøysund 08:30 - 08:45 | AA1: Honningsvåg 10:55- 14:30 | AB1: Kjøllefjord 16:40-17:00 | AC1: Mehamn 18:55-19:15 | AD1: Berlevåg 22:00-22:10 | AE1: Båtsfjord 00:00-00:30 | AF1: Vardø 03:30-03:45 | AG1: Vadsø 06:55-07:10 | AH1: Kirkenes 09:00-12:30
A2: Florida 14:00 - 20:00 | B2: Florida 03:00 | C2: Svinøy Fyr 05:00 | D2: Vigra 08:00 | E2: Vigra 09:00-20:00 | F2: Ona 23:00 | G2: Ona 03:00 | H2: Værnes 10:00-13:00 | I2: Ørland 22:00 | J2: Bodø 02:00 | K2: Bodø 05:00 | L2: Bodø 06:00 | M2: Bodø 10:00 | N2: 13:00-16:00 | O2: Skrova 19:00 | P2: Skrova 22:00 | Q2: Sortland 02:00 | R2: Sortland 03:00 | S2: Andøya 05:00 | T2: Andøya 07:00 | U2: Tromsø 11:00 | V2: Tromsø 14:00 - 18:00 | W2: Tromsø 22:00 | X2: Torsvåg 02:00 | Y2: Fruholmen 05:00 | Z2: Fruholmen 09:00 | AA2: Fruholmen 11-14 | AB2: Slettnes 17:00 | AC2: Slettnes 19:00 | AD2: Slettnes 22:00 | AE2: Vardø 00:00 | AF2: Vardø 04:00 | AG2: Kirkenes 07:00 | AH2: Kirkenes 09:00-12:00
A3: -2.2 | B3: -0.4 | C3: 1.6 | D3: 0.5 | E3: 0.5 | F3: 2 | G3: 2.9 | H3: -2.5 | I3: 3.2 | J3: 2 | K3: 3 | L3: 3.2 | M3: 4.4 | N3: 3.9 | O3: 2.6 | P3: 2.2 | Q3: 3.7 | R3: 3.4 | S3: 0.9 | T3: 1.8 | U3: -3.3 | V3: -5 | W3: -5.8 | X3: -1.1 | Y3: 1.1 | Z3: 0.3 | AA3: -0.8 | AB3: -3.3 | AC3: -2.2 | AD3: -2.2 | AE3: -2.5 | AF3: -8.3 | AG3: -16.1 | AH3: -16
A4: -2.3 | B4: 0.1 | C4: 2.3 | D4: 1 | E4: 0.7 | F4: 0.7 | G4: 1.7 | H4: 1 | I4: 4.7 | J4: 2 | K4: 2 | L4: 2.4 | M4: 2 | N4: 4 | O4: 0.2 | P4: -0.6 | Q4: -0.7 | R4: -0.5 | S4: 2 | T4: 2.1 | U4: -11.1 | V4: -5.3 | W4: -6.6 | X4: -4.7 | Y4: 0.1 | Z4: 0.8 | AA4: -1.3 | AB4: 1.9 | AC4: 3.5 | AD4: 2.2 | AE4: -3.2 | AF4: -1.9 | AG4: -6.2 | AH4: -16
A5: -2 | B5: 4.7 | C5: 0.2 | D5: -1 | E5: 1 | F5: 3.2 | G5: 0.8 | H5: 1.9 | I5: 4.9 | J5: 2 | K5: 1 | L5: 0.9 | M5: 0.7 | N5: 3.8 | O5: 1 | P5: 0.4 | Q5: -4.5 | R5: -4.8 | S5: 0.8 | T5: 0 | U5: -3.3 | V5: -5.3 | W5: -0.8 | X5: -2.2 | Y5: -1.3 | Z5: -2 | AA5: -1.5 | AB5: -0.4 | AC5: -1.2 | AD5: -0.8 | AE5: 2.1 | AF5: -1.7 | AG5: -0.6 | AH5: -15.2
A6: -2.7 | B6: 4.2 | C6: 2.6 | D6: 3 | E6: 1.1 | F6: 3.1 | G6: 3.4 | H6: 2.1 | I6: 2.8 | J6: 1 | K6: 1 | L6: 1 | M6: 0.8 | N6: 3.6 | O6: 2.4 | P6: 2 | Q6: -0.3 | R6: -0.3 | S6: -5 | T6: -5 | U6: -0.4 | V6: -5.1 | W6: 3.6 | X6: -2.1 | Y6: -2.8 | Z6: -3.2 | AA6: -1.3 | AB6: -1.1 | AC6: -1.4 | AD6: -1.2 | AE6: 1.9 | AF6: 2.2 | AG6: -2.6 | AH6: -16
A7: -2.4 | B7: 3.2 | C7: 2.7 | D7: 1.2 | E7: 1.1 | F7: 2.5 | G7: 2.9 | H7: -15.2 | I7: -3 | J7: 1.9 | K7: 2 | L7: 1.7 | M7: 0.2 | N7: 2.4 | O7: 4.6 | P7: 4.4 | Q7: 1.7 | R7: 2.1 | S7: 0 | T7: -0.2 | U7: 3 | V7: -4.9 | W7: 4.9 | X7: 4.8 | Y7: -3.4 | Z7: -3 | AA7: 0.9 | AB7: 0.8 | AC7: -0.2 | AD7: -1.8 | AE7: -2.9 | AF7: 0.8 | AG7: -0.3 | AH7: -9
A8: -1.3 | B8: -2.8 | C8: 2.4 | D8: 0.9 | E8: 1 | F8: 3.1 | G8: 2.6 | H8: -14.3 | I8: -3.2 | J8: -0.2 | K8: -1.7 | L8: -0.3 | M8: 0 | N8: 2 | O8: 4.6 | P8: 5 | Q8: 4.6 | R8: 4.4 | S8: -2 | T8: -3.8 | U8: 3.2 | V8: -7.6 | W8: 4.1 | X8: 4.6 | Y8: 0.6 | Z8: 0.8 | AA8: 0.6 | AB8: -4.7 | AC8: -5.6 | AD8: -6.5 | AE8: -7.7 | AF8: -5.2 | AG8: -17 | AH8: -8.6
A9: -0.3 | B9: -2.5 | C9: 2.9 | D9: 3 | E9: 0.8 | F9: 3.3 | G9: 3.3 | H9: -15.7 | I9: 1.3 | J9: 2 | K9: 1.8 | L9: 1.3 | M9: 0.9 | N9: 2 | O9: 4.6 | P9: 4.8 | Q9: 5.3 | R9: 5.1 | S9: -0.2 | T9: -1 | U9: 4 | V9: -7.2 | W9: 3.2 | X9: 3 | Y9: 0 | Z9: 0 | AA9: 0.2 | AB9: -6.8 | AC9: -6.8 | AD9: -6 | AE9: -1.6 | AF9: -8.3 | AG9: -14.8 | AH9: -9.5
A10: 3.3 | B10: -2.9 | C10: 3.3 | D10: 2 | E10: 0.6 | F10: 1.1 | G10: 3.3 | H10: -14.6 | I10: -0.3 | J10: 1 | K10: 0.2 | L10: 0 | M10: -0.1 | N10: 2.1 | O10: 2.6 | P10: 3.2 | Q10: 4.4 | R10: 4.1 | S10: 0 | T10: -0.5 | U10: 2.8 | V10: -7 | W10: 1.9 | X10: 2.9 | Y10: -0.6 | Z10: -0.9 | AA10: -0.2 | AB10: -11.4 | AC10: -11 | AD10: -9 | AE10: -0.2 | AF10: -1.7 | AG10: -2.7 | AH10: -7.2
A11: 3 | B11: -1.3 | C11: 0.4 | D11: -0.8 | E11: 1 | F11: -0.7 | G11: 0.9 | H11: -9.1 | I11: 3.1 | J11: -1 | K11: -1 | L11: -0.7 | M11: -0.3 | N11: 0.6 | O11: 1.8 | P11: 2.2 | Q11: 3.7 | R11: 3.8 | S11: -1.2 | T11: -1.1 | U11: 1.3 | V11: -6.6 | W11: 1.1 | X11: 3.2 | Y11: -1.7 | Z11: -2.1 | AA11: -2.6 | AB11: -5.5 | AC11: -5.2 | AD11: -5.6 | AE11: 1.7 | AF11: 0.1 | AG11: -1.7 | AH11: 0.2
A12: 2.5 | B12: 4.4 | C12: -0.1 | D12: -1 | E12: 0.9 | F12: -2.4 | G12: -1.3 | H12: -10.8 | I12: 6 | J12: 0 | K12: 0.7 | L12: 0.9 | M12: -2.2 | N12: 1 | O12: -0.7 | P12: -1.4 | Q12: 2 | R12: 2 | S12: -1.2 | T12: -0.6 | U12: -1 | V12: -6.2 | W12: -4 | X12: 2 | Y12: -3.4 | Z12: -2.9 | AA12: -2.9 | AB12: -0.7 | AC12: -1 | AD12: -2.1 | AE12: 2.6 | AF12: 2.8 | AG12: 1.1 | AH12: 1.1
A13: 1.9 | B13: 8.7 | C13: -0.4 | D13: -3 | E13: 0.7 | F13: -0.2 | G13: -2.6 | H13: -10 | I13: 4.6 | J13: 3.8 | K13: 4 | L13: 2.9 | M13: 2.3 | N13: 0.6 | O13: -3.6 | P13: -3.2 | Q13: -0.3 | R13: -0.7 | S13: -2.8 | T13: -0.9 | U13: -2.7 | V13: -3 | W13: -2.9 | X13: 0.1 | Y13: -7.4 | Z13: -7.2 | AA13: -3.1 | AB13: -6.8 | AC13: -6.5 | AD13: -5 | AE13: 0.8 | AF13: 1.6 | AG13: 0 | AH13: 0
A14: 1.8 | B14: 6.5 | C14: 0.7 | D14: 3.2 | E14: 1 | F14: 7 | G14: -0.1 | H14: -9.8 | I14: 5.9 | J14: -1 | K14: -1 | L14: -1.3 | M14: 1.1 | N14: 0.3 | O14: -2.2 | P14: -3.2 | Q14: -3.8 | R14: -4.1 | S14: -1 | T14: -1.6 | U14: -6.2 | V14: -2.4 | W14: -2.9 | X14: -2.7 | Y14: -1.5 | Z14: -1.7 | AA14: -3.3 | AB14: -8.6 | AC14: -8.6 | AD14: -8 | AE14: 0 | AF14: 1.2 | AG14: 0.1 | AH14: -0.2
A15: 1.6 | B15: 6.3 | C15: 5.9 | D15: 7 | E15: 1.3 | F15: 6.4 | G15: 6.4 | H15: -1.4 | I15: 3.8 | J15: 0 | K15: 0 | L15: 0.3 | M15: 0.6 | N15: 0.3 | O15: -0.8 | P15: -2 | Q15: -2.4 | R15: -2.2 | S15: -4.8 | T15: -4.6 | U15: 0.9 | V15: -2.4 | W15: 0.7 | X15: -0.3 | Y15: -5.6 | Z15: -6.1 | AA15: -3.5 | AB15: -3.5 | AC15: -3.7 | AD15: -4 | AE15: -0.4 | AF15: -0.4 | AG15: -6.8 | AH15: -3
A16: 3 | B16: 5.7 | C16: 5.8 | D16: 7 | E16: 1.5 | F16: 6.9 | G16: 6.2 | H16: -1 | I16: 4.2 | J16: 2 | K16: 3 | L16: 3.3 | M16: 4.1 | N16: 1 | O16: 0.8 | P16: 3.8 | Q16: -1.2 | R16: -0.8 | S16: -1 | T16: 0.1 | U16: 3 | V16: -2 | W16: -0.6 | X16: 5.2 | Y16: -5.7 | Z16: -5.9 | AA16: -3.6 | AB16: -5.8 | AC16: -7.4 | AD16: -7.5 | AE16: 0.3 | AF16: -0.1 | AG16: -4.9 | AH16: -3.4
A17: 3.8 | B17: 6.4 | C17: 6.8 | D17: 8.3 | E17: 1.8 | F17: 5.2 | G17: 6.6 | H17: -1 | I17: 4 | J17: 1 | K17: 1.9 | L17: 2 | M17: 3 | N17: 1.1 | O17: 2.4 | P17: 1.2 | Q17: 5.3 | R17: 5.1 | S17: 2 | T17: 2 | U17: -2 | V17: -2.8 | W17: -1.3 | X17: -0.7 | Y17: 1 | Z17: 0.8 | AA17: -3.6 | AB17: -10.7 | AC17: -11.6 | AD17: -11 | AE17: -2.7 | AF17: -1.3 | AG17: -6 | AH17: -3
A18: 3.7 | B18: 5.9 | C18: 6.1 | D18: 5.8 | E18: 1.5 | F18: 5.8 | G18: 5.8 | H18: -0.6 | I18: 4.7 | J18: 3 | K18: 2.7 | L18: 2.2 | M18: 1.5 | N18: 1.1 | O18: -2 | P18: -1.8 | Q18: 0.2 | R18: 0.2 | S18: 1 | T18: 0.6 | U18: -3.1 | V18: 3 | W18: 2.5 | X18: 0.5 | Y18: -0.7 | Z18: 0.1 | AA18: -3.7 | AB18: -4.2 | AC18: -4 | AD18: -4.9 | AE18: -3.6 | AF18: -4.6 | AG18: -11.8 | AH18: -3
A19: 3.6 | B19: 5.2 | C19: 6.4 | D19: 6 | E19: 1 | F19: 4.9 | G19: 5.3 | H19: -3.5 | I19: -0.4 | J19: 1 | K19: 2 | L19: 1.9 | M19: 1.4 | N19: 0.5 | O19: -3.8 | P19: -3.8 | Q19: -1.4 | R19: -1.6 | S19: 1 | T19: 0.5 | U19: 4 | V19: 3.2 | W19: 3.4 | X19: 4.8 | Y19: 1.7 | Z19: 2.4 | AA19: -2.7 | AB19: -1.5 | AC19: 0.4 | AD19: 0.4 | AE19: -1.3 | AF19: -4 | AG19: -17.7 | AH19: -0.2
A20: 3.9 | B20: 1.5 | C20: 6.4 | D20: 4.2 | E20: 0.8 | F20: 5.9 | G20: 5.1 | H20: -3.8 | I20: -4.4 | J20: -1 | K20: -2 | L20: -2.2 | M20: -1 | N20: 0 | O20: -0.5 | P20: -0.2 | Q20: -6.4 | R20: -7.3 | S20: -2.1 | T20: -3.1 | U20: 1.2 | V20: 3.2 | W20: 5.7 | X20: 4.1 | Y20: 0.6 | Z20: -2 | AA20: -2.5 | AB20: -1.9 | AC20: -2.2 | AD20: -2.7 | AE20: -8 | AF20: -3 | AG20: -5.3 | AH20: -0.4
A21: 4.1 | B21: 0.3 | C21: 4 | D21: 3 | E21: 0.3 | F21: 4.4 | G21: 5.3 | H21: -3.2 | I21: -5.8 | J21: -4 | K21: -5.8 | L21: -5.2 | M21: -5.2 | N21: 0.2 | O21: 2.4 | P21: 2.6 | Q21: 0.1 | R21: 0.4 | S21: -3.1 | T21: -4.6 | U21: 4.8 | V21: 3.2 | W21: 3.2 | X21: 6.6 | Y21: -5.7 | Z21: -5.9 | AA21: -2.2 | AB21: 0.8 | AC21: 1.8 | AD21: 0.6 | AE21: -7.1 | AF21: -6.7 | AG21: -12.4 | AH21: -1.6
A22: 4.4 | B22: 5.6 | C22: 4.2 | D22: 4 | E22: 0 | F22: 6.7 | G22: 4.6 | H22: -3.8 | I22: -2.5 | J22: -4 | K22: -5 | L22: -4.9 | M22: -1.8 | N22: 0.3 | O22: 0.8 | P22: 1.2 | Q22: 4.6 | R22: 4.6 | S22: -5.8 | T22: -4.9 | U22: 1 | V22: 3.4 | W22: -1.5 | X22: 1.5 | Y22: -3.1 | Z22: -2.6 | AA22: -1.8 | AB22: -1.4 | AC22: -1.6 | AD22: -2 | AE22: -11.8 | AF22: -7.9 | AG22: -19 | AH22: -2
A23: 4.4 | B23: 0.2 | C23: 5.7 | D23: 6.2 | E23: -0.2 | F23: 6.9 | G23: 6.8 | H23: 4 | I23: 2.7 | J23: 0 | K23: 1 | L23: 1.5 | M23: 3 | N23: 0.3 | O23: 3.8 | P23: 3.6 | Q23: 2.3 | R23: 2.1 | S23: -1.7 | T23: 0.5 | U23: 1.1 | V23: 3.2 | W23: 0.5 | X23: 2.8 | Y23: 0.8 | Z23: 0.5 | AA23: 0.6 | AB23: 0 | AC23: -0.3 | AD23: -2.8 | AE23: -10.4 | AF23: -10.8 | AG23: -26.6 | AH23: -18.2
A24: 5 | B24: -0.1 | C24: 5.8 | D24: 7 | E24: -0.2 | F24: 4.5 | G24: 7 | H24: 4 | I24: 3.7 | J24: 4 | K24: 6 | L24: 6.1 | M24: 5.6 | N24: 0.8 | O24: 4.8 | P24: 1.6 | Q24: 4.1 | R24: 3.9 | S24: 3.2 | T24: 3.6 | U24: -3 | V24: 3.5 | W24: -1.3 | X24: 0.5 | Y24: 3.1 | Z24: 5.1 | AA24: 0.3 | AB24: 1.1 | AC24: 0.8 | AD24: 1.2 | AE24: -13.9 | AF24: -10.4 | AG24: -24.7 | AH24: -18.5
A25: 5 | B25: 2.2 | C25: 2.6 | D25: 1 | E25: -0.4 | F25: 3 | G25: 3.6 | H25: 3.8 | I25: 1.6 | J25: 3 | K25: 2.5 | L25: 2.8 | M25: 3.2 | N25: 1 | O25: -0.6 | P25: 0.2 | Q25: 1.7 | R25: 1.3 | S25: 0.6 | T25: 1.1 | U25: -5 | V25: 3.8 | W25: -4.5 | X25: -0.8 | Y25: -2.7 | Z25: -2.9 | AA25: 0 | AB25: -1.7 | AC25: -2.1 | AD25: -2.5 | AE25: -7.3 | AF25: -14.2 | AG25: -22.5 | AH25: -18.2
A26: 5.2 | B26: 3.3 | C26: 2.3 | D26: 1.8 | E26: -1 | F26: 6.1 | G26: 2.8 | H26: 2.6 | I26: 4.6 | J26: -1 | K26: -0.2 | L26: -0.1 | M26: 0.5 | N26: 1 | O26: -1.7 | P26: -2.4 | Q26: 2.4 | R26: 2.4 | S26: -2 | T26: -1.7 | U26: -3.8 | V26: 4.2 | W26: -4.1 | X26: -3.4 | Y26: -3.5 | Z26: -3.3 | AA26: -0.1 | AB26: -5.5 | AC26: -5.4 | AD26: -6 | AE26: -3.7 | AF26: -5.6 | AG26: -15.5 | AH26: -19
A27: 4.9 | B27: 2.3 | C27: 4.4 | D27: 5 | E27: -0.9 | F27: 6 | G27: 5.8 | H27: 1.5 | I27: 4.2 | J27: 3 | K27: 4 | L27: 3.6 | M27: 3.9 | N27: 0.2 | O27: -0.2 | P27: -0.2 | Q27: -1.9 | R27: -2 | S27: 2.8 | T27: 2.7 | U27: -8 | V27: 4.5 | W27: -5.1 | X27: -3.6 | Y27: -2.9 | Z27: -3.5 | AA27: 0.1 | AB27: 0 | AC27: 2.3 | AD27: 2.2 | AE27: -5.2 | AF27: -3.7 | AG27: -23.3 | AH27: -13
A28: 4.7 | B28: -2.6 | C28: 6.7 | D28: 8 | E28: -0.6 | F28: 5.2 | G28: 6.9 | H28: 1.8 | I28: 5.6 | J28: 6 | K28: 6 | L28: 5.7 | M28: 5.3 | N28: 0 | O28: -2.2 | P28: -2.5 | Q28: -3.3 | R28: -2.8 | S28: 4.8 | T28: 4 | U28: -7 | V28: 8.8 | W28: -7.4 | X28: -2.7 | Y28: 2.5 | Z28: 2 | AA28: 0.3 | AB28: 1.4 | AC28: 1.4 | AD28: 0.3 | AE28: -2.3 | AF28: -3.8 | AG28: -10 | AH28: -12.8
A29: 4.2 | B29: -0.4 | C29: 5.3 | D29: 3 | E29: 0 | F29: 2.5 | G29: 4.3 | H29: 1.2 | I29: -1.2 | J29: 1.8 | K29: 1 | L29: 0.7 | M29: -1 | N29: -0.2 | O29: -1.8 | P29: -1.8 | Q29: -6.4 | R29: -6.1 | S29: -3.4 | T29: -4.1 | U29: -9.7 | V29: 14 | W29: -9.1 | X29: -3.8 | Y29: -3.9 | Z29: -3.9 | AA29: 0.2 | AB29: 1.1 | AC29: 1.2 | AD29: 1.7 | AE29: -3 | AF29: -3.5 | AG29: -6 | AH29: -13
A30: 4.4 | B30: -0.6 | C30: 3.2 | D30: 3.2 | E30: 0.1 | F30: 6 | G30: 2.8 | H30: 1.8 | I30: -2.4 | J30: -3 | K30: -4.1 | L30: -4.2 | M30: -5.5 | N30: -0.2 | O30: 0.2 | P30: -0.4 | Q30: -3.6 | R30: -3.6 | S30: -6.2 | T30: -5.9 | U30: -9.5 | V30: 3.3 | W30: -6.1 | X30: -3.5 | Y30: -7.4 | Z30: -8.1 | AA30: -0.1 | AB30: 2.8 | AC30: 2.8 | AD30: 1.8 | AE30: -2.5 | AF30: -2 | AG30: -4.7 | AH30: -12.8
A31: 2.1 | B31: 3.6 | C31: 5.6 | D31: 6 | E31: 0.1 | F31: 7.3 | G31: 5.9 | H31: 4.2 | I31: -1.6 | J31: -7 | K31: -3.4 | L31: -2.8 | M31: -1.5 | N31: -0.3 | O31: -0.4 | P31: -1 | Q31: -4.1 | R31: -3.7 | S31: -4.8 | T31: -5.7 | U31: -5 | V31: 3.8 | W31: -7.7 | X31: -2.4 | Y31: -8 | Z31: -8.9 | AA31: -1.2 | AB31: 0.3 | AC31: 1 | AD31: 1 | AE31: -2.5 | AF31: -1.8 | AG31: -5.5 | AH31: -2
A32: 1.3 | B32: 4 | C32: 6.3 | D32: 8 | E32: 0.2 | F32: 1.7 | G32: 7.3 | H32: 4.1 | I32: -13.6 | J32: -10.9 | K32: -11 | L32: -10.7 | M32: -12 | N32: -0.6 | O32: -0.4 | P32: 0.4 | Q32: -3 | R32: -3.6 | S32: -7 | T32: -7.2 | U32: -12 | V32: 3.1 | W32: -7.7 | X32: -8.5 | Y32: -7.2 | Z32: -7.5 | AA32: -1.1 | AB32: -3.9 | AC32: -4.6 | AD32: -4.3 | AE32: -3.6 | AF32: -2.7 | AG32: -5.2 | AH32: -2.2
A33: 0.6 | B33: 4.1 | C33: 0.5 | D33: 0 | E33: 0.3 | F33: 2 | G33: 1.7 | H33: 3.7 | I33: -2 | J33: -11 | K33: -10.2 | L33: -9.9 | M33: -8.6 | N33: -0.5 | O33: 3.2 | P33: 1.3 | Q33: 0.7 | R33: 0.9 | S33: -4.5 | T33: -4.4 | U33: -0.1 | V33: 3.8 | W33: -3.4 | X33: -2.7 | Y33: -3.6 | Z33: -4.5 | AA33: -1.1 | AB33: -7.2 | AC33: -6.4 | AD33: -6 | AE33: -4.5 | AF33: -4.2 | AG33: -14 | AH33: -2.1
A34: 0.2 | E34: 0.4 | H34: 2.4 | N34: -0.5 | V34: 3.6 | AA34: -1.1 | AH34: -2
A35: -0.1 | E35: 1 | H35: 4.6 | N35: -0.2 | V35: 3.5 | AA35: -2.2 | AH35: -2
A36: -0.8 | E36: 1 | H36: 4.8 | N36: 0 | V36: 3.7 | AA36: -2.3 | AH36: -2.2
A37: -1.1 | E37: 1.3 | H37: 4 | N37: -0.4 | V37: 3.9 | AA37: -2.6 | AH37: -1
A38: -0.1 | E38: 2 | H38: 4.4 | N38: -0.7 | V38: 1 | AA38: -2.8 | AH38: -1
A39: -0.7 | E39: 3.2 | H39: 7.3 | N39: -2.5 | V39: 0.7 | AA39: -3 | AH39: 1
A40: -1.5 | E40: 3.3 | H40: 8.2 | N40: -2.1 | V40: 0.7 | AA40: -3.1 | AH40: 1.4
A41: -2 | E41: 3 | H41: 8.5 | N41: -2 | V41: 0.9 | AA41: -3.2 | AH41: 2
A42: -2.2 | E42: 3.1 | H42: 6.6 | N42: -1.9 | V42: 1.7 | AA42: -3.5 | AH42: 2
A43: -2.2 | E43: 3.2 | H43: 2.6 | N43: 2.8 | V43: 1 | AA43: -6.8 | AH43: 0
A44: -2.4 | E44: 3 | H44: 3 | N44: 2.6 | V44: 0.7 | AA44: -6.5 | AH44: 0.4
A45: -0.8 | E45: 2.9 | H45: 3 | N45: 2.4 | V45: 0.7 | AA45: -6.1 | AH45: 0.8
A46: -1.4 | E46: 2.8 | H46: 2.6 | N46: 2.2 | V46: 1 | AA46: -5.6 | AH46: 0.2
A47: -2 | E47: 3 | H47: 1.8 | N47: 0.3 | V47: 0.4 | AA47: -1.4 | AH47: -1
A48: -2.3 | E48: 3 | H48: 2 | N48: -0.3 | V48: -1.3 | AA48: -1.5 | AH48: -0.9
A49: -2.4 | E49: 3 | H49: 2.2 | N49: -0.8 | V49: -1.4 | AA49: -1.6 | AH49: -1
A50: -2.4 | E50: 2.8 | H50: 2.5 | N50: -1.4 | V50: -1.4 | AA50: -1.7 | AH50: -1
A51: -2.6 | E51: 1.2 | H51: 3.4 | N51: 2.4 | V51: -3 | AA51: -5.7 | AH51: -6
A52: 2.5 | E52: 1.4 | H52: 2.8 | N52: 2.4 | V52: -2.7 | AA52: -5.5 | AH52: -6.4
A53: 2.5 | E53: 2 | H53: 2.2 | N53: 2.2 | V53: -1 | AA53: -5.3 | AH53: -6
A54: 2.8 | E54: 1.9 | H54: 2.6 | N54: 1.8 | V54: -1.1 | AA54: -5.1 | AH54: -5.8
A55: 3.2 | E55: 1.7 | H55: 8.1 | N55: 3.3 | V55: -1.4 | AA55: -6.4 | AH55: -4
A56: 3.6 | E56: 2 | H56: 6 | N56: 3.1 | V56: -2 | AA56: -6.5 | AH56: -4
A57: 3.5 | E57: 1.6 | H57: 6 | N57: 2.9 | V57: -2.1 | AA57: -6.2 | AH57: -3.7
A58: 2.4 | E58: 1.4 | H58: 6.2 | N58: 2.5 | V58: -4.7 | AA58: -5.6 | AH58: -2
A59: 2.4 | E59: 2 | H59: 6.8 | N59: 3.9 | V59: -4 | AA59: 0.8 | AH59: -6.2
A60: 2.4 | E60: 2.1 | H60: 5.7 | N60: 4.4 | V60: -3.5 | AA60: 0.7 | AH60: -7.3
A61: 2.2 | E61: 2.1 | H61: 3.8 | N61: 5 | V61: -3 | AA61: 0.8 | AH61: -8
A62: 1.9 | E62: 2 | H62: 3.4 | N62: 5.2 | V62: -3.2 | AA62: 1 | AH62: -8
A63: 1.9 | E63: 1.3 | H63: -0.1 | N63: 1.4 | V63: 0.8 | AA63: 0.8 | AH63: -10
A64: 2.4 | E64: 1.7 | H64: 1.2 | N64: 1.2 | V64: 0.3 | AA64: 0.8 | AH64: -10.8
A65: 2.8 | E65: 2 | H65: 2.2 | N65: 1.1 | V65: -0.3 | AA65: 0.8 | AH65: -10
A66: 7.1 | E66: 2.3 | H66: 3 | N66: 1.2 | V66: -0.8 | AA66: 0.9 | AH66: -10
A67: 7.1 | E67: 2.5 | H67: 0.3 | N67: 1.5 | V67: -1 | AA67: 2.3 | AH67: -17.8
A68: 6.9 | E68: 3 | H68: 1 | N68: 1.3 | V68: 1.9 | AA68: 2.2 | AH68: -16.8
A69: 6.9 | E69: 2.9 | H69: 1 | N69: 1 | V69: 2 | AA69: 2.2 | AH69: -16
A70: 6.9 | E70: 2.7 | H70: 1.2 | N70: 0.9 | V70: 2.1 | AA70: 2.3 | AH70: -15.8
A71: 6.9 | E71: 3 | H71: 2.5 | N71: -1.8 | V71: 1.3 | AA71: -5 | AH71: -5.6
A72: 7.2 | E72: 2.8 | H72: 2 | N72: -1.8 | V72: 0.2 | AA72: -5 | AH72: -6
A73: 6.6 | E73: 2.8 | H73: 2 | N73: -1.7 | V73: 0.5 | AA73: -4.8 | AH73: -6.2
A74: 6.7 | E74: 3 | H74: 2.1 | N74: -1.5 | V74: 0 | AA74: -4.9 | AH74: -7
A75: 6.7 | E75: 2.7 | H75: 1.7 | N75: -3.8 | V75: -0.7 | AA75: -5.6 | AH75: -12
A76: 6.6 | E76: 2.5 | H76: 2.2 | N76: -3.3 | V76: -1.5 | AA76: -5.3 | AH76: -12.2
A77: 6.2 | E77: 2.2 | H77: 1.7 | N77: -3 | V77: -1.8 | AA77: -5.1 | AH77: -12.8
A78: 5.7 | E78: 2.5 | H78: 2 | N78: -2.8 | V78: -0.9 | AA78: -4.9 | AH78: -12.2
A79: 5.7 | E79: 2.7 | H79: -1.2 | N79: -1.1 | V79: 0.2 | AA79: -2.4 | AH79: -19
A80: 7.1 | E80: 3 | H80: -1.2 | N80: -0.3 | V80: 0.9 | AA80: -2.4 | AH80: -18.6
A81: 7 | E81: 2.8 | H81: -1.8 | N81: 0.6 | V81: 2.2 | AA81: -2.4 | AH81: -18.3
A82: 7 | E82: 2.6 | H82: -1.4 | N82: 1 | V82: 2.7 | AA82: -2.3 | AH82: -18
A83: 7.1 | E83: 2.2 | H83: -2.8 | N83: 3.2 | V83: 4 | AA83: 0.9 | AH83: -26
A84: 7.2 | E84: 2.6 | H84: -3 | N84: 3.2 | V84: 2.9 | AA84: 1.1 | AH84: -26.2
A85: 7.3 | E85: 2.8 | H85: -3 | N85: 3.3 | V85: 2.2 | AA85: 1.2 | AH85: -27
A86: 7.2 | E86: 3 | H86: -2.6 | N86: 3.6 | V86: 2.2 | AA86: 1.1 | AH86: -27
A87: 6.6 | E87: 2 | H87: -5 | N87: 5.7 | V87: 2.7 | AA87: 5.4 | AH87: -22.8
A88: 6.6 | E88: 2.1 | H88: -4 | N88: 5.5 | V88: 6 | AA88: 5.1 | AH88: -21.6
A89: 6.4 | E89: 2.8 | H89: -3.8 | N89: 5.2 | V89: 6.1 | AA89: 4.8 | AH89: -21.1
A90: 6.2 | E90: 2.7 | H90: -2.7 | N90: 5.1 | V90: 5.8 | AA90: 4.7 | AH90: -21
A91: 6.4 | E91: 2.5 | H91: -10.5 | N91: 2.7 | V91: 5.9 | AA91: -3.8 | AH91: -21
A92: 6.3 | E92: 2.8 | H92: -10.8 | N92: 1.8 | V92: 6 | AA92: -4 | AH92: -21.2
A93: 6.4 | E93: 2.4 | H93: -9.8 | N93: 1.5 | V93: 5 | AA93: -4.2 | AH93: -21.2
A94: 5.5 | E94: 1.9 | H94: -8.9 | N94: 1.2 | V94: 4.8 | AA94: -4.3 | AH94: -21.8
A95: 5.4 | E95: 1 | H95: -10.2 | N95: 2.1 | V95: 4.7 | AA95: -3.7 | AH95: -16.3
A96: 5.4 | E96: 0.9 | H96: -10.8 | N96: 2 | V96: 4 | AA96: -3.6 | AH96: -18.3
A97: 5.4 | E97: 0.7 | H97: -9.8 | N97: 2.1 | V97: 4.2 | AA97: -3.4 | AH97: -15
A98: 5.5 | E98: 0 | H98: -9.5 | N98: 2.3 | V98: 1 | AA98: -3.1 | AH98: -14.9
A99: 5.3 | E99: -1.2 | H99: -10.6 | N99: 4.6 | V99: 1 | AA99: -3.3 | AH99: -23.8
A100: 5.5 | E100: -1.3 | H100: -8.7 | N100: 4.8 | V100: 1.1 | AA100: -3.3 | AH100: -23.8
A101: 5.8 | E101: -1 | H101: -7 | N101: 4.7 | V101: 0.3 | AA101: -3 | AH101: -26
A102: 6.2 | E102: -1.3 | H102: -7.4 | N102: 4.7 | V102: 0.8 | AA102: -2.6 | AH102: -26
A103: 5.5 | E103: -1.6 | H103: -9.2 | N103: 5.7 | V103: 0.8 | AA103: 1.6 | AH103: -8.8
A104: 6.4 | E104: -1.8 | H104: -8.8 | N104: 6 | V104: 0.9 | AA104: 1.2 | AH104: -7.7
A105: 5.8 | E105: -1.9 | H105: -7.8 | N105: 5.8 | V105: 1.1 | AA105: 0.5 | AH105: -7
A106: 6.1 | E106: -1.8 | H106: -6.9 | N106: 5.8 | V106: 1 | AA106: -0.3 | AH106: -7
A107: 6.3 | E107: -2 | H107: -15.5 | N107: -1.4 | V107: 1.3 | AA107: -4.5 | AH107: -6.6
A108: 5.3 | E108: -1.7 | H108: -14.8 | N108: -1.8 | V108: -2.6 | AA108: -4.9 | AH108: -6.6
A109: 4.9 | E109: -1.6 | H109: -14 | N109: -2.4 | V109: -2.2 | AA109: -5.4 | AH109: -6.4
A110: 4.8 | E110: -2 | H110: -14 | N110: -2.8 | V110: -1.9 | AA110: -5.9 | AH110: -6
A111: 4.8 | E111: -2.9 | H111: -1.4 | N111: -5.9 | V111: -1.2 | AA111: -7.9 | AH111: -6
A112: 5.2 | E112: -2.7 | H112: -1 | N112: -5 | V112: -1.7 | AA112: -7.9 | AH112: -5.9
A113: 5.2 | E113: -2.5 | H113: -1 | N113: -5.3 | V113: -4.2 | AA113: -8 | AH113: -6
A114: 5.2 | E114: -2.3 | H114: -0.8 | N114: -5.8 | V114: -4.8 | AA114: -8.3 | AH114: -6.2
A115: 3.5 | E115: -2.2 | H115: -1.4 | N115: -2.7 | V115: -5.2 | AA115: -9 | AH115: -6
A116: 3.8 | E116: -2.1 | H116: 1 | N116: -6.2 | V116: -5 | AA116: -8.7 | AH116: -6
A117: 3.7 | E117: -1.9 | H117: 1.2 | N117: -6 | V117: -5.1 | AA117: -8.1 | AH117: -6.2
A118: 3.9 | E118: -1.8 | H118: 1.6 | N118: -5.3 | V118: -4 | AA118: -7.4 | AH118: -5.8
A119: 3.9 | E119: -1 | H119: -2.3 | N119: -10.4 | V119: -3.6 | AA119: -7.3 | AH119: -5.8
A120: 3.9 | E120: -1 | H120: -2.2 | N120: -10 | V120: -3.4 | AA120: -7.1 | AH120: -5.3
A121: 2.8 | E121: -0.9 | H121: -3 | N121: -10.3 | V121: -3.8 | AA121: -6.9 | AH121: -5.7
A122: 1.4 | E122: -0.7 | H122: -3.5 | N122: -10.7 | V122: -3.8 | AA122: -6.7 | AH122: -6
A123: 1.9 | E123: 4.6 | H123: -1.7 | N123: -7.7 | V123: -9 | AA123: -5.2 | AH123: -15.8
A124: 2 | E124: 5.6 | H124: -1 | N124: -7.2 | V124: -8.9 | AA124: -5.6 | AH124: -15.4
A125: 2.4 | E125: 5.3 | H125: -1 | N125: -7 | V125: -8.7 | AA125: -5.6 | AH125: -15
A126: 2.7 | E126: 5.1 | H126: -1.3 | N126: -6.4 | V126: -7.4 | AA126: -5.2 | AH126: -15
A127: 2.9 | E127: 5 | V127: -7.7
A128: 2 | E128: 5.2 | V128: -5.5
A129: 2 | E129: 6.1 | V129: -7.4
A130: 2 | E130: 6.8 | V130: -8.1
A131: 2.2 | E131: 7.2 | V131: -8
A132: 2.4 | E132: 7.1 | V132: -5.1
A133: 2.8 | E133: 7.3 | V133: -8
A134: 3.2 | E134: 7 | V134: -8.2
A135: 3.1 | E135: 6.2 | V135: -8.5
A136: 4.5 | E136: 5.8 | V136: -9.2
A137: 3 | E137: 7 | V137: -9.2
A138: 2.2 | E138: 7.6 | V138: -9
A139: 1.4 | E139: 8 | V139: -9
A140: 1.3 | E140: 8.2 | V140: -9.1
A141: 1.1 | E141: 8.4 | V141: -9
A142: 0.9 | E142: 8.4 | V142: -8.4
A143: 0 | E143: 8 | V143: -6.2
A144: -0.2 | E144: 8 | V144: -6.8
A145: -0.1 | E145: 7.8 | V145: -7
A146: -0.4 | E146: 6.9 | V146: -7
A147: -0.5 | E147: 7.6 | V147: -7.2
A148: -0.4 | E148: 8.2 | V148: -9
A149: -0.2 | E149: 8.2 | V149: -8.7
A150: 1.1 | E150: 8.6 | V150: -8.7
A151: 1.2 | E151: 9 | V151: -9
A152: 1 | E152: 10 | V152: -8.6
A153: 1.2 | E153: 9.7 | V153: 0
A154: 1 | E154: 9.3 | V154: -0.3
A155: 1 | E155: 8.8 | V155: -0.6
A156: 0.8 | E156: 8.5 | V156: -1
A157: 3.1 | E157: 8.3 | V157: -1.1
A158: 3 | E158: 8
A159: 3.1 | E159: 8.3
A160: 3.2 | E160: 8
A161: 3.1 | E161: 8
A162: 3.1 | E162: 6.9
A163: 3.2 | E163: 5.9
A164: 4.2 | E164: 6
A165: 4.5 | E165: 5.9
A166: 4.7 | E166: 6
A167: 4.8 | E167: 6
A168: 5.3 | E168: 6.3
A169: 5.2 | E169: 6.2
A170: 4.8 | E170: 6
A171: 4.4 | E171: 5.3
A172: 3.2 | E172: 5.1
A173: 2.8 | E173: 5.2
A174: 2.1 | E174: 5.6
A175: 0.7 | E175: 5.7
A176: -0.3 | E176: 6
A177: -0.8 | E177: 5.9
A178: 1.6 | E178: 6.4
A179: 0.3 | E179: 8
A180: 0 | E180: 9
A181: -0.8 | E181: 9.1
A182: -1.2 | E182: 5.9
A183: -1.7 | E183: 6.2
A184: -1 | E184: 6.5
A185: 2.9 | E185: 7
A186: 0.9 | E186: 7.1
A187: 0.4 | E187: 7
A188: 0.1 | E188: 6.8
A189: -0.8 | E189: 6.2
A190: -1 | E190: 5.6
A191: -2 | E191: 5
A192: 2.6 | E192: 4.7
A193: 2.8 | E193: 4.4
A194: 2.6 | E194: 3.2
A195: 2.4 | E195: 5.4
A196: 2.2 | E196: 6.4
A197: 2.2 | E197: 6
A198: 2.3 | E198: 6.2
A199: 4.7 | E199: 6.3
A200: 4.9 | E200: 7
... 162 more rows

Sheet Værdata Februar
A1: Bergen 14:45-20:00 | B1: Florø 02:45-03:00 | C1: Måløy 05:15-05:30 | D1: Torvik 08:20-08:30 | E1: Ålesund 09:45-20:00 | F1: Molde 22:35-23:05 | G1: Kristiansund 02:45-03:00 | H1: Trondheim 09:45-12:45 | I1: Rørvik 21:40-22:00 | J1: Brønnøysund 01:35-01:45 | K1: Sandnessjøen 04:35-04:50 | L1: Nesna 06:00-06:10 | M1: Ørnes 10:00-10:10 | N1: Bodø 13:05-15:20 | O1: Stamsund 19:15-19:40 | P1: Svolvær 21:20-22:15 | Q1: Stokmarknes 01:30-01:40 | R1: Sortland 02:55-03:10 | S1: Risøyhamn 04:35-04:50 | T1: Harstad 07:10 - 07:45 | U1: Finnsnes 11:00-11:30 | V1: Tromsø 14:15-18:15 | W1: Skjervøy 22:10-22:25 | X1: Øksfjord 01:50-02:00 | Y1: Hammerfest 05:05- 05:45 | Z1: Havøysund 08:30 - 08:45 | AA1: Honningsvåg 10:55- 14:30 | AB1: Kjøllefjord 16:40-17:00 | AC1: Mehamn 18:55-19:15 | AD1: Berlevåg 22:00-22:10 | AE1: Båtsfjord 00:00-00:30 | AF1: Vardø 03:30-03:45 | AG1: Vadsø 06:55-07:10 | AH1: Kirkenes 09:00-12:30
A2: Florida 14:00 - 20:00 | B2: Florida 03:00 | C2: Svinøy Fyr 05:00 | D2: Vigra 08:00 | E2: Vigra 09:00-20:00 | F2: Ona 23:00 | G2: Ona 03:00 | H2: Værnes 10:00-13:00 | I2: Ørland 22:00 | J2: Bodø 02:00 | K2: Bodø 05:00 | L2: Bodø 06:00 | M2: Bodø 10:00 | N2: 13:00-16:00 | O2: Skrova 19:00 | P2: Skrova 22:00 | Q2: Sortland 02:00 | R2: Sortland 03:00 | S2: Andøya 05:00 | T2: Andøya 07:00 | U2: Tromsø 11:00 | V2: Tromsø 14:00 - 18:00 | W2: Tromsø 22:00 | X2: Torsvåg 02:00 | Y2: Fruholmen 05:00 | Z2: Fruholmen 09:00 | AA2: Fruholmen 11-14 | AB2: Slettnes 17:00 | AC2: Slettnes 19:00 | AD2: Slettnes 22:00 | AE2: Vardø 00:00 | AF2: Vardø 04:00 | AG2: Kirkenes 07:00 | AH2: Kirkenes 09:00-12:00
A3: 5.4 | B3: 3.9 | C3: 3.6 | D3: 2 | E3: 3.7 | F3: 4.1 | G3: 2 | H3: -1.1 | I3: 1.4 | J3: -1.9 | K3: 0.2 | L3: 0 | M3: 2.3 | N3: 4 | O3: -1.1 | P3: -1.5 | Q3: 2.3 | R3: 1.8 | S3: -8.7 | T3: -8.9 | U3: -3 | V3: -2 | W3: -2.8 | X3: -0.2 | Y3: 0.3 | Z3: 0.3 | AA3: 0.8 | AB3: 0 | AC3: 0.8 | AD3: 0.8 | AE3: -7.9 | AF3: -4.5 | AG3: -3.1 | AH3: -1.6
A4: 5.8 | B4: 8.2 | C4: 5.1 | D4: 6 | E4: 3.8 | F4: 2.8 | G4: 4.3 | H4: -1 | I4: 4.3 | J4: 3 | K4: 3.8 | L4: 3.5 | M4: 3 | N4: 4 | O4: -0.7 | P4: -0.1 | Q4: 2.1 | R4: 2.1 | S4: -2 | T4: -0.9 | U4: -1 | V4: -2 | W4: 0.7 | X4: -0.6 | Y4: -2.8 | Z4: -2.8 | AA4: 0.6 | AB4: -5.2 | AC4: -7.8 | AD4: -9.8 | AE4: -7.2 | AF4: -8.4 | AG4: -4.2 | AH4: -0.6
A5: 5.8 | B5: 5.7 | C5: 3.8 | D5: 7 | E5: 4 | F5: 3.6 | G5: 3.1 | H5: -1 | I5: 2.7 | J5: 1.4 | K5: 0.5 | L5: 0.8 | M5: 2.6 | N5: 4 | O5: 4.9 | P5: 4.1 | Q5: 5.4 | R5: 4.8 | S5: 0.2 | T5: 1.2 | U5: -1.7 | V5: -2.1 | W5: -2 | X5: -4.7 | Y5: -4 | Z5: -0.6 | AA5: 0.3 | AB5: -2.5 | AC5: -2.8 | AD5: -5.3 | AE5: -4.8 | AF5: -6.4 | AG5: -3.8 | AH5: 0
A6: 5.8 | B6: 7.8 | C6: 4.3 | D6: 7.3 | E6: 4.1 | F6: 4.8 | G6: 3.9 | H6: -0.3 | I6: 2.9 | J6: 4 | K6: 3 | L6: 2.4 | M6: 4.8 | N6: 3.8 | O6: 3 | P6: 3.5 | Q6: -0.6 | R6: -0.7 | S6: 3 | T6: 3.5 | U6: -1 | V6: -2 | W6: 1.8 | X6: -2.4 | Y6: -4.8 | Z6: -4.3 | AA6: 0 | AB6: -3.9 | AC6: -3.8 | AD6: -3 | AE6: -4.9 | AF6: -6 | AG6: -12.9 | AH6: -0.2
A7: 5.7 | B7: 0.9 | C7: 4.4 | D7: 3 | E7: 4.2 | F7: 1.8 | G7: 4 | H7: 4.5 | I7: 5.3 | J7: 2.8 | K7: 2 | L7: 2.2 | M7: 1.3 | N7: 3.4 | O7: 3.1 | P7: 3 | Q7: -1.3 | R7: -1.3 | S7: 2 | T7: 1.7 | U7: 2.2 | V7: -2 | W7: 2.8 | X7: -2.6 | Y7: -0.6 | Z7: 1 | AA7: -3.2 | AB7: -2.4 | AC7: -3 | AD7: -2.3 | AE7: -0.6 | AF7: -4.3 | AG7: -11.8 | AH7: -7
A8: 6.1 | B8: 1 | C8: 3.4 | D8: 2.7 | E8: 4.3 | F8: 1.7 | G8: 2.7 | H8: 5 | I8: 1.8 | J8: -2 | K8: -1.2 | L8: -1 | M8: -2.1 | N8: 2.4 | O8: 2.2 | P8: 2 | Q8: -6 | R8: -5.9 | S8: 1 | T8: 2.1 | U8: 3 | V8: 0 | W8: 1.8 | X8: -3.5 | Y8: 1.7 | Z8: 2.9 | AA8: -3.3 | AB8: -0.2 | AC8: -0.8 | AD8: -0.8 | AE8: -2.7 | AF8: -1 | AG8: -14 | AH8: -6.7
A9: 6.4 | B9: -5.4 | C9: 0.9 | D9: 3.3 | E9: 4.3 | F9: 0.9 | G9: 2 | H9: 5 | I9: 0.9 | J9: -1.8 | K9: -1.5 | L9: -2 | M9: 3.7 | N9: 2 | O9: 1.9 | P9: 0.9 | Q9: -9.7 | R9: -8.7 | S9: 1 | T9: 0.6 | U9: 1.3 | V9: 0 | W9: 2.2 | X9: -4.5 | Y9: -2 | Z9: -1.9 | AA9: -3.6 | AB9: -2.9 | AC9: -3.8 | AD9: -5.6 | AE9: 0.4 | AF9: -3.2 | AG9: -6.3 | AH9: -7.8
A10: 6.3 | B10: -5 | C10: 0.4 | D10: 6.3 | E10: 4.4 | F10: 1.2 | G10: 1 | H10: 4.7 | I10: -2.3 | J10: -0.2 | K10: -0.8 | L10: -0.5 | M10: -1.3 | N10: 1.7 | O10: -0.6 | P10: -1 | Q10: -5.3 | R10: -5.6 | S10: 0 | T10: -0.4 | U10: 3 | V10: 0.2 | W10: 2.2 | X10: -3.5 | Y10: -3.6 | Z10: -3.9 | AA10: -4.1 | AB10: -6.4 | AC10: -6.8 | AD10: -7.2 | AE10: 1.4 | AF10: -0.4 | AG10: -5.8 | AH10: -7
A11: 6.2 | B11: -6.7 | C11: 3.6 | D11: 7 | E11: 4.5 | F11: 2.4 | G11: 2 | H11: 4.9 | I11: 0.2 | J11: -5 | K11: -6 | L11: -6 | M11: -7.2 | N11: 3 | O11: 0.5 | P11: 0.9 | Q11: -9.4 | R11: -9.5 | S11: -4.8 | T11: -3.9 | U11: 1.7 | V11: 0 | W11: 0 | X11: 0.5 | Y11: -7.2 | Z11: -7.8 | AA11: -0.7 | AB11: -11.1 | AC11: -10.2 | AD11: -10.5 | AE11: -1.4 | AF11: 1.4 | AG11: -8.8 | AH11: -4
A12: 6.6 | B12: -1.3 | C12: 4.5 | D12: 3.3 | E12: 4.7 | F12: 5.7 | G12: 3.8 | H12: 4.7 | I12: 3.5 | J12: -4.2 | K12: -4.2 | L12: -4.6 | M12: -4.3 | N12: 3.2 | O12: 1.5 | P12: 1.4 | Q12: -13.2 | R12: -12.5 | S12: -2.8 | T12: -3.4 | U12: -2 | V12: 0 | W12: -2.1 | X12: -3.1 | Y12: -6.7 | Z12: -8.2 | AA12: -0.7 | AB12: -11.5 | AC12: -11.3 | AD12: -9.8 | AE12: -5 | AF12: -2.6 | AG12: -4.6 | AH12: -4
A13: 6 | B13: -6.8 | C13: 6.4 | D13: 2.7 | E13: 5 | F13: 7.3 | G13: 6 | H13: 5 | I13: 1.8 | J13: -2 | K13: -3 | L13: -3.3 | M13: -5.3 | N13: 3.8 | O13: 0 | P13: -0.1 | Q13: -5.6 | R13: -5.5 | S13: -1.3 | T13: -3.7 | U13: -2 | V13: 0 | W13: -2.5 | X13: -3.3 | Y13: -5.1 | Z13: -6 | AA13: -0.7 | AB13: -9 | AC13: -8.2 | AD13: -5 | AE13: -0.3 | AF13: -4.2 | AG13: -1.2 | AH13: -1.5
A14: 5.2 | B14: -0.3 | C14: 7 | D14: 1.2 | E14: 5 | F14: 5.4 | G14: 7.6 | H14: 5.7 | I14: 0.3 | J14: -6 | K14: -5.9 | L14: -6 | M14: -5.1 | N14: 3.1 | O14: -0.8 | P14: -0.8 | Q14: 0.9 | R14: 1.5 | S14: 1 | T14: 0.6 | U14: -2 | V14: 0 | W14: -2.4 | X14: -2.9 | Y14: 2.1 | Z14: 2.1 | AA14: -0.7 | AB14: 1.5 | AC14: 1.3 | AD14: -1.5 | AE14: 1.4 | AF14: -0.6 | AG14: 0.3 | AH14: -4
A15: 4.5 | B15: 1.3 | C15: 5.3 | D15: 1.8 | E15: 4.5 | F15: 6 | G15: 5.6 | H15: 1.1 | I15: 0.8 | J15: -10.2 | K15: -10.8 | L15: -10.1 | M15: -8.6 | N15: 4 | O15: -2 | P15: -2.4 | Q15: 5 | R15: 5.2 | S15: -2 | T15: -1.9 | U15: -2 | V15: -0.3 | W15: -4.6 | X15: -3.1 | Y15: 3.4 | Z15: 4 | AA15: -3.5 | AB15: 1.8 | AC15: 2.4 | AD15: 2.8 | AE15: -0.9 | AF15: 1.4 | AG15: -2.5 | AH15: -14
A16: 5.2 | B16: 1.7 | C16: 5.4 | D16: 1.3 | E16: 4.3 | F16: 4.5 | G16: 5.7 | H16: 1 | I16: 4 | J16: -9.7 | K16: -9.3 | L16: -9.5 | M16: -9.4 | N16: 4 | O16: 4.6 | P16: 3.3 | Q16: 5.6 | R16: 5.6 | S16: -2.8 | T16: -0.7 | U16: -5 | V16: -1.3 | W16: -5.7 | X16: -1.5 | Y16: 4.6 | Z16: 4 | AA16: -3.5 | AB16: 3.7 | AC16: 2.6 | AD16: 1 | AE16: -1.5 | AF16: -0.7 | AG16: -2.3 | AH16: -13.6
A17: 5.4 | B17: 3.7 | C17: 4 | D17: -2 | E17: 4.3 | F17: 4.4 | G17: 3.9 | H17: 2 | I17: 6.4 | J17: -12 | K17: -11 | L17: -11.3 | M17: -11.2 | N17: 3.7 | O17: 2.3 | P17: 1.2 | Q17: 0.1 | R17: -0.2 | S17: 0.8 | T17: 0.4 | U17: -6 | V17: -1.3 | W17: -5.3 | X17: -0.2 | Y17: 4.1 | Z17: 5.4 | AA17: -3.6 | AB17: 1 | AC17: 0.4 | AD17: 1.1 | AE17: -0.8 | AF17: -0.8 | AG17: -3.4 | AH17: -12.7
A18: 5.7 | B18: 8.4 | C18: 2.7 | D18: 2.3 | E18: 4.3 | F18: 3.5 | G18: 3.9 | H18: 2.9 | I18: 3.9 | J18: -9 | K18: -9 | L18: -8.7 | M18: -7.3 | N18: 3.4 | O18: 3.2 | P18: 1.9 | Q18: 1.3 | R18: 0.8 | S18: -0.8 | T18: 0.3 | U18: -4 | V18: 1 | W18: -8.4 | X18: 1.4 | Y18: 1.1 | Z18: 1.1 | AA18: -3.6 | AB18: 1.3 | AC18: 0.8 | AD18: 0.4 | AE18: 0 | AF18: -0.4 | AG18: -6.9 | AH18: -11.8
A19: 5.9 | B19: 4.1 | C19: 2.8 | D19: 4.7 | E19: 4.4 | F19: 6 | G19: 3.8 | H19: 5.6 | I19: 0.1 | J19: -1.3 | K19: -2.8 | L19: -3 | M19: -1.3 | N19: 0.5 | O19: 0 | P19: 0.4 | Q19: -0.2 | R19: -0.1 | S19: 0.8 | T19: -0.1 | U19: -6 | V19: 1 | W19: -5.1 | X19: 3.2 | Y19: -0.8 | Z19: -0.6 | AA19: 1 | AB19: -2.9 | AC19: -4 | AD19: -3.7 | AE19: -2.3 | AF19: -0.3 | AG19: -16.3 | AH19: -12.8
A20: 6.2 | B20: 5.3 | C20: 4.2 | D20: 4 | E20: 4.4 | F20: 4.1 | G20: 5.7 | H20: 6 | I20: -0.7 | J20: -2.8 | K20: 0.3 | L20: -0.2 | M20: 0.3 | N20: 0.8 | O20: -0.1 | P20: -0.3 | Q20: -4.8 | R20: -5.4 | S20: 0 | T20: 0.1 | U20: -6 | V20: 1 | W20: -9.7 | X20: 2.5 | Y20: 0.7 | Z20: 3.3 | AA20: 1 | AB20: -2.9 | AC20: -1.7 | AD20: -1.3 | AE20: -3.5 | AF20: -2.9 | AG20: -13.7 | AH20: -11.6
A21: 7.6 | B21: 4.1 | C21: 2.6 | D21: 2.7 | E21: 4.4 | F21: 2.3 | G21: 3.8 | H21: 6 | I21: 1.1 | J21: 2 | K21: 1.8 | L21: 1.5 | M21: 1.2 | N21: 0.2 | O21: -7 | P21: -6.7 | Q21: -8.4 | R21: -8.4 | S21: -7.2 | T21: -8.4 | U21: -11 | V21: 1 | W21: -11 | X21: 1.9 | Y21: -2.1 | Z21: -2.8 | AA21: 1 | AB21: -3.7 | AC21: -3.8 | AD21: -4.7 | AE21: -7.6 | AF21: -4.3 | AG21: -17.3 | AH21: -11.2
A22: 7.6 | B22: 2.4 | C22: 1.5 | D22: 1.9 | E22: 4.4 | F22: 0 | G22: 2.8 | H22: 6.1 | I22: 0.5 | J22: 0 | K22: 0.5 | L22: 1 | M22: 2.5 | N22: -0.5 | O22: -4.1 | P22: -4.7 | Q22: -0.5 | R22: -0.8 | S22: -4 | T22: -3.9 | U22: -3 | V22: 1 | W22: -3.3 | X22: 0.4 | Y22: -2 | Z22: -1.2 | AA22: 1 | AB22: -2.4 | AC22: -2.5 | AD22: -0.5 | AE22: -10.4 | AF22: -6.8 | AG22: -16.7 | AH22: -11.8
A23: 7.6 | B23: -0.1 | C23: -0.1 | D23: -1 | E23: 4.5 | F23: 1.6 | G23: -0.2 | H23: 3.5 | I23: 2.4 | J23: 1 | K23: 1 | L23: 0.5 | M23: 1.9 | N23: -2.7 | O23: -2.7 | P23: -2.5 | Q23: -0.4 | R23: -0.9 | S23: -4 | T23: -3.9 | U23: -3 | V23: 3 | W23: 1.4 | X23: -1.9 | Y23: 3.7 | Z23: 4.1 | AA23: 3 | AB23: -0.7 | AC23: 1.6 | AD23: 3 | AE23: -5 | AF23: -11.4 | AG23: -15.4 | AH23: -11.8
A24: 3.6 | B24: -0.4 | C24: 3.3 | D24: -1 | E24: 4.5 | F24: 1.8 | G24: 1.6 | H24: 3.3 | I24: -4.2 | J24: 1 | K24: 1.8 | L24: 1.5 | M24: 1.8 | N24: -3 | O24: -2.5 | P24: -2.1 | Q24: -5.4 | R24: -5.8 | S24: -3 | T24: -4 | U24: 2 | V24: 3 | W24: 1.2 | X24: 1.3 | Y24: 3.5 | Z24: 3.3 | AA24: 2.9 | AB24: 1 | AC24: 0 | AD24: -0.8 | AE24: -6.2 | AF24: -5.6 | AG24: -14.7 | AH24: -11.1
A25: 3.5 | B25: 2.1 | C25: 1.9 | D25: -1 | E25: 4.4 | F25: 2 | G25: 1.4 | H25: 4 | I25: -8.5 | J25: 3.8 | K25: 3.2 | L25: 3.3 | M25: 2.5 | N25: -3.3 | O25: -0.5 | P25: -1 | Q25: -0.6 | R25: -0.5 | S25: -5 | T25: -4.9 | U25: 0.3 | V25: 2.8 | W25: 1 | X25: 0.3 | Y25: -2.5 | Z25: -4.1 | AA25: 2.8 | AB25: -6.8 | AC25: -8.6 | AD25: -7.3 | AE25: -1.7 | AF25: -6.2 | AG25: -17.4 | AH25: -10.8
A26: 3.7 | B26: 4.8 | C26: 3.2 | D26: -1.7 | E26: 4.3 | F26: 4.6 | G26: 3 | H26: 3.9 | I26: -6.4 | J26: 3 | K26: 3 | L26: 2.9 | M26: 3.1 | N26: -3.7 | O26: -1.5 | P26: -2.2 | Q26: -2.2 | R26: -2.8 | S26: -3.2 | T26: -5 | U26: 0 | V26: 3 | W26: -0.1 | X26: 1.6 | Y26: -7.9 | Z26: -8.2 | AA26: 2.7 | AB26: -7.3 | AC26: -5.6 | AD26: -8.6 | AE26: -2.1 | AF26: -1.2 | AG26: -19 | AH26: -9.7
A27: 3.9 | B27: 2.8 | C27: 4.4 | D27: 1 | E27: 4.3 | F27: 4.9 | G27: 5 | H27: -1.5 | I27: -4.4 | J27: 3.2 | K27: 4.2 | L27: 4.4 | M27: 4.2 | N27: 4.4 | O27: -2 | P27: -1 | Q27: -5.7 | R27: -6.1 | S27: -4 | T27: -3.4 | U27: -2.7 | V27: 3 | W27: -7.4 | X27: 0.1 | Y27: -4.6 | Z27: -2.2 | AA27: -2 | AB27: -7.3 | AC27: -7 | AD27: -8 | AE27: -8.3 | AF27: -3.7 | AG27: -17 | AH27: -8
A28: 3.6 | B28: 2.5 | C28: 4.6 | D28: 1 | E28: 4.2 | F28: 4.2 | G28: 4.7 | H28: -0.7 | I28: -3.5 | J28: 2 | K28: 2 | L28: 1.8 | M28: 1.8 | N28: 3.7 | O28: -1.6 | P28: -1.6 | Q28: -4.5 | R28: -3.1 | S28: 0 | T28: 0.7 | U28: -3 | V28: 3 | W28: -3.6 | X28: -0.5 | Y28: -1.6 | Z28: -0.8 | AA28: -2 | AB28: -3.1 | AC28: -3.3 | AD28: -4 | AE28: -11.1 | AF28: -10.2 | AG28: -19.9 | AH28: -7.1
A29: 2.6 | B29: 1.8 | C29: 3.2 | D29: -1.3 | E29: 4.1 | F29: 5.1 | G29: 4.1 | H29: 0 | I29: 4.2 | J29: 1 | K29: 0.1 | L29: 0 | M29: -0.1 | N29: 2.3 | O29: -4.3 | P29: -5 | Q29: -2 | R29: -2.3 | S29: -4.2 | T29: -5.1 | U29: -1.7 | V29: 2.7 | W29: -1.3 | X29: 0 | Y29: -3.3 | Z29: -3.3 | AA29: -2 | AB29: -4.6 | AC29: -4 | AD29: -4 | AE29: -8.2 | AF29: -12.6 | AG29: -16.2 | AH29: -8.1
A30: 2.9 | B30: 2 | C30: 3.9 | D30: 1 | E30: 4.1 | F30: 4.1 | G30: 4.4 | H30: 0 | I30: -0.1 | J30: 0 | K30: 0 | L30: 0 | M30: 1.1 | N30: 1 | O30: 0 | P30: -0.4 | Q30: -2.1 | R30: -1 | S30: -3 | T30: -4.4 | U30: -2 | V30: 2 | W30: -4 | X30: -2.3 | Y30: -1.7 | Z30: -0.1 | AA30: -2.2 | AB30: -1.5 | AC30: -1.9 | AD30: -2.3 | AE30: -4.8 | AF30: -7.7 | AG30: -8.5 | AH30: -8.7
A31: 2.7 | E31: 4.2 | H31: -3.8 | N31: -3.9 | V31: 2 | AA31: -4.2 | AH31: -4
A32: 1.8 | E32: 4.4 | H32: -3 | N32: -4.2 | V32: 2 | AA32: -4.3 | AH32: -3.8
A33: 1.5 | E33: 4.6 | H33: -2.8 | N33: -6.1 | V33: 2.3 | AA33: -4.4 | AH33: -4
A34: 1.4 | E34: 4.8 | H34: -1.9 | N34: -7.4 | V34: 2 | AA34: -4.4 | AH34: -4
A35: 1.1 | E35: 4.8 | H35: -5.1 | N35: -5.9 | V35: 2 | AA35: -8.1 | AH35: -10
A36: 0.8 | E36: 4.7 | H36: -1.7 | N36: -5.2 | V36: 2.3 | AA36: -8.1 | AH36: -9.8
A37: 0.9 | E37: 4.5 | H37: 0 | N37: -5 | V37: 3 | AA37: -8.2 | AH37: -9.2
A38: 1 | E38: 4.3 | H38: 0.3 | N38: -5 | V38: 3 | AA38: -8.4 | AH38: -9.1
A39: 0.6 | E39: 4.3 | H39: 3.5 | N39: -5.6 | V39: 3 | AA39: -7.5 | AH39: -5
A40: 0.2 | E40: 4.6 | H40: 4 | N40: -5.2 | V40: 2.7 | AA40: -7 | AH40: -4.7
A41: -0.1 | E41: 4.7 | H41: 4 | N41: -5.4 | V41: 3 | AA41: -6.6 | AH41: -5
A42: -1 | E42: 4.7 | H42: 4 | N42: -5.2 | V42: 3 | AA42: -6.5 | AH42: -5.2
A43: -1.7 | E43: 4.8 | H43: 2 | N43: -5 | V43: 1 | AA43: -5.3 | AH43: 1
A44: -2 | E44: 4.9 | H44: 3.3 | N44: -5 | V44: 1 | AA44: -4.8 | AH44: 1.2
A45: -1.1 | E45: 5.1 | H45: 4 | N45: -5.2 | V45: 0.9 | AA45: -4.5 | AH45: 1
A46: -1.1 | E46: 5 | H46: 4.3 | N46: -5.5 | V46: 1 | AA46: -4.4 | AH46: 1
A47: -1.2 | E47: 4.7 | H47: 1.9 | N47: -0.2 | V47: 0.7 | AA47: 2.6 | AH47: -0.2
A48: -1.3 | E48: 4.4 | H48: 2 | N48: -1 | V48: -2 | AA48: 2.9 | AH48: -0.8
A49: -1.5 | E49: 4.4 | H49: 1 | N49: -0.8 | V49: -2 | AA49: 3.2 | AH49: -0.5
A50: -1.8 | E50: 4.6 | H50: 1.3 | N50: -1.2 | V50: -1.8 | AA50: 3.5 | AH50: 1.3
A51: -2.1 | E51: 3 | H51: -4.3 | N51: -5.9 | V51: -2 | AA51: 3.4 | AH51: -1
A52: -0.6 | E52: 2.8 | H52: -3.8 | N52: -5 | V52: -2 | AA52: 3 | AH52: -1
A53: -1.1 | E53: 3.6 | H53: -2.7 | N53: -5.6 | V53: -2 | AA53: 2.8 | AH53: -1
A54: -2.6 | E54: 4.3 | H54: -2.4 | N54: -6.3 | V54: -2 | AA54: 2.9 | AH54: -0.8
A55: -3.6 | E55: 4.6 | H55: 5.1 | N55: -7.7 | V55: -1.9 | AA55: 3.7 | AH55: -1.7
A56: -4.3 | E56: 4.1 | H56: 5.3 | N56: -7 | V56: -2 | AA56: 3.7 | AH56: -1.4
A57: -5 | E57: 3.3 | H57: 6 | N57: -7.8 | V57: -2 | AA57: 3.8 | AH57: -1
A58: -5.7 | E58: 2.6 | H58: 5.8 | N58: -8.7 | V58: -2 | AA58: 3.8 | AH58: -1
A59: -1.3 | E59: 2.5 | H59: 3.1 | N59: -9.7 | V59: -3 | AA59: 4.1 | AH59: -3.8
A60: -0.2 | E60: 2.7 | H60: 5.3 | N60: -9 | V60: -3.8 | AA60: 3 | AH60: -2.9
A61: -1.4 | E61: 2.7 | H61: 6 | N61: -8.9 | V61: -4 | AA61: 2 | AH61: -3
A62: -2.1 | E62: 2.5 | H62: 5.8 | N62: -9 | V62: -3 | AA62: 1.4 | AH62: -3
A63: -1.9 | E63: 3.4 | H63: 4.3 | N63: -3.9 | V63: -2 | AA63: 1.5 | AH63: -8.3
A64: -1.6 | E64: 3.4 | H64: 5 | N64: -3.7 | V64: -3 | AA64: 2.1 | AH64: -9.5
A65: -1.4 | E65: 3.4 | H65: 6 | N65: -2.7 | V65: -2.8 | AA65: 2.8 | AH65: -11
A66: 0.2 | E66: 3.2 | H66: 6.3 | N66: -2.3 | V66: -3 | AA66: 3.2 | AH66: -11.2
A67: 0.3 | E67: 3 | H67: -0.6 | N67: -0.8 | V67: -3 | AA67: -1.1 | AH67: -16.8
A68: -0.2 | E68: 2.6 | H68: 0 | N68: -1 | V68: -5 | AA68: -1.4 | AH68: -16.3
A69: -0.6 | E69: 2.2 | H69: 0 | N69: -0.3 | V69: -5 | AA69: -1.8 | AH69: -15.8
A70: -1.1 | E70: 1.8 | H70: 0.2 | N70: 0.3 | V70: -5.2 | AA70: -2.3 | AH70: -15
A71: -1.9 | E71: 1.4 | H71: 0 | N71: 0.4 | V71: -5 | AA71: 1.7 | AH71: -11.8
A72: -2.8 | E72: 1.1 | H72: 0 | N72: 0.9 | V72: -5 | AA72: 0.5 | AH72: -11.2
A73: -0.2 | E73: 0.9 | H73: 0.3 | N73: 1 | V73: -5.3 | AA73: -0.4 | AH73: -10
A74: 1 | E74: 0.9 | H74: 0.8 | N74: 1.7 | V74: -5 | AA74: -0.7 | AH74: -10.2
A75: -0.6 | E75: 0.9 | H75: -0.5 | N75: 1.5 | V75: -5.1 | AA75: -2.9 | AH75: -18
A76: -1.1 | E76: 1.2 | H76: -1 | N76: 1.8 | V76: -5 | AA76: -3.2 | AH76: -17.6
A77: -1.5 | E77: 1.5 | H77: -1 | N77: 2 | V77: -5 | AA77: -3.4 | AH77: -17
A78: -2.3 | E78: 1.7 | H78: -0.7 | N78: 1.1 | V78: -3 | AA78: -3.5 | AH78: -17
A79: -2.7 | E79: 1.8 | H79: -1.5 | N79: 3.1 | V79: -3 | AA79: -0.1 | AH79: -18
A80: 3.1 | E80: 1.7 | H80: 1 | N80: 2.8 | V80: -3.5 | AA80: 0.2 | AH80: -18.5
A81: 3.2 | E81: 1.5 | H81: 1.7 | N81: 2.6 | V81: -3 | AA81: 0.4 | AH81: -18
A82: 3.4 | E82: 1.3 | H82: 1.1 | N82: 2.2 | V82: -3 | AA82: 0.5 | AH82: -18
A83: 2.8 | E83: 1.1 | H83: -0.5 | N83: 2.1 | V83: -5 | AA83: 4.1 | AH83: -15
A84: 2.6 | E84: 1 | H84: -1.3 | N84: 2.8 | V84: -5.3 | AA84: 3.9 | AH84: -15.2
A85: 2.1 | E85: 1 | H85: -2 | N85: 2.4 | V85: -5.4 | AA85: 3.6 | AH85: -13.7
A86: 1.9 | E86: 1.1 | H86: -2.9 | N86: 2.1 | V86: -5 | AA86: 3.4 | AH86: -11.4
A87: 3.1 | E87: 0.3 | H87: -3.7 | N87: 1.8 | V87: -5 | AA87: 3.1 | AH87: -14.8
A88: 3.4 | E88: 0.1 | H88: -4 | N88: 1.2 | V88: -6.3 | AA88: 2.9 | AH88: -14.3
A89: 3.7 | E89: 0.3 | H89: -2 | N89: 1.6 | V89: -7 | AA89: 2.6 | AH89: -14
A90: 3.6 | E90: 0.8 | H90: -0.6 | N90: 1.6 | V90: -7.7 | AA90: 2.2 | AH90: -14
A91: 3.5 | E91: 1.5 | H91: -6.9 | N91: 3.6 | V91: -9 | AA91: -5 | AH91: -17
A92: 3.3 | E92: 2.1 | H92: -6 | N92: 3.9 | V92: -8 | AA92: -5.3 | AH92: -16.7
A93: 2.9 | E93: 2.6 | H93: -5.7 | N93: 3.7 | V93: -8.3 | AA93: -5.4 | AH93: -16.8
A94: 3.5 | E94: 2.9 | H94: -5.1 | N94: 3.4 | V94: -9.3 | AA94: -5.5 | AH94: -16.2
A95: 4.2 | E95: 3.1 | H95: -16.9 | N95: 3.3 | V95: -10.2 | AA95: -8.2 | AH95: -18.4
A96: 4.2 | E96: 3.1 | H96: -13.3 | N96: 1.6 | V96: -12 | AA96: -8.1 | AH96: -16.9
A97: 4.5 | E97: 3 | H97: -10.7 | N97: 1.3 | V97: -13 | AA97: -8 | AH97: -16
A98: 4.9 | E98: 2.7 | H98: -9.9 | N98: 1.3 | V98: -3 | AA98: -7.9 | AH98: -15.8
A99: 4.9 | E99: 1.8 | H99: -12.5 | N99: 3.6 | V99: -3 | AA99: -1.5 | AH99: -17
A100: 4.4 | E100: 2.1 | H100: -9.7 | N100: 4 | V100: -3.2 | AA100: -1 | AH100: -16.7
A101: 6.9 | E101: 2.4 | H101: -8 | N101: 3.8 | V101: -4 | AA101: -1 | AH101: -16.7
A102: 6.9 | E102: 2.4 | H102: -7.2 | N102: 3.8 | V102: -4 | AA102: -1.7 | AH102: -14.8
A103: 7.1 | E103: 2.2 | H103: -12.7 | N103: 1.9 | V103: -3 | AA103: -1.4 | AH103: -18.8
A104: 6.9 | E104: 2 | H104: -11 | N104: 2 | V104: -3 | AA104: -1.8 | AH104: -18
A105: 6.9 | E105: 1.8 | H105: -9 | N105: 1.9 | V105: -3.3 | AA105: -2.1 | AH105: -17.8
A106: 7.1 | E106: 1.7 | H106: -7.6 | N106: 2 | V106: -3 | AA106: -2.2 | AH106: -17.6
A107: 7 | E107: 1.7 | H107: 0.2 | N107: -0.2 | V107: -2 | AA107: -2.7 | AH107: -16.7
A108: 7.9 | E108: 1.8 | H108: 1.3 | N108: -1.3 | V108: 2 | AA108: -2.8 | AH108: -15
A109: 6.5 | E109: 2 | H109: 2 | N109: -2.3 | V109: 2 | AA109: -3 | AH109: -13.4
A110: 5.3 | E110: 2.1 | H110: 2.2 | N110: -1.4 | V110: 1.9 | AA110: -3.1 | AH110: -12.4
A111: 5.4 | E111: 5 | H111: 2.3 | N111: 1.5 | V111: 2 | AA111: -0.1 | AH111: -8
A112: 6.1 | E112: 5.1 | H112: 3 | N112: 1.1 | V112: 2 | AA112: -0.5 | AH112: -7.6
A113: 5.8 | E113: 5.3 | H113: 3 | N113: 2 | V113: 1 | AA113: -0.7 | AH113: -8
A114: 6.6 | E114: 5.5 | H114: 3.1 | N114: 2.9 | V114: 1 | AA114: -0.5 | AH114: -8
A115: 3.3 | E115: 5.8 | V115: 1.4
A116: 3.9 | E116: 6 | V116: 2
A117: 4.4 | E117: 6 | V117: 1.7
A118: 4.9 | E118: 5.8 | V118: 0.3
A119: 5 | E119: 5.8 | V119: 1
A120: 5.1 | E120: 5.7 | V120: 0.8
A121: 5.1 | E121: 5.7 | V121: 1
A122: 6.3 | E122: 5.7 | V122: 1
A123: 6.2 | E123: 5.3 | V123: -2.2
A124: 6.2 | E124: 5.2 | V124: -2.8
A125: 5.9 | E125: 5.5 | V125: -3
A126: 5.9 | E126: 6.1 | V126: -4
A127: 5.4 | E127: 6.8 | V127: -4
A128: 4.9 | E128: 7.4 | V128: -2
A129: 5.2 | E129: 7.7 | V129: -2
A130: 5.3 | E130: 7.8 | V130: -2.6
A131: 5.1 | E131: 7.8 | V131: -3
A132: 4.9 | E132: 7.9 | V132: -3
A133: 4.3 | E133: 8.1 | V133: 0.7
A134: 4 | E134: 8.1 | V134: 0
A135: 3.8 | E135: 6.4 | V135: 0.2
A136: 5 | E136: 6.4 | V136: 0
A137: 5.1 | E137: 6.2 | V137: 0
A138: 4.9 | E138: 5.7 | V138: -3
A139: 4.6 | E139: 5.3 | V139: -3
A140: 4.3 | E140: 5.1 | V140: -3.3
A141: 3.2 | E141: 5.1 | V141: -5
A142: 3.1 | E142: 5.4 | V142: -5
A143: 0.8 | E143: 5.7
A144: 0.8 | E144: 5.8
A145: 1 | E145: 5.7
A146: 0.8 | E146: 5.5
A147: 0.2 | E147: 5
A148: -0.1 | E148: 5
A149: -0.1 | E149: 4.9
A150: 1.1 | E150: 4.8
A151: 1.2 | E151: 4.8
A152: 1.1 | E152: 4.9
A153: 0.7 | E153: 4.9
A154: 0.4 | E154: 5
A155: 0.3 | E155: 5
A156: 0.3 | E156: 5
A157: 1.7 | E157: 5
A158: 1.8 | E158: 5.1
A159: 2.6 | E159: 4.4
A160: 2.7 | E160: 4.3
A161: 3.7 | E161: 4.5
A162: 4 | E162: 5
A163: 4.4 | E163: 5.4
A164: 6.2 | E164: 5.6
A165: 5.9 | E165: 5.5
A166: 5.2 | E166: 5.3
A167: 4.8 | E167: 5.2
A168: 4.3 | E168: 5.1
A169: 3.8 | E169: 5
A170: 3.2 | E170: 4.9
A171: 5.6 | E171: 3.4
A172: 5.7 | E172: 3.5
A173: 5.6 | E173: 3.9
A174: 5.3 | E174: 4.4
A175: 4.7 | E175: 4.9
A176: 3.9 | E176: 5.3
A177: 3.5 | E177: 5.5
A178: 4.2 | E178: 5.6
A179: 4.1 | E179: 5.7
A180: 3.8 | E180: 5.6
A181: 3.5 | E181: 5.4
A182: 2.7 | E182: 5.1
A183: 2.3 | E183: 2.8
A184: 1.3 | E184: 2.9
A185: 3.6 | E185: 3.1
A186: 5.2 | E186: 3.4
A187: 3.7 | E187: 3.6
A188: 3.1 | E188: 3.6
A189: 2.4 | E189: 3.5
A190: 2 | E190: 3.4
A191: 1.8 | E191: 3.3
A192: 4.5 | E192: 3.2
A193: 4.6 | E193: 3.2
A194: 4.6 | E194: 3.2
A195: 4.9 | E195: 3
A196: 5 | E196: 3.3
A197: 5.2 | E197: 3.5
A198: 5.5 | E198: 3.6
E199: 3.5
E200: 3.3
... 138 more rows

Sheet Værdata Mars
A1: Bergen 14:45-20:00 | B1: Florø 02:45-03:00 | C1: Måløy 05:15-05:30 | D1: Torvik 08:20-08:30 | E1: Ålesund 09:45-20:00 | F1: Molde 22:35-23:05 | G1: Kristiansund 02:45-03:00 | H1: Trondheim 09:45-12:45 | I1: Rørvik 21:40-22:00 | J1: Brønnøysund 01:35-01:45 | K1: Sandnessjøen 04:35-04:50 | L1: Nesna 06:00-06:10 | M1: Ørnes 10:00-10:10 | N1: Bodø 13:05-15:20 | O1: Stamsund 19:15-19:40 | P1: Svolvær 21:20-22:15 | Q1: Stokmarknes 01:30-01:40 | R1: Sortland 02:55-03:10 | S1: Risøyhamn 04:35-04:50 | T1: Harstad 07:10 - 07:45 | U1: Finnsnes 11:00-11:30 | V1: Tromsø 14:15-18:15 | W1: Skjervøy 22:10-22:25 | X1: Øksfjord 01:50-02:00 | Y1: Hammerfest 05:05- 05:45 | Z1: Havøysund 08:30 - 08:45 | AA1: Honningsvåg 10:55- 14:30 | AB1: Kjøllefjord 16:40-17:00 | AC1: Mehamn 18:55-19:15 | AD1: Berlevåg 22:00-22:10 | AE1: Båtsfjord 00:00-00:30 | AF1: Vardø 03:30-03:45 | AG1: Vadsø 06:55-07:10 | AH1: Kirkenes 09:00-12:30
A2: Florida 14:00 - 20:00 | B2: Florida 03:00 | C2: Svinøy Fyr 05:00 | D2: Vigra 08:00 | E2: Vigra 09:00-20:00 | F2: Ona 23:00 | G2: Ona 03:00 | H2: Værnes 10:00-13:00 | I2: Ørland 22:00 | J2: Bodø 02:00 | K2: Bodø 05:00 | L2: Bodø 06:00 | M2: Bodø 10:00 | N2: 13:00-16:00 | O2: Skrova 19:00 | P2: Skrova 22:00 | Q2: Sortland 02:00 | R2: Sortland 03:00 | S2: Andøya 05:00 | T2: Andøya 07:00 | U2: Tromsø 11:00 | V2: Tromsø 14:00 - 18:00 | W2: Tromsø 22:00 | X2: Torsvåg 02:00 | Y2: Fruholmen 05:00 | Z2: Fruholmen 09:00 | AA2: Fruholmen 11-14 | AB2: Slettnes 17:00 | AC2: Slettnes 19:00 | AD2: Slettnes 22:00 | AE2: Vardø 00:00 | AF2: Vardø 04:00 | AG2: Kirkenes 07:00 | AH2: Kirkenes 09:00-12:00
A3: 4.9 | B3: 3.8 | C3: 1.6 | D3: 1 | E3: 1 | F3: 1.8 | G3: 3.8 | H3: -0.3 | I3: 3 | J3: -1.8 | K3: -3 | L3: -3.1 | M3: -2 | N3: -1.3 | O3: -2.4 | P3: -3 | Q3: 1.5 | R3: 2.1 | S3: -0.2 | T3: -1 | U3: 0.8 | V3: 1.3 | W3: -0.4 | X3: 1.3 | Y3: -0.5 | Z3: 1.8 | AA3: 3.8 | AB3: 1.7 | AC3: 2 | AD3: 1.9 | AE3: -2.8 | AF3: -2.8 | AG3: -17 | AH3: -15.7
A4: 3.2 | B4: 3.1 | C4: -0.8 | D4: -3.2 | E4: 1.3 | F4: 2.5 | G4: 1.7 | H4: -0.2 | I4: 1.8 | J4: -0.2 | K4: 0 | L4: -0.3 | M4: -0.3 | N4: -1 | O4: -2.5 | P4: -2 | Q4: 0.6 | R4: 0.6 | S4: -4.8 | T4: -4.6 | U4: 0.2 | V4: 1.2 | W4: -2.9 | X4: 1.6 | Y4: 1 | Z4: 1.3 | AA4: 4.2 | AB4: 2.3 | AC4: 1.8 | AD4: 0 | AE4: 0.8 | AF4: -1.2 | AG4: -7 | AH4: -14.1
A5: 4.3 | B5: 0.6 | C5: 1.5 | D5: 2.5 | E5: 2 | F5: 2.1 | G5: 2.3 | H5: 0 | I5: -0.2 | J5: -4 | K5: -4.3 | L5: -4.9 | M5: -3.7 | N5: -0.7 | O5: -0.8 | P5: 0 | Q5: -1.4 | R5: -1.8 | S5: -4.1 | T5: -4.1 | U5: -3 | V5: 0.9 | W5: -6 | X5: 1.7 | Y5: 2.3 | Z5: 2.6 | AA5: 4.2 | AB5: -6.6 | AC5: -8.3 | AD5: -9.7 | AE5: 1.9 | AF5: 1 | AG5: -5.4 | AH5: -13.8
A6: 2.7 | B6: -0.6 | C6: 4.5 | D6: 3.2 | E6: 1.8 | F6: 0.8 | G6: 1.4 | H6: -0.3 | I6: 2.7 | J6: -5.2 | K6: -6 | L6: -6.1 | M6: -5.2 | N6: -0.5 | O6: -0.6 | P6: 0.3 | Q6: -2.7 | R6: -2 | S6: -6 | T6: -6 | U6: -3 | V6: 0.8 | W6: 0.7 | X6: 0.7 | Y6: 2.1 | Z6: 2.4 | AA6: 3.9 | AB6: -7.4 | AC6: -6.7 | AD6: -4.1 | AE6: 2 | AF6: 1.8 | AG6: -5.6 | AH6: -13
A7: 3.5 | B7: -2.3 | C7: 3.6 | D7: 2.7 | E7: 1.2 | F7: 0 | G7: 0.2 | H7: -5.1 | I7: 3.8 | J7: -5 | K7: -4.2 | L7: -4.3 | M7: -3.1 | N7: -0.5 | O7: -1.6 | P7: -2.8 | Q7: -2.2 | R7: -1.7 | S7: -5.8 | T7: -5.4 | U7: 0 | V7: 0.5 | W7: 2.6 | X7: -2.3 | Y7: 2 | Z7: 2.1 | AA7: 0.8 | AB7: -3.3 | AC7: -3.2 | AD7: -2.9 | AE7: -0.2 | AF7: 1.8 | AG7: -8 | AH7: -6.3
A8: 3.7 | B8: 3.9 | C8: 2.7 | D8: 0 | E8: 1 | F8: 3 | G8: 0.7 | H8: -4.8 | I8: 1 | J8: 0 | K8: 0 | L8: -0.1 | M8: 1.3 | N8: -1 | O8: -1.7 | P8: -2.5 | Q8: 3.9 | R8: 4.1 | S8: 0 | T8: -0.2 | U8: 3.3 | V8: 0.8 | W8: 2 | X8: -0.7 | Y8: 3.6 | Z8: 3.7 | AA8: 0.4 | AB8: -0.9 | AC8: -1.3 | AD8: -1.8 | AE8: -0.6 | AF8: 0.2 | AG8: -17.1 | AH8: -8.1
A9: 3.4 | B9: 3.2 | C9: 1.9 | D9: 1.2 | E9: 1 | F9: 4.1 | G9: 2.5 | H9: -4 | I9: 2.6 | J9: 0 | K9: 1 | L9: 1.1 | M9: 2 | N9: -0.6 | O9: -3.5 | P9: -4.2 | Q9: 6.4 | R9: 6.4 | S9: 2 | T9: 2 | U9: -0.2 | V9: 0.5 | W9: -1 | X9: -1.2 | Y9: 1.9 | Z9: 2.8 | AA9: 0.1 | AB9: -5.8 | AC9: -6.1 | AD9: -5.9 | AE9: 1.9 | AF9: -1.4 | AG9: -12.9 | AH9: -7.7
A10: 6.1 | B10: 3.3 | C10: 3.8 | D10: 2 | E10: 1 | F10: 5.8 | G10: 4.1 | H10: -3.9 | I10: 5.6 | J10: 2 | K10: 3.2 | L10: 3.2 | M10: 4.9 | N10: -0.3 | O10: -1.3 | P10: -1.6 | Q10: 4.9 | R10: 4.8 | S10: 2.8 | T10: 2 | U10: -1 | V10: -0.1 | W10: 1.3 | X10: -2.1 | Y10: 2.2 | Z10: 1.4 | AA10: 0.1 | AB10: -5.2 | AC10: -5.3 | AD10: -3.6 | AE10: 1.2 | AF10: 1 | AG10: -4 | AH10: -5.8
A11: 6.4 | B11: 6.7 | C11: 3.8 | D11: 2.8 | E11: 1 | F11: 4.7 | G11: 5.7 | H11: -3.6 | I11: 4.2 | J11: 4 | K11: 3 | L11: 2.9 | M11: 3.3 | N11: -3.3 | O11: -2 | P11: -2.3 | Q11: 0.4 | R11: -0.4 | S11: 1 | T11: 4.4 | U11: 1.5 | V11: -1 | W11: 2 | X11: -1.2 | Y11: 3.3 | Z11: 4.6 | AA11: 2.2 | AB11: -3 | AC11: -3 | AD11: -2.3 | AE11: 2.4 | AF11: 1.2 | AG11: -2.4 | AH11: -5
A12: 6.1 | B12: 3.4 | C12: 0.9 | D12: -0.7 | E12: 0.8 | F12: 5.2 | G12: 4.3 | H12: -2.9 | I12: 2.8 | J12: -1.2 | K12: -2.3 | L12: -3.2 | M12: -1.3 | N12: -3 | O12: -2.8 | P12: -3.1 | Q12: 4.3 | R12: 4.7 | S12: 2.8 | T12: 1.9 | U12: 3 | V12: -1.7 | W12: 0.5 | X12: 2.4 | Y12: 1.7 | Z12: 2.4 | AA12: 2.1 | AB12: -0.6 | AC12: -1.9 | AD12: -1.8 | AE12: -2.6 | AF12: 1.8 | AG12: -4.4 | AH12: -4.9
A13: 5.1 | B13: 8.3 | C13: 3.9 | D13: 1.8 | E13: 0.1 | F13: 7 | G13: 5.5 | H13: -2.1 | I13: 7.6 | J13: -4 | K13: -4 | L13: -3.9 | M13: -2.4 | N13: -3.5 | O13: -2.9 | P13: -2.8 | Q13: 3.5 | R13: 3.5 | S13: 2 | T13: 0.6 | U13: 1 | V13: -3.1 | W13: 0.3 | X13: 1.1 | Y13: -0.7 | Z13: 2 | AA13: 2.2 | AB13: -2 | AC13: -3 | AD13: -3.9 | AE13: -1.9 | AF13: -3.5 | AG13: -3 | AH13: -5
A14: 4.4 | B14: 6.5 | C14: 4.2 | D14: 3 | E14: 0 | F14: 7.3 | G14: 6.5 | H14: -1.4 | I14: 5.9 | J14: -3.2 | K14: -2 | L14: -2.3 | M14: -1.6 | N14: -3.9 | O14: -2.6 | P14: -3 | Q14: 2.8 | R14: 3 | S14: 1 | T14: 0.4 | U14: 3 | V14: -4 | W14: -0.5 | X14: 2.9 | Y14: -1 | Z14: 0.3 | AA14: 2.5 | AB14: -3.2 | AC14: -4.1 | AD14: -4.2 | AE14: -0.9 | AF14: -3.4 | AG14: -5 | AH14: -5
A15: 3.8 | B15: 5 | C15: 1.9 | D15: 0 | E15: -4.2 | F15: 9.3 | G15: 7.9 | H15: -0.6 | I15: 4.1 | J15: 0 | K15: -0.7 | L15: -0.7 | M15: 0.8 | N15: -3.9 | O15: 0.5 | P15: 1.2 | Q15: 2.1 | R15: 2.2 | S15: 0 | T15: -0.4 | U15: -0.8 | V15: -4.5 | W15: -3.8 | X15: 5.9 | Y15: -2.1 | Z15: -2.3 | AA15: 2.2 | AB15: -2.3 | AC15: -3.8 | AD15: -5.2 | AE15: -4.4 | AF15: -2 | AG15: -8.8 | AH15: -5.6
A16: 3 | B16: 3.3 | C16: 2 | D16: 1 | E16: -4.6 | F16: 4.3 | G16: 7.4 | H16: 0.6 | I16: 3.3 | J16: 2.2 | K16: 2 | L16: 2.3 | M16: 1.9 | N16: -4 | O16: 3 | P16: 3 | Q16: 0.7 | R16: 1.3 | S16: -4 | T16: -3.8 | U16: -1.8 | V16: -5.2 | W16: -4.6 | X16: 4.2 | Y16: -4.9 | Z16: -4.6 | AA16: 2.4 | AB16: -2.7 | AC16: -2.9 | AD16: -1.2 | AE16: -4.4 | AF16: -4.8 | AG16: -3 | AH16: -5.9
A17: 5.1 | B17: 3.6 | C17: 2.8 | D17: 0.3 | E17: -2.8 | F17: 2.8 | G17: 3.7 | H17: 1.4 | I17: 3.8 | J17: 1 | K17: 0.3 | L17: 0.2 | M17: 0.5 | N17: -3.9 | O17: 2.1 | P17: 1.4 | Q17: 1.7 | R17: 1.2 | S17: -5 | T17: -4.9 | U17: -2 | V17: -4.9 | W17: -2.4 | X17: 4.2 | Y17: -4 | Z17: -3.7 | AA17: 2.7 | AB17: -0.3 | AC17: -0.3 | AD17: -0.3 | AE17: -2.1 | AF17: -4 | AG17: -10.6 | AH17: -6
A18: 5.4 | B18: 2.3 | C18: 3 | D18: 2.2 | E18: -1.8 | F18: 3.8 | G18: 2.5 | H18: 1.9 | I18: 2.1 | J18: 2.2 | K18: 5.2 | L18: 5.6 | M18: 5.2 | N18: -3.9 | O18: 1.7 | P18: 1.5 | Q18: -1.6 | R18: -1.7 | S18: -6 | T18: -5.8 | U18: -1 | V18: -2.1 | W18: 0.7 | X18: 0.5 | Y18: -2.1 | Z18: -1.1 | AA18: 2.9 | AB18: -1.8 | AC18: -3.6 | AD18: -3.8 | AE18: -2.8 | AF18: -3.2 | AG18: -12.8 | AH18: -6
A19: 5.7 | B19: 1.8 | C19: 4.4 | D19: 4.1 | E19: -1.4 | F19: 1.8 | G19: 4.5 | H19: 3.4 | I19: -1.3 | J19: 3 | K19: 2 | L19: 3 | M19: 2.7 | N19: -0.8 | O19: 2.3 | P19: 1.3 | Q19: 1.5 | R19: 1.1 | S19: -8.7 | T19: -6.6 | U19: 0 | V19: -1.2 | W19: -0.8 | X19: 0.4 | Y19: -3.3 | Z19: -3.5 | AA19: 2.1 | AB19: -1.2 | AC19: -2.1 | AD19: -4 | AE19: -2.8 | AF19: -4.3 | AG19: -20 | AH19: -7
A20: 4.6 | B20: 0.9 | C20: 5.2 | D20: 5 | E20: -3 | F20: 2.2 | G20: 2.1 | H20: 4 | I20: 1 | J20: -1 | K20: 0.7 | L20: 1 | M20: 0.4 | N20: -0.2 | O20: 2.2 | P20: 2.5 | Q20: -2.3 | R20: -2.3 | S20: -1 | T20: 0.2 | U20: 0 | V20: -0.5 | W20: -1.6 | X20: 1 | Y20: -2.1 | Z20: -1.8 | AA20: 1.8 | AB20: -4.4 | AC20: -5 | AD20: -4.9 | AE20: -2.5 | AF20: -3.2 | AG20: -4.1 | AH20: -6.5
A21: 3.2 | B21: 1 | C21: 1.9 | D21: 1.2 | E21: -2.8 | F21: 2.3 | G21: 1.6 | H21: 4 | I21: -1.6 | J21: 4.8 | K21: 4.1 | L21: 3.9 | M21: 3.6 | N21: 0.1 | O21: 0.7 | P21: 0.2 | Q21: -3.2 | R21: -3.4 | S21: 1 | T21: 2.8 | U21: -1.5 | V21: 0 | W21: -3 | X21: 0.1 | Y21: -1.8 | Z21: -1.7 | AA21: 1.5 | AB21: -3.3 | AC21: -3.3 | AD21: -2.8 | AE21: -2.4 | AF21: -2.3 | AG21: -5.8 | AH21: -6.8
A22: 2.6 | B22: 1.3 | C22: 2.5 | D22: 2 | E22: -2 | F22: 3.3 | G22: 3.4 | H22: 3.8 | I22: -1.4 | J22: 2 | K22: 2 | L22: 1.8 | M22: 2.8 | N22: -0.1 | O22: 0.9 | P22: 0.8 | Q22: -2.9 | R22: -2.9 | S22: -0.8 | T22: -0.3 | U22: -2 | V22: 0 | W22: -3.9 | X22: -0.5 | Y22: -1.5 | Z22: -1.6 | AA22: 1.2 | AB22: -4.5 | AC22: -5.8 | AD22: -7 | AE22: -4.3 | AF22: -2.5 | AG22: 1.2 | AH22: -6.2
A23: 1.4 | B23: 2.8 | C23: 3.3 | D23: 1.3 | E23: -2 | F23: 4.1 | G23: 3.2 | H23: -0.6 | I23: -10 | J23: 0.2 | K23: 1 | L23: 0.8 | M23: 0.3 | N23: 1.9 | O23: 0.9 | P23: 1.2 | Q23: 1.5 | R23: 1.6 | S23: -2 | T23: -2.2 | U23: 0 | V23: 1 | W23: -7.1 | X23: -0.5 | Y23: -3.6 | Z23: -3 | AA23: 3.1 | AB23: -4.3 | AC23: -5 | AD23: -5.9 | AE23: -3 | AF23: -4.3 | AG23: -3.4 | AH23: -15.8
A24: 0.3 | B24: -1.8 | C24: 3.7 | D24: 2.2 | E24: -2.3 | F24: 7 | G24: 4.3 | H24: -0.8 | I24: -6.6 | J24: -2 | K24: -2 | L24: -2 | M24: -0.4 | N24: 1 | O24: 1 | P24: 0.1 | Q24: 2.6 | R24: 2.6 | S24: -3.8 | T24: -3 | U24: -1.8 | V24: 1.4 | W24: -5.7 | X24: -2.7 | Y24: -3.4 | Z24: -2.7 | AA24: 2.9 | AB24: -4.5 | AC24: -5.2 | AD24: -6.4 | AE24: -4.6 | AF24: -3.5 | AG24: -4.7 | AH24: -15.2
A25: 0.9 | B25: -2 | C25: 2.4 | D25: 1.3 | E25: -1.9 | F25: 4.8 | G25: 7 | H25: 0.2 | I25: -2.2 | J25: -2 | K25: -3 | L25: -3 | M25: -0.9 | N25: 0.5 | O25: 0.1 | P25: 0 | Q25: -4.5 | R25: -4.6 | S25: 1 | T25: 2 | U25: -1 | V25: 1.7 | W25: -1.2 | X25: 1.6 | Y25: -4.7 | Z25: -3 | AA25: 2.7 | AB25: -5.2 | AC25: -4.9 | AD25: -4.4 | AE25: -5 | AF25: -4.5 | AG25: -1.1 | AH25: -13.8
A26: 0.5 | B26: -1.8 | C26: 4.5 | D26: 5.5 | E26: -1.6 | F26: 2.2 | G26: 4.4 | H26: 0.8 | I26: -4.8 | J26: -1 | K26: 0 | L26: -0.2 | M26: 0.8 | N26: 0.3 | O26: -0.3 | P26: 1.1 | Q26: -2.5 | R26: -2.5 | S26: 2 | T26: 2.1 | U26: 0.2 | V26: 2 | W26: -4.2 | X26: 0.7 | Y26: -3.5 | Z26: -3.3 | AA26: 2.5 | AB26: -1.4 | AC26: -1 | AD26: -1.4 | AE26: -4.8 | AF26: -5.9 | AG26: -1.4 | AH26: -13.3
A27: 0.4 | B27: -4.8 | C27: 5.4 | D27: 6.2 | E27: 2.8 | F27: 3.4 | G27: 2 | H27: -4.6 | I27: -0.1 | J27: 0.2 | K27: 1 | L27: 1.5 | M27: 1.8 | N27: 3.2 | O27: 4 | P27: 3.9 | Q27: -2.7 | R27: -3.1 | S27: 0.8 | T27: 0.4 | U27: -2.4 | V27: 2.3 | W27: -5.4 | X27: -0.8 | Y27: -5.6 | Z27: -5.4 | AA27: 3.3 | AB27: -1.6 | AC27: -2 | AD27: -2.5 | AE27: -4.3 | AF27: -3.4 | AG27: -9.7 | AH27: -11
A28: -0.8 | B28: -3.7 | C28: 5.2 | D28: 5 | E28: 3 | F28: 0.9 | G28: 2.7 | H28: -1.7 | I28: -4.6 | J28: 0 | K28: -0.7 | L28: -0.4 | M28: 0.6 | N28: 4 | O28: 4.1 | P28: 4 | Q28: -3.2 | R28: -2.8 | S28: 0.3 | T28: 0.5 | U28: -3.8 | V28: 3 | W28: -5.1 | X28: -2.4 | Y28: -6.9 | Z28: -6.2 | AA28: 3.3 | AB28: -2.4 | AC28: -2.8 | AD28: -3 | AE28: -6 | AF28: -6.4 | AG28: -7 | AH28: -10.5
A29: -1.2 | B29: -2 | C29: 5.1 | D29: 5 | E29: 4 | F29: 0.3 | G29: 0.3 | H29: -0.2 | I29: -1.6 | J29: -0.8 | K29: 0.2 | L29: 0 | M29: 0.7 | N29: 4 | O29: 3.6 | P29: 3.6 | Q29: -4.3 | R29: -5.4 | S29: 0 | T29: 1 | U29: -2.8 | V29: 2.7 | W29: -0.3 | X29: -1.6 | Y29: -6 | Z29: -6.2 | AA29: 3.3 | AB29: -7.5 | AC29: -9.1 | AD29: -7.8 | AE29: -3.9 | AF29: -5.8 | AG29: -10.9 | AH29: -10.8
A30: -1.1 | B30: 0.3 | C30: 7.7 | D30: 9.2 | E30: 4 | F30: 3.4 | G30: 0.5 | H30: 1.6 | I30: 3.6 | J30: 2 | K30: 2 | L30: 1.9 | M30: 1.9 | N30: 3.8 | O30: 4.2 | P30: 2.7 | Q30: -3.3 | R30: -2.7 | S30: -1 | T30: -0.6 | U30: 2.2 | V30: 2.6 | W30: -1.4 | X30: -1.7 | Y30: -3.9 | Z30: -5.2 | AA30: 3.3 | AB30: 0 | AC30: 1.2 | AD30: 0.5 | AE30: -4.3 | AF30: -4.4 | AG30: -3.7 | AH30: -9.8
A31: 0.3 | B31: 7.4 | C31: 6.8 | D31: 8.7 | E31: 4 | F31: 2.3 | G31: 2.9 | H31: -6.2 | I31: 4.5 | J31: 2 | K31: 1 | L31: 1.1 | M31: 2.2 | N31: 5.7 | O31: 1.9 | P31: 2.3 | Q31: 2.5 | R31: 2.1 | S31: 1.2 | T31: 1.7 | U31: 2.2 | V31: 3 | W31: -1.7 | X31: -3.4 | Y31: -3.8 | Z31: -3.4 | AA31: 0 | AB31: -0.6 | AC31: -0.8 | AD31: 0.5 | AE31: -2.8 | AF31: -3.8 | AG31: -6.3 | AH31: -3
A32: 0.4 | B32: 6.7 | C32: 4.8 | D32: 5 | E32: 4 | F32: 5.8 | G32: 2.1 | H32: -4.8 | I32: 7.5 | J32: 5.8 | K32: 5.8 | L32: 5.3 | M32: 5.6 | N32: 6 | O32: 2.5 | P32: 2.6 | Q32: -0.7 | R32: -0.8 | S32: -2 | T32: -1.9 | U32: 1 | V32: 3.1 | W32: 2.6 | X32: -0.9 | Y32: -1.4 | Z32: -1.8 | AA32: 0.1 | AB32: 0.3 | AC32: -0.4 | AD32: -2 | AE32: -1.2 | AF32: -3.2 | AG32: -1.8 | AH32: -3.3
A33: 1.1 | B33: 6.1 | C33: 4.2 | D33: 5 | E33: 4 | F33: 1.5 | G33: 6.6 | H33: -3.7 | I33: 5.9 | J33: 6 | K33: 4.8 | L33: 4.3 | M33: 5 | N33: 6.2 | O33: 2 | P33: 2.7 | Q33: -2.5 | R33: -2.4 | S33: -8.7 | T33: -6.9 | U33: 4.8 | V33: -1 | W33: 2.6 | X33: 3.6 | Y33: -1.2 | Z33: -0.5 | AA33: 0.4 | AB33: 1 | AC33: 1.1 | AD33: -0.4 | AE33: -0.9 | AF33: -1 | AG33: -7.4 | AH33: -3
A34: 2.3 | E34: 4.4 | H34: -1.8 | N34: 5.7 | V34: -0.7 | AA34: 0.6 | AH34: -3
A35: 3.3 | E35: 4 | H35: 3.9 | N35: 4 | V35: -0.4 | AA35: 5.4 | AH35: -2
A36: 6.9 | E36: 4 | H36: 3.4 | N36: 3.8 | V36: -1 | AA36: 5.3 | AH36: -2.3
A37: 6.9 | E37: 4 | H37: 2.8 | N37: 3.3 | V37: -0.9 | AA37: 5.2 | AH37: -2
A38: 4.3 | E38: 4 | H38: 2.2 | N38: 2.7 | V38: -1 | AA38: 5.2 | AH38: -2
A39: 3.8 | E39: 4 | H39: 1.8 | N39: -1.7 | V39: -1 | AA39: 1.5 | AH39: -4
A40: 3.1 | E40: 3.5 | H40: 2.4 | N40: -1 | V40: -1 | AA40: 1.4 | AH40: -4.1
A41: 2.9 | E41: 3 | H41: 3 | N41: -1.7 | V41: -0.9 | AA41: 1.5 | AH41: -4
A42: 2.5 | E42: 3 | H42: 3.4 | N42: -2.2 | V42: -0.4 | AA42: 1.5 | AH42: -3.7
A43: 2.3 | E43: 3.3 | H43: 4.7 | N43: -1.4 | V43: 1.2 | AA43: 3.8 | AH43: -3.8
A44: 2.2 | E44: 6 | H44: 5.4 | N44: -1 | V44: 1.8 | AA44: 4.1 | AH44: -3.4
A45: 6.9 | E45: 6 | H45: 6.2 | N45: -0.9 | V45: 2.4 | AA45: 4 | AH45: -3
A46: 6.8 | E46: 6.2 | H46: 6.5 | N46: -1 | V46: 2 | AA46: 3.7 | AH46: -3
A47: 6.7 | E47: 5.8 | H47: 4 | N47: -1 | V47: 2 | AA47: 0.1 | AH47: -5
A48: 6.6 | E48: 4.7 | H48: 5 | N48: -0.2 | V48: 2.9 | AA48: 0.1 | AH48: -4.6
A49: 5.7 | E49: 2.9 | H49: 4.1 | N49: -0.6 | V49: 3 | AA49: 0.1 | AH49: -4.8
A50: 3.1 | E50: 2 | H50: 3.4 | N50: -1.1 | V50: 2.2 | AA50: -0.1 | AH50: -4
A51: 2.4 | E51: 1.3 | H51: 4.4 | N51: 3.3 | V51: 2 | AA51: -2.7 | AH51: -6.8
A52: 5.2 | E52: 3.1 | H52: 5.3 | N52: 4 | V52: 2.3 | AA52: -2.9 | AH52: -6
A53: 5 | E53: 3.7 | H53: 7.2 | N53: 3.9 | V53: 1.6 | AA53: -3 | AH53: -4.8
A54: 4.6 | E54: 1.8 | H54: 8.2 | N54: 3.4 | V54: 1.6 | AA54: -3.1 | AH54: -4
A55: 4.1 | E55: 1.4 | H55: 2.4 | N55: 2.1 | V55: 1.5 | AA55: -4.5 | AH55: -3
A56: 4.4 | E56: 3 | H56: 3 | N56: 1.3 | V56: 1.2 | AA56: -4.3 | AH56: -2.6
A57: 5.3 | E57: 3 | H57: 3 | N57: 1.2 | V57: 1.2 | AA57: -4.3 | AH57: -2.8
A58: 5.4 | E58: 2.9 | H58: 3.1 | N58: 1.1 | V58: 3 | AA58: -4.6 | AH58: -2.2
A59: 6.7 | E59: 2 | H59: 1 | N59: 2.6 | V59: 3.1 | AA59: -3.3 | AH59: -10.8
A60: 6.2 | E60: 2 | H60: 1.1 | N60: 4 | V60: 2.7 | AA60: -3.1 | AH60: -10
A61: 6.2 | E61: 1.9 | H61: 1 | N61: 4.9 | V61: 1.8 | AA61: -2.9 | AH61: -9.5
A62: 6 | E62: 1 | H62: 1.2 | N62: 5.2 | V62: 0.5 | AA62: -2.6 | AH62: -8.7
A63: 6.1 | E63: 0 | H63: -2.9 | N63: 4.7 | V63: 0 | AA63: -0.6 | AH63: -12
A64: 6.1 | E64: 0.2 | H64: -0.8 | N64: 4 | V64: -0.1 | AA64: -0.6 | AH64: -12
A65: 5.2 | E65: 1 | H65: 0.2 | N65: 3.6 | V65: -0.2 | AA65: -0.9 | AH65: -9
A66: 8.5 | E66: 1.2 | H66: 0.8 | N66: 3.5 | V66: 0 | AA66: -1.5 | AH66: -8.8
A67: 8.5 | E67: 2.1 | H67: -1.9 | N67: 3.5 | V67: -0.5 | AA67: -3 | AH67: -16.8
A68: 8.6 | E68: 2 | H68: 0 | N68: 3.8 | V68: 0 | AA68: -2.9 | AH68: -15.8
A69: 8.1 | E69: 2 | H69: 0.4 | N69: 3.5 | V69: 0.3 | AA69: -2.8 | AH69: -13.8
A70: 7.6 | E70: 1.6 | H70: 0.6 | N70: 3 | V70: 0.4 | AA70: -2.9 | AH70: -12.7
A71: 7.8 | E71: 1 | H71: 0.1 | N71: 2.5 | V71: -0.2 | AA71: -1.8 | AH71: -4
A72: 7.7 | E72: 1 | H72: 1.2 | N72: 4 | V72: -1 | AA72: -1.7 | AH72: -3.8
A73: 12.9 | E73: 0.6 | H73: 2 | N73: 4.3 | V73: -1 | AA73: -1.6 | AH73: -3.8
A74: 12.3 | E74: 0 | H74: 2.2 | N74: 4.2 | V74: -1.4 | AA74: -1.5 | AH74: -3
A75: 10.7 | E75: 2.2 | H75: -3.5 | N75: 4.2 | V75: -1.9 | AA75: -1.3 | AH75: -3.8
A76: 10.2 | E76: 3.1 | H76: -1.5 | N76: 3.8 | V76: -2 | AA76: -1.2 | AH76: -3.3
A77: 9.5 | E77: 2 | H77: 1 | N77: 3.3 | V77: -2.4 | AA77: -1.2 | AH77: -2.8
A78: 9.4 | E78: 2 | H78: 3.1 | N78: 2.7 | V78: 1.2 | AA78: -1.2 | AH78: -1.8
A79: 7.5 | E79: 2.5 | H79: 1.7 | N79: 1.6 | V79: 1.6 | AA79: -1.5 | AH79: 1
A80: 7.1 | E80: 3 | H80: 3.2 | N80: 1.7 | V80: 1.8 | AA80: -1.5 | AH80: 0.5
A81: 7.1 | E81: 3 | H81: 3.7 | N81: 2.2 | V81: 2 | AA81: -1.6 | AH81: 0
A82: 7.7 | E82: 3.4 | H82: 4 | N82: 2.2 | V82: 1.7 | AA82: -1.8 | AH82: 0
A83: 7.8 | E83: 3.8 | H83: 3.3 | N83: 3 | V83: 1 | AA83: -2.6 | AH83: -3
A84: 7.2 | E84: 3.2 | H84: 4 | N84: 3 | V84: 0.6 | AA84: -2.5 | AH84: -3.4
A85: 6.9 | E85: 3.5 | H85: 4.4 | N85: 3.4 | V85: 0 | AA85: -2.5 | AH85: -3.2
A86: 6.5 | E86: 3 | H86: 4.7 | N86: 3.3 | V86: -0.2 | AA86: -2.6 | AH86: -2.8
A87: 5.6 | E87: 2.2 | H87: 3.9 | N87: 1.1 | V87: -0.6 | AA87: -2.6 | AH87: -4
A88: 5.2 | E88: 2.5 | H88: 4.2 | N88: 1 | V88: 0.9 | AA88: -2.6 | AH88: -3.6
A89: 6 | E89: 3 | H89: 5 | N89: 1 | V89: 0 | AA89: -2.6 | AH89: -2.7
A90: 6 | E90: 3 | H90: 4.5 | N90: 0.8 | V90: -0.2 | AA90: -2.6 | AH90: -2
A91: 5.1 | E91: 3 | H91: 4 | N91: 0.4 | V91: -0.5 | AA91: -2.8 | AH91: -0.8
A92: 4.9 | E92: 2.7 | H92: 4.5 | N92: 0.7 | V92: -0.7 | AA92: -2.9 | AH92: 0.1
A93: 4.5 | E93: 1 | H93: 5.4 | N93: 0.8 | V93: -1 | AA93: -3 | AH93: -0.5
A94: 6.6 | E94: 1.1 | H94: 6.4 | N94: 0.7 | V94: -1 | AA94: -3.1 | AH94: -1
A95: 6.7 | E95: 3.2 | H95: 5.5 | N95: 1.7 | V95: -1.1 | AA95: -3.1 | AH95: -1
A96: 8.2 | E96: 4 | H96: 6 | N96: 1.9 | V96: -2 | AA96: -2.9 | AH96: -0.7
A97: 6.1 | E97: 4 | H97: 6 | N97: 2.3 | V97: -2.3 | AA97: -2.8 | AH97: -0.6
A98: 6 | E98: 4.3 | H98: 6.4 | N98: 2.5 | V98: -1.7 | AA98: -2.7 | AH98: -0.4
A99: 5.2 | E99: 2.8 | H99: 4.1 | N99: 3 | V99: -2 | AA99: -5.3 | AH99: -7.8
A100: 5.2 | E100: 3 | H100: 4.2 | N100: 3.3 | V100: -2.2 | AA100: -5.4 | AH100: -6.4
A101: 6.4 | E101: 4.2 | H101: 5.2 | N101: 3 | V101: -2 | AA101: -5.5 | AH101: -5.8
A102: 7.2 | E102: 5 | H102: 3.8 | N102: 2.2 | V102: -2.2 | AA102: -5.7 | AH102: -4.7
A103: 6.8 | E103: 4.4 | H103: 1.9 | N103: 1.8 | V103: 1.8 | AA103: -5.6 | AH103: -6.8
A104: 6.6 | E104: 5 | H104: 2.2 | N104: 2 | V104: -0.2 | AA104: -5.5 | AH104: -5.7
A105: 4.9 | E105: 5 | H105: 3.2 | N105: 2.2 | V105: -1.9 | AA105: -5.4 | AH105: -4
A106: 4.8 | E106: 4.8 | H106: 3.5 | N106: 2.1 | V106: -2 | AA106: -5.2 | AH106: -4
A107: 4.5 | E107: 3.2 | H107: -0.3 | N107: 3.2 | V107: -2 | AA107: -6 | AH107: -7
A108: 5.2 | E108: 3.7 | H108: 0.2 | N108: 3.3 | V108: -1 | AA108: -5.6 | AH108: -7.3
A109: 4.1 | E109: 4.4 | H109: 0.6 | N109: 3 | V109: -0.2 | AA109: -5.2 | AH109: -5.4
A110: 3.9 | E110: 3.5 | H110: 0.5 | N110: 3 | V110: -1.3 | AA110: -4.7 | AH110: -3.8
A111: 3.3 | E111: 0.3 | H111: -1 | N111: 3.4 | V111: -2.5 | AA111: -6 | AH111: -3.8
A112: 2.2 | E112: 1 | H112: -1 | N112: 3 | V112: -3.6 | AA112: -5.5 | AH112: -3
A113: 1.9 | E113: 1.2 | H113: -1.3 | N113: 3.4 | V113: -1 | AA113: -5 | AH113: -3.2
A114: 1.8 | E114: 2 | H114: -0.8 | N114: 3.4 | V114: -1.3 | AA114: -4.8 | AH114: -3.8
A115: 3.6 | E115: 1.9 | H115: -1.3 | N115: 4.8 | V115: -1.6 | AA115: -2.7 | AH115: -5
A116: 1.3 | E116: 2 | H116: -0.3 | N116: 6 | V116: -1.9 | AA116: -2.4 | AH116: -5.3
A117: 1.7 | E117: 2 | H117: -2 | N117: 6 | V117: -2.1 | AA117: -2.2 | AH117: -4.8
A118: 1.7 | E118: 2.2 | H118: -1.9 | N118: 5.6 | V118: 0 | AA118: -2 | AH118: -4
A119: 1.8 | E119: 1.8 | H119: 3.5 | N119: 7.2 | V119: -0.5 | AA119: -1.7 | AH119: -1.8
A120: 2.5 | E120: 1 | H120: 4 | N120: 7.3 | V120: -1 | AA120: -1.4 | AH120: -1.2
A121: 2.8 | E121: 0.8 | H121: 4 | N121: 8.3 | V121: -1 | AA121: -1.2 | AH121: -0.2
A122: 6.6 | E122: 1 | H122: 3.6 | N122: 8.6 | V122: -1.7 | AA122: -1 | AH122: -1
A123: 6.2 | E123: 1.2 | H123: 3.1 | N123: 6.8 | V123: -1 | AA123: -0.2 | AH123: -7
A124: 6 | E124: 1.8 | H124: 4 | N124: 6 | V124: -1 | AA124: -0.2 | AH124: -7.2
A125: 5.4 | E125: 2.8 | H125: 4.2 | N125: 5.4 | V125: -1.1 | AA125: -0.2 | AH125: -7
A126: 3.9 | E126: 2.2 | H126: 4.5 | N126: 4.9 | V126: -1.2 | AA126: -0.1 | AH126: -7.2
A127: 2.4 | E127: 3 | V127: -1.6
A128: 2.1 | E128: 3.9 | V128: -3
A129: 5.5 | E129: 4.8 | V129: -3.1
A130: 6.6 | E130: 5.3 | V130: -3.4
A131: 4.5 | E131: 6 | V131: -4
A132: 4.7 | E132: 5.8 | V132: -4.4
A133: 3.8 | E133: 5.1 | V133: -1.2
A134: 3.4 | E134: 5 | V134: -1
A135: 2.9 | E135: 3 | V135: -1
A136: 1 | E136: 3 | V136: -1
A137: 1.5 | E137: 2.8 | V137: -1
A138: 1.4 | E138: 2 | V138: 2.8
A139: 1.4 | E139: 1.5 | V139: 2.7
A140: 2.3 | E140: 2 | V140: 2.8
A141: 2.3 | E141: 2 | V141: 2.9
A142: 2.5 | E142: 1.5 | V142: 2.8
A143: 3 | E143: 1.6 | V143: 3
A144: 2.5 | E144: 1.6 | V144: 2.8
A145: 2.3 | E145: 2.1 | V145: 2.7
A146: 2 | E146: 2 | V146: 2
A147: 1.4 | E147: 0.2 | V147: 1.9
A148: 1.1 | E148: 1 | V148: 1
A149: 0.8 | E149: 1.2 | V149: 1.4
A150: 3.5 | E150: 2 | V150: 1.9
A151: 2.8 | E151: 2 | V151: 3.2
A152: 2.9 | E152: 2.2 | V152: 3.3
A153: 2.2 | E153: 3 | V153: 5.2
A154: 0.2 | E154: 2.7 | V154: 5.8
A155: 0 | E155: 2.8 | V155: 5.9
A156: -0.3 | E156: 1.8 | V156: 4.7
A157: -0.7 | E157: 1.4 | V157: 3.9
A158: -0.3 | E158: 1
A159: 0 | E159: 1.2
A160: -0.1 | E160: 1.6
A161: -0.1 | E161: 2.2
A162: -0.7 | E162: 3.2
A163: -1 | E163: 3.5
A164: 2.2 | E164: 4.2
A165: 2.9 | E165: 5
A166: 2.6 | E166: 5.3
A167: 2.3 | E167: 5
A168: 0.7 | E168: 4.8
A169: 0 | E169: 3.9
A170: -0.8 | E170: 2.8
A171: 3.3 | E171: 2
A172: 4.2 | E172: 2.4
A173: 4.1 | E173: 3.2
A174: 3.6 | E174: 4
A175: 2.5 | E175: 4.2
A176: 1.2 | E176: 4
A177: 0.1 | E177: 4
A178: 5 | E178: 4.3
A179: 5.2 | E179: 4
A180: 5.4 | E180: 4
A181: 4.4 | E181: 3.7
A182: 2.8 | E182: 3
A183: 1.2 | E183: 3.3
A184: -0.1 | E184: 4.5
A185: 3 | E185: 5
A186: 1.3 | E186: 5
A187: 2.9 | E187: 4.7
A188: 0.8 | E188: 5
A189: 0.2 | E189: 5
A190: 0.2 | E190: 5.1
A191: 0.2 | E191: 5
A192: 3.9 | E192: 5
A193: 5.1 | E193: 4.6
A194: 5.9 | E194: 4.5
A195: 6.2 | E195: 4.2
A196: 6.3 | E196: 5.4
A197: 6.4 | E197: 5.2
A198: 6.2 | E198: 6.3
A199: 5.5 | E199: 8
A200: 5.9 | E200: 7.7
... 174 more rows

Sheet Værdata April
A1: Bergen 14:45-20:00 | B1: Florø 02:45-03:00 | C1: Måløy 05:15-05:30 | D1: Torvik 08:20-08:30 | E1: Ålesund 09:45-20:00 | F1: Molde 22:35-23:05 | G1: Kristiansund 02:45-03:00 | H1: Trondheim 09:45-12:45 | I1: Rørvik 21:40-22:00 | J1: Brønnøysund 01:35-01:45 | K1: Sandnessjøen 04:35-04:50 | L1: Nesna 06:00-06:10 | M1: Ørnes 10:00-10:10 | N1: Bodø 13:05-15:20 | O1: Stamsund 19:15-19:40 | P1: Svolvær 21:20-22:15 | Q1: Stokmarknes 01:30-01:40 | R1: Sortland 02:55-03:10 | S1: Risøyhamn 04:35-04:50 | T1: Harstad 07:10 - 07:45 | U1: Finnsnes 11:00-11:30 | V1: Tromsø 14:15-18:15 | W1: Skjervøy 22:10-22:25 | X1: Øksfjord 01:50-02:00 | Y1: Hammerfest 05:05- 05:45 | Z1: Havøysund 08:30 - 08:45 | AA1: Honningsvåg 10:55- 14:30 | AB1: Kjøllefjord 16:40-17:00 | AC1: Mehamn 18:55-19:15 | AD1: Berlevåg 22:00-22:10 | AE1: Båtsfjord 00:00-00:30 | AF1: Vardø 03:30-03:45 | AG1: Vadsø 06:55-07:10 | AH1: Kirkenes 09:00-12:30
A2: Florida 14:00 - 20:00 | B2: Florida 03:00 | C2: Svinøy Fyr 05:00 | D2: Vigra 08:00 | E2: Vigra 09:00-20:00 | F2: Ona 23:00 | G2: Ona 03:00 | H2: Værnes 10:00-13:00 | I2: Ørland 22:00 | J2: Bodø 02:00 | K2: Bodø 05:00 | L2: Bodø 06:00 | M2: Bodø 10:00 | N2: 13:00-16:00 | O2: Skrova 19:00 | P2: Skrova 22:00 | Q2: Sortland 02:00 | R2: Sortland 03:00 | S2: Andøya 05:00 | T2: Andøya 07:00 | U2: Tromsø 11:00 | V2: Tromsø 14:00 - 18:00 | W2: Tromsø 22:00 | X2: Torsvåg 02:00 | Y2: Fruholmen 05:00 | Z2: Fruholmen 09:00 | AA2: Fruholmen 11-14 | AB2: Slettnes 17:00 | AC2: Slettnes 19:00 | AD2: Slettnes 22:00 | AE2: Vardø 00:00 | AF2: Vardø 04:00 | AG2: Kirkenes 07:00 | AH2: Kirkenes 09:00-12:00
A3: 7 | B3: 0.7 | C3: 6.5 | D3: 5 | E3: 5 | F3: 1.4 | G3: -1 | H3: 5.7 | I3: 6.5 | J3: 4.7 | K3: 4.7 | L3: 4.8 | M3: 5.5 | N3: 5.6 | O3: 3 | P3: 3.6 | Q3: 1.1 | R3: 1.5 | S3: -1 | T3: -0.6 | U3: 2.3 | V3: 3.2 | W3: -0.6 | X3: -6.3 | Y3: -0.3 | Z3: 1.8 | AA3: 1.7 | AB3: -0.3 | AC3: 0.1 | AD3: 1.3 | AE3: -0.3 | AF3: -1 | AG3: -0.8 | AH3: 0
A4: 7.4 | B4: 1.2 | C4: 6.2 | D4: 7 | E4: 4.7 | F4: -0.7 | G4: 0.8 | H4: 6.1 | I4: 5 | J4: 2.5 | K4: 2.9 | L4: 3 | M4: 3.1 | N4: 5.6 | O4: 5.6 | P4: 5.2 | Q4: 1.4 | R4: 1.1 | S4: -1.1 | T4: 0.2 | U4: 4 | V4: 3.9 | W4: 0.6 | X4: -6.7 | Y4: 1.9 | Z4: 2.2 | AA4: 1.4 | AB4: 1.6 | AC4: 0.8 | AD4: 0.2 | AE4: -3.6 | AF4: -0.1 | AG4: 0.8 | AH4: 0
A5: 7.6 | B5: 1.8 | C5: 9 | D5: 5.8 | E5: 5 | F5: 1 | G5: -1.1 | H5: 7 | I5: 3.6 | J5: 3.9 | K5: 3.3 | L5: 3.1 | M5: 2.6 | N5: 6.5 | O5: 4.6 | P5: 2.4 | Q5: -0.1 | R5: -0.8 | S5: -1.3 | T5: -0.9 | U5: 2.3 | V5: 4.3 | W5: 0.7 | X5: 1.5 | Y5: 1.3 | Z5: 1.6 | AA5: 1 | AB5: 1.3 | AC5: 1.5 | AD5: 1.8 | AE5: -8.1 | AF5: -4.3 | AG5: -5.2 | AH5: 0.2
A6: 7.6 | B6: 4.1 | C6: 6.1 | D6: 5.2 | E6: 5.2 | F6: 1.7 | G6: 0.6 | H6: 1.4 | I6: 5.8 | J6: 0.8 | K6: 0.8 | L6: 0.9 | M6: 2.7 | N6: 6.4 | O6: 3.4 | P6: 2.8 | Q6: -0.4 | R6: -0.4 | S6: -3 | T6: -2.3 | U6: 2 | V6: 3 | W6: 2 | X6: 3 | Y6: 2.4 | Z6: 3 | AA6: 0.8 | AB6: 1.6 | AC6: 1.3 | AD6: 2 | AE6: -4.9 | AF6: -7.7 | AG6: -5.6 | AH6: 1
A7: 7.3 | B7: 3.6 | C7: 5.3 | D7: 8.2 | E7: 5.9 | F7: 4.2 | G7: 1.5 | H7: 4.6 | I7: 0.4 | J7: 2.3 | K7: 1.4 | L7: 1 | M7: 0.7 | N7: 4.2 | O7: -0.6 | P7: -0.8 | Q7: 1.2 | R7: 1.1 | S7: -1 | T7: -1 | U7: 0 | V7: 2.8 | W7: -0.2 | X7: 3.6 | Y7: 0.6 | Z7: 1.1 | AA7: 2.8 | AB7: 1.4 | AC7: 1 | AD7: 0 | AE7: -1.4 | AF7: -5.5 | AG7: -6.2 | AH7: 1
A8: 6.8 | B8: 5.2 | C8: 4.4 | D8: 9 | E8: 6 | F8: 6.6 | G8: 3.7 | H8: 5.6 | I8: 4.5 | J8: 0.2 | K8: 0.3 | L8: 0 | M8: 2.5 | N8: 4.2 | O8: 0.8 | P8: 0.2 | Q8: -1 | R8: -1.1 | S8: 0 | T8: -0.8 | U8: 1 | V8: 6.7 | W8: -0.6 | X8: 5.1 | Y8: 0 | Z8: 0 | AA8: 2.7 | AB8: -2.8 | AC8: -4.2 | AD8: -7 | AE8: 2.2 | AF8: -0.9 | AG8: -3.8 | AH8: 1.2
A9: 5.9 | B9: 5.2 | C9: 4.3 | D9: 6.2 | E9: 6.2 | F9: 3.9 | G9: 4.9 | H9: 4.6 | I9: 2.4 | J9: 0.8 | K9: 1.2 | L9: 1.4 | M9: 3 | N9: 4.1 | O9: 1.6 | P9: 0.6 | Q9: -1.4 | R9: -1.6 | S9: -2 | T9: -2.1 | U9: 1.2 | V9: 7 | W9: -5.5 | X9: 6.8 | Y9: -2.3 | Z9: -2 | AA9: 2.6 | AB9: -6.9 | AC9: -8.8 | AD9: -4.6 | AE9: -4.1 | AF9: 1.7 | AG9: -5.8 | AH9: 1.8
A10: 9.3 | B10: 5.4 | C10: 4.9 | D10: 9 | E10: 7.4 | F10: 3.8 | G10: 3.4 | H10: 3.4 | I10: 0 | J10: 1.9 | K10: 0.8 | L10: 0.8 | M10: 1.9 | N10: 4 | O10: 0.8 | P10: -0.2 | Q10: -0.7 | R10: -1 | S10: -4 | T10: -2.9 | U10: 0.8 | V10: 7 | W10: -1.8 | X10: 3.6 | Y10: -2.8 | Z10: -1.1 | AA10: 2.6 | AB10: -3.2 | AC10: -2.2 | AD10: -4.6 | AE10: -4.8 | AF10: -5 | AG10: -13.2 | AH10: 0.8
A11: 9.3 | B11: 4.4 | C11: 3.9 | D11: 5.2 | E11: 7.7 | F11: 7.7 | G11: 4.4 | H11: 1.5 | I11: 3.7 | J11: -0.5 | K11: 0 | L11: 0.4 | M11: 2.9 | N11: 2.7 | O11: 0.8 | P11: 0.4 | Q11: -1.4 | R11: -1.4 | S11: 0 | T11: 0.6 | U11: 0.6 | V11: 4 | W11: -2.3 | X11: 6.7 | Y11: -3.7 | Z11: -3 | AA11: 1.5 | AB11: -2.8 | AC11: -0.2 | AD11: -0.3 | AE11: -0.6 | AF11: -3.6 | AG11: -3 | AH11: -4.8
A12: 9.1 | B12: 3.2 | C12: 3.7 | D12: 8.5 | E12: 8 | F12: 5.4 | G12: 7.5 | H12: 1.8 | I12: 1.5 | J12: 2 | K12: 1.1 | L12: 1.4 | M12: 2.3 | N12: 3.1 | O12: 1.6 | P12: 1 | Q12: 1 | R12: 0 | S12: 1 | T12: 0.6 | U12: 0.3 | V12: 2.8 | W12: -3.4 | X12: 6.1 | Y12: 1.2 | Z12: 1.6 | AA12: 1.5 | AB12: -1.2 | AC12: -2 | AD12: -2.8 | AE12: -0.4 | AF12: 0.6 | AG12: -5.1 | AH12: -3.7
A13: 8.6 | B13: 2.5 | C13: 2.1 | D13: 13.2 | E13: 7.9 | F13: 4.2 | G13: 4.6 | H13: 1.7 | I13: 6.8 | J13: -1.1 | K13: -1.2 | L13: -1 | M13: 1.9 | N13: 3.3 | O13: 3.4 | P13: 3.3 | Q13: -3.5 | R13: -3.8 | S13: 1 | T13: 1.2 | U13: 3.3 | V13: 3.6 | W13: -1.6 | X13: 5.2 | Y13: -2.7 | Z13: -1.5 | AA13: 1.7 | AB13: -1.8 | AC13: -4 | AD13: -4 | AE13: -6 | AF13: -3.6 | AG13: -12 | AH13: -3.8
A14: 7.9 | B14: 2.3 | C14: 0.5 | D14: 13.8 | E14: 7 | F14: 4.4 | G14: 3.6 | H14: 0 | I14: 4.5 | J14: 0.8 | K14: -0.1 | L14: -0.1 | M14: 2.1 | N14: 3 | O14: 3.2 | P14: 3 | Q14: -2.2 | R14: -2.3 | S14: 3 | T14: 3 | U14: 3 | V14: 3.2 | W14: 3.3 | X14: 8.2 | Y14: -1 | Z14: 0.6 | AA14: 1.9 | AB14: 1 | AC14: 0.3 | AD14: -2.5 | AE14: -4.4 | AF14: -5.5 | AG14: -13.3 | AH14: -3.7
A15: 7.3 | B15: 5.4 | C15: 0.6 | D15: 4 | E15: 7 | F15: 3 | G15: 3.8 | H15: 4.3 | I15: 3 | J15: 2.3 | K15: 3 | L15: 3.5 | M15: 5.2 | N15: 3.9 | O15: 4.2 | P15: 3.4 | Q15: 0 | R15: -0.3 | S15: 1 | T15: 1.5 | U15: 5 | V15: 3 | W15: 1.1 | X15: 0.4 | Y15: 1.1 | Z15: 2.4 | AA15: 3.4 | AB15: 1 | AC15: 0.2 | AD15: 1.3 | AE15: -6.7 | AF15: -4.5 | AG15: -8.5 | AH15: -4.5
A16: 6.7 | B16: 3.8 | C16: 2.2 | D16: 4.2 | E16: 7.3 | F16: 2.5 | G16: 2.5 | H16: 4 | I16: 3.5 | J16: 2 | K16: 0.7 | L16: 0.6 | M16: 0.8 | N16: 3.8 | O16: 3.4 | P16: 3.1 | Q16: 1.2 | R16: 1.2 | S16: -1.7 | T16: 1.2 | U16: 4.2 | V16: 3 | W16: 3.2 | X16: 1.8 | Y16: 2.7 | Z16: 3.5 | AA16: 3.5 | AB16: 1.8 | AC16: 1.8 | AD16: 1.1 | AE16: -4.1 | AF16: -7.2 | AG16: -6.6 | AH16: -3.1
A17: 6.8 | B17: 5.2 | C17: 3.6 | D17: 5.8 | E17: 7.3 | F17: 1.2 | G17: 1.6 | H17: 3.7 | I17: 4.4 | J17: 2.4 | K17: 1.8 | L17: 1.2 | M17: 2.2 | N17: 3.9 | O17: 1.8 | P17: 1.4 | Q17: 0.9 | R17: 1 | S17: -2 | T17: 1.3 | U17: 3.7 | V17: 2.7 | W17: 2.6 | X17: 2.8 | Y17: 0.7 | Z17: 1.6 | AA17: 3.4 | AB17: 1.1 | AC17: 0.8 | AD17: 0.3 | AE17: -1.1 | AF17: -4.4 | AG17: -2.8 | AH17: -2.6
A18: 7.1 | B18: 3.3 | C18: 3.6 | D18: 4 | E18: 7.6 | F18: 1.8 | G18: 1 | H18: 2.8 | I18: 2.5 | J18: 1.9 | K18: 0.4 | L18: 0.9 | M18: 2.9 | N18: 3.1 | O18: 1 | P18: 1 | Q18: 1.9 | R18: 2.3 | S18: 2.2 | T18: 2.2 | U18: 2.2 | V18: 3 | W18: -1.2 | X18: 2.3 | Y18: 2.4 | Z18: 2.6 | AA18: 3.2 | AB18: -1.6 | AC18: -2.1 | AD18: -3 | AE18: -2.8 | AF18: 0.6 | AG18: 0 | AH18: -2.1
A19: 7.3 | B19: 1.8 | C19: 2.5 | D19: 1 | E19: 7.8 | F19: 4.5 | G19: 1.4 | H19: -0.1 | I19: 0.7 | J19: 1.8 | K19: 3.2 | L19: 3.8 | M19: 5 | N19: 1.1 | O19: 2.2 | P19: 1 | Q19: -0.6 | R19: -0.4 | S19: 0 | T19: 1 | U19: 1 | V19: 3 | W19: -1.3 | X19: -5.4 | Y19: -2 | Z19: -2.4 | AA19: 1.5 | AB19: -2.8 | AC19: -2.2 | AD19: -2.2 | AE19: -1.5 | AF19: -3.2 | AG19: -3.8 | AH19: -4.5
A20: 7.1 | B20: 1.2 | C20: 3.5 | D20: 0.3 | E20: 9.2 | F20: 2.4 | G20: 4.1 | H20: -0.1 | I20: 0 | J20: 4.8 | K20: 4.7 | L20: 5 | M20: 5 | N20: 1.5 | O20: 0.3 | P20: 0.2 | Q20: 3.9 | R20: 4.4 | S20: 1 | T20: 0 | U20: 1.2 | V20: 2.8 | W20: -2.5 | X20: -3.3 | Y20: -2.5 | Z20: -0.4 | AA20: 1.6 | AB20: -4.6 | AC20: -4.6 | AD20: -4.1 | AE20: 0 | AF20: -0.6 | AG20: -3.2 | AH20: -4
A21: 6.6 | B21: 6.3 | C21: 3.7 | D21: 1.2 | E21: 10.2 | F21: 4.2 | G21: 2.2 | H21: 0.5 | I21: 0 | J21: -1 | K21: -0.7 | L21: -0.1 | M21: 0.5 | N21: 2 | O21: 1.6 | P21: 1 | Q21: -1 | R21: -1.2 | S21: -1.3 | T21: -1.2 | U21: 0 | V21: 2.8 | W21: -2.9 | X21: -3 | Y21: -2.1 | Z21: -1.9 | AA21: 1.6 | AB21: -2.8 | AC21: -3.2 | AD21: -4.2 | AE21: -1.6 | AF21: 0.2 | AG21: -3.3 | AH21: -3.6
A22: 6 | B22: 5.8 | C22: 3.3 | D22: 1.2 | E22: 10.5 | F22: 2.9 | G22: 3.6 | H22: 0.5 | I22: 3 | J22: 0.6 | K22: -0.3 | L22: -0.3 | M22: -0.4 | N22: 2.3 | O22: 0.6 | P22: -0.6 | Q22: -1.8 | R22: -1.6 | S22: -1.7 | T22: -0.6 | U22: -1 | V22: 2 | W22: -4.1 | X22: -2.2 | Y22: -3.4 | Z22: -3.1 | AA22: 1.4 | AB22: -4.1 | AC22: -4.3 | AD22: -4.2 | AE22: -1.9 | AF22: -1.9 | AG22: -3.5 | AH22: -2.9
A23: 5.8 | B23: 9.6 | C23: 4 | D23: 4.2 | E23: 9.7 | F23: 4.8 | G23: 2.3 | H23: -0.7 | I23: 4.7 | J23: 2.4 | K23: 2 | L23: 2.3 | M23: 3.5 | N23: 3.8 | O23: 0 | P23: -0.8 | Q23: -0.3 | R23: -0.2 | S23: -1 | T23: 0.1 | U23: -3 | V23: 0.3 | W23: -5.2 | X23: -2 | Y23: -4.9 | Z23: -3.4 | AA23: 0 | AB23: -5.9 | AC23: -6.8 | AD23: -7.8 | AE23: -0.9 | AF23: -0.8 | AG23: -3.4 | AH23: -4
A24: 4.8 | B24: 5.3 | C24: 4.6 | D24: 4.8 | E24: 8.5 | F24: 5.1 | G24: 3.8 | H24: 0.1 | I24: 4.1 | J24: 1.7 | K24: 1.2 | L24: 1.5 | M24: 3.8 | N24: 3.7 | O24: 2 | P24: 3.8 | Q24: 1.7 | R24: 1.6 | S24: 1 | T24: 1.5 | U24: -1 | V24: 1 | W24: 0.6 | X24: 0 | Y24: -5.2 | Z24: -3.7 | AA24: 0.1 | AB24: -4.4 | AC24: -5.2 | AD24: -5.8 | AE24: -1.4 | AF24: -1.8 | AG24: -1.1 | AH24: -3.8
A25: 4.5 | B25: 5.9 | C25: 4.2 | D25: 5 | E25: 7.3 | F25: 3 | G25: 4.1 | H25: 0.7 | I25: 4 | J25: 3.3 | K25: 3.3 | L25: 3.6 | M25: 3.1 | N25: 3.8 | O25: 3.4 | P25: 2.8 | Q25: 1.3 | R25: 1.5 | S25: 0.7 | T25: 0.6 | U25: 3.7 | V25: 0.7 | W25: 2.2 | X25: 2 | Y25: -1.1 | Z25: -0.4 | AA25: 0.2 | AB25: -1.1 | AC25: -2.2 | AD25: -4.4 | AE25: 1.1 | AF25: -1.6 | AG25: -0.2 | AH25: -3
A26: 4.2 | B26: 4.7 | C26: 5.5 | D26: 8.2 | E26: 6 | F26: 6.4 | G26: 2.9 | H26: 1.2 | I26: 11.8 | J26: 3.4 | K26: 2.9 | L26: 2.8 | M26: 3.9 | N26: 4 | O26: 3.8 | P26: 3 | Q26: 2.3 | R26: 2.2 | S26: 0 | T26: 0.9 | U26: 3.4 | V26: 1 | W26: 1 | X26: 1.6 | Y26: 0.1 | Z26: 0.2 | AA26: 0.2 | AB26: 0.3 | AC26: -0.4 | AD26: -2.1 | AE26: 1.6 | AF26: 1.4 | AG26: -0.1 | AH26: -2.7
A27: 4 | B27: 3.5 | C27: 5.8 | D27: 6.2 | E27: 5 | F27: 6.3 | G27: 6.5 | H27: -1.3 | I27: 11.8 | J27: 2.2 | K27: 2.1 | L27: 3 | M27: 4.3 | N27: 5.4 | O27: 5 | P27: 4.4 | Q27: 1 | R27: 0.9 | S27: 7 | T27: 6.8 | U27: 3 | V27: -0.2 | W27: 0.8 | X27: 5.7 | Y27: -0.3 | Z27: -0.3 | AA27: -1.9 | AB27: -1.4 | AC27: -1.6 | AD27: -1.2 | AE27: 3.4 | AF27: 0.7 | AG27: -2.9 | AH27: -4.1
A28: 4 | B28: 6.9 | C28: 6 | D28: 6.2 | E28: 4.5 | F28: 10.5 | G28: 6.9 | H28: 2.3 | I28: 6.7 | J28: 2.7 | K28: 2.9 | L28: 3.6 | M28: 6.9 | N28: 5.3 | O28: 5.2 | P28: 4.6 | Q28: -0.4 | R28: -0.4 | S28: 0 | T28: 1.6 | U28: 3 | V28: 1.3 | W28: 3.2 | X28: 5.7 | Y28: -0.9 | Z28: 0.6 | AA28: -1.7 | AB28: -0.5 | AC28: -0.6 | AD28: -1 | AE28: 2.6 | AF28: 3.1 | AG28: -2.4 | AH28: -3.6
A29: 3.9 | B29: 4.7 | C29: 5.8 | D29: 7.2 | E29: 5.2 | F29: 6.7 | G29: 9.3 | H29: 3.6 | I29: 6.4 | J29: 7.4 | K29: 7.6 | L29: 7.4 | M29: 6.6 | N29: 5.1 | O29: 4 | P29: 4 | Q29: 2.8 | R29: 3 | S29: 3.3 | T29: 4.6 | U29: 4.7 | V29: 1 | W29: 3.1 | X29: 7.4 | Y29: 2.9 | Z29: 3.8 | AA29: -1.5 | AB29: 2.2 | AC29: 2 | AD29: 0.4 | AE29: 3.2 | AF29: 2 | AG29: -4.3 | AH29: -3.6
A30: 3.8 | B30: 5.8 | C30: 5.7 | D30: 7.2 | E30: 6.2 | F30: 7.1 | G30: 6.4 | H30: 4.2 | I30: 8.1 | J30: 8.5 | K30: 8 | L30: 8.3 | M30: 9.3 | N30: 4.7 | O30: 4.8 | P30: 3.2 | Q30: 6.8 | R30: 7.1 | S30: 3 | T30: 2.8 | U30: 1.2 | V30: 1 | W30: 2.3 | X30: 3.2 | Y30: 2.8 | Z30: 3.1 | AA30: -1.3 | AB30: 2.5 | AC30: 2.6 | AD30: 2.4 | AE30: 3.2 | AF30: 3.6 | AG30: 2.6 | AH30: -3.8
A31: 9.6 | B31: 7.5 | C31: 6.5 | D31: 7.3 | E31: 6.7 | F31: 6.4 | G31: 6.5 | H31: 1.1 | I31: 3.2 | J31: 9.8 | K31: 10.5 | L31: 10.9 | M31: 12.6 | N31: 2.7 | O31: 4.2 | P31: 3.6 | Q31: 3.4 | R31: 3.1 | S31: 6.7 | T31: 6.3 | U31: 1.1 | V31: 1 | W31: 1.7 | X31: 3.6 | Y31: 2.3 | Z31: 1.3 | AA31: -0.4 | AB31: 1.3 | AC31: 1 | AD31: -0.3 | AE31: 2.9 | AF31: 3.6 | AG31: 4.4 | AH31: -10.9
A32: 10.2 | B32: 4.9 | C32: 5.7 | D32: 7.2 | E32: 7 | F32: 6.3 | G32: 5.8 | H32: 3.2 | I32: 3.4 | J32: 11.9 | K32: 11.7 | L32: 12.2 | M32: 15.3 | N32: 3 | O32: 5 | P32: 5.2 | Q32: 4.6 | R32: 4.4 | S32: 5 | T32: 4.9 | U32: 4.7 | V32: 0 | W32: 0.4 | X32: 6.3 | Y32: 2.2 | Z32: 1.5 | AA32: -0.6 | AB32: 2.4 | AC32: 1.5 | AD32: 1.6 | AE32: 0.6 | AF32: 2.8 | AG32: 1.9 | AH32: -8.9
A33: 10.7 | E33: 6.8 | H33: 5.7 | N33: 3 | V33: 1 | AA33: -0.8 | AH33: -8.3
A34: 10.9 | E34: 6.4 | H34: 4.3 | N34: 3.1 | V34: 1 | AA34: -1 | AH34: -8.3
A35: 10.6 | E35: 5 | H35: 4 | N35: 4.8 | V35: 0.2 | AA35: -2.1 | AH35: -1.9
A36: 10 | E36: 4.8 | H36: 5.1 | N36: 5.2 | V36: -0.2 | AA36: -1.5 | AH36: -1.5
A37: 8.8 | E37: 3.9 | H37: 6.1 | N37: 5.6 | V37: -1.2 | AA37: -1 | AH37: -1.4
A38: 11.6 | E38: 4 | H38: 7 | N38: 5.1 | V38: -0.4 | AA38: -0.5 | AH38: -2
A39: 11.5 | E39: 6.2 | H39: 5.5 | N39: 3.6 | V39: -1 | AA39: 1.6 | AH39: -4
A40: 10.5 | E40: 7.1 | H40: 5.9 | N40: 3.5 | V40: -0.3 | AA40: 1.5 | AH40: -4
A41: 8.9 | E41: 8.2 | H41: 4.9 | N41: 3.5 | V41: -0.9 | AA41: 1.3 | AH41: -4.1
A42: 7.1 | E42: 9.2 | H42: 5.5 | N42: 3.1 | V42: -1.5 | AA42: 1.1 | AH42: -4.6
A43: 5.8 | E43: 9.7 | H43: 3.1 | N43: 3.6 | V43: 1 | AA43: -0.6 | AH43: -9.7
A44: 5.8 | E44: 10.2 | H44: 3.8 | N44: 3.5 | V44: 1 | AA44: -0.2 | AH44: -8.2
A45: 9.9 | E45: 11 | H45: 4.6 | N45: 3.5 | V45: 1 | AA45: 0.2 | AH45: -7.9
A46: 10.1 | E46: 10.7 | H46: 4.9 | N46: 4 | V46: 0.9 | AA46: 0.7 | AH46: -7.7
A47: 10.1 | E47: 10.8 | H47: 4.9 | N47: 2.1 | V47: 0.8 | AA47: 1.1 | AH47: -9.4
A48: 9.9 | E48: 9.8 | H48: 5.4 | N48: 2.2 | V48: 2 | AA48: 1.1 | AH48: -8.5
A49: 9.5 | E49: 8.6 | H49: 6.5 | N49: 2.2 | V49: 2.7 | AA49: 1.1 | AH49: -7.6
A50: 8.9 | E50: 8.5 | H50: 6.8 | N50: 2.2 | V50: 3.3 | AA50: 1.3 | AH50: -6.7
A51: 8 | E51: 9 | H51: 2.2 | N51: 6 | V51: 2.6 | AA51: 3.2 | AH51: -7
A52: 6.3 | E52: 9.3 | H52: 4.3 | N52: 5.7 | V52: 2 | AA52: 3.2 | AH52: -6.4
A53: 5.9 | E53: 11 | H53: 6.5 | N53: 5.2 | V53: 4.3 | AA53: 3 | AH53: -5.4
A54: 5.6 | E54: 11 | H54: 7 | N54: 5 | V54: 6 | AA54: 2.9 | AH54: -4.8
A55: 5.4 | E55: 10.5 | H55: 8.4 | N55: 1.5 | V55: 5.6 | AA55: 3.4 | AH55: -7.3
A56: 5.2 | E56: 11 | H56: 9.8 | N56: 1.4 | V56: 4 | AA56: 3.1 | AH56: -6
A57: 5 | E57: 11 | H57: 10.8 | N57: 1.4 | V57: 3.7 | AA57: 2.8 | AH57: -5.7
A58: 4.9 | E58: 11.4 | H58: 11.3 | N58: 1 | V58: 4.7 | AA58: 2.7 | AH58: -5.4
A59: 5.9 | E59: 10.7 | H59: 9.2 | N59: 4.2 | V59: 4.7 | AA59: 1.6 | AH59: -1
A60: 8.3 | E60: 8.7 | H60: 11.9 | N60: 4.2 | V60: 4.6 | AA60: 1.2 | AH60: -1
A61: 10.3 | E61: 7.4 | H61: 13.4 | N61: 4 | V61: 4.7 | AA61: 1 | AH61: -0.8
A62: 11 | E62: 7.2 | H62: 14.9 | N62: 4.2 | V62: 4 | AA62: 1.2 | AH62: 0.2
A63: 10.1 | E63: 9 | H63: 12 | N63: 3 | V63: 5.3 | AA63: 2.7 | AH63: 1.2
A64: 8.4 | E64: 8.5 | H64: 14.8 | N64: 0.4 | V64: 6.7 | AA64: 2.8 | AH64: 2
A65: 7.1 | E65: 9 | H65: 11.3 | N65: 0.9 | V65: 7.5 | AA65: 2.8 | AH65: 2
A66: 4.5 | E66: 9.3 | H66: 13.2 | N66: 2.3 | V66: 6.8 | AA66: 2.6 | AH66: 2.2
A67: 4.4 | E67: 10.8 | H67: 8.9 | N67: 4.4 | V67: 5.8 | AA67: -2 | AH67: -2.8
A68: 4.3 | E68: 9.8 | H68: 9.1 | N68: 5 | V68: 5 | AA68: -1.8 | AH68: -0.8
A69: 4.2 | E69: 9 | H69: 9.2 | N69: 4.8 | V69: 5 | AA69: -1.8 | AH69: -0.2
A70: 4.2 | E70: 8.6 | H70: 10.2 | N70: 4.6 | V70: 4.5 | AA70: -1.8 | AH70: 0.7
A71: 4.2 | E71: 8 | H71: 10.1 | N71: 4.7 | V71: 5 | AA71: 0 | AH71: -1.2
A72: 4.1 | E72: 7.8 | H72: 9.6 | N72: 3.8 | V72: 4 | AA72: 0.1 | AH72: -0.3
A73: 4.5 | E73: 6.7 | H73: 10.4 | N73: 3.4 | V73: 5 | AA73: 0.2 | AH73: -0.8
A74: 5.7 | E74: 6.5 | H74: 10.8 | N74: 2.7 | V74: 4.3 | AA74: 0 | AH74: -0.4
A75: 6.1 | E75: 6.8 | H75: 10 | N75: 2.4 | V75: 2.1 | AA75: -1.7 | AH75: -1.6
A76: 5.2 | E76: 7.4 | H76: 9.3 | N76: 2.7 | V76: 2.3 | AA76: -1.8 | AH76: -1.1
A77: 3.6 | E77: 8.2 | H77: 10.3 | N77: 2.4 | V77: 4 | AA77: -2 | AH77: -0.7
A78: 2.1 | E78: 9 | H78: 11.1 | N78: 1.8 | V78: 3.7 | AA78: -2.1 | AH78: -0.5
A79: 2.3 | E79: 9.4 | H79: 8.7 | N79: 0.3 | V79: 3.7 | AA79: -2.8 | AH79: -1.8
A80: 5.8 | E80: 10.2 | H80: 9.1 | N80: 0.6 | V80: 3.1 | AA80: -2.6 | AH80: -0.9
A81: 6 | E81: 11.2 | H81: 10.2 | N81: 0.8 | V81: 3 | AA81: -2.4 | AH81: 0.1
A82: 5.9 | E82: 11.7 | H82: 11 | N82: 1.4 | V82: 3 | AA82: -2.4 | AH82: 0.2
A83: 5.6 | E83: 10.8 | H83: 10 | N83: 3.1 | V83: 1.7 | AA83: -2.8 | AH83: -0.8
A84: 5.4 | E84: 9.8 | H84: 10.3 | N84: 3.6 | V84: 1 | AA84: -2.7 | AH84: -0.2
A85: 5.3 | E85: 9.2 | H85: 11.5 | N85: 3.7 | V85: 1.1 | AA85: -2.6 | AH85: 0
A86: 5.3 | E86: 9.2 | H86: 12.8 | N86: 3.5 | V86: 0.3 | AA86: -2.6 | AH86: 0.5
A87: 6.1 | E87: 9 | H87: 6.3 | N87: 4.3 | V87: 0 | AA87: -3.2 | AH87: -0.2
A88: 6.2 | E88: 9.4 | H88: 7.2 | N88: 5.2 | V88: 1.7 | AA88: -2.9 | AH88: -0.1
A89: 6.3 | E89: 8.8 | H89: 7.3 | N89: 5 | V89: -0.2 | AA89: -2.6 | AH89: 0.2
A90: 6.3 | E90: 8 | H90: 7.4 | N90: 4.9 | V90: -1.4 | AA90: -2.2 | AH90: 0.5
A91: 6.3 | E91: 7.6 | H91: 5.5 | N91: 4.5 | V91: -1.2 | AA91: 0.3 | AH91: -0.5
A92: 6.2 | E92: 7.1 | H92: 6.4 | N92: 5 | V92: -2 | AA92: 0.7 | AH92: -0.1
A93: 6 | E93: 7 | H93: 6.9 | N93: 5 | V93: 0 | AA93: 1 | AH93: -0.2
A94: 5.8 | E94: 7.2 | H94: 7.2 | N94: 5.2 | V94: 0 | AA94: 1.2 | AH94: 0.3
A95: 5.9 | E95: 8 | H95: 5.4 | N95: 4.2 | V95: 0.2 | AA95: 0.7 | AH95: -1.5
A96: 5.8 | E96: 7.8 | H96: 5.9 | N96: 4.1 | V96: -0.3 | AA96: 1 | AH96: -2.5
A97: 5.7 | E97: 7 | H97: 7.7 | N97: 5.1 | V97: -1 | AA97: 1.2 | AH97: -2
A98: 5.7 | E98: 6 | H98: 9 | N98: 4.1 | V98: -1 | AA98: 1.3 | AH98: -2.5
A99: 5.9 | E99: 6.2 | H99: 4.1 | N99: 5.2 | V99: -1 | AA99: 0.1 | AH99: -2.1
A100: 5.9 | E100: 7.1 | H100: 5.4 | N100: 5.9 | V100: -0.7 | AA100: 0.4 | AH100: -1.7
A101: 6.3 | E101: 8 | H101: 6.7 | N101: 5.8 | V101: -1.2 | AA101: 0.8 | AH101: -1.4
A102: 6 | E102: 8 | H102: 7.5 | N102: 5 | V102: -2 | AA102: 1 | AH102: -1.2
A103: 5.8 | E103: 8.2 | H103: 10.1 | N103: 7.8 | V103: -2 | AA103: 1.9 | AH103: -1.2
A104: 5.7 | E104: 9 | H104: 11 | N104: 7.9 | V104: -2 | AA104: 2.2 | AH104: -0.9
A105: 5.6 | E105: 9 | H105: 11.7 | N105: 7.6 | V105: -2.3 | AA105: 2.4 | AH105: -0.4
A106: 5.3 | E106: 8.8 | H106: 12.7 | N106: 7.9 | V106: -3 | AA106: 2.5 | AH106: 0.1
A107: 5 | E107: 9.2 | H107: 8.4 | N107: 9 | V107: -3 | AA107: 4.2 | AH107: 0.2
A108: 4.7 | E108: 9.6 | H108: 5.7 | N108: 9.7 | V108: 0 | AA108: 4.7 | AH108: 1
A109: 5.3 | E109: 9.5 | H109: 4.9 | N109: 10.6 | V109: 0 | AA109: 5.1 | AH109: 2.3
A110: 5.8 | E110: 9.2 | H110: 6.2 | N110: 10.8 | V110: 0 | AA110: 4.6 | AH110: 3.1
A111: 6 | E111: 9.4 | H111: 7.4 | N111: 9.4 | V111: 0.3 | AA111: 3 | AH111: 3.4
A112: 5.8 | E112: 10.2 | H112: 7.1 | N112: 9.8 | V112: 1 | AA112: 3 | AH112: 3.3
A113: 5.2 | E113: 11.2 | H113: 7.1 | N113: 9.6 | V113: 3.3 | AA113: 3.2 | AH113: 3.5
A114: 4.6 | E114: 11.8 | H114: 6.8 | N114: 9.4 | V114: 4 | AA114: 3.4 | AH114: 4.3
A115: 5.9 | E115: 11.2 | H115: 7.2 | N115: 14.7 | V115: 3.9 | AA115: 1.6 | AH115: 5.5
A116: 5.9 | E116: 11 | H116: 8.4 | N116: 13.4 | V116: 3 | AA116: 1.9 | AH116: 5.4
A117: 5.8 | E117: 11 | H117: 8.8 | N117: 15 | V117: 3 | AA117: 2 | AH117: 5.5
A118: 5.8 | E118: 11.2 | H118: 10.2 | N118: 14.4 | V118: 4 | AA118: 1.9 | AH118: 6
A119: 5.6 | E119: 10.7 | H119: 7.1 | N119: 15.4 | V119: 4 | AA119: 1.8 | AH119: 2.1
A120: 5.1 | E120: 8.7 | H120: 7 | N120: 16 | V120: 3.7 | AA120: 2.2 | AH120: 2.4
A121: 4.2 | E121: 9 | H121: 7.6 | N121: 16.6 | V121: 3 | AA121: 2.8 | AH121: 2.8
A122: 7.8 | E122: 9.3 | H122: 8 | N122: 17.1 | V122: 2.8 | AA122: 3.4 | AH122: 3
A123: 7.9 | E123: 14.2 | V123: 3.7
A124: 7.6 | E124: 15.1 | V124: 4
A125: 7.1 | E125: 16 | V125: 3.7
A126: 6.7 | E126: 16.2 | V126: 3
A127: 6.7 | E127: 16.8 | V127: 3
A128: 6.6 | E128: 17 | V128: 4
A129: 7.5 | E129: 17 | V129: 4.3
A130: 7.2 | E130: 16.7 | V130: 5
A131: 6.9 | E131: 16.8 | V131: 4
A132: 6.7 | E132: 16 | V132: 4.3
A133: 6.5 | E133: 16 | V133: 5
A134: 6.4 | E134: 15.8 | V134: 4.4
A135: 6.3 | E135: 12.5 | V135: 4.8
A136: 10.2 | E136: 10.4 | V136: 4.2
A137: 11 | E137: 10.2 | V137: 5
A138: 11.4 | E138: 10.8 | V138: 1
A139: 11.2 | E139: 9.5 | V139: 1.3
A140: 10.7 | E140: 9 | V140: 1.8
A141: 10.1 | E141: 8.8 | V141: 1.8
A142: 9.6 | E142: 7.8 | V142: 1
A143: 10.1 | E143: 7.8 | V143: 1
A144: 9.8 | E144: 7 | V144: 1.3
A145: 9.5 | E145: 7 | V145: 2.4
A146: 8.9 | E146: 6.5 | V146: 2
A147: 8.1 | E147: 4.2 | V147: 2
A148: 7.1 | E148: 5 | V148: 5.7
A149: 6.9 | E149: 5.6 | V149: 5.7
A150: 9.9 | E150: 6.1 | V150: 5.4
A151: 9.7 | E151: 6.3 | V151: 4.8
A152: 9.4 | E152: 6 | V152: 3.9
A153: 9.2 | E153: 6
A154: 9 | E154: 5.8
A155: 8.7 | E155: 6
A156: 8.1 | E156: 5.8
A157: 10.2 | E157: 4.9
A158: 10.3 | E158: 4.6
A159: 10.2 | E159: 5
A160: 9.9 | E160: 5
A161: 9.4 | E161: 7
A162: 8.9 | E162: 7.2
A163: 8.3 | E163: 7.6
A164: 12.9 | E164: 8.8
A165: 12.8 | E165: 8
A166: 12.6 | E166: 7.8
A167: 12.3 | E167: 8
A168: 11.8 | E168: 8
A169: 10.8 | E169: 7.8
A170: 9.4 | E170: 7.9
A171: 13.6 | E171: 5
A172: 14.4 | E172: 4.6
A173: 15 | E173: 5.2
A174: 15.1 | E174: 6
A175: 14.5 | E175: 6
A176: 13.7 | E176: 5.8
A177: 12.5 | E177: 5
A178: 15.3 | E178: 4.9
A179: 15.2 | E179: 3.7
A180: 14.3 | E180: 2.3
A181: 12.5 | E181: 3.8
A182: 10.3 | E182: 3.6
A183: 8.3 | E183: 4
A184: 7.7 | E184: 3.9
A185: 11.3 | E185: 4
A186: 12.2 | E186: 4.2
A187: 12.7 | E187: 5.1
A188: 12.6 | E188: 4.8
A189: 12 | E189: 3.8
A190: 11.2 | E190: 3.3
A191: 10.3 | E191: 4
A192: 14.7 | E192: 3.8
A193: 14.4 | E193: 2.7
A194: 14.3 | E194: 2.4
A195: 14.2 | E195: 1
A196: 13.8 | E196: 1.1
A197: 13 | E197: 1.2
A198: 11.6 | E198: 2
A199: 14.1 | E199: 1.8
A200: 14.3 | E200: 0.8
... 162 more rows

Sheet Værdata Mai
A1: Bergen 14:45-20:00 | B1: Florø 02:45-03:00 | C1: Måløy 05:15-05:30 | D1: Torvik 08:20-08:30 | E1: Ålesund 09:45-20:00 | F1: Molde 22:35-23:05 | G1: Kristiansund 02:45-03:00 | H1: Trondheim 09:45-12:45 | I1: Rørvik 21:40-22:00 | J1: Brønnøysund 01:35-01:45 | K1: Sandnessjøen 04:35-04:50 | L1: Nesna 06:00-06:10 | M1: Ørnes 10:00-10:10 | N1: Bodø 13:05-15:20 | O1: Stamsund 19:15-19:40 | P1: Svolvær 21:20-22:15 | Q1: Stokmarknes 01:30-01:40 | R1: Sortland 02:55-03:10 | S1: Risøyhamn 04:35-04:50 | T1: Harstad 07:10 - 07:45 | U1: Finnsnes 11:00-11:30 | V1: Tromsø 14:15-18:15 | W1: Skjervøy 22:10-22:25 | X1: Øksfjord 01:50-02:00 | Y1: Hammerfest 05:05- 05:45 | Z1: Havøysund 08:30 - 08:45 | AA1: Honningsvåg 10:55- 14:30 | AB1: Kjøllefjord 16:40-17:00 | AC1: Mehamn 18:55-19:15 | AD1: Berlevåg 22:00-22:10 | AE1: Båtsfjord 00:00-00:30 | AF1: Vardø 03:30-03:45 | AG1: Vadsø 06:55-07:10 | AH1: Kirkenes 09:00-12:30
A2: Florida 14:00 - 20:00 | B2: Florida 03:00 | C2: Svinøy Fyr 05:00 | D2: Vigra 08:00 | E2: Vigra 09:00-20:00 | F2: Ona 23:00 | G2: Ona 03:00 | H2: Værnes 10:00-13:00 | I2: Ørland 22:00 | J2: Bodø 02:00 | K2: Bodø 05:00 | L2: Bodø 06:00 | M2: Bodø 10:00 | N2: 13:00-16:00 | O2: Skrova 19:00 | P2: Skrova 22:00 | Q2: Sortland 02:00 | R2: Sortland 03:00 | S2: Andøya 05:00 | T2: Andøya 07:00 | U2: Tromsø 11:00 | V2: Tromsø 14:00 - 18:00 | W2: Tromsø 22:00 | X2: Torsvåg 02:00 | Y2: Fruholmen 05:00 | Z2: Fruholmen 09:00 | AA2: Fruholmen 11-14 | AB2: Slettnes 17:00 | AC2: Slettnes 19:00 | AD2: Slettnes 22:00 | AE2: Vardø 00:00 | AF2: Vardø 04:00 | AG2: Kirkenes 07:00 | AH2: Kirkenes 09:00-12:00
A3: 8.2 | B3: 7.1 | C3: 6.6 | D3: 8 | E3: 8.4 | F3: 6.1 | G3: 6.1 | H3: 15 | I3: 8.8 | J3: 3.5 | K3: 0.4 | L3: 1.2 | M3: 1.5 | N3: 2.6 | O3: 9 | P3: 9.5 | Q3: 4.4 | R3: 4.3 | S3: 3 | T3: 3.3 | U3: 0 | V3: 0 | W3: -1.8 | X3: 5.8 | Y3: 0.2 | Z3: 1.8 | AA3: 2.7 | AB3: 3.9 | AC3: 3.4 | AD3: 2.8 | AE3: 1.5 | AF3: -0.7 | AG3: -2.6 | AH3: -1.2
A4: 8.6 | B4: 6.7 | C4: 6 | D4: 7 | E4: 8.7 | F4: 6 | G4: 6 | H4: 15.3 | I4: 7.9 | J4: 0.4 | K4: -0.2 | L4: 0.3 | M4: 1.5 | N4: 4.2 | O4: 4.8 | P4: 3.8 | Q4: 8 | R4: 8.9 | S4: 10.3 | T4: 12.2 | U4: 2.2 | V4: -0.4 | W4: 3.1 | X4: 5.2 | Y4: 3.7 | Z4: 4.2 | AA4: 3.1 | AB4: 3.6 | AC4: 2.7 | AD4: 2 | AE4: 0.3 | AF4: 1.3 | AG4: -4 | AH4: -0.7
A5: 8.9 | B5: 6.5 | C5: 5.2 | D5: 7 | E5: 8.2 | F5: 6 | G5: 6 | H5: 14.9 | I5: 7.3 | J5: 0.6 | K5: 0.8 | L5: 0.5 | M5: 3.2 | N5: 3.6 | O5: 2.6 | P5: 3 | Q5: 3.6 | R5: 3.4 | S5: 3 | T5: 1.1 | U5: 4 | V5: -0.8 | W5: 3.9 | X5: 3.3 | Y5: 2.3 | Z5: 3.2 | AA5: 3.5 | AB5: 3.7 | AC5: 2.7 | AD5: 1.1 | AE5: 0.1 | AF5: 0.9 | AG5: -2 | AH5: -0.8
A6: 9 | B6: 3.2 | C6: 6.2 | D6: 7.4 | E6: 8.8 | F6: 5 | G6: 5 | H6: 14 | I6: 12.9 | J6: 2.1 | K6: 2.3 | L6: 3.3 | M6: 5.6 | N6: 3.7 | O6: 5.8 | P6: 5 | Q6: 2.2 | R6: 2.2 | S6: 2 | T6: 2.8 | U6: 4.2 | V6: 0 | W6: 3.2 | X6: 3.5 | Y6: 2.5 | Z6: 2.4 | AA6: 3.7 | AB6: 4.4 | AC6: 3.5 | AD6: 3.1 | AE6: 0.3 | AF6: 0.9 | AG6: -1.5 | AH6: -0.7
A7: 8.7 | B7: 2.6 | C7: 5.9 | D7: 7.2 | E7: 9.1 | F7: 7 | G7: 7 | H7: 14.1 | I7: 16.8 | J7: 2.1 | K7: 3.6 | L7: 4.9 | M7: 8.7 | N7: 3 | O7: 6.2 | P7: 5.6 | Q7: 1.6 | R7: 1.9 | S7: 3 | T7: 5.1 | U7: 3.9 | V7: -0.2 | W7: 1.9 | X7: 0.4 | Y7: 3.1 | Z7: 2.9 | AA7: 3.9 | AB7: 3.4 | AC7: 2.3 | AD7: 1 | AE7: 0.4 | AF7: 0.5 | AG7: -4.1 | AH7: -2.3
A8: 8 | B8: 4.9 | C8: 5.4 | D8: 6.2 | E8: 9 | F8: 8.3 | G8: 8.3 | H8: 15.5 | I8: 20 | J8: 5.1 | K8: 4.9 | L8: 5 | M8: 4.7 | N8: 3.7 | O8: 7.5 | P8: 6.2 | Q8: 5.9 | R8: 5.7 | S8: 5 | T8: 6 | U8: 7.9 | V8: 4 | W8: 7.6 | X8: 0.3 | Y8: 2.5 | Z8: 2.4 | AA8: 3.3 | AB8: 0.8 | AC8: 1 | AD8: 0.3 | AE8: 1.3 | AF8: 0.3 | AG8: -3.7 | AH8: -2.1
A9: 7.4 | B9: 5.9 | C9: 5.5 | D9: 7.2 | E9: 8.6 | F9: 8.2 | G9: 8.2 | H9: 14.7 | I9: 15.5 | J9: 4.2 | K9: 4 | L9: 4.3 | M9: 4.2 | N9: 4 | O9: 7.8 | P9: 7.2 | Q9: 7.7 | R9: 7.6 | S9: 5 | T9: 8.2 | U9: 7.7 | V9: 4.5 | W9: 5.3 | X9: 0.5 | Y9: 3.9 | Z9: 5.3 | AA9: 2.8 | AB9: 0 | AC9: 0 | AD9: 0 | AE9: 1.5 | AF9: 2.8 | AG9: -0.3 | AH9: -1.5
A10: 11.5 | B10: 8.7 | C10: 6.2 | D10: 7 | E10: 8.3 | F10: 10 | G10: 10 | H10: 15 | I10: 12.3 | J10: 2.3 | K10: 1.2 | L10: 2.9 | M10: 4.5 | N10: 2.9 | O10: 7.2 | P10: 5.7 | Q10: 6.5 | R10: 6.1 | S10: 5 | T10: 6 | U10: 6.8 | V10: 4.5 | W10: 6.7 | X10: -1.4 | Y10: 7.1 | Z10: 7.9 | AA10: 2.4 | AB10: 0.5 | AC10: 0.2 | AD10: -0.3 | AE10: 2.6 | AF10: 1.6 | AG10: -1.7 | AH10: -1.4
A11: 11.2 | B11: 8.5 | C11: 7.3 | D11: 11.2 | E11: 8.1 | F11: 8.7 | G11: 8.7 | H11: 8.1 | I11: 9 | J11: 4 | K11: 5.2 | L11: 5.5 | M11: 8.5 | N11: 5.3 | O11: 6.4 | P11: 6.2 | Q11: 5.9 | R11: 5.9 | S11: 6 | T11: 6.7 | U11: 9.7 | V11: 5 | W11: 7.9 | X11: 1.7 | Y11: 6.3 | Z11: 8.7 | AA11: 3.3 | AB11: 2.9 | AC11: 2.7 | AD11: 2.8 | AE11: 1.4 | AF11: 2.7 | AG11: -0.5 | AH11: -1.1
A12: 10.7 | B12: 9.5 | C12: 7.6 | D12: 9 | E12: 8 | F12: 7 | G12: 7 | H12: 8.6 | I12: 6.5 | J12: 4.3 | K12: 5.1 | L12: 5.3 | M12: 5.5 | N12: 5.2 | O12: 4.6 | P12: 3.6 | Q12: 5.7 | R12: 6 | S12: 5 | T12: 4.1 | U12: 5.1 | V12: 4.1 | W12: 5.1 | X12: 3.2 | Y12: 5.8 | Z12: 6.5 | AA12: 3.6 | AB12: 4.7 | AC12: 3.8 | AD12: 2.7 | AE12: 1.7 | AF12: 0.6 | AG12: 1.1 | AH12: -0.5
A13: 10.4 | B13: 10.8 | C13: 6.3 | D13: 7 | E13: 7.6 | F13: 6.8 | G13: 6.8 | H13: 8.6 | I13: 7.4 | J13: 5.3 | K13: 4.9 | L13: 5.2 | M13: 7.7 | N13: 6 | O13: 5.4 | P13: 4 | Q13: 2.6 | R13: 2.5 | S13: 2 | T13: 2.2 | U13: 4.3 | V13: 6.2 | W13: 2.2 | X13: 5.9 | Y13: 7.5 | Z13: 10 | AA13: 3.8 | AB13: 3.5 | AC13: 3.2 | AD13: 2 | AE13: 1.7 | AF13: 1.6 | AG13: 2.5 | AH13: 0
A14: 10.3 | B14: 11.3 | C14: 6 | D14: 7 | E14: 6.9 | F14: 8.2 | G14: 8.2 | H14: 8.1 | I14: 4 | J14: 8.1 | K14: 8.9 | L14: 9.3 | M14: 12.1 | N14: 6 | O14: 3 | P14: 2.4 | Q14: 1.2 | R14: 0.6 | S14: 1 | T14: 1.2 | U14: 5 | V14: 6.2 | W14: 2.5 | X14: 4.2 | Y14: 3.7 | Z14: 4.6 | AA14: 4 | AB14: 3.1 | AC14: 2.5 | AD14: 1.2 | AE14: 1.1 | AF14: 1.9 | AG14: 2 | AH14: 0.2
A15: 10.5 | B15: 7.8 | C15: 9.3 | D15: 12.2 | E15: 6.9 | F15: 8.1 | G15: 8.1 | H15: 8.7 | I15: 4.8 | J15: 11.8 | K15: 11.6 | L15: 10.9 | M15: 10.2 | N15: 5.4 | O15: 5.2 | P15: 4.6 | Q15: 2.5 | R15: 2.6 | S15: 3 | T15: 2.7 | U15: 6 | V15: 6 | W15: 3.5 | X15: 3.9 | Y15: 4.2 | Z15: 6.1 | AA15: 2.3 | AB15: 3.1 | AC15: 3.2 | AD15: 2.6 | AE15: 1.3 | AF15: 1.3 | AG15: 5.8 | AH15: -1.1
A16: 10.3 | B16: 7.5 | C16: 10.5 | D16: 13.2 | E16: 6.7 | F16: 7.5 | G16: 7.5 | H16: 9 | I16: 6.1 | J16: 4.3 | K16: 4.6 | L16: 5.6 | M16: 8 | N16: 5.3 | O16: 4.8 | P16: 4 | Q16: 0.5 | R16: 0.7 | S16: 3 | T16: 3.2 | U16: 7.2 | V16: 5 | W16: 4.9 | X16: 3.8 | Y16: 4.3 | Z16: 3.4 | AA16: 2.2 | AB16: 4.9 | AC16: 4.9 | AD16: 4.7 | AE16: 4 | AF16: 1.9 | AG16: 4.5 | AH16: -1.4
A17: 10.5 | B17: 7.3 | C17: 9.5 | D17: 13.2 | E17: 7 | F17: 7.3 | G17: 7.3 | H17: 11 | I17: 4.4 | J17: 5.4 | K17: 5.5 | L17: 5.7 | M17: 4.9 | N17: 5.8 | O17: 8 | P17: 7.6 | Q17: 4.2 | R17: 4.6 | S17: 4 | T17: 5 | U17: 2.2 | V17: 4.8 | W17: -1.4 | X17: 3.3 | Y17: 2.2 | Z17: 2 | AA17: 2.2 | AB17: 6.1 | AC17: 6.4 | AD17: 5.8 | AE17: 3.8 | AF17: 4.2 | AG17: -1.4 | AH17: -0.7
A18: 10.4 | B18: 9.4 | C18: 10.6 | D18: 12.3 | E18: 7.1 | F18: 6.7 | G18: 6.7 | H18: 12.1 | I18: 8 | J18: 2 | K18: 2.6 | L18: 4.1 | M18: 5.5 | N18: 6.4 | O18: 11.6 | P18: 9 | Q18: 4 | R18: 4.4 | S18: 5 | T18: 5.8 | U18: 0.2 | V18: 5.2 | W18: 0.5 | X18: 2.3 | Y18: 0.3 | Z18: 1.1 | AA18: 2.3 | AB18: 9.1 | AC18: 8.5 | AD18: 8.1 | AE18: 2.8 | AF18: 4 | AG18: 2.8 | AH18: -0.6
A19: 10.1 | B19: 9.4 | C19: 8.7 | D19: 10.7 | E19: 7.1 | F19: 6.8 | G19: 6.8 | H19: 10.1 | I19: 8.5 | J19: 3.4 | K19: 5.4 | L19: 7.3 | M19: 7.7 | N19: 8.4 | O19: 8 | P19: 7.2 | Q19: 8.7 | R19: 8.1 | S19: 7 | T19: 7.1 | U19: 3.9 | V19: 5.2 | W19: 1.9 | X19: 2.8 | Y19: 1.6 | Z19: 2.5 | AA19: 2.8 | AB19: 5.4 | AC19: 4.8 | AD19: 3.2 | AE19: 2 | AF19: 3.3 | AG19: 4.4 | AH19: -3.2
A20: 9.7 | B20: 8.5 | C20: 9 | D20: 12 | E20: 7.1 | F20: 6.9 | G20: 6.9 | H20: 10.7 | I20: 6.9 | J20: 10.2 | K20: 9.8 | L20: 10.4 | M20: 12.4 | N20: 8.3 | O20: 11.2 | P20: 8.8 | Q20: 5.3 | R20: 5.7 | S20: 6 | T20: 6.4 | U20: 5 | V20: 5.1 | W20: 2.3 | X20: 5.3 | Y20: 2.2 | Z20: 2 | AA20: 2.8 | AB20: 6.7 | AC20: 5.8 | AD20: 6.4 | AE20: 3.2 | AF20: 2.3 | AG20: 3.7 | AH20: -2.9
A21: 9 | B21: 7.2 | C21: 7.2 | D21: 8.8 | E21: 7 | F21: 6.4 | G21: 6.4 | H21: 11.6 | I21: 3.5 | J21: 12.1 | K21: 12.4 | L21: 11.9 | M21: 14.1 | N21: 8.3 | O21: 11.2 | P21: 10.6 | Q21: 9.5 | R21: 9.9 | S21: 11 | T21: 11.9 | U21: 4.1 | V21: 4.7 | W21: 3 | X21: 8.7 | Y21: 1.1 | Z21: 1.7 | AA21: 2.9 | AB21: 1 | AC21: 0.8 | AD21: 0.5 | AE21: 5.7 | AF21: 4.6 | AG21: 5.3 | AH21: -2.4
A22: 7.9 | B22: 7.6 | C22: 4.2 | D22: 4 | E22: 7 | F22: 7.6 | G22: 7.6 | H22: 13.2 | I22: 2.6 | J22: 10.9 | K22: 11.3 | L22: 12.3 | M22: 14.4 | N22: 7.7 | O22: 15.4 | P22: 14 | Q22: 6.1 | R22: 6.3 | S22: 5.4 | T22: 7 | U22: 7.2 | V22: 4 | W22: 4.3 | X22: 6.6 | Y22: 1.3 | Z22: 1.6 | AA22: 3 | AB22: 1.8 | AC22: 2.2 | AD22: 0.6 | AE22: 4.7 | AF22: 6.4 | AG22: 2.3 | AH22: -2.5
A23: 7 | B23: 4.5 | C23: 4.9 | D23: 5.2 | E23: 6 | F23: 6.5 | G23: 6.5 | H23: 10.5 | I23: 4.2 | J23: 8.9 | K23: 8.2 | L23: 7.9 | M23: 7.4 | N23: 4.2 | O23: 10.6 | P23: 8.6 | Q23: 8.6 | R23: 8.6 | S23: 10 | T23: 11 | U23: 8.2 | V23: 4.7 | W23: 5.7 | X23: 6.6 | Y23: 0.1 | Z23: 0.1 | AA23: 2.5 | AB23: 1 | AC23: 0.7 | AD23: -0.4 | AE23: 3.9 | AF23: 7.5 | AG23: 5.3 | AH23: -2.6
A24: 9.3 | B24: 8 | C24: 4.7 | D24: 4.7 | E24: 6.2 | F24: 5.5 | G24: 5.5 | H24: 11 | I24: 5.3 | J24: 6.3 | K24: 6.4 | L24: 6.7 | M24: 7.1 | N24: 4.6 | O24: 9.2 | P24: 7.4 | Q24: 6.6 | R24: 6.2 | S24: 5 | T24: 5.3 | U24: 9 | V24: 5 | W24: 6.3 | X24: 4.9 | Y24: 0.4 | Z24: 1.3 | AA24: 2.7 | AB24: 2.2 | AC24: 1.5 | AD24: -0.9 | AE24: 3.2 | AF24: 4 | AG24: 6.8 | AH24: -2
A25: 9.7 | B25: 9.5 | C25: 6.7 | D25: 5 | E25: 6.2 | F25: 5.6 | G25: 5.6 | H25: 10.9 | I25: 6.1 | J25: 6.7 | K25: 6.5 | L25: 6.4 | M25: 7 | N25: 5 | O25: 5.4 | P25: 5.2 | Q25: 5.2 | R25: 5.1 | S25: 4 | T25: 3.9 | U25: 4.6 | V25: 5 | W25: 3.5 | X25: 2.5 | Y25: 1.2 | Z25: 2.9 | AA25: 3 | AB25: 2.8 | AC25: 2.3 | AD25: 1.5 | AE25: 5.4 | AF25: 4.3 | AG25: 8.6 | AH25: -1.6
A26: 9.6 | B26: 4.8 | C26: 7 | D26: 7 | E26: 6.2 | F26: 8.4 | G26: 8.4 | H26: 10.7 | I26: 6.7 | J26: 9 | K26: 10.5 | L26: 11.8 | M26: 14.7 | N26: 4.7 | O26: 3.4 | P26: 4.2 | Q26: 3 | R26: 2.6 | S26: 2 | T26: 2 | U26: 7.7 | V26: 4 | W26: 5.3 | X26: 3.2 | Y26: 2.9 | Z26: 4 | AA26: 3.3 | AB26: 3 | AC26: 2.6 | AD26: 2.1 | AE26: 4.8 | AF26: 5.4 | AG26: 6.6 | AH26: -0.7
A27: 9.1 | B27: 4.8 | C27: 7.2 | D27: 8 | E27: 7.3 | F27: 8.2 | G27: 8.2 | H27: 10.8 | I27: 8.2 | J27: 8 | K27: 8.4 | L27: 9.3 | M27: 15.4 | N27: 4.9 | O27: 4.8 | P27: 4.6 | Q27: 2.3 | R27: 1.7 | S27: 1 | T27: 1.6 | U27: 5 | V27: 4 | W27: 3.7 | X27: 5.9 | Y27: 2.8 | Z27: 3.8 | AA27: 6.7 | AB27: 2.5 | AC27: 2.3 | AD27: 1.8 | AE27: 3.4 | AF27: 5.6 | AG27: 9.7 | AH27: 0.8
A28: 8.1 | B28: 9.7 | C28: 6 | D28: 7.2 | E28: 7.5 | F28: 10 | G28: 10 | H28: 11.1 | I28: 7.8 | J28: 10.8 | K28: 11.7 | L28: 12.5 | M28: 12.4 | N28: 5.1 | O28: 6 | P28: 4.4 | Q28: 2.1 | R28: 2.1 | S28: 2.3 | T28: 2.7 | U28: 5.3 | V28: 9.9 | W28: 2.9 | X28: 5.1 | Y28: 2.7 | Z28: 4.5 | AA28: 7 | AB28: 2.6 | AC28: 2.2 | AD28: 1.5 | AE28: 3.3 | AF28: 4.5 | AG28: 6.7 | AH28: 0.9
A29: 7.1 | B29: 9.9 | C29: 7.1 | D29: 8.2 | E29: 8 | F29: 15.3 | G29: 15.3 | H29: 11.7 | I29: 7 | J29: 8.1 | K29: 8.2 | L29: 8.2 | M29: 8.9 | N29: 4.8 | O29: 5.9 | P29: 5.6 | Q29: 3.3 | R29: 3.3 | S29: 4 | T29: 4.1 | U29: 4.2 | V29: 11.7 | W29: 2.6 | X29: 8.8 | Y29: 4.2 | Z29: 4.8 | AA29: 7.2 | AB29: 1.2 | AC29: 1.2 | AD29: 1.1 | AE29: 5.2 | AF29: 3.5 | AG29: 6.3 | AH29: 0.9
A30: 6.4 | B30: 10.5 | C30: 7.6 | D30: 9.2 | E30: 8 | F30: 9.4 | G30: 9.4 | H30: 12.1 | I30: 5.3 | J30: 7 | K30: 7.9 | L30: 8 | M30: 8.6 | N30: 5 | O30: 7.7 | P30: 6.8 | Q30: 2.5 | R30: 2.4 | S30: 4 | T30: 4.8 | U30: 2.3 | V30: 12.6 | W30: 3 | X30: 5 | Y30: 3.3 | Z30: 3.2 | AA30: 7.3 | AB30: 2.9 | AC30: 2 | AD30: 1 | AE30: 3.5 | AF30: 4.8 | AG30: 1.7 | AH30: 1
A31: 12.4 | B31: 10.3 | C31: 7.5 | D31: 9 | E31: 8 | F31: 9.1 | G31: 9.1 | H31: 15.5 | I31: 7.5 | J31: 7 | K31: 7 | L31: 7.4 | M31: 9.1 | N31: 6.3 | O31: 10 | P31: 8.2 | Q31: 5.1 | R31: 5.2 | S31: 6.3 | T31: 7.5 | U31: 2.4 | V31: 11.7 | W31: 3.2 | X31: 4.4 | Y31: 0.8 | Z31: 1.8 | AA31: 7.9 | AB31: 2 | AC31: 1.4 | AD31: 0.8 | AE31: 4.8 | AF31: 4.2 | AG31: 2.8 | AH31: -0.9
A32: 12.8 | B32: 7.9 | C32: 7.6 | D32: 9.2 | E32: 8 | F32: 8.8 | G32: 8.8 | H32: 16.5 | I32: 10.4 | J32: 7 | K32: 6.3 | L32: 6.9 | M32: 7.3 | N32: 6.5 | O32: 6.7 | P32: 4.8 | Q32: 4.9 | R32: 4.8 | S32: 4 | T32: 4.5 | U32: 5 | V32: 10.2 | W32: 7 | X32: 5.3 | Y32: 2.4 | Z32: 4.7 | AA32: 8.1 | AB32: 0.7 | AC32: 0.3 | AD32: 0.5 | AE32: 4.2 | AF32: 6.5 | AG32: 3.6 | AH32: -0.8
A33: 12.6 | B33: 8.6 | C33: 6.9 | D33: 7 | E33: 8.1 | F33: 9.7 | G33: 9.7 | H33: 17.3 | I33: 7.9 | J33: 4.8 | K33: 4.7 | L33: 5.4 | M33: 9.1 | N33: 6.5 | O33: 8.8 | P33: 10.7 | Q33: 3.3 | R33: 3.3 | S33: 3.3 | T33: 4.9 | U33: 9 | V33: 6.8 | W33: 5.2 | X33: 4.7 | Y33: 4.7 | Z33: 5.2 | AA33: 8.3 | AB33: 0.9 | AC33: 0.3 | AD33: 1.8 | AE33: 3.9 | AF33: 5.1 | AG33: 4.7 | AH33: -0.4
A34: 11.9 | E34: 8.1 | H34: 16.7 | N34: 6.2 | V34: 6.5 | AA34: 8.5 | AH34: 0
A35: 10.9 | E35: 7.8 | H35: 15.5 | N35: 9 | V35: 6.5 | AA35: 8.7 | AH35: 0
A36: 9.9 | E36: 7.6 | H36: 16.1 | N36: 7.9 | V36: 6.7 | AA36: 8.8 | AH36: 0.7
A37: 9.1 | E37: 7.4 | H37: 15.2 | N37: 8 | V37: 6.8 | AA37: 8.9 | AH37: 2
A38: 14.5 | E38: 7 | H38: 15.6 | N38: 7.6 | V38: 8.1 | AA38: 8.8 | AH38: 1.2
A39: 14.4 | E39: 8 | H39: 11.1 | N39: 6.4 | V39: 8.4 | AA39: 7.5 | AH39: 2.2
A40: 14.3 | E40: 8.6 | H40: 11 | N40: 6.7 | V40: 8.5 | AA40: 7.8 | AH40: 2.4
A41: 14 | E41: 9 | H41: 11.2 | N41: 6.9 | V41: 8 | AA41: 8 | AH41: 2.9
A42: 13.6 | E42: 9.1 | H42: 12.2 | N42: 6.6 | V42: 7.8 | AA42: 7.9 | AH42: 3.7
A43: 13 | E43: 9 | H43: 11.5 | N43: 8.4 | V43: 11.8 | AA43: 9.8 | AH43: 4
A44: 12 | E44: 8.7 | H44: 12.6 | N44: 9.7 | V44: 10.6 | AA44: 8.9 | AH44: 4.4
A45: 17.5 | E45: 8.4 | H45: 12.1 | N45: 9.5 | V45: 9.3 | AA45: 8.1 | AH45: 3.8
A46: 16.7 | E46: 8.2 | H46: 12.9 | N46: 9.1 | V46: 9.8 | AA46: 7.7 | AH46: 3
A47: 15.8 | E47: 8 | H47: 6.2 | N47: 13.9 | V47: 9.4 | AA47: 4.6 | AH47: 2.5
A48: 15.1 | E48: 8 | H48: 6.2 | N48: 14.6 | V48: 5.1 | AA48: 4.7 | AH48: 3
A49: 14.7 | E49: 7.9 | H49: 6.3 | N49: 15 | V49: 5 | AA49: 4.8 | AH49: 3.2
A50: 14.3 | E50: 8 | H50: 7.7 | N50: 14.1 | V50: 5 | AA50: 4.8 | AH50: 3.7
A51: 13.2 | E51: 8.2 | H51: 5.7 | N51: 10.9 | V51: 5 | AA51: 6.6 | AH51: 7
A52: 18 | E52: 8.8 | H52: 5.8 | N52: 9.2 | V52: 4.9 | AA52: 6.3 | AH52: 7.7
A53: 17.2 | E53: 8 | H53: 5.7 | N53: 9.2 | V53: 3.2 | AA53: 5.9 | AH53: 8
A54: 16.2 | E54: 7.6 | H54: 6.4 | N54: 8.8 | V54: 3.4 | AA54: 5.5 | AH54: 8.1
A55: 15.2 | E55: 7.1 | H55: 6.7 | N55: 9.8 | V55: 3.8 | AA55: 3.3 | AH55: 6.4
A56: 14.3 | E56: 7 | H56: 7.1 | N56: 9.9 | V56: 3.8 | AA56: 3.1 | AH56: 7.2
A57: 13.7 | E57: 6.7 | H57: 7.7 | N57: 9 | V57: 3.6 | AA57: 3 | AH57: 7.9
A58: 13.1 | E58: 6.7 | H58: 7.9 | N58: 8.5 | V58: 6 | AA58: 3 | AH58: 8.5
A59: 18.9 | E59: 6 | H59: 5.7 | N59: 6.1 | V59: 5.7 | AA59: 1.7 | AH59: -0.8
A60: 19 | E60: 6.3 | H60: 6.8 | N60: 5 | V60: 5.6 | AA60: 1.7 | AH60: 0
A61: 18.7 | E61: 6.3 | H61: 7.1 | N61: 4.3 | V61: 5.2 | AA61: 1.6 | AH61: 1.1
A62: 18 | E62: 6.1 | H62: 7.3 | N62: 3.7 | V62: 5.6 | AA62: 1.3 | AH62: 2.7
A63: 17.1 | E63: 6.9 | H63: 5.3 | N63: 6.7 | V63: 5.7 | AA63: 0.9 | AH63: 4.3
A64: 16 | E64: 7.6 | H64: 6.2 | N64: 6.7 | V64: 6.6 | AA64: 1 | AH64: 5.3
A65: 14.8 | E65: 8 | H65: 7.3 | N65: 7.4 | V65: 7.2 | AA65: 1.1 | AH65: 5.7
A66: 21.2 | E66: 8.2 | H66: 6.9 | N66: 7.5 | V66: 7 | AA66: 1.3 | AH66: 6.2
A67: 21.6 | E67: 8.8 | H67: 8.7 | N67: 10.6 | V67: 6.4 | AA67: 2.3 | AH67: 3.7
A68: 21.7 | E68: 8.2 | H68: 8.9 | N68: 12.8 | V68: 8 | AA68: 2.1 | AH68: 4
A69: 21.3 | E69: 8.7 | H69: 9.6 | N69: 13.4 | V69: 8 | AA69: 2.5 | AH69: 4
A70: 20.4 | E70: 9.2 | H70: 8.1 | N70: 14.4 | V70: 7.8 | AA70: 2.8 | AH70: 3.8
A71: 19.3 | E71: 9 | H71: 6.4 | N71: 13.4 | V71: 8 | AA71: 2 | AH71: 4.6
A72: 17.8 | E72: 8.8 | H72: 7.1 | N72: 14 | V72: 7.3 | AA72: 2 | AH72: 5.5
A73: 22 | E73: 8.3 | H73: 7.5 | N73: 14.1 | V73: 1.8 | AA73: 2 | AH73: 5.1
A74: 21.3 | E74: 7.8 | H74: 7.6 | N74: 15.1 | V74: 1.2 | AA74: 1.9 | AH74: 5.2
A75: 20.5 | E75: 7.8 | H75: 4.5 | N75: 16.9 | V75: 0.9 | AA75: 1.7 | AH75: 7.7
A76: 19.8 | E76: 8.3 | H76: 5.5 | N76: 17.1 | V76: 0.8 | AA76: 1.8 | AH76: 7.6
A77: 19.1 | E77: 9.2 | H77: 5.7 | N77: 16.7 | V77: 0.5 | AA77: 1.7 | AH77: 8
A78: 18.3 | E78: 9.4 | H78: 5.6 | N78: 15.7 | V78: 1 | AA78: 1.4 | AH78: 7.7
A79: 17 | E79: 9.6 | H79: 6.3 | N79: 15.2 | V79: 1.3 | AA79: 2.2 | AH79: 3.1
A80: 18.3 | E80: 8.3 | H80: 7.3 | N80: 15 | V80: 1.3 | AA80: 2.2 | AH80: 3.4
A81: 17.4 | E81: 10 | H81: 9 | N81: 13.3 | V81: 1.1 | AA81: 2.1 | AH81: 4.2
A82: 16.8 | E82: 10 | H82: 9.1 | N82: 12.6 | V82: 1 | AA82: 2 | AH82: 4.4
A83: 16.4 | E83: 9.8 | H83: 9.5 | N83: 7.6 | V83: 5 | AA83: 0.4 | AH83: 5.9
A84: 15.6 | E84: 9.2 | H84: 8.6 | N84: 7.8 | V84: 4.8 | AA84: 0.8 | AH84: 7
A85: 14.1 | E85: 8.2 | H85: 9.4 | N85: 7.7 | V85: 4.7 | AA85: 1 | AH85: 6.1
A86: 12.4 | E86: 7.7 | H86: 10.1 | N86: 7.9 | V86: 5 | AA86: 1.1 | AH86: 6.7
A87: 14.2 | E87: 7 | H87: 8.7 | N87: 7.5 | V87: 4.8 | AA87: 1.5 | AH87: 10.9
A88: 15 | E88: 6.8 | H88: 9.9 | N88: 7.7 | V88: 4.9 | AA88: 1.8 | AH88: 9
A89: 15.3 | E89: 6.9 | H89: 10 | N89: 8.2 | V89: 4.6 | AA89: 2.2 | AH89: 8.8
A90: 15.2 | E90: 6.7 | H90: 11.1 | N90: 7.8 | V90: 4.4 | AA90: 2.7 | AH90: 7.8
A91: 14.8 | E91: 6.9 | H91: 10.4 | N91: 8.4 | V91: 4.1 | AA91: 3.1 | AH91: 11.3
A92: 14.1 | E92: 8 | H92: 10.5 | N92: 9.1 | V92: 4.2 | AA92: 3.2 | AH92: 13.6
A93: 13 | E93: 8.9 | H93: 11.1 | N93: 9.5 | V93: 6 | AA93: 3.3 | AH93: 15.7
A94: 14.7 | E94: 9.5 | H94: 11.3 | N94: 10.2 | V94: 6.6 | AA94: 3.5 | AH94: 16.4
A95: 15.1 | E95: 9.5 | H95: 14.4 | N95: 16.7 | V95: 7 | AA95: 3.5 | AH95: 8.2
A96: 15 | E96: 8.8 | H96: 14.2 | N96: 17.1 | V96: 6.2 | AA96: 3.2 | AH96: 10.9
A97: 14.6 | E97: 7.7 | H97: 15.3 | N97: 16 | V97: 6.4 | AA97: 3.2 | AH97: 13
A98: 14.2 | E98: 6 | H98: 15.8 | N98: 16.1 | V98: 9 | AA98: 3.7 | AH98: 15.1
A99: 13.8 | E99: 10.9 | H99: 11.9 | N99: 18 | V99: 9.2 | AA99: 4.1 | AH99: 10
A100: 13.1 | E100: 10.9 | H100: 12.7 | N100: 17.6 | V100: 9 | AA100: 4 | AH100: 9.2
A101: 16.7 | E101: 12 | H101: 12.4 | N101: 17.5 | V101: 8 | AA101: 4 | AH101: 8.3
A102: 15.8 | E102: 12.4 | H102: 12.6 | N102: 17.9 | V102: 7.5 | AA102: 4 | AH102: 8.3
A103: 14.9 | E103: 12.3 | H103: 8.1 | N103: 12.2 | V103: 10 | AA103: 6 | AH103: 10.4
A104: 14.1 | E104: 12.2 | H104: 8.2 | N104: 9.6 | V104: 10 | AA104: 6 | AH104: 11.8
A105: 13.3 | E105: 11 | H105: 10 | N105: 9.6 | V105: 9.9 | AA105: 5.8 | AH105: 12.5
A106: 12.4 | E106: 10 | H106: 10.1 | N106: 8.9 | V106: 9.8 | AA106: 5.7 | AH106: 11.6
A107: 11.5 | E107: 9 | H107: 8.4 | N107: 8.3 | V107: 9.4 | AA107: 5 | AH107: 6.8
A108: 10 | E108: 9.2 | H108: 8.6 | N108: 9.4 | V108: 7.5 | AA108: 5.2 | AH108: 7.3
A109: 9.7 | E109: 9.1 | H109: 9.6 | N109: 9.4 | V109: 7.3 | AA109: 5.4 | AH109: 8.3
A110: 9.9 | E110: 9 | H110: 10 | N110: 9.1 | V110: 7.3 | AA110: 5.4 | AH110: 8.7
A111: 10.7 | E111: 9.4 | H111: 11.4 | N111: 8.5 | V111: 7 | AA111: 3.8 | AH111: 2.4
A112: 11.8 | E112: 10.1 | H112: 12.3 | N112: 8.6 | V112: 7.1 | AA112: 4.4 | AH112: 3.2
A113: 12.2 | E113: 11 | H113: 12.8 | N113: 9.1 | V113: 5.8 | AA113: 4.8 | AH113: 3.8
A114: 11.3 | E114: 11.5 | H114: 13.1 | N114: 9.3 | V114: 6.9 | AA114: 5 | AH114: 4.3
A115: 12.9 | E115: 11 | H115: 13.1 | N115: 9.3 | V115: 7.6 | AA115: 1.9 | AH115: 2.7
A116: 13.3 | E116: 9.5 | H116: 14.5 | N116: 9 | V116: 6.8 | AA116: 2.1 | AH116: 3.7
A117: 13.5 | E117: 7.8 | H117: 15.5 | N117: 9 | V117: 6.2 | AA117: 2.4 | AH117: 3.5
A118: 13.2 | E118: 6.5 | H118: 16.8 | N118: 9.2 | V118: 9 | AA118: 2.8 | AH118: 3.6
A119: 12.4 | E119: 6 | H119: 15.3 | N119: 6.3 | V119: 8.6 | AA119: 5 | AH119: 3.9
A120: 11.5 | E120: 6.3 | H120: 16.4 | N120: 5.8 | V120: 8 | AA120: 5 | AH120: 4.6
A121: 10.9 | E121: 6.6 | H121: 17.7 | N121: 6.2 | V121: 7.8 | AA121: 5.2 | AH121: 4.7
A122: 9.1 | E122: 7 | H122: 17.8 | N122: 5.5 | V122: 7.4 | AA122: 5.8 | AH122: 5.2
A123: 8.8 | E123: 7.2 | H123: 17.4 | N123: 10.6 | V123: 4.8 | AA123: 6.2 | AH123: 5.8
A124: 8.7 | E124: 7.6 | H124: 16.8 | N124: 10.7 | V124: 4.4 | AA124: 6 | AH124: 5.3
A125: 8.7 | E125: 9 | H125: 16.9 | N125: 11.2 | V125: 4.2 | AA125: 6 | AH125: 4.4
A126: 8.7 | E126: 9.4 | H126: 17.6 | N126: 10.6 | V126: 4 | AA126: 5.7 | AH126: 4.8
A127: 8.5 | E127: 9.6 | V127: 4.1
A128: 8.2 | E128: 10 | V128: 4
A129: 10.9 | E129: 9.8 | V129: 3.8
A130: 11.3 | E130: 9.4 | V130: 3.8
A131: 11.1 | E131: 8 | V131: 3.9
A132: 10.5 | E132: 8.1 | V132: 3.8
A133: 9.7 | E133: 8.1 | V133: 4.8
A134: 8.9 | E134: 7.8 | V134: 4.8
A135: 8.5 | E135: 7.4 | V135: 4.7
A136: 11.8 | E136: 8 | V136: 4
A137: 12.3 | E137: 9.2 | V137: 4.1
A138: 12.3 | E138: 9.8 | V138: 3.4
A139: 11.7 | E139: 10.2 | V139: 3.7
A140: 10.6 | E140: 10 | V140: 3.8
A141: 9.5 | E141: 10.3 | V141: 3.9
A142: 8.9 | E142: 10.4 | V142: 4
A143: 11.8 | E143: 10.2 | V143: 4.2
A144: 12 | E144: 10.8 | V144: 4.8
A145: 11.8 | E145: 10 | V145: 4.9
A146: 11.2 | E146: 10 | V146: 3.8
A147: 10.4 | E147: 12.8 | V147: 2.9
A148: 9.6 | E148: 13.3 | V148: 7
A149: 9.2 | E149: 13.1 | V149: 7.3
A150: 11.6 | E150: 14.2 | V150: 7.4
A151: 11.7 | E151: 15 | V151: 7
A152: 11.6 | E152: 15.8 | V152: 7.3
A153: 11.6 | E153: 15.3 | V153: 10
A154: 11.6 | E154: 14.8 | V154: 10.5
A155: 11.7 | E155: 14 | V155: 10.8
A156: 11.3 | E156: 13.8 | V156: 10.7
A157: 12.4 | E157: 13.2 | V157: 10
A158: 11.9 | E158: 12.7
A159: 11.4 | E159: 14.2
A160: 11.1 | E160: 15
A161: 11 | E161: 15.2
A162: 10.9 | E162: 15.9
A163: 10.6 | E163: 16
A164: 10.7 | E164: 15.7
A165: 11.1 | E165: 14.9
A166: 11.2 | E166: 14.2
A167: 11 | E167: 14
A168: 10.6 | E168: 13.1
A169: 9.8 | E169: 12.1
A170: 9 | E170: 11.8
A171: 14.3 | E171: 15
A172: 14.5 | E172: 16.3
A173: 14.3 | E173: 15.8
A174: 13.6 | E174: 16.1
A175: 12.7 | E175: 15.8
A176: 11.7 | E176: 14.2
A177: 10.9 | E177: 14.8
A178: 10.3 | E178: 13.8
A179: 9.2 | E179: 13
A180: 8.6 | E180: 13
A181: 8.6 | E181: 12.9
A182: 9 | E182: 12.8
A183: 9.4 | E183: 12.5
A184: 9.4 | E184: 12.7
A185: 12.2 | E185: 14.2
A186: 12.8 | E186: 13.9
A187: 13.1 | E187: 13.2
A188: 12.9 | E188: 13.8
A189: 12.4 | E189: 12.7
A190: 11.8 | E190: 11.8
A191: 11.5 | E191: 11
A192: 11.9 | E192: 11.1
A193: 12 | E193: 11.1
A194: 12 | E194: 10.8
A195: 11.9 | E195: 10.3
A196: 11.8 | E196: 9.9
A197: 11.6 | E197: 11.8
A198: 11.4 | E198: 11.6
A199: 14.5 | E199: 11.4
A200: 15.4 | E200: 11.2
... 174 more rows

Sheet Værdata Juni
A1: Bergen 14:45-20:00 | B1: Florø 02:45-03:00 | C1: Måløy 05:15-05:30 | D1: Torvik 08:20-08:30 | E1: Ålesund 09:45-10:00 | F1: Geiranger 14:25-14:45 | G1: Ålesund 19:00-20:00 | H1: Molde 22:35-23:05 | I1: Kristiansund 02:45-03:00 | J1: Trondheim 09:45-12:45 | K1: Rørvik 21:40-22:00 | L1: Brønnøysund 01:35-01:45 | M1: Sandnessjøen 04:35-04:50 | N1: Nesna 06:00-06:10 | O1: Ørnes 10:00-10:10 | P1: Bodø 13:05-15:20 | Q1: Stamsund 19:15-19:40 | R1: Svolvær 21:20-22:15 | S1: Stokmarknes 01:30-01:40 | T1: Sortland 02:55-03:10 | U1: Risøyhamn 04:35-04:50 | V1: Harstad 07:10 - 07:45 | W1: Finnsnes 11:00-11:30 | X1: Tromsø 14:15-18:15 | Y1: Skjervøy 22:10-22:25 | Z1: Øksfjord 01:50-02:00 | AA1: Hammerfest 05:05- 05:45 | AB1: Havøysund 08:30 - 08:45 | AC1: Honningsvåg 10:55- 14:30 | AD1: Kjøllefjord 16:40-17:00 | AE1: Mehamn 18:55-19:15 | AF1: Berlevåg 22:00-22:10 | AG1: Båtsfjord 00:00-00:30 | AH1: Vardø 03:30-03:45 | AI1: Vadsø 06:55-07:10 | AJ1: Kirkenes 09:00-12:30
A2: Florida 14:00 - 20:00 | B2: Florida 03:00 | C2: Svinøy Fyr 05:00 | D2: Vigra 08:00 | E2: Vigra 10:00 | F2: Vigra 15:00 | G2: Vigra 19:00-20:00 | H2: Ona 23:00 | I2: Ona 03:00 | J2: Værnes 10:00-13:00 | K2: Ørland 22:00 | L2: Bodø 02:00 | M2: Bodø 05:00 | N2: Bodø 06:00 | O2: Bodø 10:00 | P2: 13:00-16:00 | Q2: Skrova 19:00 | R2: Skrova 22:00 | S2: Sortland 02:00 | T2: Sortland 03:00 | U2: Andøya 05:00 | V2: Andøya 07:00 | W2: Tromsø 11:00 | X2: Tromsø 14:00 - 18:00 | Y2: Tromsø 22:00 | Z2: Torsvåg 02:00 | AA2: Fruholmen 05:00 | AB2: Fruholmen 09:00 | AC2: Fruholmen 11-14 | AD2: Slettnes 17:00 | AE2: Slettnes 19:00 | AF2: Slettnes 22:00 | AG2: Vardø 00:00 | AH2: Vardø 04:00 | AI2: Kirkenes 07:00 | AJ2: Kirkenes 09:00-12:00
A3: 13.8 | B3: 6.7 | C3: 6.3 | D3: 7 | E3: 7.1 | F3: 8 | G3: 7.1 | H3: 8.5 | I3: 9.1 | J3: 8.6 | K3: 10.7 | L3: 5.4 | M3: 5.8 | N3: 5.9 | O3: 6.3 | P3: 6.7 | Q3: 24 | R3: 21.5 | S3: 6.3 | T3: 6.3 | U3: 9 | V3: 10.9 | W3: 5 | X3: 6.1 | Y3: 2.9 | Z3: 4 | AA3: 7.4 | AB3: 8.3 | AC3: 8.2 | AD3: 3.9 | AE3: 3.4 | AF3: 3 | AG3: 4.8 | AH3: 4.5 | AI3: 2.3 | AJ3: 3
A4: 11.7 | B4: 7.6 | C4: 5.5 | D4: 7 | E4: 8 | F4: 9 | G4: 7 | H4: 9 | I4: 8.1 | J4: 9.3 | K4: 7.9 | L4: 4.4 | M4: 5 | N4: 4.7 | O4: 5.2 | P4: 7.3 | Q4: 22.6 | R4: 21.2 | S4: 4.8 | T4: 5.1 | U4: 10.5 | V4: 13.1 | W4: 4.3 | X4: 5 | Y4: 3.4 | Z4: 5.6 | AA4: 7.1 | AB4: 8.8 | AC4: 8.1 | AD4: 4.3 | AE4: 3.8 | AF4: 3.2 | AG4: 4.9 | AH4: 5.7 | AI4: 2.3 | AJ4: 3.2
A5: 11.4 | B5: 9.5 | C5: 7.7 | D5: 9 | E5: 9.1 | F5: 11 | G5: 8.7 | H5: 9 | I5: 8.1 | J5: 9.5 | K5: 8.7 | L5: 2.6 | M5: 5.2 | N5: 6.1 | O5: 9.5 | P5: 7 | Q5: 23.4 | R5: 19 | S5: 8.4 | T5: 8.3 | U5: 13 | V5: 14.1 | W5: 5 | X5: 4.7 | Y5: 4.4 | Z5: 10 | AA5: 7.6 | AB5: 11.1 | AC5: 8 | AD5: 4.9 | AE5: 4.8 | AF5: 4.5 | AG5: 8 | AH5: 7.5 | AI5: 3.2 | AJ5: 3.8
A6: 10.7 | B6: 6 | C6: 8.4 | D6: 9 | E6: 10.5 | F6: 11 | G6: 8 | H6: 8 | I6: 7.8 | J6: 10.8 | K6: 6.7 | L6: 8.9 | M6: 8.9 | N6: 10 | O6: 12.7 | P6: 7.2 | Q6: 13.2 | R6: 12.4 | S6: 9.6 | T6: 9.4 | U6: 7.3 | V6: 8.3 | W6: 8 | X6: 4.8 | Y6: 5.8 | Z6: 9.9 | AA6: 5.7 | AB6: 5.9 | AC6: 7.9 | AD6: 3.1 | AE6: 2.9 | AF6: 2.4 | AG6: 9.9 | AH6: 7.4 | AI6: 5.9 | AJ6: 3
A7: 10.5 | B7: 5.2 | C7: 8.3 | D7: 10 | E7: 10.3 | F7: 10 | G7: 9.5 | H7: 9 | I7: 7.5 | J7: 12.7 | K7: 6 | L7: 8.3 | M7: 8.2 | N7: 8.3 | O7: 9.1 | P7: 6.4 | Q7: 15.4 | R7: 12.8 | S7: 8.6 | T7: 8.7 | U7: 9.3 | V7: 9.5 | W7: 8.7 | X7: 4 | Y7: 6.3 | Z7: 7 | AA7: 6.9 | AB7: 10.1 | AC7: 9 | AD7: 8.3 | AE7: 7.2 | AF7: 6.4 | AG7: 6.9 | AH7: 12 | AI7: 10.2 | AJ7: 2.2
A8: 10 | B8: 7.7 | C8: 8.6 | D8: 9 | E8: 10.5 | F8: 11 | G8: 9.4 | H8: 11.6 | I8: 8.3 | J8: 13.4 | K8: 11.4 | L8: 5.2 | M8: 5.7 | N8: 6.2 | O8: 7.4 | P8: 6.4 | Q8: 12.4 | R8: 10.8 | S8: 10.8 | T8: 10.4 | U8: 7.6 | V8: 9 | W8: 9 | X8: 6 | Y8: 7 | Z8: 8.6 | AA8: 8.1 | AB8: 10.3 | AC8: 9 | AD8: 9.7 | AE8: 9.5 | AF8: 9 | AG8: 9 | AH8: 6.3 | AI8: 5.9 | AJ8: 2.6
A9: 9.8 | B9: 8.2 | C9: 8.8 | D9: 10 | E9: 9.7 | F9: 11.5 | G9: 9.2 | H9: 12.4 | I9: 12.3 | J9: 13.4 | K9: 7.8 | L9: 4.8 | M9: 5.4 | N9: 6.1 | O9: 6.5 | P9: 6.6 | Q9: 7.6 | R9: 5.2 | S9: 7.1 | T9: 7.1 | U9: 7.6 | V9: 8.7 | W9: 13.3 | X9: 5.3 | Y9: 13.6 | Z9: 3.4 | AA9: 7 | AB9: 6.8 | AC9: 9.2 | AD9: 6.4 | AE9: 6.4 | AF9: 6.2 | AG9: 4.5 | AH9: 8.1 | AI9: 5.3 | AJ9: 2.8
A10: 10.4 | B10: 9.9 | C10: 8.6 | D10: 9 | E10: 8.4 | F10: 8 | G10: 9.2 | H10: 10.5 | I10: 11.8 | J10: 12.7 | K10: 9 | L10: 5 | M10: 5.1 | N10: 5.6 | O10: 5.5 | P10: 6.6 | Q10: 3.8 | R10: 4.2 | S10: 6.7 | T10: 6.5 | U10: 6.8 | V10: 7.3 | W10: 10 | X10: 5.6 | Y10: 6.4 | Z10: 7.1 | AA10: 5.1 | AB10: 5.7 | AC10: 9.7 | AD10: 8.8 | AE10: 8.5 | AF10: 8 | AG10: 4.1 | AH10: 4.3 | AI10: 13 | AJ10: 2.2
A11: 10.3 | B11: 8.8 | C11: 7.3 | D11: 7.6 | E11: 8.1 | F11: 9 | G11: 9.3 | H11: 10.8 | I11: 10 | J11: 7.8 | K11: 8 | L11: 8.4 | M11: 8 | N11: 8.1 | O11: 7.9 | P11: 10.3 | Q11: 3.2 | R11: 6 | S11: 5.5 | T11: 5.5 | U11: 8.7 | V11: 8.4 | W11: 5.3 | X11: 5 | Y11: 3 | Z11: 5.7 | AA11: 6.2 | AB11: 6.5 | AC11: 11.4 | AD11: 5.4 | AE11: 5.4 | AF11: 5 | AG11: 5.5 | AH11: 3.9 | AI11: 7.5 | AJ11: 5.2
A12: 10.5 | B12: 11 | C12: 7.8 | D12: 10 | E12: 11 | F12: 11 | G12: 9 | H12: 10.8 | I12: 10.2 | J12: 8.1 | K12: 7.9 | L12: 7.2 | M12: 7.3 | N12: 7.3 | O12: 8.4 | P12: 10.6 | Q12: 6.2 | R12: 5.2 | S12: 5.9 | T12: 5.9 | U12: 8.6 | V12: 9.4 | W12: 5 | X12: 5 | Y12: 3.4 | Z12: 9 | AA12: 5.1 | AB12: 5.9 | AC12: 10.8 | AD12: 4.6 | AE12: 4.3 | AF12: 4.2 | AG12: 6.7 | AH12: 6 | AI12: 4.9 | AJ12: 5.5
A13: 10.5 | B13: 9.7 | C13: 8.7 | D13: 10 | E13: 10.2 | F13: 11 | G13: 10 | H13: 10.4 | I13: 9.5 | J13: 8.2 | K13: 9 | L13: 6.3 | M13: 8 | N13: 8.9 | O13: 12.3 | P13: 10.6 | Q13: 6.4 | R13: 6.2 | S13: 4.7 | T13: 4.9 | U13: 7.4 | V13: 7.5 | W13: 6.3 | X13: 5 | Y13: 7.1 | Z13: 11.8 | AA13: 6.5 | AB13: 8.1 | AC13: 9.7 | AD13: 4.4 | AE13: 4.2 | AF13: 3.6 | AG13: 5.8 | AH13: 6.3 | AI13: 5.3 | AJ13: 6.1
A14: 10.5 | B14: 16 | C14: 10.9 | D14: 12 | E14: 13.2 | F14: 16 | G14: 9 | H14: 11.3 | I14: 10.3 | J14: 7.8 | K14: 12.2 | L14: 13 | M14: 13 | N14: 14 | O14: 17.4 | P14: 10.5 | Q14: 7.2 | R14: 7 | S14: 5.6 | T14: 5.8 | U14: 5.7 | V14: 6 | W14: 8 | X14: 5 | Y14: 6.8 | Z14: 6.8 | AA14: 7.1 | AB14: 8.2 | AC14: 8.4 | AD14: 4.9 | AE14: 5 | AF14: 5 | AG14: 4.6 | AH14: 5.6 | AI14: 5.2 | AJ14: 6.7
A15: 10.2 | B15: 16.8 | C15: 13.6 | D15: 18 | E15: 17.5 | F15: 18 | G15: 9.9 | H15: 10.2 | I15: 10.3 | J15: 8.3 | K15: 9.6 | L15: 15.5 | M15: 15.6 | N15: 15.7 | O15: 20.4 | P15: 13.2 | Q15: 14 | R15: 13.8 | S15: 5.8 | T15: 5.7 | U15: 6.9 | V15: 8.2 | W15: 6 | X15: 5.5 | Y15: 6 | Z15: 19.5 | AA15: 8.3 | AB15: 11.7 | AC15: 6.1 | AD15: 4.6 | AE15: 4.2 | AF15: 4 | AG15: 4 | AH15: 4.1 | AI15: 5.7 | AJ15: 7.2
A16: 10.4 | B16: 9.4 | C16: 14.3 | D16: 16 | E16: 17.2 | F16: 20 | G16: 9.8 | H16: 11.4 | I16: 9.3 | J16: 8.7 | K16: 9.3 | L16: 10.8 | M16: 12 | N16: 11.7 | O16: 15.5 | P16: 13.7 | Q16: 14.9 | R16: 13.4 | S16: 4.8 | T16: 4.8 | U16: 6.7 | V16: 7.4 | W16: 7 | X16: 5.1 | Y16: 7.7 | Z16: 15.9 | AA16: 6.8 | AB16: 7 | AC16: 6.2 | AD16: 5.8 | AE16: 5.8 | AF16: 5.3 | AG16: 4.6 | AH16: 4.9 | AI16: 4.6 | AJ16: 7.7
A17: 10.1 | B17: 7.6 | C17: 12.5 | D17: 13 | E17: 12.9 | F17: 13 | G17: 8 | H17: 11.5 | I17: 10.5 | J17: 9 | K17: 9.4 | L17: 13.9 | M17: 14 | N17: 14.3 | O17: 17.2 | P17: 13.3 | Q17: 10 | R17: 9.6 | S17: 5.2 | T17: 5.3 | U17: 7.2 | V17: 7.3 | W17: 9.3 | X17: 4.7 | Y17: 8.1 | Z17: 9.2 | AA17: 6.5 | AB17: 7 | AC17: 6.4 | AD17: 5 | AE17: 5.2 | AF17: 5.4 | AG17: 4.4 | AH17: 6.4 | AI17: 5.4 | AJ17: 8.2
A18: 10.1 | B18: 7.8 | C18: 11.5 | D18: 13 | E18: 14 | F18: 16 | G18: 7.9 | H18: 11.4 | I18: 11 | J18: 9.8 | K18: 8 | L18: 13.7 | M18: 13.9 | N18: 14.8 | O18: 17.7 | P18: 12.9 | Q18: 9.4 | R18: 8.9 | S18: 5.5 | T18: 5.4 | U18: 6.1 | V18: 6.4 | W18: 15.3 | X18: 10 | Y18: 10.4 | Z18: 6.5 | AA18: 4.4 | AB18: 5.2 | AC18: 6.7 | AD18: 5.2 | AE18: 5 | AF18: 5 | AG18: 6.5 | AH18: 7.9 | AI18: 9.8 | AJ18: 9.2
A19: 10.3 | B19: 13.8 | C19: 17 | D19: 12 | E19: 12.1 | F19: 13 | G19: 9.3 | H19: 11.4 | I19: 10.9 | J19: 9 | K19: 9.2 | L19: 14.1 | M19: 13.8 | N19: 15 | O19: 20.2 | P19: 9.6 | Q19: 10.8 | R19: 10.4 | S19: 6.1 | T19: 6.1 | U19: 5.8 | V19: 6.3 | W19: 11.7 | X19: 10 | Y19: 9.4 | Z19: 4.6 | AA19: 5.3 | AB19: 6.4 | AC19: 10 | AD19: 6.5 | AE19: 6.2 | AF19: 6 | AG19: 7 | AH19: 8.1 | AI19: 12.3 | AJ19: 10.8
A20: 10.1 | B20: 13.5 | C20: 12.5 | D20: 12 | E20: 14.3 | F20: 17.6 | G20: 9 | H20: 11.3 | I20: 10.7 | J20: 8.8 | K20: 12 | L20: 11.2 | M20: 11 | N20: 10.7 | O20: 10.1 | P20: 8.4 | Q20: 10 | R20: 10.4 | S20: 5.9 | T20: 6.3 | U20: 6.7 | V20: 7.1 | W20: 11 | X20: 9.6 | Y20: 9 | Z20: 5.1 | AA20: 5 | AB20: 5.8 | AC20: 9.1 | AD20: 7.4 | AE20: 7.4 | AF20: 7.4 | AG20: 6.4 | AH20: 8 | AI20: 8 | AJ20: 10
A21: 9.5 | B21: 14.1 | C21: 13.4 | D21: 16 | E21: 17.7 | F21: 17 | G21: 10.5 | H21: 11.6 | I21: 10.8 | J21: 10.4 | K21: 14 | L21: 8.9 | M21: 9.3 | N21: 9.3 | O21: 10.3 | P21: 7.6 | Q21: 9.4 | R21: 9 | S21: 10.4 | T21: 10.8 | U21: 5.6 | V21: 6.5 | W21: 9 | X21: 9 | Y21: 8.9 | Z21: 7.5 | AA21: 5.6 | AB21: 6.5 | AC21: 8.3 | AD21: 12.1 | AE21: 12 | AF21: 14.8 | AG21: 6.7 | AH21: 6.5 | AI21: 11.6 | AJ21: 11.2
A22: 8.9 | B22: 14.2 | C22: 11.2 | D22: 13 | E22: 12.7 | F22: 13 | G22: 10 | H22: 12.1 | I22: 11 | J22: 10.5 | K22: 13.6 | L22: 13.4 | M22: 14.5 | N22: 14.2 | O22: 15.4 | P22: 7.4 | Q22: 7.6 | R22: 7.5 | S22: 14 | T22: 12.5 | U22: 6.9 | V22: 7.1 | W22: 12.7 | X22: 9 | Y22: 11.6 | Z22: 12.7 | AA22: 6.1 | AB22: 6.5 | AC22: 7.9 | AD22: 13.1 | AE22: 13.2 | AF22: 11.2 | AG22: 7.1 | AH22: 7.5 | AI22: 7.1 | AJ22: 12
A23: 8.5 | B23: 12.6 | C23: 10.9 | D23: 12 | E23: 12.5 | F23: 13 | G23: 10.5 | H23: 12.1 | I23: 11.2 | J23: 12.2 | K23: 17.3 | L23: 12.6 | M23: 13 | N23: 12 | O23: 10 | P23: 8.1 | Q23: 11.2 | R23: 11.4 | S23: 12.3 | T23: 11.6 | U23: 7.8 | V23: 9.4 | W23: 19.3 | X23: 8.7 | Y23: 17.6 | Z23: 3.8 | AA23: 7.9 | AB23: 11.4 | AC23: 10.8 | AD23: 8.6 | AE23: 8.9 | AF23: 7.2 | AG23: 7.4 | AH23: 8.3 | AI23: 6.6 | AJ23: 6
A24: 10.5 | B24: 9.7 | C24: 10.4 | D24: 12 | E24: 12.6 | F24: 13 | G24: 10 | H24: 12.3 | I24: 10.8 | J24: 13.1 | K24: 12 | L24: 10.2 | M24: 10.3 | N24: 10 | O24: 10.2 | P24: 8.3 | Q24: 9.4 | R24: 9 | S24: 9.8 | T24: 9.7 | U24: 11 | V24: 12.8 | W24: 21 | X24: 8 | Y24: 10.7 | Z24: 4.4 | AA24: 9.8 | AB24: 10.4 | AC24: 10.9 | AD24: 7.9 | AE24: 7.4 | AF24: 7.3 | AG24: 5 | AH24: 7.9 | AI24: 9.2 | AJ24: 5.8
A25: 10.7 | B25: 11.2 | C25: 10.1 | D25: 11 | E25: 10.8 | F25: 11 | G25: 14.7 | H25: 12.8 | I25: 11.7 | J25: 14 | K25: 11.8 | L25: 10.1 | M25: 10 | N25: 10.3 | O25: 12.1 | P25: 8 | Q25: 10.4 | R25: 9.5 | S25: 9.5 | T25: 9.3 | U25: 12 | V25: 13.5 | W25: 14.3 | X25: 8.1 | Y25: 10.3 | Z25: 6.8 | AA25: 8.7 | AB25: 7.9 | AC25: 10.8 | AD25: 8.3 | AE25: 7.6 | AF25: 7 | AG25: 4.6 | AH25: 4.9 | AI25: 14.9 | AJ25: 6
A26: 12.1 | B26: 11 | C26: 8.5 | D26: 9 | E26: 9.6 | F26: 10.9 | G26: 14.6 | H26: 13.8 | I26: 12.6 | J26: 13.3 | K26: 9.7 | L26: 10.9 | M26: 10.7 | N26: 11 | O26: 10.6 | P26: 7.8 | Q26: 10.2 | R26: 9 | S26: 9.2 | T26: 9.4 | U26: 13 | V26: 13.3 | W26: 12 | X26: 8.7 | Y26: 11.8 | Z26: 7.7 | AA26: 6.7 | AB26: 7 | AC26: 10.5 | AD26: 10.6 | AE26: 9 | AF26: 7.5 | AG26: 7.7 | AH26: 4.9 | AI26: 11.3 | AJ26: 6
A27: 12.4 | B27: 11 | C27: 10.1 | D27: 11 | E27: 12.1 | F27: 12 | G27: 18.2 | H27: 13.7 | I27: 13.1 | J27: 10 | K27: 10.3 | L27: 9 | M27: 9.3 | N27: 10 | O27: 11.1 | P27: 4.4 | Q27: 12 | R27: 12.4 | S27: 8.8 | T27: 9 | U27: 10.6 | V27: 12.3 | W27: 16.2 | X27: 8 | Y27: 11.5 | Z27: 9 | AA27: 6 | AB27: 6.5 | AC27: 6.4 | AD27: 7.7 | AE27: 8.2 | AF27: 8.4 | AG27: 6.5 | AH27: 7.3 | AI27: 10.6 | AJ27: 6
A28: 11.6 | B28: 8.5 | C28: 12.4 | D28: 11 | E28: 12.5 | F28: 14 | G28: 16 | H28: 13.2 | I28: 12.8 | J28: 9.7 | K28: 13.1 | L28: 8.1 | M28: 8.6 | N28: 8.7 | O28: 9.2 | P28: 6.8 | Q28: 11.4 | R28: 10.2 | S28: 8.2 | T28: 8.1 | U28: 8.8 | V28: 9.2 | W28: 14 | X28: 10 | Y28: 10.4 | Z28: 7.8 | AA28: 10.8 | AB28: 10.9 | AC28: 6.4 | AD28: 5.7 | AE28: 2.1 | AF28: 7.1 | AG28: 8.1 | AH28: 6.4 | AI28: 24 | AJ28: 6.2
A29: 10.1 | B29: 10.3 | C29: 10.4 | D29: 11.6 | E29: 11.4 | F29: 9.8 | G29: 16.7 | H29: 13.1 | I29: 13.4 | J29: 10.1 | K29: 10.9 | L29: 8.7 | M29: 10.1 | N29: 9.8 | O29: 9.9 | P29: 7.7 | Q29: 10 | R29: 9.8 | S29: 9.4 | T29: 9.6 | U29: 13.2 | V29: 14.2 | W29: 9 | X29: 10 | Y29: 8.1 | Z29: 12.4 | AA29: 7.5 | AB29: 7.9 | AC29: 6.5 | AD29: 9 | AE29: 9.8 | AF29: 8.2 | AG29: 9.4 | AH29: 7.6 | AI29: 15.3 | AJ29: 6.6
A30: 9.4 | B30: 11.1 | C30: 11.9 | D30: 12 | E30: 13.2 | F30: 19 | G30: 16 | H30: 12.7 | I30: 11.9 | J30: 10.2 | K30: 17.2 | L30: 7.5 | M30: 7.5 | N30: 7.8 | O30: 9.3 | P30: 6.1 | Q30: 10 | R30: 9.8 | S30: 10.1 | T30: 10 | U30: 9.2 | V30: 9.3 | W30: 12.3 | X30: 10.1 | Y30: 9 | Z30: 9.5 | AA30: 8.3 | AB30: 8.8 | AC30: 6.5 | AD30: 6.5 | AE30: 6.4 | AF30: 6.8 | AG30: 12.6 | AH30: 8.5 | AI30: 7.3 | AJ30: 7
A31: 16.3 | B31: 9.1 | C31: 9.4 | D31: 11 | E31: 9.4 | F31: 10 | G31: 13.1 | H31: 14 | I31: 11.9 | J31: 12.3 | K31: 11.2 | L31: 9.7 | M31: 10 | N31: 10.2 | O31: 11.2 | P31: 7.6 | Q31: 10 | R31: 9 | S31: 12 | T31: 12.5 | U31: 9.1 | V31: 9.6 | W31: 13.3 | X31: 9.2 | Y31: 10 | Z31: 8.6 | AA31: 6.8 | AB31: 6.1 | AC31: 5.8 | AD31: 7.9 | AE31: 7.6 | AF31: 7.2 | AG31: 9 | AH31: 11.9 | AI31: 11.9 | AJ31: 14.3
A32: 16.4 | B32: 12 | C32: 8.1 | D32: 9 | E32: 9 | F32: 9 | G32: 12.8 | H32: 12.2 | I32: 13.3 | J32: 11.7 | K32: 11 | L32: 6.9 | M32: 9.3 | N32: 10.6 | O32: 14.2 | P32: 7.7 | Q32: 8.4 | R32: 8.2 | S32: 12.8 | T32: 13.2 | U32: 7.8 | V32: 8.1 | W32: 13 | X32: 9.8 | Y32: 7.6 | Z32: 8.6 | AA32: 4.9 | AB32: 3.4 | AC32: 5.9 | AD32: 19.1 | AE32: 20 | AF32: 17.7 | AG32: 7.6 | AH32: 9.3 | AI32: 8.1 | AJ32: 15.8
A33: 16.9 | G33: 14 | J33: 12.4 | P33: 7.8 | X33: 17 | AC33: 6.2 | AJ33: 16
A34: 16.7 | G34: 14 | J34: 12.2 | P34: 8.3 | X34: 17 | AC34: 6.7 | AJ34: 16.6
A35: 15.9 | G35: 12.3 | J35: 11.1 | P35: 10 | X35: 17.6 | AC35: 6.2 | AJ35: 8.6
A36: 15.1 | G36: 12.2 | J36: 11.6 | P36: 10.4 | X36: 17.8 | AC36: 6 | AJ36: 9.1
A37: 14.5 | G37: 15.8 | J37: 12.1 | P37: 11.1 | X37: 17 | AC37: 5.8 | AJ37: 9.2
A38: 15.4 | G38: 13 | J38: 12.3 | P38: 11.2 | X38: 9.6 | AC38: 5.5 | AJ38: 9
A39: 14.8 | G39: 16.1 | J39: 14.9 | P39: 10 | X39: 9 | AC39: 6.1 | AJ39: 5.2
A40: 14.5 | G40: 15.6 | J40: 16.3 | P40: 11.1 | X40: 8.7 | AC40: 6.2 | AJ40: 5.3
A41: 13.6 | G41: 12.8 | J41: 16 | P41: 11.4 | X41: 8.7 | AC41: 6.4 | AJ41: 6
A42: 13.8 | G42: 12 | J42: 16 | P42: 11.1 | X42: 7.5 | AC42: 6.7 | AJ42: 6.1
A43: 12.9 | G43: 12.1 | J43: 15.2 | P43: 14.6 | X43: 6 | AC43: 8.4 | AJ43: 5
A44: 12.1 | G44: 11.5 | J44: 16.6 | P44: 16.3 | X44: 6 | AC44: 8.2 | AJ44: 4.6
A45: 16.7 | G45: 12 | J45: 17.6 | P45: 17.1 | X45: 5.9 | AC45: 8 | AJ45: 5.3
A46: 15.7 | G46: 11.8 | J46: 18.6 | P46: 17.8 | X46: 7 | AC46: 7.9 | AJ46: 6.4
A47: 15.5 | G47: 9.6 | J47: 17.2 | P47: 19.4 | X47: 6 | AC47: 9.1 | AJ47: 6.6
A48: 15.4 | G48: 9.5 | J48: 18.3 | P48: 20 | X48: 4.3 | AC48: 9.5 | AJ48: 7
A49: 14.4 | G49: 11 | J49: 18.7 | P49: 19.7 | X49: 5 | AC49: 9.8 | AJ49: 7.2
A50: 13.3 | G50: 10.9 | J50: 20.1 | P50: 19.6 | X50: 3.7 | AC50: 10.1 | AJ50: 8
A51: 12.5 | G51: 11.3 | J51: 22.4 | P51: 19.5 | X51: 5.7 | AC51: 13.6 | AJ51: 6
A52: 14.4 | G52: 11 | J52: 23.5 | P52: 20.1 | X52: 4.3 | AC52: 13.9 | AJ52: 5.6
A53: 15.3 | G53: 14.1 | J53: 25 | P53: 19.5 | X53: 7 | AC53: 13.4 | AJ53: 6
A54: 14.2 | G54: 13.7 | J54: 20.1 | P54: 21.1 | X54: 7.5 | AC54: 12.1 | AJ54: 6.2
A55: 13.9 | G55: 12 | J55: 7.6 | P55: 18.7 | X55: 7.8 | AC55: 7 | AJ55: 5.6
A56: 12.6 | G56: 12 | J56: 8.5 | P56: 20.7 | X56: 7.5 | AC56: 7 | AJ56: 5.5
A57: 12.3 | G57: 14.7 | J57: 9.6 | P57: 20.7 | X57: 7.1 | AC57: 7 | AJ57: 8.2
A58: 11.7 | G58: 13 | J58: 8.2 | P58: 19.3 | X58: 8 | AC58: 7 | AJ58: 9.2
A59: 18 | G59: 8.8 | J59: 13.6 | P59: 19 | X59: 8 | AC59: 6.9 | AJ59: 7.3
A60: 18.3 | G60: 8 | J60: 15.1 | P60: 18.4 | X60: 7.5 | AC60: 6.7 | AJ60: 8.5
A61: 18.6 | G61: 8.6 | J61: 14.2 | P61: 19.5 | X61: 7 | AC61: 6.4 | AJ61: 9.2
A62: 18 | G62: 9 | J62: 13.9 | P62: 16.7 | X62: 7 | AC62: 6 | AJ62: 10
A63: 17 | J63: 15 | P63: 19.8 | X63: 7 | AC63: 6 | AJ63: 12.6
A64: 16.5 | J64: 14.6 | P64: 20 | X64: 7.8 | AC64: 6.3 | AJ64: 13.7
A65: 15.8 | J65: 15.2 | P65: 20 | X65: 8.2 | AC65: 6.5 | AJ65: 15
A66: 19.1 | J66: 15.1 | P66: 20.2 | X66: 7.8 | AC66: 6.7 | AJ66: 16.2
A67: 18.4 | J67: 14.1 | P67: 22.4 | X67: 7.2 | AC67: 5.3 | AJ67: 14
A68: 18.4 | J68: 15.2 | P68: 21.6 | X68: 7 | AC68: 6 | AJ68: 13.6
A69: 18.7 | J69: 16.9 | P69: 22.2 | X69: 8 | AC69: 6.7 | AJ69: 14.7
A70: 17.9 | J70: 16.8 | P70: 21.5 | X70: 8.4 | AC70: 6.8 | AJ70: 13.2
A71: 16.3 | J71: 14.5 | P71: 9.6 | X71: 8.7 | AC71: 5.8 | AJ71: 9.5
A72: 14.8 | J72: 14.9 | P72: 10 | X72: 9 | AC72: 5.8 | AJ72: 11.6
A73: 22.5 | J73: 17.1 | P73: 9.7 | X73: 10 | AC73: 5.8 | AJ73: 13.2
A74: 23.4 | J74: 16.6 | P74: 9.7 | X74: 9.7 | AC74: 5.9 | AJ74: 14.3
A75: 24 | J75: 16 | P75: 11.9 | X75: 9.3 | AC75: 7.1 | AJ75: 12
A76: 24 | J76: 17.1 | P76: 12.6 | X76: 9 | AC76: 7.3 | AJ76: 13.6
A77: 24.2 | J77: 16.2 | P77: 12.3 | X77: 9.7 | AC77: 7.6 | AJ77: 12.9
A78: 22.7 | J78: 15.1 | P78: 12.8 | X78: 14.7 | AC78: 7.9 | AJ78: 11.8
A79: 22.6 | J79: 16.1 | P79: 15.4 | X79: 15.3 | AC79: 7.2 | AJ79: 7
A80: 27.3 | J80: 16.5 | P80: 16.2 | X80: 15.3 | AC80: 7.6 | AJ80: 6.6
A81: 27 | J81: 16.8 | P81: 17 | X81: 13.3 | AC81: 7.8 | AJ81: 6.8
A82: 26.8 | J82: 16.8 | P82: 16.4 | X82: 12 | AC82: 7.8 | AJ82: 6.9
A83: 26.6 | J83: 21.2 | P83: 11.4 | X83: 12 | AC83: 13.5 | AJ83: 10.8
A84: 26.1 | J84: 19.7 | P84: 12 | X84: 12 | AC84: 13.6 | AJ84: 10.1
A85: 24.6 | J85: 20.5 | P85: 12.2 | X85: 11.7 | AC85: 13 | AJ85: 12
A86: 24 | J86: 20.5 | P86: 12.1 | X86: 11.9 | AC86: 12.2 | AJ86: 12
A87: 16 | J87: 17.4 | P87: 10.6 | X87: 10 | AC87: 11.5 | AJ87: 13
A88: 15.7 | J88: 17.1 | P88: 11 | X88: 12 | AC88: 12.2 | AJ88: 13
A89: 15.7 | J89: 17.3 | P89: 10.6 | X89: 13.3 | AC89: 12.6 | AJ89: 14.7
A90: 15.7 | J90: 17.7 | P90: 10.8 | X90: 14.1 | AC90: 12.6 | AJ90: 16.2
A91: 14.8 | J91: 11.8 | P91: 13.9 | X91: 13.8 | AC91: 7.6 | AJ91: 20.2
A92: 14.4 | J92: 12.7 | P92: 13.9 | X92: 12.7 | AC92: 7.6 | AJ92: 20.9
A93: 13.7 | J93: 14.7 | P93: 13 | X93: 9.3 | AC93: 7.7 | AJ93: 19
A94: 14.1 | J94: 15 | P94: 12.5 | X94: 10 | AC94: 7.6 | AJ94: 19.1
A95: 14.3 | J95: 14.6 | P95: 9.4 | X95: 9.4 | AC95: 6.8 | AJ95: 9.8
A96: 13.9 | J96: 15.8 | P96: 9.3 | X96: 9 | AC96: 6.4 | AJ96: 9.6
A97: 13.5 | J97: 16.7 | P97: 10 | X97: 9 | AC97: 6 | AJ97: 10
A98: 12.9 | J98: 17.3 | P98: 10.2 | X98: 13.3 | AC98: 5.8 | AJ98: 10.1
A99: 11.9 | J99: 12 | P99: 10.5 | X99: 13.2 | AC99: 7.5 | AJ99: 14.2
A100: 11.3 | J100: 13.1 | P100: 10.5 | X100: 13.6 | AC100: 8 | AJ100: 14.5
A101: 18.4 | J101: 14.3 | P101: 11.5 | X101: 12.3 | AC101: 8.2 | AJ101: 16.3
A102: 18.2 | J102: 12.6 | P102: 10.6 | X102: 12 | AC102: 8.3 | AJ102: 18
A103: 18 | J103: 11.7 | P103: 9.8 | X103: 21 | AC103: 11.7 | AJ103: 24.6
A104: 18.1 | J104: 11.7 | P104: 9.6 | X104: 20.7 | AC104: 12.7 | AJ104: 24.9
A105: 17.4 | J105: 11.9 | P105: 9.5 | X105: 19.9 | AC105: 14.2 | AJ105: 26
A106: 15.7 | J106: 13.1 | P106: 9.3 | X106: 21.7 | AC106: 15.5 | AJ106: 27
A107: 14.8 | J107: 13.9 | P107: 9.3 | X107: 20.7 | AC107: 8.3 | AJ107: 15
A108: 18.9 | J108: 14.8 | P108: 10.8 | X108: 19 | AC108: 8.5 | AJ108: 15.1
A109: 19.4 | J109: 14.8 | P109: 10.4 | X109: 19 | AC109: 8.6 | AJ109: 15.3
A110: 18.5 | J110: 15.1 | P110: 10 | X110: 13.9 | AC110: 8.4 | AJ110: 16.8
A111: 17 | J111: 10.9 | P111: 9.7 | X111: 15.3 | AC111: 9.3 | AJ111: 10.3
A112: 15.5 | J112: 11 | P112: 11 | X112: 13.3 | AC112: 9.6 | AJ112: 11.6
A113: 15.6 | J113: 11.4 | P113: 11 | X113: 18.3 | AC113: 9.9 | AJ113: 12.2
A114: 15.1 | J114: 11.9 | P114: 11.2 | X114: 17 | AC114: 10.2 | AJ114: 13.2
A115: 18.4 | J115: 15.5 | P115: 11.8 | X115: 16.2 | AC115: 5.4 | AJ115: 13.8
A116: 18.7 | J116: 16.6 | P116: 12 | X116: 15.3 | AC116: 5.2 | AJ116: 13.2
A117: 18.3 | J117: 17.7 | P117: 11.6 | X117: 14 | AC117: 5 | AJ117: 13.8
A118: 17.5 | J118: 18.7 | P118: 11.9 | X118: 14 | AC118: 4.9 | AJ118: 13.2
A119: 17.9 | J119: 18.3 | P119: 16 | X119: 14 | AC119: 3.7 | AJ119: 9
A120: 16.7 | J120: 18.3 | P120: 16.6 | X120: 13.8 | AC120: 4.2 | AJ120: 8.7
A121: 16.4 | J121: 19.3 | P121: 16.9 | X121: 13.3 | AC121: 4.8 | AJ121: 9
A122: 16.6 | J122: 20.4 | P122: 17.4 | X122: 12.7 | AC122: 5.2 | AJ122: 9
A123: 15.4 | X123: 15
A124: 14.8 | X124: 13.8
A125: 14.3 | X125: 12.8
A126: 14.5 | X126: 13
A127: 14.2 | X127: 13
A128: 14.5 | X128: 13
A129: 17.8 | X129: 13
A130: 15.9 | X130: 13
A131: 15.2 | X131: 12
A132: 14.9 | X132: 12
A133: 15.5 | X133: 8.7
A134: 15.1 | X134: 9
A135: 14 | X135: 8.5
A136: 14.5 | X136: 8.9
A137: 14.6 | X137: 9
A138: 14 | X138: 12.8
A139: 14 | X139: 11.8
A140: 13.6 | X140: 11.1
A141: 13.4 | X141: 10.8
A142: 13.2 | X142: 10.1
A143: 14.5 | X143: 14
A144: 14.6 | X144: 14
A145: 14.7 | X145: 13.9
A146: 12.1 | X146: 13.4
A147: 12.5 | X147: 12
A148: 11.6 | X148: 12
A149: 11.4 | X149: 11.7
A150: 13.4 | X150: 11.2
A151: 14.1 | X151: 11
A152: 12.9 | X152: 10
A153: 13.2
A154: 13.2
A155: 12.5
A156: 11.9
A157: 12.1
A158: 12.7
A159: 13
A160: 13.2
A161: 12.6
A162: 12
A163: 11.5
A164: 13.9
A165: 12.5
A166: 13.1
A167: 13.4
A168: 13.5
A169: 13.2
A170: 12.9
A171: 14.3
A172: 15.3
A173: 14.7
A174: 14.4
A175: 15.3
A176: 14.2
A177: 13.7
A178: 18.4
A179: 18.6
A180: 18.4
A181: 18.4
A182: 17.7
A183: 16.6
A184: 15.6
A185: 17.3
A186: 16.9
A187: 15.5
A188: 15.2
A189: 14.3
A190: 13.8
A191: 13
A192: 15.6
A193: 16.2
A194: 16.3
A195: 16.2
A196: 16.1
A197: 14.8
A198: 14.2
A199: 19.5
A200: 19.9
... 12 more rows

Sheet Værdata Juli
A1: Bergen 14:45-20:00 | B1: Florø 02:45-03:00 | C1: Måløy 05:15-05:30 | D1: Torvik 08:20-08:30 | E1: Ålesund 09:45-10:00 | F1: Geiranger 14:25-14:45 | G1: Ålesund 19:00-20:00 | H1: Molde 22:35-23:05 | I1: Kristiansund 02:45-03:00 | J1: Trondheim 09:45-12:45 | K1: Rørvik 21:40-22:00 | L1: Brønnøysund 01:35-01:45 | M1: Sandnessjøen 04:35-04:50 | N1: Nesna 06:00-06:10 | O1: Ørnes 10:00-10:10 | P1: Bodø 13:05-15:20 | Q1: Stamsund 19:15-19:40 | R1: Svolvær 21:20-22:15 | S1: Stokmarknes 01:30-01:40 | T1: Sortland 02:55-03:10 | U1: Risøyhamn 04:35-04:50 | V1: Harstad 07:10 - 07:45 | W1: Finnsnes 11:00-11:30 | X1: Tromsø 14:15-18:15 | Y1: Skjervøy 22:10-22:25 | Z1: Øksfjord 01:50-02:00 | AA1: Hammerfest 05:05- 05:45 | AB1: Havøysund 08:30 - 08:45 | AC1: Honningsvåg 10:55- 14:30 | AD1: Kjøllefjord 16:40-17:00 | AE1: Mehamn 18:55-19:15 | AF1: Berlevåg 22:00-22:10 | AG1: Båtsfjord 00:00-00:30 | AH1: Vardø 03:30-03:45 | AI1: Vadsø 06:55-07:10 | AJ1: Kirkenes 09:00-12:30
A2: Florida 14:00 - 20:00 | B2: Florida 03:00 | C2: Svinøy Fyr 05:00 | D2: Vigra 08:00 | E2: Vigra 10:00 | F2: Vigra 15:00 | G2: Vigra 19:00-20:00 | H2: Ona 23:00 | I2: Ona 03:00 | J2: Værnes 10:00-13:00 | K2: Ørland 22:00 | L2: Bodø 02:00 | M2: Bodø 05:00 | N2: Bodø 06:00 | O2: Bodø 10:00 | P2: 13:00-16:00 | Q2: Skrova 19:00 | R2: Skrova 22:00 | S2: Sortland 02:00 | T2: Sortland 03:00 | U2: Andøya 05:00 | V2: Andøya 07:00 | W2: Tromsø 11:00 | X2: Tromsø 14:00 - 18:00 | Y2: Tromsø 22:00 | Z2: Torsvåg 02:00 | AA2: Fruholmen 05:00 | AB2: Fruholmen 09:00 | AC2: Fruholmen 11-14 | AD2: Slettnes 17:00 | AE2: Slettnes 19:00 | AF2: Slettnes 22:00 | AG2: Vardø 00:00 | AH2: Vardø 04:00 | AI2: Kirkenes 07:00 | AJ2: Kirkenes 09:00-12:00
A3: 17.6 | B3: 13.9 | C3: 10.7 | D3: 12.8 | E3: 13.7 | F3: 13.2 | G3: 12.8 | H3: 11.3 | I3: 10.8 | J3: 10.2 | K3: 10.5 | L3: 8.8 | M3: 8 | N3: 7.9 | O3: 9.4 | P3: 9.6 | Q3: 16.2 | R3: 17.2 | S3: 11.3 | T3: 11 | U3: 7 | V3: 7.3 | W3: 9.3 | X3: 9 | Y3: 6 | Z3: 8 | AA3: 6 | AB3: 7.6 | AC3: 8.3 | AD3: 10.9 | AE3: 11.2 | AF3: 11.4 | AG3: 7.8 | AH3: 8.2 | AI3: 9.8 | AJ3: 10.2
A4: 18.7 | B4: 12.3 | C4: 10.9 | D4: 12.8 | E4: 12.8 | F4: 12.3 | G4: 12.8 | H4: 11.6 | I4: 11.8 | J4: 11 | K4: 10 | L4: 9.8 | M4: 9.2 | N4: 9.8 | O4: 10 | P4: 9.1 | Q4: 12.4 | R4: 13.2 | S4: 14.2 | T4: 13.7 | U4: 7 | V4: 8.4 | W4: 8.3 | X4: 9 | Y4: 7.3 | Z4: 7.8 | AA4: 6.3 | AB4: 6.8 | AC4: 8.3 | AD4: 10.7 | AE4: 10 | AF4: 9 | AG4: 8.7 | AH4: 8.5 | AI4: 10.5 | AJ4: 10.2
A5: 18.8 | B5: 8.5 | C5: 10.8 | D5: 11.2 | E5: 12.2 | F5: 13.7 | G5: 12.6 | H5: 9.2 | I5: 12.2 | J5: 11.2 | K5: 10.1 | L5: 7.8 | M5: 7 | N5: 7.3 | O5: 8.5 | P5: 9.5 | Q5: 20.7 | R5: 17.2 | S5: 15.5 | T5: 14.4 | U5: 6.7 | V5: 6.6 | W5: 8 | X5: 9.1 | Y5: 7.6 | Z5: 8.9 | AA5: 6.4 | AB5: 6.3 | AC5: 8.3 | AD5: 10.3 | AE5: 9.8 | AF5: 9.6 | AG5: 7.5 | AH5: 10.8 | AI5: 14.6 | AJ5: 10.5
A6: 17.7 | B6: 10.3 | C6: 10.1 | D6: 12.2 | E6: 13.7 | F6: 15.2 | G6: 11.8 | H6: 9.4 | I6: 10.4 | J6: 11.7 | K6: 10.9 | L6: 6.2 | M6: 10.2 | N6: 11.2 | O6: 15 | P6: 9.7 | Q6: 11.3 | R6: 10.5 | S6: 9.9 | T6: 9.9 | U6: 9 | V6: 9.2 | W6: 15 | X6: 9 | Y6: 13.9 | Z6: 10.2 | AA6: 5.4 | AB6: 6.4 | AC6: 8.2 | AD6: 8.4 | AE6: 7.8 | AF6: 7.5 | AG6: 6.6 | AH6: 7.7 | AI6: 8.6 | AJ6: 10.9
A7: 16 | B7: 12.5 | C7: 9.5 | D7: 13.2 | E7: 13.5 | F7: 11.9 | G7: 12.9 | H7: 10.4 | I7: 9.6 | J7: 11.9 | K7: 10.3 | L7: 14 | M7: 14.5 | N7: 14.8 | O7: 19.3 | P7: 9.5 | Q7: 15 | R7: 13.9 | S7: 9 | T7: 9 | U7: 8.7 | V7: 10.4 | W7: 10 | X7: 8.7 | Y7: 9.5 | Z7: 9.7 | AA7: 11.2 | AB7: 13.6 | AC7: 7.5 | AD7: 8.4 | AE7: 8.2 | AF7: 8 | AG7: 7.2 | AH7: 6.5 | AI7: 8.3 | AJ7: 11.3
A8: 14.3 | B8: 15 | C8: 10.4 | D8: 11 | E8: 11.4 | F8: 13 | G8: 12.7 | H8: 13.1 | I8: 11.6 | J8: 12.2 | K8: 9.2 | L8: 9 | M8: 9.9 | N8: 10.4 | O8: 10.7 | P8: 9 | Q8: 15.2 | R8: 14.3 | S8: 9.7 | T8: 9.7 | U8: 7 | V8: 7.1 | W8: 14.7 | X8: 10 | Y8: 13.8 | Z8: 7.2 | AA8: 9.7 | AB8: 13.3 | AC8: 7.8 | AD8: 8.2 | AE8: 7.8 | AF8: 7 | AG8: 6.8 | AH8: 7.3 | AI8: 11.4 | AJ8: 12.1
A9: 13.8 | B9: 11 | C9: 10.6 | D9: 12.5 | E9: 12.5 | F9: 13.3 | G9: 15.3 | H9: 12.2 | I9: 14 | J9: 12.6 | K9: 10.5 | L9: 8 | M9: 10 | N9: 10.7 | O9: 12 | P9: 9.1 | Q9: 11.7 | R9: 11.4 | S9: 14.1 | T9: 14 | U9: 7 | V9: 6.8 | W9: 11 | X9: 9 | Y9: 10.6 | Z9: 7.2 | AA9: 10.5 | AB9: 12.5 | AC9: 8 | AD9: 7.1 | AE9: 6.4 | AF9: 6.2 | AG9: 6.4 | AH9: 6.8 | AI9: 11.8 | AJ9: 12.5
A10: 13.5 | B10: 11.1 | C10: 10.4 | D10: 13 | E10: 13.6 | F10: 16 | G10: 14 | H10: 9.9 | I10: 13 | J10: 13.1 | K10: 12.1 | L10: 9 | M10: 9 | N10: 8.9 | O10: 9 | P10: 9.3 | Q10: 11.9 | R10: 11.4 | S10: 16.1 | T10: 16.9 | U10: 8 | V10: 8.7 | W10: 14 | X10: 8.9 | Y10: 11.4 | Z10: 8.5 | AA10: 7.8 | AB10: 9.2 | AC10: 8.1 | AD10: 8.2 | AE10: 8.4 | AF10: 7.8 | AG10: 7.8 | AH10: 6.7 | AI10: 12.4 | AJ10: 12.9
A11: 14.3 | B11: 11.8 | C11: 11.3 | D11: 17.2 | E11: 16.8 | F11: 17.3 | G11: 11.5 | H11: 12 | I11: 11.2 | J11: 13.2 | K11: 10.7 | L11: 9 | M11: 9 | N11: 9.1 | O11: 9.4 | P11: 9.7 | Q11: 11.4 | R11: 11.1 | S11: 11.2 | T11: 11.4 | U11: 9 | V11: 9.1 | W11: 17 | X11: 9 | Y11: 15.5 | Z11: 7.8 | AA11: 10.2 | AB11: 12.8 | AC11: 6.7 | AD11: 7.9 | AE11: 7.4 | AF11: 6.2 | AG11: 8.9 | AH11: 10.3 | AI11: 15.5 | AJ11: 17.5
A12: 15.1 | B12: 11.5 | C12: 10.4 | D12: 16.2 | E12: 17.2 | F12: 19.5 | G12: 11.8 | H12: 12.1 | I12: 13.2 | J12: 13.9 | K12: 9.6 | L12: 9 | M12: 9.2 | N12: 9.5 | O12: 9.6 | P12: 10 | Q12: 12.3 | R12: 11.3 | S12: 10.5 | T12: 10.8 | U12: 9 | V12: 9.7 | W12: 10.9 | X12: 9 | Y12: 10 | Z12: 8 | AA12: 11.5 | AB12: 11.9 | AC12: 6.9 | AD12: 6 | AE12: 6 | AF12: 5.8 | AG12: 10.9 | AH12: 16.3 | AI12: 19 | AJ12: 18.6
A13: 15.5 | B13: 11.6 | C13: 10.6 | D13: 12 | E13: 13 | F13: 14.9 | G13: 12.9 | H13: 11.9 | I13: 12.9 | J13: 14.5 | K13: 15.5 | L13: 9.2 | M13: 10 | N13: 10.7 | O13: 11.1 | P13: 10.4 | Q13: 12 | R13: 11.5 | S13: 12.5 | T13: 11.9 | U13: 10.3 | V13: 11.2 | W13: 12.3 | X13: 9.3 | Y13: 10.5 | Z13: 7.9 | AA13: 8.2 | AB13: 8.7 | AC13: 7 | AD13: 6.5 | AE13: 6.8 | AF13: 7 | AG13: 9.1 | AH13: 9.7 | AI13: 10.1 | AJ13: 18.5
A14: 15.2 | B14: 11.6 | C14: 10.3 | D14: 15.2 | E14: 14.9 | F14: 15.4 | G14: 12.8 | H14: 11.2 | I14: 12.6 | J14: 14.7 | K14: 13.9 | L14: 10.9 | M14: 11.4 | N14: 11.8 | O14: 14.5 | P14: 10.5 | Q14: 11.9 | R14: 10.7 | S14: 10.9 | T14: 10.9 | U14: 9 | V14: 9.7 | W14: 10 | X14: 9.6 | Y14: 9 | Z14: 7.6 | AA14: 8.1 | AB14: 8.3 | AC14: 6.8 | AD14: 8.8 | AE14: 8.6 | AF14: 7 | AG14: 9.8 | AH14: 12.1 | AI14: 14.8 | AJ14: 17.7
A15: 14.2 | B15: 8.9 | C15: 10 | D15: 14.2 | E15: 15.6 | F15: 16.8 | G15: 12.6 | H15: 11 | I15: 12 | J15: 13.9 | K15: 17.1 | L15: 15.1 | M15: 16 | N15: 15.5 | O15: 15.4 | P15: 15.9 | Q15: 10.1 | R15: 9.9 | S15: 12 | T15: 12.5 | U15: 10 | V15: 11.7 | W15: 10.5 | X15: 9.7 | Y15: 9.4 | Z15: 9.9 | AA15: 7.9 | AB15: 8 | AC15: 7.1 | AD15: 24 | AE15: 20.6 | AF15: 18.2 | AG15: 10 | AH15: 10.5 | AI15: 15.3 | AJ15: 9
A16: 13.2 | B16: 8.3 | C16: 9.9 | D16: 15.2 | E16: 15.5 | F16: 14.2 | G16: 12.8 | H16: 12 | I16: 11.4 | J16: 14 | K16: 11.8 | L16: 10.8 | M16: 10.2 | N16: 10.6 | O16: 14.5 | P16: 16.8 | Q16: 12 | R16: 11.6 | S16: 9.3 | T16: 9.1 | U16: 10 | V16: 10.3 | W16: 13.2 | X16: 9.7 | Y16: 11.2 | Z16: 11.6 | AA16: 7 | AB16: 7.9 | AC16: 7.3 | AD16: 17.3 | AE16: 17.2 | AF16: 17.5 | AG16: 9.5 | AH16: 10.6 | AI16: 12 | AJ16: 9.7
A17: 12.7 | B17: 9.6 | C17: 10.5 | D17: 12.2 | E17: 12.8 | F17: 15.4 | G17: 15.6 | H17: 13.2 | I17: 14 | J17: 14.9 | K17: 10.7 | L17: 16.8 | M17: 19 | N17: 18.8 | O17: 22.4 | P17: 17.6 | Q17: 11 | R17: 10.5 | S17: 8.3 | T17: 8.3 | U17: 9 | V17: 9.1 | W17: 14 | X17: 9 | Y17: 12.3 | Z17: 9.4 | AA17: 9.6 | AB17: 10.3 | AC17: 7.5 | AD17: 12.2 | AE17: 12 | AF17: 12.1 | AG17: 9.4 | AH17: 10 | AI17: 13.7 | AJ17: 10.7
A18: 13 | B18: 12.8 | C18: 11.2 | D18: 15.2 | E18: 14.9 | F18: 14.9 | G18: 15 | H18: 14.6 | I18: 14.8 | J18: 15.6 | K18: 10.8 | L18: 12 | M18: 11 | N18: 11.1 | O18: 10.6 | P18: 17.5 | Q18: 12.6 | R18: 11.8 | S18: 12.1 | T18: 12 | U18: 8 | V18: 8 | W18: 11 | X18: 16 | Y18: 11.5 | Z18: 8.4 | AA18: 11.1 | AB18: 11.3 | AC18: 7.7 | AD18: 9.9 | AE18: 9 | AF18: 9 | AG18: 9.1 | AH18: 10.8 | AI18: 11.6 | AJ18: 11.6
A19: 13.2 | B19: 13.8 | C19: 12 | D19: 15 | E19: 15.6 | F19: 17 | G19: 17.2 | H19: 12.1 | I19: 15 | J19: 17.6 | K19: 12.6 | L19: 9.9 | M19: 10 | N19: 9.8 | O19: 12.9 | P19: 17.6 | Q19: 12.3 | R19: 11.5 | S19: 13.8 | T19: 13.8 | U19: 8 | V19: 7.9 | W19: 14.8 | X19: 16 | Y19: 14.9 | Z19: 12.2 | AA19: 10.7 | AB19: 11.1 | AC19: 14.7 | AD19: 9.9 | AE19: 9.5 | AF19: 8.4 | AG19: 10 | AH19: 9.4 | AI19: 11.3 | AJ19: 9.7
A20: 13.2 | B20: 13.4 | C20: 12.1 | D20: 15 | E20: 14.6 | F20: 15.2 | G20: 16.8 | H20: 12.3 | I20: 13 | J20: 19.1 | K20: 13.9 | L20: 10.9 | M20: 10 | N20: 10 | O20: 11.3 | P20: 17 | Q20: 14.5 | R20: 13.4 | S20: 8.4 | T20: 8.2 | U20: 8 | V20: 8.6 | W20: 19.3 | X20: 15.6 | Y20: 13.4 | Z20: 13.4 | AA20: 13.5 | AB20: 16 | AC20: 14.1 | AD20: 9.5 | AE20: 8.5 | AF20: 8.3 | AG20: 10.6 | AH20: 10.8 | AI20: 11.8 | AJ20: 10
A21: 12.9 | B21: 12.3 | C21: 13.3 | D21: 16.2 | E21: 16.6 | F21: 15.8 | G21: 17.7 | H21: 14.2 | I21: 12.7 | J21: 20.8 | K21: 11 | L21: 10 | M21: 10.5 | N21: 11 | O21: 12.2 | P21: 17.2 | Q21: 12.3 | R21: 12 | S21: 7.2 | T21: 7.2 | U21: 12.3 | V21: 13.5 | W21: 10 | X21: 15.7 | Y21: 7.1 | Z21: 10.8 | AA21: 11 | AB21: 10.6 | AC21: 12.9 | AD21: 8 | AE21: 8.2 | AF21: 8 | AG21: 10.3 | AH21: 12.5 | AI21: 18 | AJ21: 10.5
A22: 12.3 | B22: 13.5 | C22: 12.5 | D22: 16.9 | E22: 17.7 | F22: 19.2 | G22: 16.9 | H22: 14.3 | I22: 14.7 | J22: 22.7 | K22: 11.7 | L22: 10.8 | M22: 10 | N22: 10.3 | O22: 11.9 | P22: 17.2 | Q22: 12.3 | R22: 12.2 | S22: 9 | T22: 8.9 | U22: 13.3 | V22: 14.7 | W22: 9 | X22: 15 | Y22: 7.8 | Z22: 11 | AA22: 6.7 | AB22: 7.1 | AC22: 11.6 | AD22: 9 | AE22: 8.8 | AF22: 8.4 | AG22: 7.8 | AH22: 8.8 | AI22: 8.7 | AJ22: 11.4
A23: 11.7 | B23: 13 | C23: 13.4 | D23: 16.2 | E23: 17.1 | F23: 16.6 | G23: 14 | H23: 13.2 | I23: 14.7 | J23: 19.9 | K23: 21.8 | L23: 12 | M23: 11.8 | N23: 12 | O23: 14.5 | P23: 11.7 | Q23: 14 | R23: 12.3 | S23: 7.4 | T23: 6.6 | U23: 12 | V23: 12.5 | W23: 13 | X23: 10.7 | Y23: 8.2 | Z23: 14.8 | AA23: 7.1 | AB23: 7.6 | AC23: 12.6 | AD23: 8.1 | AE23: 8 | AF23: 8 | AG23: 8.5 | AH23: 7.7 | AI23: 7.3 | AJ23: 12.2
A24: 16 | B24: 12.3 | C24: 14.7 | D24: 12.2 | E24: 12.5 | F24: 13 | G24: 14 | H24: 11.1 | I24: 13.2 | J24: 23.7 | K24: 14.3 | L24: 11.2 | M24: 13.3 | N24: 13.9 | O24: 21.5 | P24: 12 | Q24: 18.4 | R24: 15.9 | S24: 7 | T24: 7 | U24: 12 | V24: 13.9 | W24: 11 | X24: 10.3 | Y24: 8.4 | Z24: 9.1 | AA24: 7.5 | AB24: 7.7 | AC24: 11.8 | AD24: 8.9 | AE24: 8.8 | AF24: 8.6 | AG24: 7 | AH24: 8.7 | AI24: 9.4 | AJ24: 12.9
A25: 16.9 | B25: 11.4 | C25: 14.6 | D25: 11 | E25: 11.2 | F25: 12.8 | G25: 14.2 | H25: 13.4 | I25: 11.9 | J25: 23 | K25: 14.6 | L25: 13 | M25: 13 | N25: 12.8 | O25: 15.3 | P25: 12.6 | Q25: 21.5 | R25: 20.7 | S25: 10.6 | T25: 10.7 | U25: 10.7 | V25: 10.1 | W25: 9.3 | X25: 10.8 | Y25: 7.1 | Z25: 9.2 | AA25: 6.4 | AB25: 7.2 | AC25: 10.8 | AD25: 8.8 | AE25: 8.6 | AF25: 8.1 | AG25: 8.4 | AH25: 8.7 | AI25: 9.3 | AJ25: 13.4
A26: 16.6 | B26: 11.7 | C26: 13.8 | D26: 13 | E26: 13 | F26: 12.8 | G26: 14 | H26: 11.6 | I26: 14.3 | J26: 27.7 | K26: 12.8 | L26: 12 | M26: 11.8 | N26: 12 | O26: 12.1 | P26: 12.8 | Q26: 20.3 | R26: 17.7 | S26: 8.8 | T26: 9 | U26: 8 | V26: 8.2 | W26: 12.2 | X26: 10.8 | Y26: 9.5 | Z26: 9.9 | AA26: 7 | AB26: 7.6 | AC26: 10.1 | AD26: 10.4 | AE26: 9.9 | AF26: 9.2 | AG26: 8.4 | AH26: 8.1 | AI26: 8.1 | AJ26: 13.5
A27: 15.2 | B27: 14.4 | C27: 12.2 | D27: 10.2 | E27: 11 | F27: 11 | G27: 15.9 | H27: 12.1 | I27: 12.2 | J27: 22.5 | K27: 12.1 | L27: 11 | M27: 11 | N27: 11.3 | O27: 13.5 | P27: 13.3 | Q27: 15.9 | R27: 14.3 | S27: 8.6 | T27: 8.6 | U27: 11 | V27: 11.1 | W27: 12.1 | X27: 10 | Y27: 11.5 | Z27: 13.6 | AA27: 8.3 | AB27: 9.5 | AC27: 12.5 | AD27: 9.8 | AE27: 9.4 | AF27: 8 | AG27: 13.3 | AH27: 8.7 | AI27: 10.3 | AJ27: 13.7
A28: 13.5 | B28: 14 | C28: 12.7 | D28: 10 | E28: 10.8 | F28: 12.6 | G28: 15.8 | H28: 14.6 | I28: 13.8 | J28: 23 | K28: 11.1 | L28: 16.8 | M28: 15 | N28: 14.9 | O28: 17.2 | P28: 13 | Q28: 16 | R28: 15.3 | S28: 9.3 | T28: 9 | U28: 11.3 | V28: 13 | W28: 16.3 | X28: 15.3 | Y28: 11.3 | Z28: 10.6 | AA28: 14.3 | AB28: 14.1 | AC28: 12.3 | AD28: 9.2 | AE28: 9.3 | AF28: 9 | AG28: 11 | AH28: 13.8 | AI28: 18.1 | AJ28: 13
A29: 12.2 | B29: 14.8 | C29: 12.7 | D29: 13.2 | E29: 14.3 | F29: 15.4 | G29: 14.4 | H29: 17.3 | I29: 15.7 | J29: 23.6 | K29: 11.6 | L29: 21.8 | M29: 22.5 | N29: 19.1 | O29: 16.3 | P29: 12.9 | Q29: 13.8 | R29: 13 | S29: 8.8 | T29: 9.1 | U29: 12 | V29: 12.3 | W29: 16 | X29: 16.3 | Y29: 12.2 | Z29: 8.8 | AA29: 9.2 | AB29: 9.2 | AC29: 11.7 | AD29: 10.4 | AE29: 9.6 | AF29: 9.2 | AG29: 9.4 | AH29: 12.5 | AI29: 18.9 | AJ29: 13.8
A30: 12.4 | B30: 14.9 | C30: 13 | D30: 14 | E30: 14.1 | F30: 14.3 | G30: 14 | H30: 16.2 | I30: 17.7 | J30: 23.9 | K30: 14.5 | L30: 12 | M30: 11.3 | N30: 11.2 | O30: 12.3 | P30: 12.7 | Q30: 13.6 | R30: 12.8 | S30: 9.4 | T30: 9.3 | U30: 11 | V30: 11 | W30: 15.4 | X30: 16.6 | Y30: 11.6 | Z30: 12.3 | AA30: 10.6 | AB30: 10.8 | AC30: 10.8 | AD30: 11.7 | AE30: 10.6 | AF30: 9.6 | AG30: 8.9 | AH30: 9.8 | AI30: 12 | AJ30: 14
A31: 17.6 | B31: 16.3 | C31: 13.1 | D31: 13 | E31: 13 | F31: 13.6 | G31: 15.1 | H31: 15.1 | I31: 17.4 | J31: 12.7 | K31: 15.4 | L31: 12 | M31: 12 | N31: 12.4 | O31: 15.2 | P31: 9.1 | Q31: 15.5 | R31: 14 | S31: 10 | T31: 10 | U31: 10 | V31: 11.8 | W31: 17.3 | X31: 16.7 | Y31: 15.2 | Z31: 12.1 | AA31: 9.9 | AB31: 10 | AC31: 9.8 | AD31: 13.5 | AE31: 13.2 | AF31: 12.1 | AG31: 8.6 | AH31: 8.8 | AI31: 8 | AJ31: 12.3
A32: 16.8 | B32: 14.8 | C32: 14.2 | D32: 11.2 | E32: 12.1 | F32: 14.1 | G32: 14.8 | H32: 15.4 | I32: 15.9 | J32: 13 | K32: 13.3 | L32: 10 | M32: 11.2 | N32: 11.6 | O32: 16 | P32: 10.2 | Q32: 20.9 | R32: 17.6 | S32: 10.1 | T32: 10.1 | U32: 11 | V32: 11.2 | W32: 21.3 | X32: 15.7 | Y32: 19.1 | Z32: 10.2 | AA32: 16.9 | AB32: 18.9 | AC32: 9.9 | AD32: 9.4 | AE32: 9.2 | AF32: 9 | AG32: 8.5 | AH32: 8.3 | AI32: 6 | AJ32: 12.6
A33: 16 | B33: 15.7 | C33: 14.9 | D33: 14 | E33: 13.9 | F33: 15 | G33: 14.9 | H33: 13.9 | I33: 15.4 | J33: 13 | K33: 13.9 | L33: 12 | M33: 13.2 | N33: 14 | O33: 19.1 | P33: 10.8 | Q33: 22.7 | R33: 19.2 | S33: 10.3 | T33: 10.2 | U33: 10.3 | V33: 10.6 | W33: 16.3 | X33: 11 | Y33: 11 | Z33: 9.6 | AA33: 17.1 | AB33: 21.2 | AC33: 10 | AD33: 9.8 | AE33: 10.1 | AF33: 11.5 | AG33: 8.1 | AH33: 8.6 | AI33: 9.2 | AJ33: 13.5
A34: 15.8 | G34: 15 | J34: 13 | P34: 11.2 | X34: 11 | AC34: 9.5 | AJ34: 14.3
A35: 16.1 | G35: 16.1 | J35: 21.7 | P35: 8.6 | X35: 11.9 | AC35: 13 | AJ35: 19.2
A36: 16.6 | G36: 15.9 | J36: 23 | P36: 8.9 | X36: 12.7 | AC36: 12.1 | AJ36: 19.4
A37: 16.2 | G37: 16.9 | J37: 23.4 | P37: 9 | X37: 12 | AC37: 11.2 | AJ37: 19.4
A38: 19.1 | G38: 15.8 | J38: 23.7 | P38: 8.5 | X38: 14.8 | AC38: 10.7 | AJ38: 18.4
A39: 17.7 | G39: 14.8 | J39: 15.8 | P39: 11.6 | X39: 14 | AC39: 10.7 | AJ39: 24.8
A40: 16.2 | G40: 15 | J40: 16.3 | P40: 12 | X40: 13.5 | AC40: 10.5 | AJ40: 27.3
A41: 14.9 | G41: 17.4 | J41: 16.6 | P41: 12.1 | X41: 13 | AC41: 10.3 | AJ41: 28.3
A42: 14 | G42: 16 | J42: 16.8 | P42: 11.8 | X42: 13 | AC42: 10 | AJ42: 28
A43: 13.3 | G43: 15.8 | J43: 16 | P43: 11.8 | X43: 16 | AC43: 9.4 | AJ43: 10.7
A44: 13 | G44: 15 | J44: 16 | P44: 11 | X44: 14 | AC44: 9.4 | AJ44: 11.5
A45: 13.1 | G45: 11.7 | J45: 16 | P45: 11.4 | X45: 13.7 | AC45: 9.3 | AJ45: 12
A46: 13.3 | G46: 11.8 | J46: 16.5 | P46: 11.6 | X46: 16 | AC46: 9.2 | AJ46: 13
A47: 13.5 | G47: 14.7 | J47: 22.6 | P47: 16.6 | X47: 17 | AC47: 8.7 | AJ47: 16.3
A48: 13.7 | G48: 15.2 | J48: 22.8 | P48: 17.2 | X48: 12.7 | AC48: 8.9 | AJ48: 19.4
A49: 13.7 | G49: 11.7 | J49: 22.5 | P49: 18 | X49: 12.3 | AC49: 8.9 | AJ49: 20.7
A50: 13.4 | G50: 11.4 | J50: 22.5 | P50: 18 | X50: 12.4 | AC50: 8.8 | AJ50: 22.1
A51: 12.7 | G51: 10.6 | J51: 15.8 | P51: 12.4 | X51: 11.3 | AC51: 8.3 | AJ51: 17
A52: 13.5 | G52: 11 | J52: 14.6 | P52: 11.9 | X52: 11 | AC52: 8.4 | AJ52: 18.6
A53: 14.2 | G53: 11.9 | J53: 14.5 | P53: 12 | X53: 15 | AC53: 8.4 | AJ53: 18.8
A54: 14.7 | G54: 12 | J54: 14.3 | P54: 12 | X54: 15.1 | AC54: 8.3 | AJ54: 19.5
A55: 14.7 | G55: 13.6 | J55: 16.2 | P55: 15.5 | X55: 14.5 | AC55: 8.4 | AJ55: 14.3
A56: 14.3 | G56: 13 | J56: 18.2 | P56: 15.3 | X56: 12 | AC56: 8.3 | AJ56: 15.2
A57: 14 | G57: 13.2 | J57: 19.2 | P57: 17 | X57: 12 | AC57: 8.1 | AJ57: 14.8
A58: 13.6 | G58: 12.8 | J58: 20.4 | P58: 17.5 | X58: 10 | AC58: 8.1 | AJ58: 15.8
A59: 12.4 | G59: 13.4 | J59: 13.2 | P59: 15 | X59: 10 | AC59: 10.5 | AJ59: 14.2
A60: 12.7 | G60: 13 | J60: 12.3 | P60: 17 | X60: 9.9 | AC60: 10.8 | AJ60: 14.3
A61: 13 | G61: 13.3 | J61: 12.4 | P61: 18.7 | X61: 9 | AC61: 11.1 | AJ61: 14.3
A62: 13.3 | G62: 13 | J62: 12.1 | P62: 20.5 | X62: 9 | AC62: 11.4 | AJ62: 15.1
A63: 13.4 | G63: 14.7 | J63: 12.9 | P63: 11.8 | X63: 11.7 | AC63: 10.7 | AJ63: 15.3
A64: 13.3 | G64: 14.5 | J64: 13.2 | P64: 11.7 | X64: 11 | AC64: 10.5 | AJ64: 14.4
A65: 12.9 | J65: 13.4 | P65: 10.9 | X65: 11 | AC65: 10.3 | AJ65: 16.6
A66: 14.8 | J66: 13.4 | P66: 10.2 | X66: 11 | AC66: 10.1 | AJ66: 16.4
A67: 15.2 | J67: 16.7 | P67: 11.3 | X67: 10.7 | AC67: 12 | AJ67: 12.5
A68: 15.4 | J68: 15.7 | P68: 12.6 | X68: 12.7 | AC68: 12.3 | AJ68: 13.3
A69: 15.1 | J69: 15 | P69: 12.5 | X69: 12 | AC69: 12.5 | AJ69: 14.2
A70: 14.4 | J70: 14.5 | P70: 12.4 | X70: 12 | AC70: 12.3 | AJ70: 14.3
A71: 13.7 | J71: 19.3 | P71: 11.8 | X71: 12 | AC71: 16.8 | AJ71: 13.5
A72: 13.5 | J72: 19 | P72: 11.8 | X72: 12 | AC72: 17.4 | AJ72: 14.1
A73: 13.9 | J73: 19 | P73: 11.4 | X73: 14.3 | AC73: 18.8 | AJ73: 15
A74: 13.3 | J74: 20 | P74: 10.9 | X74: 14.7 | AC74: 20.7 | AJ74: 15.6
A75: 12.7 | J75: 17.2 | P75: 11.9 | X75: 14.1 | AC75: 9.7 | AJ75: 21
A76: 12.4 | J76: 20 | P76: 12 | X76: 13.3 | AC76: 9.5 | AJ76: 21.2
A77: 12.3 | J77: 21 | P77: 12.5 | X77: 13.8 | AC77: 9.4 | AJ77: 22.2
A78: 12.2 | J78: 20.7 | P78: 12.7 | X78: 13.2 | AC78: 9.2 | AJ78: 23.3
A79: 11.9 | J79: 12 | P79: 13.8 | X79: 13.8 | AC79: 7.2 | AJ79: 8.6
A80: 12.6 | J80: 13 | P80: 13.7 | X80: 13.1 | AC80: 7.3 | AJ80: 8.7
A81: 12.5 | J81: 13 | P81: 13.3 | X81: 13 | AC81: 7.5 | AJ81: 9.3
A82: 12.4 | J82: 13.8 | P82: 12.7 | X82: 13 | AC82: 7.7 | AJ82: 8.5
A83: 12.4 | J83: 15.4 | P83: 16.1 | X83: 16.3 | AC83: 7.8 | AJ83: 8.2
A84: 12.3 | J84: 15.3 | P84: 16 | X84: 16.7 | AC84: 7.8 | AJ84: 8.4
A85: 12.1 | J85: 16 | P85: 15.8 | X85: 17.3 | AC85: 7.8 | AJ85: 9
A86: 11.7 | J86: 16 | P86: 15.6 | X86: 15 | AC86: 7.9 | AJ86: 9.2
A87: 13.8 | J87: 11.6 | P87: 24.7 | X87: 14.7 | AC87: 8.4 | AJ87: 10.4
A88: 14.1 | J88: 11.3 | P88: 23.7 | X88: 14.3 | AC88: 8.8 | AJ88: 11
A89: 14.3 | J89: 12 | P89: 22.4 | X89: 13 | AC89: 9 | AJ89: 11.5
A90: 14.5 | J90: 12.3 | P90: 22.8 | X90: 12.8 | AC90: 8.9 | AJ90: 11.6
A91: 14.5 | J91: 16.3 | P91: 13.3 | X91: 13 | AC91: 7.2 | AJ91: 9.9
A92: 14.3 | J92: 16.2 | P92: 14 | X92: 13 | AC92: 7.2 | AJ92: 10.2
A93: 13.5 | J93: 17 | P93: 13.7 | X93: 9.7 | AC93: 7.3 | AJ93: 9.3
A94: 18 | J94: 18.4 | P94: 13.5 | X94: 9 | AC94: 7.4 | AJ94: 9.4
A95: 18.5 | J95: 11.7 | P95: 11.2 | X95: 8.8 | AC95: 8 | AJ95: 9.2
A96: 18.6 | J96: 13.2 | P96: 11.8 | X96: 8.7 | AC96: 8.1 | AJ96: 10.2
A97: 18.3 | J97: 14 | P97: 11.1 | X97: 8 | AC97: 8.2 | AJ97: 11.1
A98: 17.8 | J98: 14.7 | P98: 10.4 | X98: 10 | AC98: 8.4 | AJ98: 11.1
A99: 17.1 | J99: 14 | P99: 15.5 | X99: 9.7 | AC99: 10.4 | AJ99: 12.2
A100: 16.1 | J100: 15 | P100: 16 | X100: 9.5 | AC100: 10.5 | AJ100: 11.8
A101: 20.6 | J101: 16 | P101: 16.3 | X101: 10 | AC101: 10.5 | AJ101: 13.3
A102: 20.4 | J102: 15.7 | P102: 16.4 | X102: 10 | AC102: 10.5 | AJ102: 13.2
A103: 20 | J103: 13.9 | P103: 21.1 | X103: 13 | AC103: 13.9 | AJ103: 20.4
A104: 19.3 | J104: 15 | P104: 21.3 | X104: 13 | AC104: 14.5 | AJ104: 20.8
A105: 18.5 | J105: 16 | P105: 19.6 | X105: 12.8 | AC105: 15.7 | AJ105: 22.1
A106: 18 | J106: 16.1 | P106: 17.8 | X106: 12 | AC106: 17 | AJ106: 22.1
A107: 17.3 | J107: 15 | P107: 14.7 | X107: 11 | AC107: 9.8 | AJ107: 18.9
A108: 18.2 | J108: 16.3 | P108: 14.2 | X108: 12.3 | AC108: 10.2 | AJ108: 19.3
A109: 17.6 | J109: 18.3 | P109: 13.6 | X109: 12 | AC109: 10.6 | AJ109: 21.6
A110: 17 | J110: 19.1 | P110: 13.2 | X110: 12.2 | AC110: 10.8 | AJ110: 22.8
A111: 16.6 | J111: 15.6 | P111: 11.3 | X111: 12 | AC111: 11.2 | AJ111: 13.2
A112: 16.5 | J112: 16 | P112: 15.2 | X112: 11 | AC112: 11.3 | AJ112: 13
A113: 16.2 | J113: 17 | P113: 15.7 | X113: 11 | AC113: 11.5 | AJ113: 12.6
A114: 15.6 | J114: 17.2 | P114: 15.9 | X114: 11 | AC114: 11.7 | AJ114: 12.2
A115: 14.7 | J115: 16.7 | P115: 15.6 | X115: 10.7 | AC115: 9.9 | AJ115: 7.7
A116: 14.6 | J116: 17.2 | P116: 15.8 | X116: 11 | AC116: 9.9 | AJ116: 7.6
A117: 14.5 | J117: 18 | P117: 15.2 | X117: 10 | AC117: 10 | AJ117: 8
A118: 14.4 | J118: 18.9 | P118: 14.8 | X118: 13 | AC118: 10.3 | AJ118: 7.8
A119: 14.2 | J119: 20.5 | P119: 16.7 | X119: 13 | AC119: 21.1 | AJ119: 6.5
A120: 14.1 | J120: 21.3 | P120: 18 | X120: 12.4 | AC120: 21.8 | AJ120: 6.8
A121: 14 | J121: 22.3 | P121: 17.9 | X121: 12.6 | AC121: 21.4 | AJ121: 7.1
A122: 19 | J122: 22 | P122: 17.5 | X122: 12 | AC122: 20 | AJ122: 7.3
A123: 19.2 | J123: 14.3 | P123: 20.2 | X123: 13.7 | AC123: 22.8 | AJ123: 9.9
A124: 19.2 | J124: 14 | P124: 20.8 | X124: 13 | AC124: 23.6 | AJ124: 10.3
A125: 18.8 | J125: 14 | P125: 20.3 | X125: 13.1 | AC125: 23.8 | AJ125: 11.1
A126: 18.1 | J126: 14.1 | P126: 20.1 | X126: 13 | AC126: 23.3 | AJ126: 10.7
A127: 17.2 | X127: 12.7
A128: 16.4 | X128: 16
A129: 21.6 | X129: 14.5
A130: 21.4 | X130: 12.4
A131: 20.9 | X131: 13
A132: 20.1 | X132: 13
A133: 19.1 | X133: 17.7
A134: 18.1 | X134: 16.7
A135: 17.2 | X135: 16.1
A136: 18.2 | X136: 16
A137: 17.8 | X137: 14.8
A138: 17.4 | X138: 15.7
A139: 17.1 | X139: 14
A140: 16.9 | X140: 14.3
A141: 16.5 | X141: 12.7
A142: 15.7 | X142: 12
A143: 17 | X143: 19.7
A144: 16.7 | X144: 19
A145: 16.3 | X145: 18.5
A146: 15.8 | X146: 19
A147: 15.3 | X147: 18.7
A148: 14.8 | X148: 23
A149: 14.3 | X149: 23.7
A150: 13.6 | X150: 23.2
A151: 14 | X151: 24
A152: 14.3 | X152: 22.3
A153: 14.4 | X153: 15
A154: 14.1 | X154: 14.7
A155: 13.6 | X155: 14
A156: 13.1 | X156: 13.7
A157: 18.1 | X157: 13
A158: 18.2
A159: 18.6
A160: 19.4
A161: 20
A162: 19.8
A163: 18
A164: 22.9
A165: 23.1
A166: 23
A167: 22.6
A168: 22
A169: 21.5
A170: 20.6
A171: 22.8
A172: 22.2
A173: 21.5
A174: 20.6
A175: 19.6
A176: 18.4
A177: 17.5
A178: 21.6
A179: 21.6
A180: 21.5
A181: 21.3
A182: 21.1
A183: 20.8
A184: 19.8
A185: 24.8
A186: 24.9
A187: 25.2
A188: 25.4
A189: 25.1
A190: 24.2
A191: 22.3
A192: 24.4
A193: 24.3
A194: 23.4
A195: 21.8
A196: 20
A197: 18.7
A198: 18.6
A199: 17.1
A200: 17.8
... 19 more rows

Sheet Værdata August
A1: Bergen 14:45-20:00 | B1: Florø 02:45-03:00 | C1: Måløy 05:15-05:30 | D1: Torvik 08:20-08:30 | E1: Ålesund 09:45-10:00 | F1: Geiranger 14:25-14:45 | G1: Ålesund 19:00-20:00 | H1: Molde 22:35-23:05 | I1: Kristiansund 02:45-03:00 | J1: Trondheim 09:45-12:45 | K1: Rørvik 21:40-22:00 | L1: Brønnøysund 01:35-01:45 | M1: Sandnessjøen 04:35-04:50 | N1: Nesna 06:00-06:10 | O1: Ørnes 10:00-10:10 | P1: Bodø 13:05-15:20 | Q1: Stamsund 19:15-19:40 | R1: Svolvær 21:20-22:15 | S1: Stokmarknes 01:30-01:40 | T1: Sortland 02:55-03:10 | U1: Risøyhamn 04:35-04:50 | V1: Harstad 07:10 - 07:45 | W1: Finnsnes 11:00-11:30 | X1: Tromsø 14:15-18:15 | Y1: Skjervøy 22:10-22:25 | Z1: Øksfjord 01:50-02:00 | AA1: Hammerfest 05:05- 05:45 | AB1: Havøysund 08:30 - 08:45 | AC1: Honningsvåg 10:55- 14:30 | AD1: Kjøllefjord 16:40-17:00 | AE1: Mehamn 18:55-19:15 | AF1: Berlevåg 22:00-22:10 | AG1: Båtsfjord 00:00-00:30 | AH1: Vardø 03:30-03:45 | AI1: Vadsø 06:55-07:10 | AJ1: Kirkenes 09:00-12:30
A2: Florida 14:00 - 20:00 | B2: Florida 03:00 | C2: Svinøy Fyr 05:00 | D2: Vigra 08:00 | E2: Vigra 10:00 | F2: Vigra 15:00 | G2: Vigra 19:00-20:00 | H2: Ona 23:00 | I2: Ona 03:00 | J2: Værnes 10:00-13:00 | K2: Ørland 22:00 | L2: Bodø 02:00 | M2: Bodø 05:00 | N2: Bodø 06:00 | O2: Bodø 10:00 | P2: 13:00-16:00 | Q2: Skrova 19:00 | R2: Skrova 22:00 | S2: Sortland 02:00 | T2: Sortland 03:00 | U2: Andøya 05:00 | V2: Andøya 07:00 | W2: Tromsø 11:00 | X2: Tromsø 14:00 - 18:00 | Y2: Tromsø 22:00 | Z2: Torsvåg 02:00 | AA2: Fruholmen 05:00 | AB2: Fruholmen 09:00 | AC2: Fruholmen 11-14 | AD2: Slettnes 17:00 | AE2: Slettnes 19:00 | AF2: Slettnes 22:00 | AG2: Vardø 00:00 | AH2: Vardø 04:00 | AI2: Kirkenes 07:00 | AJ2: Kirkenes 09:00-12:00
A3: 30.1 | B3: 16.8 | C3: 13.5 | D3: 15.2 | E3: 16.9 | F3: 15.8 | G3: 15.1 | H3: 15.8 | I3: 14.3 | J3: 13.4 | K3: 14.4 | L3: 15 | M3: 13.8 | N3: 13.5 | O3: 14.5 | P3: 17.8 | Q3: 22.4 | R3: 21.4 | S3: 11.1 | T3: 11.3 | U3: 17.2 | V3: 18.8 | W3: 18.3 | X3: 22.8 | Y3: 14.1 | Z3: 10.4 | AA3: 7.1 | AB3: 7.8 | AC3: 7.8 | AD3: 15 | AE3: 15.6 | AF3: 18 | AG3: 7.8 | AH3: 8.5 | AI3: 8.9 | AJ3: 8.8
A4: 30.6 | B4: 19.5 | C4: 16.1 | D4: 17.3 | E4: 20.3 | F4: 21.3 | G4: 15.2 | H4: 15.5 | I4: 15.7 | J4: 13.9 | K4: 13.9 | L4: 12.8 | M4: 12.2 | N4: 12.2 | O4: 13.1 | P4: 17.2 | Q4: 24.7 | R4: 24.1 | S4: 15.4 | T4: 15.7 | U4: 12.3 | V4: 12.8 | W4: 21.3 | X4: 22.5 | Y4: 15.6 | Z4: 8.7 | AA4: 7.4 | AB4: 7.7 | AC4: 8 | AD4: 17.7 | AE4: 16 | AF4: 15.7 | AG4: 7.6 | AH4: 8.8 | AI4: 8 | AJ4: 8
A5: 29.9 | B5: 16.3 | C5: 18.4 | D5: 17 | E5: 17.6 | F5: 18 | G5: 23.4 | H5: 14.4 | I5: 16.2 | J5: 14.4 | K5: 14.3 | L5: 11.8 | M5: 12 | N5: 12.9 | O5: 13.8 | P5: 18.9 | Q5: 15.1 | R5: 14.7 | S5: 15.9 | T5: 16.4 | U5: 12.3 | V5: 13.2 | W5: 21.3 | X5: 22 | Y5: 16.6 | Z5: 10.1 | AA5: 7.6 | AB5: 7.9 | AC5: 8.1 | AD5: 11.6 | AE5: 10 | AF5: 9.9 | AG5: 8.5 | AH5: 6.7 | AI5: 6.3 | AJ5: 7.8
A6: 28 | B6: 14.5 | C6: 12.3 | D6: 13.2 | E6: 13.6 | F6: 15 | G6: 23.1 | H6: 13.5 | I6: 14.8 | J6: 15.2 | K6: 14.3 | L6: 16 | M6: 15.8 | N6: 15.6 | O6: 15.6 | P6: 19.7 | Q6: 14.3 | R6: 14 | S6: 14.3 | T6: 14.3 | U6: 11.3 | V6: 12 | W6: 14.8 | X6: 21.8 | Y6: 11.9 | Z6: 9.3 | AA6: 6.8 | AB6: 6.7 | AC6: 8.1 | AD6: 10.4 | AE6: 10.5 | AF6: 9.7 | AG6: 9.9 | AH6: 8.9 | AI6: 10.5 | AJ6: 7.2
A7: 25.6 | B7: 20 | C7: 11.9 | D7: 11.2 | E7: 12.1 | F7: 13 | G7: 14.5 | H7: 11.9 | I7: 13 | J7: 16.1 | K7: 14.5 | L7: 13 | M7: 13.2 | N7: 13.5 | O7: 13.9 | P7: 13.8 | Q7: 15.8 | R7: 15 | S7: 11.7 | T7: 10.7 | U7: 11.6 | V7: 15.9 | W7: 16.5 | X7: 21.5 | Y7: 15.9 | Z7: 14.8 | AA7: 8.6 | AB7: 10.7 | AC7: 7.9 | AD7: 11.5 | AE7: 11.9 | AF7: 11.2 | AG7: 9.9 | AH7: 10.8 | AI7: 13 | AJ7: 9.2
A8: 23.5 | B8: 15.7 | C8: 11.9 | D8: 12 | E8: 12.5 | F8: 13 | G8: 14.2 | H8: 11.7 | I8: 12.3 | J8: 17.5 | K8: 13.2 | L8: 11 | M8: 12 | N8: 12.2 | O8: 13.3 | P8: 14 | Q8: 10.6 | R8: 9.3 | S8: 15.4 | T8: 14.6 | U8: 17.2 | V8: 17.4 | W8: 11 | X8: 25 | Y8: 7.1 | Z8: 13.6 | AA8: 13.1 | AB8: 14.3 | AC8: 8 | AD8: 10.2 | AE8: 9.8 | AF8: 9.4 | AG8: 7.7 | AH8: 9.2 | AI8: 10.6 | AJ8: 9.4
A9: 22.8 | B9: 12.7 | C9: 11.4 | D9: 12 | E9: 12.6 | F9: 13.2 | G9: 13.6 | H9: 12 | I9: 11.7 | J9: 18.4 | K9: 12.4 | L9: 10 | M9: 11 | N9: 11.4 | O9: 16 | P9: 13.6 | Q9: 12.4 | R9: 12.4 | S9: 7.5 | T9: 7.5 | U9: 14.3 | V9: 14.5 | W9: 10.2 | X9: 24.3 | Y9: 11.4 | Z9: 11.4 | AA9: 14.2 | AB9: 16.4 | AC9: 8 | AD9: 8 | AE9: 7.8 | AF9: 7.8 | AG9: 9.3 | AH9: 8.2 | AI9: 10.4 | AJ9: 8.2
A10: 17.5 | B10: 10.7 | C10: 11.3 | D10: 12 | E10: 10.3 | F10: 11 | G10: 13.3 | H10: 11.6 | I10: 11.8 | J10: 19.4 | K10: 12.1 | L10: 14 | M10: 14 | N10: 14.1 | O10: 16.5 | P10: 13.3 | Q10: 12.2 | R10: 12.2 | S10: 11.3 | T10: 11.1 | U10: 14.1 | V10: 14.4 | W10: 10 | X10: 23.2 | Y10: 10.9 | Z10: 9.6 | AA10: 12.8 | AB10: 16.5 | AC10: 7.9 | AD10: 7.9 | AE10: 7.5 | AF10: 7.6 | AG10: 9.8 | AH10: 9.8 | AI10: 9.4 | AJ10: 9
A11: 16.9 | B11: 13.4 | C11: 10.6 | D11: 10.2 | E11: 11.5 | F11: 14 | G11: 12.2 | H11: 12 | I11: 11.7 | J11: 12.8 | K11: 13.1 | L11: 15.3 | M11: 16.2 | N11: 16.2 | O11: 18.3 | P11: 15.5 | Q11: 11.6 | R11: 11.2 | S11: 11.8 | T11: 11.6 | U11: 12 | V11: 12.4 | W11: 9.8 | X11: 20.8 | Y11: 9.1 | Z11: 11.2 | AA11: 7.9 | AB11: 8.5 | AC11: 7.7 | AD11: 8.7 | AE11: 8.8 | AF11: 8.6 | AG11: 9.1 | AH11: 8.2 | AI11: 12.3 | AJ11: 7
A12: 16.9 | B12: 5.9 | C12: 11.7 | D12: 12.2 | E12: 13.6 | F12: 15 | G12: 12.1 | H12: 13.5 | I12: 12.7 | J12: 13.4 | K12: 12.6 | L12: 16 | M12: 14.8 | N12: 14 | O12: 13.8 | P12: 17 | Q12: 11.6 | R12: 10.4 | S12: 9.5 | T12: 9.3 | U12: 13.9 | V12: 14.1 | W12: 9.3 | X12: 20.7 | Y12: 5 | Z12: 10.1 | AA12: 10.5 | AB12: 15.3 | AC12: 7.8 | AD12: 10.3 | AE12: 10.3 | AF12: 10.3 | AG12: 8.2 | AH12: 9.1 | AI12: 18.1 | AJ12: 7.3
A13: 17.2 | B13: 13.6 | C13: 13.6 | D13: 15.2 | E13: 16.7 | F13: 17.7 | G13: 12.1 | H13: 14.5 | I13: 14.1 | J13: 13.7 | K13: 11.5 | L13: 15 | M13: 14.1 | N13: 14 | O13: 15.2 | P13: 17.3 | Q13: 16 | R13: 17.2 | S13: 8.1 | T13: 8 | U13: 11.1 | V13: 10.7 | W13: 11.2 | X13: 23.3 | Y13: 9.8 | Z13: 9.1 | AA13: 11.4 | AB13: 14.6 | AC13: 7.8 | AD13: 9.6 | AE13: 9.5 | AF13: 8.8 | AG13: 8.7 | AH13: 8.2 | AI13: 13.1 | AJ13: 8.3
A14: 17.4 | B14: 13.6 | C14: 13.9 | D14: 14 | E14: 14.4 | F14: 16 | G14: 11.8 | H14: 13.9 | I14: 14.1 | J14: 14.4 | K14: 10.6 | L14: 13 | M14: 13.9 | N14: 13.6 | O14: 13.2 | P14: 17.1 | Q14: 12.2 | R14: 13 | S14: 12.7 | T14: 13.7 | U14: 9.1 | V14: 10 | W14: 15.7 | X14: 24 | Y14: 10.7 | Z14: 9.1 | AA14: 13 | AB14: 15.8 | AC14: 7.8 | AD14: 8.8 | AE14: 8.4 | AF14: 8.1 | AG14: 12.5 | AH14: 9.2 | AI14: 12.7 | AJ14: 10
A15: 17.2 | B15: 10.9 | C15: 13.3 | D15: 14.2 | E15: 15.7 | F15: 15.9 | G15: 13.3 | H15: 13.3 | I15: 14 | J15: 20.4 | K15: 13.1 | L15: 12 | M15: 13 | N15: 13 | O15: 15.6 | P15: 16.3 | Q15: 11 | R15: 10.6 | S15: 12.6 | T15: 12 | U15: 9.3 | V15: 10 | W15: 9 | X15: 24 | Y15: 8.8 | Z15: 9.8 | AA15: 14.9 | AB15: 15.9 | AC15: 6.9 | AD15: 8.2 | AE15: 7.6 | AF15: 8.3 | AG15: 11.7 | AH15: 12.1 | AI15: 10.8 | AJ15: 14.2
A16: 17.1 | B16: 10.9 | C16: 13.6 | D16: 14 | E16: 14.5 | F16: 15 | G16: 12.9 | H16: 14 | I16: 13.5 | J16: 18.7 | K16: 12.8 | L16: 12 | M16: 12.2 | N16: 12.5 | O16: 11.5 | P16: 16 | Q16: 10.4 | R16: 10.2 | S16: 10 | T16: 9.8 | U16: 5.8 | V16: 9.8 | W16: 10 | X16: 22.5 | Y16: 7.2 | Z16: 11.9 | AA16: 17.1 | AB16: 16.4 | AC16: 7.1 | AD16: 9 | AE16: 8.5 | AF16: 8.6 | AG16: 10.4 | AH16: 11.2 | AI16: 10.5 | AJ16: 15
A17: 18.2 | B17: 10.9 | C17: 12.7 | D17: 14 | E17: 15.1 | F17: 16 | G17: 12.4 | H17: 14.5 | I17: 13.8 | J17: 16.9 | K17: 14.7 | L17: 10 | M17: 9.2 | N17: 9.7 | O17: 13.3 | P17: 15.8 | Q17: 11 | R17: 9.4 | S17: 6.6 | T17: 6.6 | U17: 9.6 | V17: 9.7 | W17: 8.8 | X17: 21.1 | Y17: 6.9 | Z17: 15.2 | AA17: 10.9 | AB17: 10.5 | AC17: 7.2 | AD17: 12.4 | AE17: 10.5 | AF17: 9.4 | AG17: 7.8 | AH17: 11.3 | AI17: 10 | AJ17: 15
A18: 18.5 | B18: 7.9 | C18: 14.2 | D18: 16.3 | E18: 17.2 | F18: 17.2 | G18: 12 | H18: 15.1 | I18: 15.5 | J18: 17.6 | K18: 13.3 | L18: 14 | M18: 14 | N18: 14 | O18: 16.7 | P18: 15.6 | Q18: 11.6 | R18: 10.6 | S18: 7.5 | T18: 7.4 | U18: 6.3 | V18: 9.1 | W18: 9.2 | X18: 14.8 | Y18: 8 | Z18: 11.4 | AA18: 9 | AB18: 9.3 | AC18: 7.2 | AD18: 9.8 | AE18: 9.5 | AF18: 9.2 | AG18: 7.7 | AH18: 8.3 | AI18: 10.9 | AJ18: 17
A19: 18.7 | B19: 11.8 | C19: 14.1 | D19: 16 | E19: 17.4 | F19: 18.2 | G19: 13.6 | H19: 14.3 | I19: 15.8 | J19: 14.9 | K19: 13.1 | L19: 11 | M19: 11 | N19: 11.1 | O19: 12.2 | P19: 15.4 | Q19: 15 | R19: 14.8 | S19: 10.6 | T19: 10.7 | U19: 8.9 | V19: 12.3 | W19: 11 | X19: 14.4 | Y19: 8.1 | Z19: 13.4 | AA19: 8.7 | AB19: 10.2 | AC19: 11.2 | AD19: 9.8 | AE19: 9.4 | AF19: 9.1 | AG19: 11.3 | AH19: 7.6 | AI19: 10 | AJ19: 14.6
A20: 18.8 | B20: 12.8 | C20: 13.1 | D20: 13.2 | E20: 13.4 | F20: 12 | G20: 13.7 | H20: 11.6 | I20: 14 | J20: 16.6 | K20: 11.6 | L20: 11 | M20: 10.8 | N20: 10.6 | O20: 10.7 | P20: 15.8 | Q20: 17.2 | R20: 15.2 | S20: 9.9 | T20: 9.7 | U20: 7.8 | V20: 11.7 | W20: 13.2 | X20: 14 | Y20: 12.2 | Z20: 12.4 | AA20: 11.4 | AB20: 10.2 | AC20: 11.2 | AD20: 9.5 | AE20: 8.8 | AF20: 8.8 | AG20: 7 | AH20: 10.6 | AI20: 10.7 | AJ20: 15.6
A21: 18.8 | B21: 14.4 | C21: 11.1 | D21: 12.2 | E21: 13.2 | F21: 13.9 | G21: 14.4 | H21: 13.5 | I21: 11.7 | J21: 16.2 | K21: 11.3 | L21: 10.8 | M21: 10.8 | N21: 10.6 | O21: 11.7 | P21: 15.4 | Q21: 16 | R21: 15.2 | S21: 10.3 | T21: 10.6 | U21: 8.3 | V21: 11 | W21: 16 | X21: 13 | Y21: 12.3 | Z21: 12 | AA21: 8.7 | AB21: 9.1 | AC21: 11 | AD21: 8.7 | AE21: 8.4 | AF21: 8.2 | AG21: 6.7 | AH21: 7.1 | AI21: 8 | AJ21: 16
A22: 18.4 | B22: 13.3 | C22: 12.7 | D22: 13.2 | E22: 14.1 | F22: 18.2 | G22: 14.2 | H22: 14.4 | I22: 13.3 | J22: 15.9 | K22: 11.2 | L22: 8 | M22: 8 | N22: 8.7 | O22: 12.1 | P22: 14.8 | Q22: 16.8 | R22: 14.8 | S22: 11.6 | T22: 11.8 | U22: 12 | V22: 12 | W22: 15.2 | X22: 12.9 | Y22: 11.9 | Z22: 11.7 | AA22: 8 | AB22: 8.9 | AC22: 10.7 | AD22: 8.9 | AE22: 8.2 | AF22: 7.8 | AG22: 6.6 | AH22: 6.4 | AI22: 6.4 | AJ22: 16.4
A23: 17.7 | B23: 12.6 | C23: 13.7 | D23: 14 | E23: 15.7 | F23: 16 | G23: 16.6 | H23: 14.2 | I23: 14.1 | J23: 16.5 | K23: 13.4 | L23: 13 | M23: 13 | N23: 13 | O23: 15.8 | P23: 14.1 | Q23: 14.6 | R23: 14 | S23: 9.2 | T23: 8.6 | U23: 11.6 | V23: 11.3 | W23: 16 | X23: 17.8 | Y23: 10.9 | Z23: 10.1 | AA23: 7.1 | AB23: 8 | AC23: 14.5 | AD23: 9.2 | AE23: 9 | AF23: 8.2 | AG23: 5.9 | AH23: 6.6 | AI23: 7.2 | AJ23: 11.2
A24: 21.7 | B24: 10.6 | C24: 14.5 | D24: 13 | E24: 13.2 | F24: 13 | G24: 16.3 | H24: 11.6 | I24: 14.2 | J24: 17.1 | K24: 13.1 | L24: 12 | M24: 11 | N24: 10.9 | O24: 12.5 | P24: 14.2 | Q24: 13.4 | R24: 12.2 | S24: 12.1 | T24: 11.9 | U24: 8.2 | V24: 9.1 | W24: 14 | X24: 17.9 | Y24: 11.2 | Z24: 11.6 | AA24: 7.3 | AB24: 7.5 | AC24: 14.6 | AD24: 9.7 | AE24: 9.8 | AF24: 7.5 | AG24: 9.1 | AH24: 5.8 | AI24: 7.2 | AJ24: 12.4
A25: 21.8 | B25: 10.1 | C25: 11.8 | D25: 12.2 | E25: 13.1 | F25: 13 | G25: 16.2 | H25: 11.6 | I25: 11.7 | J25: 18 | K25: 15.2 | L25: 7.2 | M25: 8 | N25: 8.3 | O25: 11.7 | P25: 14.4 | Q25: 14 | R25: 12.5 | S25: 12.6 | T25: 12.2 | U25: 8 | V25: 8.4 | W25: 11.2 | X25: 17.3 | Y25: 9.6 | Z25: 10.3 | AA25: 6.5 | AB25: 7.3 | AC25: 14.6 | AD25: 8.7 | AE25: 8.2 | AF25: 7.2 | AG25: 8 | AH25: 9 | AI25: 10.3 | AJ25: 15
A26: 21.3 | B26: 11.7 | C26: 10.3 | D26: 10.2 | E26: 11.2 | F26: 13 | G26: 14.8 | H26: 11.7 | I26: 11.2 | J26: 19.4 | K26: 11.5 | L26: 10 | M26: 10 | N26: 9.7 | O26: 13.6 | P26: 14.5 | Q26: 12.8 | R26: 11.8 | S26: 8.4 | T26: 8.4 | U26: 7.3 | V26: 7.6 | W26: 9 | X26: 16.8 | Y26: 9.1 | Z26: 10.7 | AA26: 6.8 | AB26: 7.6 | AC26: 14.6 | AD26: 8.4 | AE26: 7.9 | AF26: 7.6 | AG26: 7.7 | AH26: 8 | AI26: 8.2 | AJ26: 15
A27: 20.3 | B27: 14.7 | C27: 11.3 | D27: 12 | E27: 12 | F27: 13 | G27: 14.4 | H27: 11 | I27: 11.6 | J27: 24.6 | K27: 8.3 | L27: 7.3 | M27: 8 | N27: 8.3 | O27: 10.9 | P27: 19.6 | Q27: 15 | R27: 13.2 | S27: 8.4 | T27: 8.1 | U27: 8.7 | V27: 9.3 | W27: 11.2 | X27: 15.6 | Y27: 8.2 | Z27: 10 | AA27: 12.6 | AB27: 13.4 | AC27: 17.5 | AD27: 8.4 | AE27: 8.2 | AF27: 9.1 | AG27: 7.9 | AH27: 7.6 | AI27: 6.5 | AJ27: 12
A28: 19.3 | B28: 14.1 | C28: 11 | D28: 10.9 | E28: 12.1 | F28: 13 | G28: 14.2 | H28: 11.1 | I28: 11.1 | J28: 25.5 | K28: 11.2 | L28: 10 | M28: 10 | N28: 9.9 | O28: 9.9 | P28: 21 | Q28: 16.2 | R28: 16 | S28: 9.5 | T28: 9.4 | U28: 5.3 | V28: 8.8 | W28: 11.2 | X28: 10 | Y28: 7.7 | Z28: 10 | AA28: 12.2 | AB28: 10.7 | AC28: 17.7 | AD28: 8.3 | AE28: 7.8 | AF28: 6.6 | AG28: 7.2 | AH28: 8.3 | AI28: 8.4 | AJ28: 11.9
A29: 18.9 | B29: 11.5 | C29: 12.5 | D29: 10 | E29: 11.5 | F29: 15 | G29: 14.2 | H29: 14.3 | I29: 10.9 | J29: 27.3 | K29: 11.9 | L29: 9 | M29: 8.2 | N29: 8.7 | O29: 8.7 | P29: 20.7 | Q29: 14.6 | R29: 12.4 | S29: 10.9 | T29: 11.1 | U29: 10.6 | V29: 10.7 | W29: 10.2 | X29: 9.2 | Y29: 10 | Z29: 10.1 | AA29: 7.8 | AB29: 7.4 | AC29: 17.6 | AD29: 7.4 | AE29: 6.5 | AF29: 6.3 | AG29: 7.7 | AH29: 7.2 | AI29: 6.6 | AJ29: 13.5
A30: 18.9 | B30: 9.5 | C30: 14.5 | D30: 13.5 | E30: 15 | F30: 16 | G30: 13.9 | H30: 15.3 | I30: 14 | J30: 27.5 | K30: 11.2 | L30: 9 | M30: 9 | N30: 8.9 | O30: 9.6 | P30: 20 | Q30: 12.6 | R30: 12.2 | S30: 11.6 | T30: 11.5 | U30: 12.2 | V30: 13.1 | W30: 11 | X30: 9 | Y30: 7.7 | Z30: 10.3 | AA30: 7.2 | AB30: 9.8 | AC30: 17.2 | AD30: 7.6 | AE30: 6.8 | AF30: 6.2 | AG30: 7.8 | AH30: 7.2 | AI30: 10.1 | AJ30: 14.2
A31: 19.6 | B31: 7.8 | C31: 16.1 | D31: 15.2 | E31: 16.2 | F31: 17 | G31: 15 | H31: 16.5 | I31: 15.2 | J31: 18.4 | K31: 13.5 | L31: 10 | M31: 10.8 | N31: 11 | O31: 12.6 | P31: 16 | Q31: 8.2 | R31: 7.4 | S31: 9.1 | T31: 8.9 | U31: 11.2 | V31: 12.7 | W31: 8.1 | X31: 10.7 | Y31: 5.9 | Z31: 12.6 | AA31: 9.1 | AB31: 9.6 | AC31: 15.7 | AD31: 8.8 | AE31: 8.8 | AF31: 7 | AG31: 8.9 | AH31: 7.9 | AI31: 10.9 | AJ31: 10
A32: 19.6 | B32: 7.8 | C32: 17.6 | D32: 18 | E32: 19.8 | F32: 22.2 | G32: 15 | H32: 15 | I32: 16.6 | J32: 18.6 | K32: 10.4 | L32: 11 | M32: 10.2 | N32: 10.4 | O32: 12.3 | P32: 15.2 | Q32: 7.2 | R32: 6.4 | S32: 5.3 | T32: 5.9 | U32: 12.1 | V32: 12.3 | W32: 4 | X32: 10.1 | Y32: 2.8 | Z32: 10.2 | AA32: 7.9 | AB32: 9.9 | AC32: 15.3 | AD32: 10.2 | AE32: 8.2 | AF32: 6.8 | AG32: 7.3 | AH32: 8.5 | AI32: 7.1 | AJ32: 10
A33: 19.6 | B33: 7.2 | C33: 13.8 | D33: 13 | E33: 13.8 | F33: 15.2 | G33: 16.1 | H33: 14 | I33: 14 | J33: 20 | K33: 12.4 | L33: 10 | M33: 9.8 | N33: 9.5 | O33: 10.8 | P33: 15.7 | Q33: 10.4 | R33: 11.1 | S33: 3.7 | T33: 3.7 | U33: 9.3 | V33: 11.5 | W33: 6 | X33: 11.2 | Y33: 7.9 | Z33: 10.1 | AA33: 13.5 | AB33: 12.2 | AC33: 15 | AD33: 7.1 | AE33: 6.1 | AF33: 5.4 | AG33: 6.5 | AH33: 10 | AI33: 7.1 | AJ33: 10
A34: 19.7 | G34: 15.7 | J34: 20.8 | P34: 16.2 | X34: 11.4 | AC34: 14.6 | AJ34: 10
A35: 19.6 | G35: 16.2 | J35: 13.7 | P35: 18.3 | X35: 11.4 | AC35: 10 | AJ35: 16.2
A36: 18.8 | G36: 15.8 | J36: 13.9 | P36: 18 | X36: 11.2 | AC36: 10.8 | AJ36: 17.3
A37: 18.3 | G37: 11.1 | J37: 14.2 | P37: 18.6 | X37: 11.2 | AC37: 11.2 | AJ37: 18.2
A38: 14.7 | G38: 11.1 | J38: 14.2 | P38: 19 | X38: 11.2 | AC38: 11.1 | AJ38: 19
A39: 15.2 | G39: 13.6 | J39: 15.7 | P39: 14.3 | X39: 11.3 | AC39: 15.6 | AJ39: 19.2
A40: 15.5 | G40: 13.4 | J40: 17.2 | P40: 15.2 | X40: 11.3 | AC40: 15.2 | AJ40: 19
A41: 15.4 | G41: 17.9 | J41: 19.4 | P41: 15.1 | X41: 11 | AC41: 15 | AJ41: 18.8
A42: 14.8 | G42: 17.3 | J42: 19.3 | P42: 14.9 | X42: 11.2 | AC42: 15.2 | AJ42: 18
A43: 14 | G43: 15.2 | J43: 18.8 | P43: 18.1 | X43: 10.8 | AC43: 15.5 | AJ43: 13.8
A44: 13.9 | G44: 15.1 | J44: 18 | P44: 18.2 | X44: 10.5 | AC44: 15.4 | AJ44: 14.1
A45: 18 | G45: 12.9 | J45: 17.8 | P45: 18.6 | X45: 10.2 | AC45: 14.9 | AJ45: 14.3
A46: 18.2 | G46: 12.8 | J46: 18.2 | P46: 18.7 | X46: 10 | AC46: 14.3 | AJ46: 14.7
A47: 18.2 | G47: 11.9 | J47: 14.3 | P47: 13 | X47: 9.8 | AC47: 16.6 | AJ47: 13
A48: 18 | G48: 11.7 | J48: 14.3 | P48: 13 | X48: 10 | AC48: 16.9 | AJ48: 12.6
A49: 17.5 | G49: 12.4 | J49: 14.9 | P49: 13.1 | X49: 9.5 | AC49: 17.4 | AJ49: 13.2
A50: 16.7 | G50: 12.2 | J50: 15.7 | P50: 13.3 | X50: 9.3 | AC50: 18 | AJ50: 13.8
A51: 15.7 | G51: 12.2 | J51: 16.6 | P51: 14.8 | X51: 9 | AC51: 17.1 | AJ51: 11.2
A52: 16.8 | G52: 11.9 | J52: 17.2 | P52: 15.8 | X52: 9.1 | AC52: 17.4 | AJ52: 10.8
A53: 16.6 | G53: 12.2 | J53: 17.5 | P53: 15.4 | X53: 13.8 | AC53: 17.6 | AJ53: 13
A54: 16.3 | G54: 12.1 | J54: 18.3 | P54: 14.9 | X54: 14.2 | AC54: 17.7 | AJ54: 13
A55: 16 | G55: 15.1 | J55: 19 | P55: 12.2 | X55: 14 | AC55: 15.7 | AJ55: 11
A56: 15.8 | G56: 14.8 | J56: 20.1 | P56: 12 | X56: 13.7 | AC56: 14.8 | AJ56: 11.2
A57: 15.8 | G57: 16 | J57: 19.2 | P57: 12.3 | X57: 12.5 | AC57: 14.2 | AJ57: 11.8
A58: 15.4 | G58: 15.9 | J58: 19.7 | P58: 12.6 | X58: 13.5 | AC58: 14.1 | AJ58: 11.3
A59: 18 | G59: 16.5 | J59: 16.3 | P59: 16 | X59: 13 | AC59: 10.6 | AJ59: 10.8
A60: 18.2 | G60: 16.6 | J60: 18.1 | P60: 18 | X60: 12.6 | AC60: 11.1 | AJ60: 10.5
A61: 18.4 | G61: 16.9 | J61: 18 | P61: 17.7 | X61: 11.2 | AC61: 11.4 | AJ61: 11.2
A62: 18.4 | G62: 15.8 | J62: 18.3 | P62: 17.2 | X62: 11.3 | AC62: 11.4 | AJ62: 12
A63: 17.7 | G63: 15.2 | J63: 16.1 | P63: 15.7 | X63: 10 | AC63: 9.6 | AJ63: 12
A64: 16 | G64: 14.3 | J64: 16.5 | P64: 16 | X64: 9.7 | AC64: 9.8 | AJ64: 12.5
A65: 14.1 | J65: 17.6 | P65: 15.5 | X65: 9.6 | AC65: 9.8 | AJ65: 12.2
A66: 21.4 | J66: 16.5 | P66: 15.1 | X66: 9.8 | AC66: 9.8 | AJ66: 13.2
A67: 21.7 | J67: 16.5 | P67: 11.9 | X67: 9.8 | AC67: 11.6 | AJ67: 11.2
A68: 21.5 | J68: 16.3 | P68: 12 | X68: 9 | AC68: 11.9 | AJ68: 11.6
A69: 21.1 | J69: 17.1 | P69: 12.2 | X69: 9.1 | AC69: 12 | AJ69: 12
A70: 20.4 | J70: 18.8 | P70: 12.5 | X70: 9.2 | AC70: 12 | AJ70: 12
A71: 19.3 | J71: 13.6 | P71: 11.3 | X71: 8.9 | AC71: 10.4 | AJ71: 10
A72: 18.4 | J72: 13.7 | P72: 11 | X72: 8.4 | AC72: 10.4 | AJ72: 10
A73: 19.2 | J73: 14.7 | P73: 11.3 | X73: 8.2 | AC73: 10.3 | AJ73: 10
A74: 18.8 | J74: 14.7 | P74: 11.5 | X74: 8.6 | AC74: 10.2 | AJ74: 10
A75: 18.7 | J75: 13.6 | P75: 12 | X75: 8.9 | AC75: 9.1 | AJ75: 8.2
A76: 18.9 | J76: 14.2 | P76: 11.9 | X76: 9 | AC76: 9.1 | AJ76: 9.4
A77: 19.2 | J77: 14.4 | P77: 12 | X77: 8.7 | AC77: 9 | AJ77: 10
A78: 19 | J78: 14 | P78: 11.9 | X78: 11 | AC78: 8.8 | AJ78: 10
A79: 17.8 | J79: 14.7 | P79: 14.9 | X79: 11.5 | AC79: 9.5 | AJ79: 7
A80: 15 | J80: 15.9 | P80: 15.2 | X80: 11.7 | AC80: 9.6 | AJ80: 7.4
A81: 14.3 | J81: 16.5 | P81: 14.8 | X81: 11 | AC81: 9.5 | AJ81: 7
A82: 13.6 | J82: 17 | P82: 14.1 | X82: 10.6 | AC82: 9.4 | AJ82: 7
A83: 13.1 | J83: 14.7 | P83: 17.5 | X83: 12.2 | AC83: 7.9 | AJ83: 9.5
A84: 12.7 | J84: 15.4 | P84: 17.8 | X84: 13.3 | AC84: 7.8 | AJ84: 10.6
A85: 12.1 | J85: 15.7 | P85: 16.9 | X85: 13.9 | AC85: 7.8 | AJ85: 11.2
A86: 11.7 | J86: 16.1 | P86: 16.1 | X86: 11.2 | AC86: 7.9 | AJ86: 12
A87: 13.4 | J87: 13.2 | P87: 14.3 | X87: 11.4 | AC87: 7.2 | AJ87: 9.2
A88: 13.2 | J88: 13.5 | P88: 14.2 | X88: 17 | AC88: 7.1 | AJ88: 10.2
A89: 13 | J89: 14.1 | P89: 14.5 | X89: 17 | AC89: 7.2 | AJ89: 10.9
A90: 12.6 | J90: 14.5 | P90: 14.6 | X90: 17.2 | AC90: 7.4 | AJ90: 11.6
A91: 12.1 | J91: 15.6 | P91: 14.5 | X91: 17 | AC91: 7.6 | AJ91: 10
A92: 11.6 | J92: 16.5 | P92: 15 | X92: 16.3 | AC92: 7.8 | AJ92: 10.3
A93: 11.2 | J93: 17.3 | P93: 14.8 | X93: 17.8 | AC93: 8 | AJ93: 11
A94: 14.5 | J94: 17.7 | P94: 14.5 | X94: 17.3 | AC94: 8.2 | AJ94: 11.3
A95: 14.4 | J95: 13.8 | P95: 13.9 | X95: 16.5 | AC95: 8.6 | AJ95: 10
A96: 14.6 | J96: 13.6 | P96: 14 | X96: 15.8 | AC96: 9 | AJ96: 9.8
A97: 15.1 | J97: 13.9 | P97: 13.9 | X97: 15.3 | AC97: 9.6 | AJ97: 10.2
A98: 15.7 | J98: 14.4 | P98: 13.9 | X98: 18.8 | AC98: 10.5 | AJ98: 11
A99: 15.8 | J99: 11.8 | P99: 12.8 | X99: 18.4 | AC99: 14.5 | AJ99: 7.2
A100: 14.7 | J100: 11.5 | P100: 13 | X100: 17.7 | AC100: 14.5 | AJ100: 7.6
A101: 16.9 | J101: 11.2 | P101: 13.2 | X101: 16.8 | AC101: 14.4 | AJ101: 8
A102: 16.4 | J102: 12 | P102: 13 | X102: 16.1 | AC102: 14.5 | AJ102: 8.3
A103: 15.8 | J103: 11 | P103: 11.1 | X103: 16 | AC103: 9.9 | AJ103: 10.2
A104: 15.2 | J104: 12 | P104: 10.2 | X104: 16.4 | AC104: 9.7 | AJ104: 10.5
A105: 14.5 | J105: 12.1 | P105: 10.1 | X105: 16.6 | AC105: 9.5 | AJ105: 10.8
A106: 13.6 | J106: 13.4 | P106: 10.1 | X106: 15 | AC106: 9.2 | AJ106: 9.8
A107: 12.7 | J107: 8.8 | P107: 9.8 | X107: 15 | AC107: 7.7 | AJ107: 9.2
A108: 18.4 | J108: 8.1 | P108: 10 | X108: 16.1 | AC108: 8.1 | AJ108: 9.5
A109: 18.6 | J109: 8.7 | P109: 10.1 | X109: 16.2 | AC109: 8.6 | AJ109: 10.2
A110: 18.2 | J110: 8.7 | P110: 10.2 | X110: 15.8 | AC110: 8.9 | AJ110: 11
A111: 17.1 | J111: 8.1 | P111: 11.3 | X111: 15.8 | AC111: 11.4 | AJ111: 12.6
A112: 15.7 | J112: 7.4 | P112: 11 | X112: 14.6 | AC112: 12.1 | AJ112: 13.2
A113: 14.7 | J113: 8.1 | P113: 11.4 | X113: 12 | AC113: 12.7 | AJ113: 13.2
A114: 14.3 | J114: 8.1 | P114: 11.7 | X114: 11.8 | AC114: 13.2 | AJ114: 14.2
A115: 18.9 | J115: 8.7 | P115: 14.5 | X115: 11.9 | AC115: 10 | AJ115: 14.2
A116: 19.8 | J116: 6.7 | P116: 14 | X116: 12.8 | AC116: 10.2 | AJ116: 15.1
A117: 20.4 | J117: 7.1 | P117: 13.5 | X117: 13.2 | AC117: 10.2 | AJ117: 15.2
A118: 20.4 | J118: 7.7 | P118: 12.9 | X118: 11.1 | AC118: 10.1 | AJ118: 16.2
A119: 19.9 | J119: 8.1 | P119: 14.4 | X119: 12 | AC119: 10.3 | AJ119: 9.3
A120: 18.9 | J120: 9.3 | P120: 14.8 | X120: 10 | AC120: 10.3 | AJ120: 10.8
A121: 17.6 | J121: 10.3 | P121: 14.5 | X121: 11 | AC121: 10.5 | AJ121: 12.2
A122: 20.5 | J122: 11 | P122: 13.9 | X122: 11 | AC122: 10.9 | AJ122: 13
A123: 20 | J123: 8.3 | P123: 12.7 | X123: 12.2 | AC123: 10.4 | AJ123: 10.5
A124: 19.3 | J124: 8.9 | P124: 12.8 | X124: 12.5 | AC124: 10.4 | AJ124: 11.4
A125: 18.8 | J125: 9.6 | P125: 12.4 | X125: 12.5 | AC125: 10.6 | AJ125: 13.2
A126: 18.4 | J126: 9.9 | P126: 12.1 | X126: 11.8 | AC126: 10.6 | AJ126: 14
A127: 18.1 | X127: 10.9
A128: 17.4 | X128: 12.1
A129: 15.8 | X129: 12.3
A130: 16.6 | X130: 12
A131: 17.1 | X131: 10.8
A132: 17.2 | X132: 9.9
A133: 16.8 | X133: 11.8
A134: 16.2 | X134: 11.5
A135: 15.7 | X135: 11.1
A136: 15.9 | X136: 11
A137: 15.7 | X137: 10.8
A138: 15.5 | X138: 10.3
A139: 15.5 | X139: 10.2
A140: 15.5 | X140: 10
A141: 15.3 | X141: 9.8
A142: 14.7 | X142: 9.2
A143: 15.4 | X143: 8.1
A144: 15.1 | X144: 8
A145: 15 | X145: 7.8
A146: 15.1 | X146: 7.1
A147: 15.1 | X147: 6.2
A148: 14.8 | X148: 3.2
A149: 13.9 | X149: 4.6
A150: 17.7 | X150: 5.4
A151: 18 | X151: 3.8
A152: 18 | X152: 3.2
A153: 17.7 | X153: 6
A154: 17.1 | X154: 5.9
A155: 16.2 | X155: 5.6
A156: 15.2 | X156: 6
A157: 22.1 | X157: 6
A158: 22.6
A159: 22.3
A160: 21.3
A161: 19.9
A162: 18.6
A163: 17.6
A164: 23.5
A165: 23.8
A166: 23.3
A167: 22.1
A168: 20.6
A169: 19.3
A170: 18.5
A171: 21
A172: 20.5
A173: 19.7
A174: 19.1
A175: 18.7
A176: 18.2
A177: 17.4
A178: 17
A179: 16.7
A180: 16.1
A181: 15.1
A182: 13.8
A183: 12.6
A184: 12.5
A185: 10.4
A186: 10.5
A187: 11.1
A188: 11.7
A189: 11.7
A190: 11.3
A191: 10.9
A192: 12
A193: 12
A194: 12.3
A195: 12.8
A196: 13.2
A197: 13
A198: 11.8
A199: 16
A200: 15
... 19 more rows

Sheet Værdata September
A1: Bergen 14:45-20:00 | B1: Florø 02:45-03:00 | C1: Måløy 05:15-05:30 | D1: Torvik 08:20-08:30 | E1: Ålesund 09:45-10:00 | F1: Hjørundfjorden 12:15-15:45 | G1: Ålesund 18:00-20:00 | H1: Molde 22:35-23:05 | I1: Kristiansund 02:45-03:00 | J1: Trondheim 09:45-12:45 | K1: Rørvik 21:40-22:00 | L1: Brønnøysund 01:35-01:45 | M1: Sandnessjøen 04:35-04:50 | N1: Nesna 06:00-06:10 | O1: Ørnes 10:00-10:10 | P1: Bodø 13:05-15:20 | Q1: Stamsund 19:15-19:40 | R1: Svolvær 21:20-22:15 | S1: Stokmarknes 01:30-01:40 | T1: Sortland 02:55-03:10 | U1: Risøyhamn 04:35-04:50 | V1: Harstad 07:10 - 07:45 | W1: Finnsnes 11:00-11:30 | X1: Tromsø 14:15-18:15 | Y1: Skjervøy 22:10-22:25 | Z1: Øksfjord 01:50-02:00 | AA1: Hammerfest 05:05- 05:45 | AB1: Havøysund 08:30 - 08:45 | AC1: Honningsvåg 10:55- 14:30 | AD1: Kjøllefjord 16:40-17:00 | AE1: Mehamn 18:55-19:15 | AF1: Berlevåg 22:00-22:10 | AG1: Båtsfjord 00:00-00:30 | AH1: Vardø 03:30-03:45 | AI1: Vadsø 06:55-07:10 | AJ1: Kirkenes 09:00-12:30
A2: Florida 14:00 - 20:00 | B2: Florida 03:00 | C2: Svinøy Fyr 05:00 | D2: Vigra 08:00 | E2: Vigra 10:00 | F2: Vigra 12:00-16:00 | G2: Vigra 18:00-20:00 | H2: Ona 23:00 | I2: Ona 03:00 | J2: Værnes 10:00-13:00 | K2: Ørland 22:00 | L2: Bodø 02:00 | M2: Bodø 05:00 | N2: Bodø 06:00 | O2: Bodø 10:00 | P2: 13:00-16:00 | Q2: Skrova 19:00 | R2: Skrova 22:00 | S2: Sortland 02:00 | T2: Sortland 03:00 | U2: Andøya 05:00 | V2: Andøya 07:00 | W2: Tromsø 11:00 | X2: Tromsø 14:00 - 18:00 | Y2: Tromsø 22:00 | Z2: Torsvåg 02:00 | AA2: Fruholmen 05:00 | AB2: Fruholmen 09:00 | AC2: Fruholmen 11-14 | AD2: Slettnes 17:00 | AE2: Slettnes 19:00 | AF2: Slettnes 22:00 | AG2: Vardø 00:00 | AH2: Vardø 04:00 | AI2: Kirkenes 07:00 | AJ2: Kirkenes 09:00-12:00
A3: 12.1 | B3: 10.9 | C3: 14.3 | D3: 10 | E3: 10.9 | F3: 12 | G3: 11.8 | H3: 13.7 | I3: 14 | J3: 16.8 | K3: 13 | L3: 11.6 | M3: 11 | N3: 10.9 | O3: 11.9 | P3: 12.5 | Q3: 10.7 | R3: 11.2 | S3: 4.3 | T3: 3 | U3: 11 | V3: 11.2 | W3: 9 | X3: 10.7 | Y3: 7.7 | Z3: 12.2 | AA3: 11.2 | AB3: 13.4 | AC3: 14.5 | AD3: 13.9 | AE3: 11.3 | AF3: 10.4 | AG3: 5.4 | AH3: 5.6 | AI3: 3.3 | AJ3: 3.3
A4: 11.7 | B4: 9.1 | C4: 13 | D4: 11 | E4: 11.7 | F4: 12.1 | G4: 11.4 | H4: 15.3 | I4: 13.2 | J4: 17.3 | K4: 14 | L4: 9.6 | M4: 11 | N4: 11.6 | O4: 12.4 | P4: 13 | Q4: 11.8 | R4: 11.3 | S4: 8.2 | T4: 7.9 | U4: 9.1 | V4: 10.3 | W4: 13.3 | X4: 9.7 | Y4: 8.9 | Z4: 11.5 | AA4: 10.2 | AB4: 11.7 | AC4: 14.5 | AD4: 14.1 | AE4: 11.8 | AF4: 10.8 | AG4: 7.2 | AH4: 6 | AI4: 2.2 | AJ4: 1.6
A5: 11.3 | B5: 9.9 | C5: 15.7 | D5: 13.3 | E5: 14.2 | F5: 12 | G5: 10.9 | H5: 14.5 | I5: 15.4 | J5: 17.7 | K5: 15 | L5: 11 | M5: 10.8 | N5: 11 | O5: 10.5 | P5: 12.6 | Q5: 10.9 | R5: 10.4 | S5: 7.8 | T5: 7.7 | U5: 6 | V5: 6.6 | W5: 13.7 | X5: 8.9 | Y5: 7.9 | Z5: 5.5 | AA5: 9.6 | AB5: 9.5 | AC5: 14 | AD5: 8.9 | AE5: 8.3 | AF5: 7.7 | AG5: 6.2 | AH5: 6.9 | AI5: 4.7 | AJ5: 2.7
A6: 11.1 | B6: 8.5 | C6: 13.2 | D6: 13 | E6: 13.4 | F6: 12.3 | G6: 13.2 | H6: 14.5 | I6: 14.4 | J6: 17.2 | K6: 13.2 | L6: 9 | M6: 8.8 | N6: 8.8 | O6: 9.6 | P6: 12.3 | Q6: 12.4 | R6: 11.9 | S6: 8.8 | T6: 8.8 | U6: 2 | V6: 5.1 | W6: 15 | X6: 9 | Y6: 15.3 | Z6: 6.6 | AA6: 8.3 | AB6: 9 | AC6: 13 | AD6: 8.6 | AE6: 8.8 | AF6: 9.2 | AG6: 5.4 | AH6: 6 | AI6: 8.3 | AJ6: 3.7
A7: 10.8 | B7: 10.7 | C7: 13 | D7: 13 | E7: 14.3 | F7: 12 | G7: 13.5 | H7: 13.8 | I7: 14.1 | J7: 12.8 | K7: 12 | L7: 7.8 | M7: 7.2 | N7: 7.4 | O7: 8.3 | P7: 13 | Q7: 13.7 | R7: 13 | S7: 7 | T7: 6.6 | U7: 9 | V7: 9.2 | W7: 14 | X7: 8.8 | Y7: 9.3 | Z7: 10.7 | AA7: 10.3 | AB7: 10.4 | AC7: 11.6 | AD7: 11.9 | AE7: 11 | AF7: 9.4 | AG7: 6.7 | AH7: 4.4 | AI7: 7.5 | AJ7: 6
A8: 10.5 | B8: 12.9 | C8: 13.7 | D8: 14 | E8: 15 | F8: 14 | G8: 13 | H8: 14.1 | I8: 13.6 | J8: 15.3 | K8: 10.6 | L8: 4.2 | M8: 5 | N8: 5.3 | O8: 9 | P8: 14 | Q8: 11.4 | R8: 10.8 | S8: 8.6 | T8: 9 | U8: 7 | V8: 7.6 | W8: 11.3 | X8: 16 | Y8: 11.6 | Z8: 8.1 | AA8: 6.3 | AB8: 6.9 | AC8: 11.2 | AD8: 6.6 | AE8: 6.2 | AF8: 5.2 | AG8: 8.5 | AH8: 5.8 | AI8: 10.6 | AJ8: 6.3
A9: 10.2 | B9: 10.7 | C9: 13 | D9: 14.5 | E9: 15.3 | F9: 14.3 | G9: 15 | H9: 12.7 | I9: 13.5 | J9: 15.7 | K9: 12.2 | L9: 8.1 | M9: 9 | N9: 9.2 | O9: 10.8 | P9: 13.7 | Q9: 9.2 | R9: 9.3 | S9: 10.4 | T9: 10 | U9: 6 | V9: 8.6 | W9: 13.3 | X9: 15.8 | Y9: 9.5 | Z9: 8.4 | AA9: 5 | AB9: 5 | AC9: 10.8 | AD9: 5.2 | AE9: 5 | AF9: 4.8 | AG9: 8.9 | AH9: 7.4 | AI9: 9.3 | AJ9: 7
A10: 12.6 | B10: 10 | C10: 12.6 | D10: 13 | E10: 14.1 | F10: 14 | G10: 14.3 | H10: 12 | I10: 13 | J10: 14.8 | K10: 12.3 | L10: 10 | M10: 9.8 | N10: 9.3 | O10: 8 | P10: 13 | Q10: 10.8 | R10: 10.1 | S10: 12.7 | T10: 12.6 | U10: 6 | V10: 6.1 | W10: 11 | X10: 15.1 | Y10: 11.5 | Z10: 5.4 | AA10: 4.4 | AB10: 5.4 | AC10: 10.6 | AD10: 5.2 | AE10: 4.8 | AF10: 4.7 | AG10: 8.3 | AH10: 8.2 | AI10: 10.1 | AJ10: 7.3
A11: 13.2 | B11: 7.8 | C11: 11.5 | D11: 13 | E11: 14.2 | F11: 13.7 | G11: 14 | H11: 12 | I11: 11.9 | J11: 17 | K11: 8.8 | L11: 7 | M11: 6.8 | N11: 7 | O11: 9.1 | P11: 10.8 | Q11: 10.2 | R11: 9.9 | S11: 8.6 | T11: 8.5 | U11: 2.4 | V11: 4.2 | W11: 13.7 | X11: 15 | Y11: 12.3 | Z11: 6 | AA11: 4.8 | AB11: 6.2 | AC11: 9.3 | AD11: 6.7 | AE11: 6.2 | AF11: 5.6 | AG11: 7.8 | AH11: 7.1 | AI11: 11.1 | AJ11: 6
A12: 13.4 | B12: 5.8 | C12: 11.4 | D12: 17.4 | E12: 18.4 | F12: 13 | G12: 15 | H12: 12.5 | I12: 11.5 | J12: 18 | K12: 12 | L12: 6.8 | M12: 6.2 | N12: 6.5 | O12: 7.2 | P12: 11 | Q12: 11.2 | R12: 9.9 | S12: 9.4 | T12: 9.5 | U12: 4 | V12: 5.5 | W12: 9 | X12: 14.7 | Y12: 6.2 | Z12: 6.1 | AA12: 6.3 | AB12: 7 | AC12: 9.2 | AD12: 7.4 | AE12: 7 | AF12: 6.2 | AG12: 7.2 | AH12: 7.9 | AI12: 9.3 | AJ12: 6.1
A13: 13.2 | B13: 7.6 | C13: 12.8 | D13: 13.3 | E13: 15 | F13: 13.3 | G13: 15.1 | H13: 13.2 | I13: 12.4 | J13: 18 | K13: 11.8 | L13: 7 | M13: 5.2 | N13: 5.2 | O13: 7 | P13: 10.8 | Q13: 13.1 | R13: 12.9 | S13: 8.3 | T13: 8.4 | U13: 6.9 | V13: 7.2 | W13: 8 | X13: 15.3 | Y13: 4.1 | Z13: 8.7 | AA13: 7.3 | AB13: 7.2 | AC13: 9 | AD13: 6.6 | AE13: 6 | AF13: 6.3 | AG13: 7.8 | AH13: 8 | AI13: 8.6 | AJ13: 6
A14: 12.6 | B14: 6.6 | C14: 11.2 | D14: 14 | E14: 13.4 | F14: 14.5 | G14: 15 | H14: 12 | I14: 12.5 | J14: 18.1 | K14: 10.4 | L14: 4.9 | M14: 6 | N14: 5.7 | O14: 8.6 | P14: 10.5 | Q14: 12 | R14: 12 | S14: 6.4 | T14: 6.7 | U14: 10 | V14: 9.8 | W14: 8.7 | X14: 16 | Y14: 5.4 | Z14: 7.4 | AA14: 4.5 | AB14: 4.5 | AC14: 8.7 | AD14: 5.1 | AE14: 5.2 | AF14: 4.2 | AG14: 8.1 | AH14: 8 | AI14: 10.3 | AJ14: 6
A15: 11.9 | B15: 10 | C15: 12.2 | D15: 12.2 | E15: 14 | F15: 14 | G15: 16 | H15: 12.4 | I15: 12.2 | J15: 16.6 | K15: 10.8 | L15: 6 | M15: 5 | N15: 5.3 | O15: 7.4 | P15: 9 | Q15: 10.2 | R15: 10.7 | S15: 7.2 | T15: 6.9 | U15: 9.2 | V15: 9.3 | W15: 7 | X15: 14.7 | Y15: 0.1 | Z15: 9.4 | AA15: 5.1 | AB15: 5.2 | AC15: 9.5 | AD15: 5.1 | AE15: 3.8 | AF15: 3.4 | AG15: 7.1 | AH15: 8 | AI15: 6.9 | AJ15: 9.3
A16: 11.4 | B16: 13.5 | C16: 10.6 | D16: 14.4 | E16: 14.5 | F16: 14 | G16: 15.2 | H16: 9.2 | I16: 12.3 | J16: 17 | K16: 10.2 | L16: 6 | M16: 5.9 | N16: 6 | O16: 7.6 | P16: 8.9 | Q16: 9.9 | R16: 9.4 | S16: 7 | T16: 6.9 | U16: 7 | V16: 7.2 | W16: 6 | X16: 14.3 | Y16: 6 | Z16: 8.2 | AA16: 5.8 | AB16: 5.5 | AC16: 9.7 | AD16: 5 | AE16: 4.6 | AF16: 4.2 | AG16: 7.1 | AH16: 6.8 | AI16: 8.2 | AJ16: 9.5
A17: 12.8 | B17: 7.3 | C17: 9.6 | D17: 13 | E17: 14.3 | F17: 14.4 | G17: 15 | H17: 10.1 | I17: 9.6 | J17: 17 | K17: 9.2 | L17: 7 | M17: 6 | N17: 6.1 | O17: 8.1 | P17: 9 | Q17: 11.6 | R17: 11.8 | S17: 8 | T17: 8.5 | U17: 4 | V17: 5.2 | W17: 9 | X17: 13.7 | Y17: 6.5 | Z17: 7.7 | AA17: 6.6 | AB17: 7.5 | AC17: 10 | AD17: 6.4 | AE17: 6 | AF17: 6.3 | AG17: 6.7 | AH17: 7.1 | AI17: 8.3 | AJ17: 10
A18: 13 | B18: 10.5 | C18: 8.7 | D18: 11 | E18: 12 | F18: 14 | G18: 17.8 | H18: 11.8 | I18: 9.5 | J18: 17.6 | K18: 6.9 | L18: 7.8 | M18: 7 | N18: 6.9 | O18: 8.6 | P18: 8.9 | Q18: 8.4 | R18: 8.3 | S18: 4.5 | T18: 4.1 | U18: 7 | V18: 7.7 | W18: 9 | X18: 17.3 | Y18: 4.2 | Z18: 6.6 | AA18: 6.1 | AB18: 6.1 | AC18: 10.2 | AD18: 6.6 | AE18: 6.4 | AF18: 6.6 | AG18: 5.8 | AH18: 7.1 | AI18: 6.2 | AJ18: 10
A19: 13.1 | B19: 8.9 | C19: 11.1 | D19: 11 | E19: 11.7 | F19: 14.6 | G19: 17.1 | H19: 10.2 | I19: 12.7 | J19: 15.2 | K19: 7.9 | L19: 7 | M19: 7.1 | N19: 7 | O19: 9 | P19: 9.5 | Q19: 8.8 | R19: 8.3 | S19: 3.8 | T19: 3.6 | U19: 8 | V19: 7.5 | W19: 3.4 | X19: 19 | Y19: 3.4 | Z19: 9.6 | AA19: 7.2 | AB19: 9 | AC19: 9.6 | AD19: 10.5 | AE19: 10.4 | AF19: 11.2 | AG19: 4.1 | AH19: 5 | AI19: 4.9 | AJ19: 8
A20: 12.9 | B20: 10.2 | C20: 8.6 | D20: 14.7 | E20: 13.9 | F20: 15 | G20: 16.6 | H20: 10.4 | I20: 8.8 | J20: 15.3 | K20: 9.7 | L20: 11 | M20: 11 | N20: 10.9 | O20: 11.3 | P20: 9.2 | Q20: 7.6 | R20: 6.7 | S20: 6.3 | T20: 6.5 | U20: 5 | V20: 7.1 | W20: 5.3 | X20: 19.2 | Y20: -0.2 | Z20: 7.8 | AA20: 11 | AB20: 11.5 | AC20: 9.4 | AD20: 13.9 | AE20: 13.4 | AF20: 13 | AG20: 6.3 | AH20: 4 | AI20: 5.2 | AJ20: 8.4
A21: 12.4 | B21: 16 | C21: 11.7 | D21: 10 | E21: 9.7 | F21: 15 | G21: 16.8 | H21: 12.1 | I21: 9.2 | J21: 17 | K21: 11.9 | L21: 9 | M21: 9 | N21: 9 | O21: 9.5 | P21: 9.3 | Q21: 6.6 | R21: 6.7 | S21: 6.9 | T21: 6.9 | U21: 8 | V21: 8 | W21: 6 | X21: 17 | Y21: 0.4 | Z21: 9.9 | AA21: 8.2 | AB21: 7.7 | AC21: 9.2 | AD21: 6.8 | AE21: 5.4 | AF21: 5.2 | AG21: 5.3 | AH21: 5.6 | AI21: 3.8 | AJ21: 10
A22: 11.7 | B22: 13.1 | C22: 9.4 | D22: 7.2 | E22: 9.2 | F22: 15.2 | G22: 16.3 | H22: 6.6 | I22: 10.1 | J22: 17.1 | K22: 7.2 | L22: 10 | M22: 10 | N22: 9.9 | O22: 9.5 | P22: 9.5 | Q22: 8.2 | R22: 6.5 | S22: 5.6 | T22: 5.4 | U22: 10 | V22: 10.8 | W22: 5.3 | X22: 14.7 | Y22: 4.1 | Z22: 9 | AA22: 5.4 | AB22: 5.1 | AC22: 9 | AD22: 6.9 | AE22: 4.5 | AF22: 4.2 | AG22: 4.3 | AH22: 5.5 | AI22: -0.6 | AJ22: 10.3
A23: 11.1 | B23: 14.8 | C23: 7 | D23: 9.8 | E23: 10.5 | F23: 17.3 | G23: 14.8 | H23: 9.6 | I23: 7.1 | J23: 14.8 | K23: 8.6 | L23: 9.8 | M23: 10 | N23: 9.8 | O23: 10.4 | P23: 11.9 | Q23: 7.9 | R23: 8.7 | S23: 5.5 | T23: 6.1 | U23: 11 | V23: 9.9 | W23: 5.3 | X23: 13 | Y23: 2.2 | Z23: 12 | AA23: 7 | AB23: 7.9 | AC23: 7 | AD23: 7.4 | AE23: 6.4 | AF23: 2.9 | AG23: 4.8 | AH23: 4 | AI23: -0.2 | AJ23: 12.3
A24: 12.4 | B24: 15.1 | C24: 9.5 | D24: 11 | E24: 11.8 | F24: 17.6 | G24: 15 | H24: 11.7 | I24: 9.6 | J24: 16.7 | K24: 8.3 | L24: 9 | M24: 9 | N24: 8.7 | O24: 9.3 | P24: 12.8 | Q24: 7.7 | R24: 7.6 | S24: 6.2 | T24: 6.1 | U24: 7 | V24: 7.8 | W24: 5 | X24: 14 | Y24: 2.1 | Z24: 8.5 | AA24: 7.4 | AB24: 8.4 | AC24: 7 | AD24: 7.1 | AE24: 7.2 | AF24: 8.2 | AG24: 3.7 | AH24: 5 | AI24: 2.5 | AJ24: 12.9
A25: 12.6 | B25: 14.5 | C25: 11.2 | D25: 8 | E25: 8.7 | F25: 17 | G25: 14.8 | H25: 10.8 | I25: 11.2 | J25: 16 | K25: 7.2 | L25: 9.2 | M25: 10 | N25: 10.1 | O25: 10.5 | P25: 12.6 | Q25: 9.7 | R25: 7.7 | S25: 9.2 | T25: 8.9 | U25: 8 | V25: 8.2 | W25: 6 | X25: 13.5 | Y25: 6.8 | Z25: 6.9 | AA25: 7.1 | AB25: 7.3 | AC25: 7 | AD25: 7.1 | AE25: 5.6 | AF25: 4.4 | AG25: 5.5 | AH25: 3.6 | AI25: 7.7 | AJ25: 13.7
A26: 12.7 | B26: 13.1 | C26: 10 | D26: 6.3 | E26: 8 | F26: 17 | G26: 14.8 | H26: 10.6 | I26: 10.4 | J26: 17.3 | K26: 8.1 | L26: 10 | M26: 9 | N26: 8.9 | O26: 8.4 | P26: 12.2 | Q26: 3.9 | R26: 5.5 | S26: 10.2 | T26: 10.2 | U26: 7 | V26: 8.1 | W26: 8 | X26: 13 | Y26: 6.6 | Z26: 6.6 | AA26: 6.1 | AB26: 5.4 | AC26: 7 | AD26: 5.7 | AE26: 5.2 | AF26: 5.4 | AG26: 6 | AH26: 5.2 | AI26: 4.8 | AJ26: 14.3
A27: 12.6 | B27: 14 | C27: 9.6 | D27: 11 | E27: 11.5 | F27: 17 | G27: 17 | H27: 8.1 | I27: 10 | J27: 14.2 | K27: 2.4 | L27: 8 | M27: 8.1 | N27: 8 | O27: 8.6 | P27: 12.6 | Q27: 7.4 | R27: 7.3 | S27: 6 | T27: 5.6 | U27: 12 | V27: 12 | W27: 9 | X27: 12.3 | Y27: 8.5 | Z27: 13.9 | AA27: 4.8 | AB27: 4.2 | AC27: 5.3 | AD27: 5 | AE27: 3.8 | AF27: 3.3 | AG27: 6.4 | AH27: 6.2 | AI27: -0.1 | AJ27: 13.3
A28: 12.5 | B28: 8.6 | C28: 9 | D28: 10 | E28: 11.3 | F28: 16.2 | G28: 16.8 | H28: 8.2 | I28: 8 | J28: 15 | K28: 5.8 | L28: 8 | M28: 9 | N28: 8.4 | O28: 10.6 | P28: 12.8 | Q28: 7.4 | R28: 7.5 | S28: 5.1 | T28: 5.1 | U28: 9 | V28: 8.5 | W28: 9 | X28: 15 | Y28: 5.6 | Z28: 8.6 | AA28: 3.5 | AB28: 4.9 | AC28: 5.4 | AD28: 5.9 | AE28: 6 | AF28: 6.4 | AG28: 5.8 | AH28: 5.5 | AI28: 0.3 | AJ28: 16.3
A29: 12.4 | B29: 9.3 | C29: 8.3 | D29: 7.2 | E29: 6.9 | F29: 16.8 | G29: 16.7 | H29: 9.2 | I29: 8 | J29: 14.7 | K29: 9 | L29: 11 | M29: 11 | N29: 10.8 | O29: 12.4 | P29: 12.5 | Q29: 8.2 | R29: 9.8 | S29: 7.1 | T29: 7.3 | U29: 11 | V29: 9.7 | W29: 7 | X29: 16 | Y29: 6 | Z29: 10.2 | AA29: 4.4 | AB29: 5.8 | AC29: 5.4 | AD29: 6.2 | AE29: 6 | AF29: 5.8 | AG29: 5.3 | AH29: 5.3 | AI29: 1.3 | AJ29: 16.7
A30: 12.1 | B30: 8 | C30: 10.5 | D30: 6.8 | E30: 7.5 | F30: 17.2 | G30: 16.7 | H30: 9.5 | I30: 9.4 | J30: 14.6 | K30: 6.7 | L30: 11.6 | M30: 11.8 | N30: 12 | O30: 12.9 | P30: 12.1 | Q30: 7.5 | R30: 8 | S30: 3.1 | T30: 2.8 | U30: 4 | V30: 4.3 | W30: 8.3 | X30: 15 | Y30: 3.8 | Z30: 3.8 | AA30: 4.1 | AB30: 5 | AC30: 5.4 | AD30: 5 | AE30: 5 | AF30: 3.8 | AG30: 3.8 | AH30: 4 | AI30: 0 | AJ30: 18
A31: 12.9 | B31: 9.3 | C31: 9 | D31: 6.3 | E31: 7.6 | F31: 18 | G31: 15.5 | H31: 8 | I31: 9 | J31: 14 | K31: 7.3 | L31: 11 | M31: 11 | N31: 11 | O31: 10.7 | P31: 7.4 | Q31: 7 | R31: 7 | S31: 5.9 | T31: 6 | U31: 5 | V31: 4.6 | W31: 7 | X31: 14.7 | Y31: 6.9 | Z31: 4.4 | AA31: 4.4 | AB31: 5 | AC31: 5.6 | AD31: 3.7 | AE31: 3.2 | AF31: 3.1 | AG31: 6.3 | AH31: 5.4 | AI31: 1.5 | AJ31: 12.7
A32: 13.5 | B32: 10.2 | C32: 8.2 | D32: 7 | E32: 7.7 | F32: 18 | G32: 14.8 | H32: 8.4 | I32: 8.1 | J32: 16 | K32: 1.2 | L32: 11 | M32: 10.8 | N32: 9.7 | O32: 10.5 | P32: 8 | Q32: 5.3 | R32: 5 | S32: 8.1 | T32: 8.4 | U32: 4 | V32: 3.9 | W32: 5 | X32: 13 | Y32: 1.1 | Z32: 4.1 | AA32: 4.3 | AB32: 5.7 | AC32: 5.6 | AD32: 5.2 | AE32: 3 | AF32: 2.5 | AG32: 6.7 | AH32: 5.8 | AI32: 3.6 | AJ32: 11.3
A33: 13.6 | F33: 16 | G33: 15 | J33: 16 | P33: 8.1 | X33: 16 | AC33: 5.6 | AJ33: 11.2
A34: 13.2 | F34: 15.9 | G34: 14.5 | J34: 16.2 | P34: 8.1 | X34: 15.7 | AC34: 5.8 | AJ34: 12
A35: 12.6 | F35: 16 | G35: 14 | J35: 11.9 | P35: 9 | X35: 15.2 | AC35: 7.4 | AJ35: 12
A36: 12.2 | F36: 16 | G36: 14 | J36: 12 | P36: 9 | X36: 13.7 | AC36: 7.9 | AJ36: 13.2
A37: 12.3 | F37: 16.1 | G37: 13.5 | J37: 12 | P37: 8.6 | X37: 12.7 | AC37: 8.2 | AJ37: 14.3
A38: 13.5 | F38: 15 | G38: 13 | J38: 12.2 | P38: 8.4 | X38: 11.3 | AC38: 8.4 | AJ38: 15.8
A39: 13.6 | F39: 15.3 | G39: 17 | J39: 13.2 | P39: 8.4 | X39: 12 | AC39: 7.9 | AJ39: 10
A40: 13.7 | F40: 15 | G40: 17.3 | J40: 13.3 | P40: 8.2 | X40: 12.4 | AC40: 7.8 | AJ40: 10.2
A41: 13.6 | F41: 15 | G41: 16.8 | J41: 14 | P41: 8.4 | X41: 12.3 | AC41: 7.8 | AJ41: 11
A42: 13.1 | F42: 15.3 | G42: 15 | J42: 14.6 | P42: 8.4 | X42: 12.7 | AC42: 7.9 | AJ42: 11
A43: 12.5 | F43: 18.3 | G43: 14.8 | J43: 12.1 | P43: 8.5 | X43: 13 | AC43: 6.8 | AJ43: 9
A44: 12.1 | F44: 19.3 | G44: 14 | J44: 13.7 | P44: 8.9 | X44: 13 | AC44: 6.7 | AJ44: 9.4
A45: 13.3 | F45: 19.7 | G45: 12 | J45: 14.7 | P45: 8.7 | X45: 13.3 | AC45: 6.6 | AJ45: 9
A46: 13.2 | F46: 19.2 | G46: 11.9 | J46: 13.8 | P46: 8.6 | X46: 14 | AC46: 6.5 | AJ46: 9.7
A47: 13 | F47: 18.2 | G47: 12 | J47: 11.5 | P47: 10.7 | X47: 14 | AC47: 4.8 | AJ47: 12
A48: 12.8 | F48: 19.3 | G48: 12.7 | J48: 12 | P48: 10.2 | X48: 9 | AC48: 5.1 | AJ48: 11.4
A49: 12.5 | F49: 16.6 | G49: 12 | J49: 12 | P49: 10.8 | X49: 8 | AC49: 5.4 | AJ49: 10
A50: 12.2 | F50: 17 | G50: 12 | J50: 12 | P50: 11.1 | X50: 8.1 | AC50: 5.6 | AJ50: 9.3
A51: 11.9 | F51: 16.7 | G51: 13.2 | J51: 9.6 | P51: 10 | X51: 8 | AC51: 5.5 | AJ51: 8.3
A52: 14.1 | F52: 16.2 | G52: 13.7 | J52: 10 | P52: 11 | X52: 7.3 | AC52: 5.5 | AJ52: 9.5
A53: 14 | F53: 16 | G53: 14.7 | J53: 10 | P53: 11 | X53: 9 | AC53: 5.4 | AJ53: 11
A54: 13.8 | F54: 16.1 | G54: 13.8 | J54: 10.8 | P54: 10.8 | X54: 8.8 | AC54: 5.3 | AJ54: 12
A55: 13.5 | F55: 16 | G55: 13.4 | J55: 10.8 | P55: 8.2 | X55: 8.4 | AC55: 5.7 | AJ55: 10
A56: 12.9 | F56: 15.7 | G56: 12 | J56: 12 | P56: 9.2 | X56: 6.7 | AC56: 5.8 | AJ56: 9.9
A57: 12 | F57: 15.5 | G57: 10.8 | J57: 11 | P57: 9.6 | X57: 5.8 | AC57: 6 | AJ57: 9
A58: 11 | F58: 12.7 | G58: 10.4 | J58: 11.1 | P58: 9.8 | X58: 10 | AC58: 6.4 | AJ58: 9.3
A59: 13.3 | F59: 13.2 | G59: 10 | J59: 9.2 | P59: 9.4 | X59: 9 | AC59: 7.3 | AJ59: 9.3
A60: 13.4 | F60: 13.8 | G60: 11.8 | J60: 11 | P60: 10 | X60: 9 | AC60: 7 | AJ60: 10.2
A61: 13.4 | F61: 13 | G61: 10.8 | J61: 10.7 | P61: 9.8 | X61: 8.7 | AC61: 6.7 | AJ61: 11.2
A62: 12.7 | F62: 14.2 | G62: 10.6 | J62: 9.3 | P62: 9.3 | X62: 8 | AC62: 6.6 | AJ62: 12
A63: 12.1 | F63: 15.2 | G63: 12.8 | J63: 11.2 | P63: 10.5 | X63: 8.7 | AC63: 6.3 | AJ63: 7
A64: 11.5 | F64: 16 | G64: 12.1 | J64: 12.3 | P64: 11 | X64: 8 | AC64: 6.4 | AJ64: 6.9
A65: 10.6 | F65: 17 | G65: 12.2 | J65: 14 | P65: 11.3 | X65: 7.2 | AC65: 6.6 | AJ65: 7.3
A66: 17.7 | F66: 17 | G66: 9 | J66: 14.6 | P66: 11.4 | X66: 7 | AC66: 6.8 | AJ66: 8
A67: 17.7 | F67: 17.3 | G67: 9 | J67: 13.5 | P67: 12.7 | X67: 5.7 | AC67: 10.5 | AJ67: 6.3
A68: 17.2 | F68: 15.2 | G68: 8.8 | J68: 14.3 | P68: 12 | X68: 6 | AC68: 10.4 | AJ68: 6.7
A69: 16.2 | F69: 15.9 | G69: 7.7 | J69: 15.3 | P69: 12.4 | X69: 6 | AC69: 10.3 | AJ69: 7
A70: 14.9 | F70: 17 | G70: 7.1 | J70: 15.4 | P70: 12.3 | X70: 5.9 | AC70: 10.3 | AJ70: 7.3
A71: 13.6 | F71: 16.7 | G71: 7 | J71: 7.9 | P71: 11.1 | X71: 6.3 | AC71: 11.7 | AJ71: 7
A72: 12.3 | F72: 15.3 | G72: 12 | J72: 10 | P72: 11 | X72: 7 | AC72: 11.7 | AJ72: 7.1
A73: 15.1 | F73: 15 | G73: 11.7 | J73: 9.3 | P73: 11 | X73: 9 | AC73: 11.8 | AJ73: 7
A74: 15.4 | F74: 15.2 | G74: 10.8 | J74: 9.7 | P74: 10.9 | X74: 9 | AC74: 11.9 | AJ74: 7
A75: 15.5 | F75: 15 | G75: 9 | J75: 11.7 | P75: 10.9 | X75: 8.9 | AC75: 7.5 | AJ75: 5
A76: 15.2 | F76: 15 | G76: 9.2 | J76: 12.3 | P76: 11 | X76: 8.7 | AC76: 7 | AJ76: 4.9
A77: 14.5 | F77: 14.3 | G77: 8.8 | J77: 13 | P77: 10.7 | X77: 7.7 | AC77: 6.4 | AJ77: 4
A78: 13.5 | F78: 13 | G78: 7.7 | J78: 13.8 | P78: 10.3 | X78: 9 | AC78: 6.1 | AJ78: 4
A79: 12.4 | F79: 12.9 | G79: 7.3 | J79: 11.5 | P79: 10 | X79: 8 | AC79: 4.8 | AJ79: 2.7
A80: 16.1 | F80: 13 | G80: 8 | J80: 14 | P80: 10.1 | X80: 7.3 | AC80: 5 | AJ80: 2.8
A81: 15.7 | F81: 13 | G81: 8 | J81: 14 | P81: 10 | X81: 6.7 | AC81: 5.4 | AJ81: 3
A82: 15 | F82: 12.7 | G82: 7.8 | J82: 14.1 | P82: 9.6 | X82: 6 | AC82: 5.9 | AJ82: 3.7
A83: 14.2 | F83: 11 | G83: 7.6 | J83: 6.8 | P83: 10.5 | X83: 6 | AC83: 7.9 | AJ83: 1.7
A84: 13.5 | F84: 11 | G84: 8.8 | J84: 7.3 | P84: 10 | X84: 5.6 | AC84: 7.8 | AJ84: 2.9
A85: 12.8 | F85: 11 | G85: 8.2 | J85: 8.3 | P85: 9.9 | X85: 5.3 | AC85: 7.5 | AJ85: 3
A86: 11.9 | F86: 11.3 | G86: 7.8 | J86: 8.4 | P86: 9.8 | X86: 4 | AC86: 7.2 | AJ86: 3
A87: 17.1 | F87: 12 | G87: 9 | J87: 7.5 | P87: 9.6 | X87: 4 | AC87: 8.4 | AJ87: 5
A88: 17.1 | F88: 14.2 | G88: 8.3 | J88: 9.7 | P88: 9 | X88: 5 | AC88: 8.5 | AJ88: 5.3
A89: 16.5 | F89: 14.9 | G89: 7.8 | J89: 11.3 | P89: 9.3 | X89: 4 | AC89: 8.8 | AJ89: 6.3
A90: 15.7 | F90: 15.3 | G90: 9 | J90: 11.5 | P90: 9.7 | X90: 4.5 | AC90: 9.2 | AJ90: 7
A91: 15.1 | F91: 15.3 | G91: 8.9 | J91: 7.4 | P91: 9.9 | X91: 4 | AC91: 7.6 | AJ91: 9.3
A92: 15.1 | F92: 15.2 | G92: 8.5 | J92: 9.3 | P92: 11 | X92: 3.7 | AC92: 7.8 | AJ92: 9.3
A93: 15 | F93: 11 | J93: 10 | P93: 11 | X93: 8 | AC93: 8 | AJ93: 9
A94: 11.4 | F94: 11 | J94: 10.1 | P94: 10.8 | X94: 8 | AC94: 8 | AJ94: 9
A95: 11.1 | F95: 11 | J95: 9.9 | P95: 10 | X95: 7.6 | AC95: 5.1 | AJ95: 5
A96: 10.8 | F96: 11 | J96: 10.3 | P96: 9 | X96: 6.7 | AC96: 5.2 | AJ96: 5
A97: 10.4 | F97: 10.9 | J97: 11 | P97: 9.3 | X97: 4.7 | AC97: 5.4 | AJ97: 5
A98: 9.9 | F98: 10.2 | J98: 11.2 | P98: 9.5 | X98: 5 | AC98: 5.7 | AJ98: 5
A99: 9.2 | F99: 11.1 | J99: 5.7 | P99: 10.6 | X99: 5 | AC99: 4.6 | AJ99: 1.3
A100: 9.2 | F100: 11 | J100: 7.3 | P100: 11.2 | X100: 5.1 | AC100: 5 | AJ100: 2.4
A101: 12.6 | F101: 11 | J101: 9 | P101: 11.7 | X101: 5 | AC101: 5.2 | AJ101: 3.3
A102: 12.9 | F102: 11.2 | J102: 9.3 | P102: 11.6 | X102: 5 | AC102: 5.2 | AJ102: 4
A103: 13.1 | F103: 13 | J103: 3.2 | P103: 12.2 | X103: 4.8 | AC103: 5.1 | AJ103: 3
A104: 13 | F104: 13.3 | J104: 5.3 | P104: 12 | X104: 4 | AC104: 5.4 | AJ104: 3.9
A105: 12.4 | F105: 13 | J105: 6.3 | P105: 11.8 | X105: 3.7 | AC105: 5.7 | AJ105: 5
A106: 11.2 | F106: 13.2 | J106: 6.7 | P106: 11.3 | X106: 3 | AC106: 6 | AJ106: 5
A107: 10 | F107: 13.5 | J107: 5.4 | P107: 12.3 | X107: 3 | AC107: 6 | AJ107: 2.3
A108: 13.4 | F108: 11 | J108: 7 | P108: 12.6 | X108: 5 | AC108: 6 | AJ108: 2.9
A109: 13 | F109: 10.6 | J109: 8.3 | P109: 13 | X109: 5 | AC109: 6 | AJ109: 3
A110: 12.4 | F110: 10 | J110: 9.5 | P110: 12.6 | X110: 4.2 | AC110: 6.1 | AJ110: 3
A111: 11.8 | F111: 10 | J111: 8.1 | P111: 12.1 | X111: 3.7 | AC111: 5.4 | AJ111: 2
A112: 11.2 | F112: 10.1 | J112: 8.3 | P112: 12 | X112: 2 | AC112: 5.5 | AJ112: 2.3
A113: 10.7 | F113: 7.7 | J113: 9.3 | P113: 12.3 | X113: 7.3 | AC113: 5.6 | AJ113: 3
A114: 10.2 | F114: 7.8 | J114: 10.1 | P114: 12.5 | X114: 8.3 | AC114: 5.6 | AJ114: 3.3
A115: 12.7 | F115: 9 | J115: 4.9 | P115: 12 | X115: 8.9 | AC115: 5.1 | AJ115: 3
A116: 13 | F116: 9 | J116: 6 | P116: 11 | X116: 7.5 | AC116: 5.1 | AJ116: 3.2
A117: 13 | F117: 8.5 | J117: 7 | P117: 11 | X117: 6 | AC117: 5 | AJ117: 5
A118: 12.6 | F118: 10 | J118: 7.1 | P118: 11.1 | X118: 10 | AC118: 4.7 | AJ118: 5
A119: 12.2 | F119: 10.4 | J119: 6.5 | P119: 10 | X119: 10 | AC119: 5.7 | AJ119: 4
A120: 12 | F120: 9.7 | J120: 7.3 | P120: 10 | X120: 9.2 | AC120: 5.6 | AJ120: 4
A121: 11.9 | F121: 8.7 | J121: 9 | P121: 10.2 | X121: 9 | AC121: 5.7 | AJ121: 4
A122: 13.9 | F122: 7.9 | J122: 8.8 | P122: 10.3 | X122: 8 | AC122: 5.9 | AJ122: 4
A123: 13.7 | F123: 10.7 | X123: 9
A124: 13.7 | F124: 10.4 | X124: 9
A125: 13.9 | F125: 10 | X125: 9
A126: 14.5 | F126: 10 | X126: 9
A127: 15.4 | F127: 9.6 | X127: 8
A128: 15.7 | F128: 13 | X128: 9
A129: 14.6 | F129: 13.4 | X129: 9
A130: 14.5 | F130: 11.3 | X130: 8.8
A131: 14.4 | F131: 8.7 | X131: 8.7
A132: 14.2 | F132: 7.3 | X132: 7.7
A133: 13.8 | F133: 7.8 | X133: 8
A134: 13.1 | F134: 7.1 | X134: 8
A135: 12.9 | F135: 8.2 | X135: 8.1
A136: 15.8 | F136: 9 | X136: 7.7
A137: 15.7 | F137: 8.6 | X137: 6.7
A138: 15.3 | F138: 8.2 | X138: 9
A139: 14.7 | F139: 8.6 | X139: 9
A140: 14.1 | F140: 9 | X140: 8.9
A141: 13.9 | F141: 9 | X141: 7.7
A142: 14.1 | F142: 9.2 | X142: 6.7
A143: 14.4 | F143: 9 | X143: 8
A144: 14.6 | F144: 9.7 | X144: 8
A145: 14.7 | F145: 10 | X145: 7.5
A146: 14.6 | F146: 10 | X146: 7.3
A147: 14.4 | F147: 9.9 | X147: 7
A148: 14.3 | F148: 8.2 | X148: 4
A149: 14.4 | F149: 8.6 | X149: 3
A150: 20.2 | F150: 9 | X150: 3.5
A151: 20.4 | F151: 9 | X151: 3
A152: 19.9 | F152: 8.9 | X152: 2
A153: 18.8
A154: 17.5
A155: 16.6
A156: 16.6
A157: 15
A158: 14.3
A159: 14
A160: 14
A161: 14
A162: 13.9
A163: 13.8
A164: 15.7
A165: 16.3
A166: 16.3
A167: 15.8
A168: 15.1
A169: 14.6
A170: 14.5
A171: 13.5
A172: 11.8
A173: 10.5
A174: 10
A175: 10
A176: 9.8
A177: 9.6
A178: 12.6
A179: 13
A180: 13
A181: 12.3
A182: 11.1
A183: 9.8
A184: 9.2
A185: 11.8
A186: 11.5
A187: 11.1
A188: 10.6
A189: 10.3
A190: 10.2
A191: 10
A192: 10.5
A193: 10.8
A194: 10.8
A195: 10.6
A196: 10.4
A197: 10.1
A198: 10
A199: 11.6
A200: 11.6
... 12 more rows

Sheet Værdata Oktober
